Workbook

Sheet Tooth measurements raw data
G1: Reconstructed crowns, reduced by enamel height | M1: Crowns as they are
A2: Specimen | B2: tooth | C2: root depth | D2: root depth to reference | E2: apex depth | F2: apex depth to reference | G2: tooth length | H2: volume | I2: [all in mm] | K2: crown length | M2: tooth length | N2: volume | O2: [all in mm] | Q2: crown length | S2: volume of reconstruced parts | T2: root volume | U2: crown volume | V2: total volume | W2: tooth length without enamel | X2: crown length with enamel
A3: Medium Alligator | B3: 1 | G3: =W3-0.0825 -> 5.7075 | H3: =V3 -> 2.2817257 | I3: functinal tooth | K3: =X3-0.0825 -> 2.4475 | M3: 5.79 | N3: 2.28173 | O3: functinal tooth | Q3: 2.53 | T3: 1.2193834 | U3: 1.0623423 | V3: =U3+T3 -> 2.2817257 | W3: 5.79 | X3: 2.53 | Y3: measured in two measurements
A4: refenrence depth | G4: =W4-0.0825 -> 1.2775 | H4: =V4 -> 0.217320423 | K4: 0.6275 | M4: 1.36 | N4: 0.21732 | Q4: 0.71 | T4: 0.12454025 | U4: 0.092780173 | V4: =U4+T4 -> 0.217320423 | W4: 1.36 | X4: 0.71
A5: n.a. | B5: 2 | G5: 5.1275 | H5: 3.0835981 | I5: functional tooth | J5: 3.50+1.71 | K5: 2.1575 | M5: 5.21 | N5: 3.0836 | O5: functional tooth | P5: 3.50+1.71 | Q5: 2.24 | T5: 1.676247 | U5: 1.4073511 | V5: 3.0835981 | W5: 5.21 | X5: 2.24 | Y5: not reliable numbers
A6: Pmx | G6: 2.1875 | H6: 0.6874252 | K6: 0.9175 | M6: 2.27 | N6: 0.687425 | Q6: 1 | T6: 0.44380778 | U6: 0.24361742 | V6: 0.6874252 | W6: 2.27 | X6: 1
B7: 3 | G7: 9.0275 | H7: 12.2091117 | I7: functinal tooth | K7: 2.9475 | M7: 9.11 | N7: 12.2091 | O7: functinal tooth | Q7: 3.03 | T7: 8.6366119 | U7: 3.5724998 | V7: 12.2091117 | W7: 9.11 | X7: 3.03
G8: 3.0175 | H8: 1.60300441 | K8: 1.0375 | M8: 3.1 | N8: 1.603 | Q8: 1.12 | T8: 1.0623423 | U8: 0.54066211 | V8: 1.60300441 | W8: 3.1 | X8: 1.12
B9: 4 | G9: 11.4175 | H9: 21.3726811 | I9: functional tooth | K9: 2.5375 | M9: 11.5 | N9: 21.3727 | O9: functional tooth | Q9: 2.62 | T9: 18.611406 | U9: 2.7612751 | V9: 21.3726811 | W9: 11.5 | X9: 2.62
G10: 2.2675 | H10: 0.86492977 | K10: 0.9175 | M10: 2.35 | N10: 0.86493 | Q10: 1 | T10: 0.53603238 | U10: 0.32889739 | V10: 0.86492977 | W10: 2.35 | X10: 1
B11: 5 | G11: 7.8175 | H11: 7.3223188 | I11: functional tooth | J11: 6.39+1.51 | K11: 2.6075 | M11: 7.9 | N11: 7.32204 | O11: functional tooth | P11: 6.39+1.51 | Q11: 2.69 | T11: 4.6008596 | U11: 2.7214592 | V11: 7.3223188 | W11: 7.9 | X11: 2.69
G12: 2.8275 | H12: 1.19799393 | K12: 1.3775 | M12: 2.91 | N12: 1.19799 | Q12: 1.46 | T12: 0.697981 | U12: 0.50001293 | V12: 1.19799393 | W12: 2.91 | X12: 1.46
G13: 0.3775 | H13: 0.0146300072 | J13: 0.39+0.07 | K13: 0.1175 | M13: 0.46 | N13: 0.015093 | P13: 0.39+0.07 | Q13: 0.2 | T13: 0.010278043 | U13: 0.0043519642 | V13: 0.0146300072 | W13: 0.46 | X13: 0.2
A14: Medium Alligator | B14: 1 | G14: 8.0075 | H14: 7.7496446 | I14: functional tooth | K14: 2.6075 | M14: 8.09 | N14: 7.74965 | O14: functional tooth | Q14: 2.69 | T14: 5.7694082 | U14: 1.9802364 | V14: 7.7496446 | W14: 8.09 | X14: 2.69
A15: refenrence depth | G15: 2.0075 | H15: 0.54964384 | K15: 0.6775 | M15: 2.09 | N15: 0.549644 | Q15: 0.76 | T15: 0.27778497 | U15: 0.27185887 | V15: 0.54964384 | W15: 2.09 | X15: 0.76
A16: n.a. | B16: 2 | G16: 7.2875 | H16: 7.6163082 | I16: functional tooth | J16: 6.04+1.33 | K16: 3.5275 | M16: 7.37 | N16: 7.61631 | O16: functional tooth | P16: 6.04+1.33 | Q16: 3.61 | T16: 2.4817309 | U16: 5.1345773 | V16: 7.6163082 | W16: 7.37 | X16: 3.61
A17: Mx | G17: 5.7975 | H17: 5.3387492 | K17: 2.0075 | M17: 5.88 | N17: 5.33875 | Q17: 2.09 | T17: 3.5908337 | U17: 1.7479155 | V17: 5.3387492 | W17: 5.88 | X17: 2.09
G18: 1.0075 | H18: 0.159448568 | J18: 0.97+0.12 | K18: 0.3275 | M18: 1.09 | N18: 0.159449 | P18: 0.97+0.12 | Q18: 0.41 | T18: 0.098335877 | U18: 0.061112691 | V18: 0.159448568 | W18: 1.09 | X18: 0.41
B19: 3 | G19: 12.2975 | H19: 30.1717058 | I19: functional tooth | K19: 2.9475 | M19: 12.38 | N19: 30.1717 | O19: functional tooth | Q19: 3.03 | T19: 26.11549 | U19: 4.0562158 | V19: 30.1717058 | W19: 12.38 | X19: 3.03
G20: 3.3075 | H20: 2.04579362 | K20: 1.0375 | M20: 3.39 | N20: 2.04579 | Q20: 1.12 | T20: 1.293089 | U20: 0.75270462 | V20: 2.04579362 | W20: 3.39 | X20: 1.12
B21: 4 | G21: 9.9875 | H21: 18.7089086 | I21: functional tooth | K21: 2.6375 | M21: 10.07 | N21: 18.7089 | O21: functional tooth | Q21: 2.72 | T21: 15.317247 | U21: 3.3916616 | V21: 18.7089086 | W21: 10.07 | X21: 2.72
G22: 1.6375 | H22: 0.46843803 | J22: 1.55+0.17 | K22: 0.4875 | M22: 1.72 | N22: 0.468438 | P22: 1.55+0.17 | Q22: 0.57 | T22: 0.21574631 | U22: 0.25269172 | V22: 0.46843803 | W22: 1.72 | X22: 0.57
B23: 5 | G23: 11.1875 | H23: 22.7831812 | I23: functional tooth | K23: 2.8175 | M23: 11.27 | N23: 22.7832 | O23: functional tooth | Q23: 2.9 | T23: 19.445595 | U23: 3.3375862 | V23: 22.7831812 | W23: 11.27 | X23: 2.9
G24: 2.4175 | H24: 0.96085817 | J24: 2.40+0.10 | K24: 0.9275 | M24: 2.5 | N24: 0.96734 | P24: 2.40+0.10 | Q24: 1.01 | T24: 0.53742129 | U24: 0.42343688 | V24: 0.96085817 | W24: 2.5 | X24: 1.01
B25: 6 | G25: 9.6375 | H25: 16.497464 | I25: functional tooth | J25: 8.94+0.78 | K25: 3.3175 | M25: 9.72 | N25: 16.4975 | O25: functional tooth | P25: 8.94+0.78 | Q25: 3.4 | T25: 11.285107 | U25: 5.212357 | V25: 16.497464 | W25: 9.72 | X25: 3.4
G26: 3.1275 | H26: 2.14116652 | K26: 1.3575 | M26: 3.21 | N26: 2.14117 | Q26: 1.44 | T26: 1.2239206 | U26: 0.91724592 | V26: 2.14116652 | W26: 3.21 | X26: 1.44
G27: 0.3075 | H27: 0.0167596923 | K27: 0.0575 | M27: 0.39 | N27: 0.0167597 | Q27: 0.14 | T27: 0.011018803 | U27: 0.0057408893 | V27: 0.0167596923 | W27: 0.39 | X27: 0.14
B28: 7 | G28: 8.2475 | H28: 9.2203309 | I28: functional tooth | K28: 2.3175 | M28: 8.33 | N28: 9.22033 | O28: functional tooth | Q28: 2.4 | T28: 6.7013769 | U28: 2.518954 | V28: 9.2203309 | W28: 8.33 | X28: 2.4
G29: 1.2375 | H29: 0.31037839 | K29: 0.5875 | M29: 1.32 | N29: 0.310378 | Q29: 0.67 | T29: 0.15741147 | U29: 0.15296692 | V29: 0.31037839 | W29: 1.32 | X29: 0.67
B30: 8 | G30: 9.0675 | H30: 14.835291 | I30: functional tooth | J30: 8.55+0.60 | K30: 2.7375 | M30: 9.15 | N30: 14.8317 | O30: functional tooth | P30: 8.55+0.60 | Q30: 2.82 | T30: 10.745 | U30: 4.090291 | V30: 14.835291 | W30: 9.15 | X30: 2.82
G31: 2.7675 | H31: 1.77560144 | K31: 1.2875 | M31: 2.85 | N31: 1.77884 | Q31: 1.37 | T31: 0.97706228 | U31: 0.79853916 | V31: 1.77560144 | W31: 2.85 | X31: 1.37
B32: 9 | G32: 8.8675 | H32: 12.0575342 | I32: functional tooth | K32: 2.2975 | M32: 8.95 | N32: 12.0575 | O32: functional tooth | Q32: 2.38 | T32: 8.8224506 | U32: 3.2350836 | V32: 12.0575342 | W32: 8.95 | X32: 2.38
G33: 1.2775 | H33: 0.31824898 | J33: 1.29+0.07 | K33: 0.5575 | M33: 1.36 | N33: 0.318249 | P33: 1.29+0.07 | Q33: 0.64 | T33: 0.1738008 | U33: 0.14444818 | V33: 0.31824898 | W33: 1.36 | X33: 0.64
B34: 10 | G34: 10.3075 | H34: 26.0169681 | I34: functional tooth | J34: 9.57+0.82 | K34: 3.2575 | M34: 10.39 | N34: 26.017 | O34: functional tooth | P34: 9.57+0.82 | Q34: 3.34 | T34: 19.242441 | U34: 6.7745271 | V34: 26.0169681 | W34: 10.39 | X34: 3.34
G35: 2.8875 | H35: 2.04579369 | K35: 1.2375 | M35: 2.97 | N35: 2.04579 | Q35: 1.32 | T35: 1.1186401 | U35: 0.92715359 | V35: 2.04579369 | W35: 2.97 | X35: 1.32
B36: 11 | G36: 6.9075 | H36: 11.651227 | I36: functional tooth | K36: 2.2975 | M36: 6.99 | N36: 11.6512 | O36: functional tooth | Q36: 2.38 | T36: 7.6087151 | U36: 4.0425119 | V36: 11.651227 | W36: 6.99 | X36: 2.38
G37: 0.7775 | H37: 0.084076248 | J37: 0.78+0.08 | K37: 0.2475 | M37: 0.86 | N37: 0.0840762 | P37: 0.78+0.08 | Q37: 0.33 | T37: 0.055742182 | U37: 0.028334066 | V37: 0.084076248 | W37: 0.86 | X37: 0.33
B38: 12 | G38: 8.6975 | H38: 20.720998 | I38: functional tooth | K38: 3.0175 | M38: 8.78 | N38: 20.721 | O38: functional tooth | Q38: 3.1 | T38: 13.817579 | U38: 6.903419 | V38: 20.720998 | W38: 8.78 | X38: 3.1
G39: 1.6675 | H39: 0.8920601 | K39: 0.8175 | M39: 1.75 | N39: 0.89206 | Q39: 0.9 | T39: 0.41139951 | U39: 0.48066059 | V39: 0.8920601 | W39: 1.75 | X39: 0.9
B40: 13 | G40: 7.4375 | H40: 13.6889653 | I40: functional tooth | J40: 5.82+1.70 | K40: 2.8175 | M40: 7.52 | N40: 13.689 | O40: functional tooth | P40: 5.82+1.70 | Q40: 2.9 | T40: 7.5576029 | U40: 6.1313624 | V40: 13.6889653 | W40: 7.52 | X40: 2.9
G41: 2.0675 | H41: 1.52494681 | K41: 1.1075 | M41: 2.15 | N41: 1.52495 | Q41: 1.19 | T41: 0.63381267 | U41: 0.89113414 | V41: 1.52494681 | W41: 2.15 | X41: 1.19
B42: 14 | G42: 6.1675 | H42: 7.9602056 | I42: functional tooth | K42: 2.1975 | M42: 6.25 | N42: 7.96021 | O42: functional tooth | Q42: 2.28 | T42: 4.9813323 | U42: 2.9788733 | V42: 7.9602056 | W42: 6.25 | X42: 2.28
G43: 0.7775 | H43: 0.14741122 | K43: 0.4175 | M43: 0.86 | N43: 0.147411 | Q43: 0.5 | T43: 0.066020228 | U43: 0.081390992 | V43: 0.14741122 | W43: 0.86 | X43: 0.5
B44: 15 | G44: 5.7775 | H44: 5.1615221 | I44: functional tooth | K44: 3.0675 | M44: 5.86 | N44: 5.16152 | O44: functional tooth | Q44: 3.15 | T44: 2.0565345 | U44: 3.1049876 | V44: 5.1615221 | W44: 5.86 | X44: 3.15
G45: 1.6075 | H45: 0.6279792 | K45: 0.4175 | M45: 1.69 | N45: 0.627979 | Q45: 0.5 | T45: 0.18778263 | U45: 0.44019657 | V45: 0.6279792 | W45: 1.69 | X45: 0.5
A46: Medium Alligator | B46: 1 | G46: 9.3875 | H46: 14.4567625 | I46: functional tooth | K46: 2.1175 | M46: 9.47 | N46: 14.4568 | O46: functional tooth | Q46: 2.2 | T46: 11.66632 | U46: 2.7904425 | V46: 14.4567625 | W46: 9.47 | X46: 2.2
A47: refenrence depth | G47: 3.1675 | H47: 1.49540906 | K47: ? | M47: 3.25 | N47: 1.49541 | Q47: ? | T47: 1.0443789 | U47: 0.45103016 | V47: 1.49540906 | W47: 3.25 | X47: ?
A48: n.a. | B48: 2 | G48: 8.1275 | H48: 9.5214498 | I48: functional tooth | K48: =X48-0.0825 -> 2.3875 | M48: 8.21 | N48: 9.52145 | O48: functional tooth | Q48: 2.47 | T48: 7.3667645 | U48: 2.1546853 | V48: 9.5214498 | W48: 8.21 | X48: 2.47
A49: Dent | G49: 1.7175 | H49: 0.36436127 | K49: 0.4275 | M49: 1.8 | N49: 0.364361 | Q49: 0.51 | T49: 0.23704317 | U49: 0.1273181 | V49: 0.36436127 | W49: 1.8 | X49: 0.51
B50: 3 | G50: 8.5175 | H50: 7.5026011 | I50: functional tooth | J50: 7.65+0.95 | K50: 3.1575 | M50: 8.6 | N50: 7.5026 | O50: functional tooth | P50: 7.65+0.95 | Q50: 3.24 | T50: 4.5387282 | U50: 2.9638729 | V50: 7.5026011 | W50: 8.6 | X50: 3.24
G51: 4.5175 | H51: 2.38024672 | K51: 1.4775 | M51: 4.6 | N51: 2.38015 | Q51: 1.56 | T51: 1.5664294 | U51: 0.81381732 | V51: 2.38024672 | W51: 4.6 | X51: 1.56
G52: 0.5175 | H52: 0.038334323 | K52: 0.1075 | M52: 0.6 | N52: 0.0383343 | Q52: 0.19 | T52: 0.017222667 | U52: 0.021111656 | V52: 0.038334323 | W52: 0.6 | X52: 0.19
B53: 4 | G53: 11.1275 | H53: 20.1346872 | I53: functional tooth | K53: 2.6575 | M53: 11.21 | N53: 20.1347 | O53: functional tooth | Q53: 2.74 | T53: 17.564806 | U53: 2.5698812 | V53: 20.1346872 | W53: 11.21 | X53: 2.74
G54: 2.2675 | H54: 0.85094794 | K54: 0.7675 | M54: 2.35 | N54: 0.850948 | Q54: 0.85 | T54: 0.55501437 | U54: 0.29593357 | V54: 0.85094794 | W54: 2.35 | X54: 0.85
B55: 5 | G55: 7.5675 | H55: 7.5564916 | I55: functional tooth | K55: 2.1675 | M55: 7.65 | N55: 7.55344 | O55: functional tooth | Q55: 2.25 | T55: 5.4192142 | U55: 2.1372774 | V55: 7.5564916 | W55: 7.65 | X55: 2.25
G56: 2.0675 | H56: 0.60760829 | K56: 0.9475 | M56: 2.15 | N56: 0.607608 | Q56: 1.03 | T56: 0.35565734 | U56: 0.25195095 | V56: 0.60760829 | W56: 2.15 | X56: 1.03
B57: 6 | G57: 6.7075 | H57: 4.5014127 | I57: functional tooth | K57: 1.9175 | M57: 6.79 | N57: 4.50447 | O57: functional tooth | Q57: 2 | T57: 3.4239774 | U57: 1.0774353 | V57: 4.5014127 | W57: 6.79 | X57: 2
G58: 0.8775 | H58: 0.123336524 | K58: 0.3875 | M58: 0.96 | N58: 0.123337 | Q58: 0.47 | T58: 0.069353648 | U58: 0.053982876 | V58: 0.123336524 | W58: 0.96 | X58: 0.47
B59: 7 | G59: 5.2275 | H59: 3.9992699 | I59: functional tooth | J59: 3.02+2.29 | K59: 1.7675 | M59: 5.31 | N59: 3.99927 | O59: functional tooth | P59: 3.02+2.29 | Q59: 1.85 | T59: 2.7334039 | U59: 1.265866 | V59: 3.9992699 | W59: 5.31 | X59: 1.85
G60: 2.2075 | H60: 0.78298319 | K60: 1.0475 | M60: 2.29 | N60: 0.782983 | Q60: 1.13 | T60: 0.42769623 | U60: 0.35528696 | V60: 0.78298319 | W60: 2.29 | X60: 1.13
B61: 8 | G61: 6.0175 | H61: 4.4103917 | I61: functional tooth | J61: 5.92+0.18 | K61: 2.2775 | M61: 6.1 | N61: 4.41039 | O61: functional tooth | P61: 5.92+0.18 | Q61: 2.36 | T61: 2.8497958 | U61: 1.5605959 | V61: 4.4103917 | W61: 6.1 | X61: 2.36
G62: 1.1475 | H62: 0.238246899 | K62: 0.5975 | M62: 1.23 | N62: 0.238247 | Q62: 0.68 | T62: 0.14305925 | U62: 0.095187649 | V62: 0.238246899 | W62: 1.23 | X62: 0.68
B63: 9 | G63: 4.4975 | H63: 2.8141468 | I63: functional tooth | K63: 0.9575 | M63: 4.58 | N63: 2.81415 | O63: functional tooth | Q63: 1.04 | T63: 1.8737521 | U63: 0.9403947 | V63: 2.8141468 | W63: 4.58 | X63: 1.04
G64: 0.2875 | H64: 0.017778237 | K64: 0.1675 | M64: 0.37 | N64: 0.0177782 | Q64: 0.25 | T64: 0.010278043 | U64: 0.007500194 | V64: 0.017778237 | W64: 0.37 | X64: 0.25
B65: 10 | G65: 5.8175 | H65: 4.5590068 | I65: functional tooth | J65: 3.86+2.04 | K65: 2.3075 | M65: 5.9 | N65: 4.55901 | O65: functional tooth | P65: 3.86+2.04 | Q65: 2.39 | T65: 2.7122924 | U65: 1.8467144 | V65: 4.5590068 | W65: 5.9 | X65: 2.39
G66: 1.3975 | H66: 0.34843494 | K66: 0.6675 | M66: 1.48 | N66: 0.348435 | Q66: 0.75 | T66: 0.19630137 | U66: 0.15213357 | V66: 0.34843494 | W66: 1.48 | X66: 0.75
B67: 11 | G67: 5.5675 | H67: 4.1650151 | I67: functional tooth | K67: 1.6675 | M67: 5.65 | N67: 4.16502 | O67: functional tooth | Q67: 1.75 | T67: 2.8265545 | U67: 1.3384606 | V67: 4.1650151 | W67: 5.65 | X67: 1.75
G68: =W68-0.0825 -> 0.7575 | H68: =V68 -> 0.060279336 | J68: 0.63+0.21 | K68: =X68-0.0825 -> 0.3275 | M68: 0.84 | N68: 0.0602793 | P68: 0.63+0.21 | Q68: 0.41 | T68: 0.026204381 | U68: 0.034074955 | V68: =U68+T68 -> 0.060279336 | W68: 0.84 | X68: 0.41
B69: 12 | G69: 8.5575 | H69: 13.806838 | I69: functional tooth | J69: 5.52+3.12 | K69: 2.7975 | M69: 8.64 | N69: 13.8068 | O69: functional tooth | P69: 5.52+3.12 | Q69: 2.88 | T69: 9.7581224 | U69: 4.0487156 | V69: 13.806838 | W69: 8.64 | X69: 2.88
G70: 2.5875 | H70: 1.45318568 | K70: 1.1875 | M70: 2.67 | N70: 1.45319 | Q70: 1.27 | T70: 0.86604089 | U70: 0.58714479 | V70: 1.45318568 | W70: 2.67 | X70: 1.27
B71: 13 | G71: 7.5575 | H71: 9.288481 | I71: functional tooth | K71: 2.1175 | M71: 7.64 | N71: 9.28959 | O71: functional tooth | Q71: 2.2 | T71: 6.8936968 | U71: 2.3947842 | V71: 9.288481 | W71: 7.64 | X71: 2.2
G72: 0.5675 | H72: 0.07074257 | K72: 0.1975 | M72: 0.65 | N72: 0.0696314 | Q72: 0.28 | T72: 0.047408633 | U72: 0.023333937 | V72: 0.07074257 | W72: 0.65 | X72: 0.28
B73: 14 | G73: 8.6475 | H73: 17.8503698 | I73: functional tooth | J73: 5.83+2.89 | K73: 2.6575 | M73: 8.73 | N73: 17.8504 | O73: functional tooth | P73: 5.83+2.89 | Q73: 2.74 | T73: 13.747208 | U73: 4.1031618 | V73: 17.8503698 | W73: 8.73 | X73: 2.74
G74: 1.6175 | H74: 0.74964902 | K74: 0.8175 | M74: 1.7 | N74: 0.749649 | Q74: 0.9 | T74: 0.42584434 | U74: 0.32380468 | V74: 0.74964902 | W74: 1.7 | X74: 0.9
B75: 15 | G75: 7.2475 | H75: 11.3532562 | I75: functional tooth | J75: 4.60+2.73 | K75: 3.0575 | M75: 7.33 | N75: 11.3533 | O75: functional tooth | P75: 4.60+2.73 | Q75: 3.14 | T75: 6.2303462 | U75: 5.12291 | V75: 11.3532562 | W75: 7.33 | X75: 3.14
G76: 2.6275 | H76: 2.5144168 | K76: 1.3675 | M76: 2.71 | N76: 2.51442 | Q76: 1.45 | T76: 1.2989224 | U76: 1.2154944 | V76: 2.5144168 | W76: 2.71 | X76: 1.45
B77: 16 | G77: 5.9175 | H77: 9.6607127 | I77: functional tooth | K77: 2.1575 | M77: 6 | N77: 9.66071 | O77: functional tooth | Q77: 2.24 | T77: 6.4147954 | U77: 3.2459173 | V77: 9.6607127 | W77: 6 | X77: 2.24
G78: 0.6175 | H78: 0.120188292 | K78: 0.3975 | M78: 0.7 | N78: 0.120188 | Q78: 0.48 | T78: 0.059260793 | U78: 0.060927499 | V78: 0.120188292 | W78: 0.7 | X78: 0.48
B79: 17 | G79: 6.4675 | H79: 11.2189012 | I79: functional tooth | K79: 2.7575 | M79: 6.55 | N79: 11.2189 | O79: functional tooth | Q79: 2.84 | T79: 6.4579449 | U79: 4.7609563 | V79: 11.2189012 | W79: 6.55 | X79: 2.84
G80: 1.1875 | H80: 0.53964358 | K80: 0.7275 | M80: 1.27 | N80: 0.539644 | Q80: 0.81 | T80: 0.20935726 | U80: 0.33028632 | V80: 0.53964358 | W80: 1.27 | X80: 0.81
B81: 18 | G81: 6.1175 | H81: 7.7495523 | I81: functional tooth | J81: 3.24+2.96 | K81: 2.4875 | M81: 6.2 | N81: 7.74955 | O81: functional tooth | P81: 3.24+2.96 | Q81: 2.57 | T81: 3.7280593 | U81: 4.021493 | V81: 7.7495523 | W81: 6.2 | X81: 2.57
G82: 2.7075 | H82: 2.2969113 | K82: 1.3275 | M82: 2.79 | N82: 2.29691 | Q82: 1.41 | T82: 0.9699325 | U82: 1.3269788 | V82: 2.2969113 | W82: 2.79 | X82: 1.41
B83: 19 | G83: 6.0475 | H83: 8.3101223 | I83: functional tooth | K83: 2.5875 | M83: 6.13 | N83: 8.31012 | O83: functional tooth | Q83: 2.67 | T83: 4.4048362 | U83: 3.9052861 | V83: 8.3101223 | W83: 6.13 | X83: 2.67
G84: 0.9075 | H84: 0.33676795 | K84: 0.5175 | M84: 0.99 | N84: 0.336768 | Q84: 0.6 | T84: 0.12935519 | U84: 0.20741276 | V84: 0.33676795 | W84: 0.99 | X84: 0.6
B85: 20 | G85: 5.4375 | H85: 4.8111429 | I85: functional tooth | K85: 2.5175 | M85: 5.52 | N85: 4.81114 | O85: functional tooth | Q85: 2.6 | T85: 2.0634792 | U85: 2.7476637 | V85: 4.8111429 | W85: 5.52 | X85: 2.6
G86: 1.6275 | H86: 1.07391667 | K86: 1.0275 | M86: 1.71 | N86: 1.07392 | Q86: 1.11 | T86: 0.30593383 | U86: 0.76798284 | V86: 1.07391667 | W86: 1.71 | X86: 1.11
A87: Small Alligator | B87: 1 | G87: =W87-0.0272 -> 3.2028 | H87: 0.62902447 | I87: functinal tooth | K87: =X87-0.0272 -> 1.4328 | M87: 3.23 | N87: 0.62902445 | O87: functinal tooth | Q87: 1.46 | T87: 0.3315773 | U87: 0.29744717 | V87: 0.62902447 | W87: 3.23 | X87: 1.46
A88: refenrence depth | G88: =W88-0.0272 -> 0.2528 | H88: 0.0034545965 | K88: =X88-0.0272 -> 0.1628 | M88: 0.28 | N88: 0.0034545965 | Q88: 0.19 | T88: 0.0015993502 | U88: 0.0018552463 | V88: 0.0034545965 | W88: 0.28 | X88: 0.19
A89: n.a. | B89: 2 | G89: 2.5328 | H89: 0.371784978 | I89: functional tooth | J89: 2.25+0.31 | K89: 1.7728 | M89: 2.56 | N89: 0.37178496 | O89: functional tooth | P89: 2.25+0.31 | Q89: 1.8 | T89: 0.047660638 | U89: 0.32412434 | V89: 0.371784978 | W89: 2.56 | X89: 1.8
A90: Pmx | G90: 1.1528 | H90: 0.139143475 | K90: 0.7728 | M90: 1.18 | N90: 0.13914347 | Q90: 0.8 | T90: 0.059048012 | U90: 0.080095463 | V90: 0.139143475 | W90: 1.18 | X90: 0.8
B91: 3 | G91: 4.9228 | H91: 1.49836725 | I91: functinal tooth | J91: 4.83+0.12 | K91: 1.7928 | M91: 4.95 | N91: 1.4983673 | O91: functinal tooth | P91: 4.83+0.12 | Q91: 1.82 | T91: 0.88057023 | U91: 0.61779702 | V91: 1.49836725 | W91: 4.95 | X91: 1.82
G92: 1.0528 | H92: 0.100599133 | K92: 0.5328 | M92: 1.08 | N92: 0.10059913 | Q92: 0.56 | T92: 0.054537844 | U92: 0.046061289 | V92: 0.100599133 | W92: 1.08 | X92: 0.56
B93: 4 | G93: 4.1328 | H93: 1.32007173 | I93: functional tooth | J93: 3.93+0.23 | K93: 1.4328 | M93: 4.16 | N93: 1.3201357 | O93: functional tooth | P93: 3.93+0.23 | Q93: 1.46 | T93: 0.90155375 | U93: 0.41851798 | V93: 1.32007173 | W93: 4.16 | X93: 1.46
G94: 0.5328 | H94: 0.0231266039 | K94: 0.3128 | M94: 0.56 | N94: 0.023062631 | Q94: 0.34 | T94: 0.014266204 | U94: 0.0088603999 | V94: 0.0231266039 | W94: 0.56 | X94: 0.34
B95: 5 | G95: 4.5928 | H95: 1.21102804 | I95: functional tooth | J95: 4.46+0.16 | K95: 1.7628 | M95: 4.62 | N95: 1.211028 | O95: functional tooth | P95: 4.46+0.16 | Q95: 1.79 | T95: 0.69891608 | U95: 0.51211196 | V95: 1.21102804 | W95: 4.62 | X95: 1.79
G96: 0.9928 | H96: 0.088092212 | K96: 0.5628 | M96: 1.02 | N96: 0.088092215 | Q96: 0.59 | T96: 0.051275168 | U96: 0.036817044 | V96: 0.088092212 | W96: 1.02 | X96: 0.59
A97: Small Alligator | B97: 1 | G97: 4.5528 | H97: 1.12674225 | I97: functional tooth | K97: 1.6928 | M97: 4.58 | N97: 1.1267422 | O97: functional tooth | Q97: 1.72 | T97: 0.61955631 | U97: 0.50718594 | V97: 1.12674225 | W97: 4.58 | X97: 1.72
A98: refenrence depth | G98: 0.6928 | H98: 0.047948521 | K98: 0.4728 | M98: 0.72 | N98: 0.047948521 | Q98: 0.5 | T98: 0.021911098 | U98: 0.026037423 | V98: 0.047948521 | W98: 0.72 | X98: 0.5
A99: n.a. | B99: 2 | G99: 4.2228 | H99: 1.53774333 | I99: functional tooth | J99: 4.14+0.11 | K99: 2.4328 | M99: 4.25 | N99: 1.5377433 | O99: functional tooth | P99: 4.14+0.11 | Q99: 2.46 | T99: 0.57922071 | U99: 0.95852262 | V99: 1.53774333 | W99: 4.25 | X99: 2.46
A100: Mx | G100: 1.8028 | H100: 0.29076189 | K100: 0.9528 | M100: 1.83 | N100: 0.29076189 | Q100: 0.98 | T100: 0.14208628 | U100: 0.14867561 | V100: 0.29076189 | W100: 1.83 | X100: 0.98
B101: 3 | G101: 6.3228 | H101: 2.79448071 | I101: functional tooth | K101: 1.7928 | M101: 6.35 | N101: 2.7944808 | O101: functional tooth | Q101: 1.82 | T101: 2.1205785 | U101: 0.67390221 | V101: 2.79448071 | W101: 6.35 | X101: 1.82
G102: 1.1028 | H102: 0.138087902 | K102: 0.6028 | M102: 1.13 | N102: 0.1380879 | Q102: 0.63 | T102: 0.08182276 | U102: 0.056265142 | V102: 0.138087902 | W102: 1.13 | X102: 0.63
B103: 4 | G103: 4.9028 | H103: 2.9786619 | I103: functional tooth | J103: 4.86+0.07 | K103: 2.5128 | L103: 1.40 if the thin area is just a crack | M103: 4.93 | N103: 2.9692256 | O103: functional tooth | P103: 4.86+0.07 | Q103: 2.54 | R103: 1.40 if the thin area is just a crack | T103: 1.4121623 | U103: 1.5664996 | V103: 2.9786619 | W103: 4.93 | X103: 2.54
G104: 2.8028 | H104: 0.88651982 | K104: 1.2228 | M104: 2.83 | N104: 0.88651985 | Q104: 1.25 | T104: 0.55151993 | U104: 0.33499989 | V104: 0.88651982 | W104: 2.83 | X104: 1.25
B105: 5 | G105: 5.8728 | H105: 3.03908528 | I105: functional tooth | J105: 5.73+0.17 | K105: 1.8328 | M105: 5.9 | N105: 3.0390854 | O105: functional tooth | P105: 5.73+0.17 | Q105: 1.86 | T105: 2.2370751 | U105: 0.80201018 | V105: 3.03908528 | W105: 5.9 | X105: 1.86
G106: 0.8928 | H106: 0.070979166 | K106: 0.5028 | M106: 0.92 | N106: 0.070979163 | Q106: 0.53 | T106: 0.038896199 | U106: 0.032082967 | V106: 0.070979166 | W106: 0.92 | X106: 0.53
B107: 6 | G107: 4.0428 | H107: 1.41510514 | I107: functional tooth | J107: 3.61+0.46 | K107: 2.1928 | M107: 4.07 | N107: 1.4151051 | O107: functional tooth | P107: 3.61+0.46 | Q107: 2.22 | T107: 0.47970912 | U107: 0.93539602 | V107: 1.41510514 | W107: 4.07 | X107: 2.22
G108: 1.8428 | H108: 0.36407609 | K108: 0.9328 | M108: 1.87 | N108: 0.36407608 | Q108: 0.96 | T108: 0.20717983 | U108: 0.15689626 | V108: 0.36407609 | W108: 1.87 | X108: 0.96
B109: 7 | G109: 4.0528 | H109: 1.31613732 | I109: functional tooth | J109: 3.93+0.15 | K109: 2.0628 | M109: 4.08 | N109: 1.3161373 | O109: functional tooth | P109: 3.93+0.15 | Q109: 2.09 | T109: 0.55465466 | U109: 0.76148266 | V109: 1.31613732 | W109: 4.08 | X109: 2.09
G110: 0.7128 | H110: 0.068484179 | K110: 0.4228 | M110: 0.74 | N110: 0.06848418 | Q110: 0.45 | T110: 0.035825446 | U110: 0.032658733 | V110: 0.068484179 | W110: 0.74 | X110: 0.45
B111: 8 | G111: 3.1028 | H111: 1.23284316 | I111: functional tooth | J111: 2.90+0.23 | K111: 2.1028 | M111: 3.13 | N111: 1.2328432 | O111: functional tooth | P111: 2.90+0.23 | Q111: 2.13 | T111: 0.28669953 | U111: 0.94614363 | V111: 1.23284316 | W111: 3.13 | X111: 2.13
G112: 2.1128 | H112: 0.54963271 | K112: 1.0628 | M112: 2.14 | N112: 0.54963273 | Q112: 1.09 | T112: 0.31168139 | U112: 0.23795132 | V112: 0.54963271 | W112: 2.14 | X112: 1.09
G113: 0.1628 | H113: 0.0027188955 | K113: 0.1628 | M113: 0.19 | N113: 0.0027188954 | Q113: 0.19 | T113: 0.0013114673 | U113: 0.0014074282 | V113: 0.0027188955 | W113: 0.19 | X113: 0.19
B114: 9 | G114: 4.7628 | H114: 2.02193062 | I114: functional tooth | K114: 2.2828 | M114: 4.79 | N114: 2.0219307 | O114: functional tooth | Q114: 2.31 | T114: 0.85699582 | U114: 1.1649348 | V114: 2.02193062 | W114: 4.79 | X114: 2.31
G115: 1.0028 | H115: 0.11800006 | K115: 0.6128 | M115: 1.03 | N115: 0.11800006 | Q115: 0.64 | T115: 0.053002469 | U115: 0.064997591 | V115: 0.11800006 | W115: 1.03 | X115: 0.64
B116: 10 | G116: 3.9328 | H116: =V116 -> 1.866601716 | I116: functional tooth | K116: 1.3528 | M116: 3.96 | N116: 1.7941191 | O116: functional tooth | Q116: 1.38 | T116: 1.338016456 | U116: 0.52858526 | V116: =U116+T116 -> 1.866601716 | W116: 3.96 | X116: 1.38
G117: 0.4628 | H117: 0.0240542286 | K117: 0.2828 | M117: 0.49 | N117: 0.024054227 | Q117: 0.31 | T117: 0.0089563616 | U117: 0.015097867 | V117: 0.0240542286 | W117: 0.49 | X117: 0.31
B118: 11 | G118: 4.7328 | H118: 2.7743928 | I118: functional tooth | J118: 4.11+0.65 | K118: 2.3028 | M118: 4.76 | N118: 2.7743928 | O118: functional tooth | P118: 4.11+0.65 | Q118: 2.33 | T118: 1.1570339 | U118: 1.6173589 | V118: 2.7743928 | W118: 4.76 | X118: 2.33
G119: 1.3928 | H119: 0.322461 | K119: 0.7528 | M119: 1.42 | N119: 0.32246101 | Q119: 0.78 | T119: 0.14989111 | U119: 0.17256989 | V119: 0.322461 | W119: 1.42 | X119: 0.78
B120: 12 | G120: 4.5628 | H120: 2.35849792 | I120: functional tooth | K120: 1.5628 | M120: 4.59 | N120: 2.3584979 | O120: functional tooth | Q120: 1.59 | T120: 1.4142735 | U120: 0.94422442 | V120: 2.35849792 | W120: 4.59 | X120: 1.59
G121: 0.3628 | H121: 0.0152578014 | K121: 0.2028 | M121: 0.39 | N121: 0.015257802 | Q121: 0.23 | T121: 0.0076448941 | U121: 0.0076129073 | V121: 0.0152578014 | W121: 0.39 | X121: 0.23
B122: 13 | G122: 3.8828 | H122: 1.67794234 | I122: functional tooth | J122: 3.50+0.41 | K122: 2.0528 | M122: 3.91 | N122: 1.6779423 | O122: functional tooth | P122: 3.50+0.41 | Q122: 2.08 | T122: 0.45204034 | U122: 1.225902 | V122: 1.67794234 | W122: 3.91 | X122: 2.08
G123: 0.7228 | H123: 0.111762594 | K123: 0.4528 | M123: 0.75 | N123: 0.1117626 | Q123: 0.48 | T123: 0.040783431 | U123: 0.070979163 | V123: 0.111762594 | W123: 0.75 | X123: 0.48
B124: 14 | G124: 3.2228 | H124: 1.08112881 | I124: functional tooth | J124: 3.11+0.14 | K124: 1.3528 | M124: 3.25 | N124: 1.0811288 | O124: functional tooth | P124: 3.11+0.14 | Q124: 1.38 | T124: 0.47436729 | U124: 0.60676152 | V124: 1.08112881 | W124: 3.25 | X124: 1.38
B125: 15 | G125: 2.8728 | H125: 0.7628581 | I125: functional tooth | K125: 1.7528 | M125: 2.9 | N125: 0.76285809 | O125: functional tooth | Q125: 1.78 | T125: 0.18971492 | U125: 0.57314318 | V125: 0.7628581 | W125: 2.9 | X125: 1.78
G126: 0.3328 | H126: 0.0119631397 | K126: 0.3328 | M126: 0.36 | N126: 0.01196314 | Q126: 0.36 | T126: 0.0056297127 | U126: 0.006333427 | V126: 0.0119631397 | W126: 0.36 | X126: 0.36
B127: 16 | G127: 1.1528 | H127: 0.134377403 | I127: functional tooth | K127: 0.6828 | M127: 1.18 | N127: 0.13437741 | O127: functional tooth | Q127: 0.71 | T127: 0.023254553 | U127: 0.11112285 | V127: 0.134377403 | W127: 1.18 | X127: 0.71
A128: Small Alligator | B128: 1 | G128: 5.1628 | H128: 2.3972342 | K128: 2.1428 | M128: 5.19 | N128: 2.3972342 | Q128: 2.17 | T128: 1.3832141 | U128: 1.0140201 | V128: 2.3972342 | W128: 5.19 | X128: 2.17
A129: refenrence depth | G129: 1.4828 | H129: 0.228323249 | K129: 0.6628 | M129: 1.51 | N129: 0.22832324 | Q129: 0.69 | T129: 0.14710824 | U129: 0.081215009 | V129: 0.228323249 | W129: 1.51 | X129: 0.69
A130: n.a. | B130: 2 | G130: 2.1728 | H130: 0.68087539 | I130: functional tooth | J130: 1.62+0.58 | K130: 1.6228 | M130: 2.2 | N130: 0.68087536 | O130: functional tooth | P130: 1.62+0.58 | Q130: 1.65 | T130: 0.13504913 | U130: 0.54582626 | V130: 0.68087539 | W130: 2.2 | X130: 1.65
A131: Dent | G131: 2.0728 | H131: 0.46800186 | K131: 0.8228 | M131: 2.1 | N131: 0.46800187 | Q131: 0.85 | T131: 0.25861493 | U131: 0.20938693 | V131: 0.46800186 | W131: 2.1 | X131: 0.85
B132: 3 | G132: 4.4428 | H132: =V132 -> 1.28811669 | I132: functional tooth | K132: 1.8428 | M132: 4.47 | N132: 1.2881167 | O132: functional tooth | Q132: 1.87 | T132: 0.68266666 | U132: 0.60545003 | V132: =U132+T132 -> 1.28811669 | W132: 4.47 | X132: 1.87
G133: 1.0928 | H133: 0.091738727 | K133: 0.5428 | M133: 1.12 | N133: 0.091738731 | Q133: 0.57 | T133: 0.048556272 | U133: 0.043182455 | V133: 0.091738727 | W133: 1.12 | X133: 0.57
B134: 4 | G134: 3.7528 | H134: 1.12766987 | I134: functional tooth | K134: 1.2328 | M134: 3.78 | N134: 1.1276699 | O134: functional tooth | Q134: 1.26 | T134: 0.78505707 | U134: 0.3426128 | V134: 1.12766987 | W134: 3.78 | X134: 1.26
G135: 0.3628 | H135: 0.0110035297 | J135: 0.31+0.08 | K135: 0.1928 | M135: 0.39 | N135: 0.01100353 | P135: 0.31+0.08 | Q135: 0.22 | T135: 0.0063654138 | U135: 0.0046381159 | V135: 0.0110035297 | W135: 0.39 | X135: 0.22
B136: 5 | G136: 4.1828 | H136: 1.10822174 | I136: functional tooth | K136: 1.5728 | M136: 4.21 | N136: 1.1082218 | O136: functional tooth | Q136: 1.6 | T136: 0.63286287 | U136: 0.47535887 | V136: 1.10822174 | W136: 4.21 | X136: 1.6
G137: 0.6328 | H137: 0.045037704 | K137: 0.3228 | M137: 0.66 | N137: 0.045037702 | Q137: 0.35 | T137: 0.024949864 | U137: 0.02008784 | V137: 0.045037704 | W137: 0.66 | X137: 0.35
B138: 6 | G138: 3.2428 | H138: 0.77968325 | I138: functional tooth | K138: 1.9228 | M138: 3.27 | N138: 0.77968323 | O138: functional tooth | Q138: 1.95 | T138: 0.22538044 | U138: 0.55430281 | V138: 0.77968325 | W138: 3.27 | X138: 1.95
G139: 0.9528 | H139: 0.127436228 | K139: 0.5628 | M139: 0.98 | N139: 0.12743624 | Q139: 0.59 | T139: 0.078528099 | U139: 0.048908129 | V139: 0.127436228 | W139: 0.98 | X139: 0.59
B140: 7 | G140: 3.1928 | H140: 0.56130796 | I140: functional tooth | K140: 1.0828 | M140: 3.22 | N140: 0.56130797 | O140: functional tooth | Q140: 1.11 | T140: 0.34718695 | U140: 0.21412101 | V140: 0.56130796 | W140: 3.22 | X140: 1.11
G141: 0.1728 | H141: 0.00220710342 | K141: 0.1728 | M141: 0.2 | N141: 0.0022071034 | Q141: 0.2 | T141: 0.0015353763 | U141: 0.00067172712 | V141: 0.00220710342 | W141: 0.2 | X141: 0.2
B142: 8 | G142: 3.0428 | H142: 0.50373136 | I142: functional tooth | K142: 1.7028 | M142: 3.07 | N142: 0.50373137 | O142: functional tooth | Q142: 1.73 | T142: 0.12743624 | U142: 0.37629512 | V142: 0.50373136 | W142: 3.07 | X142: 1.73
G143: 0.9528 | H143: 0.068132323 | J143: 0.80+0.18 | K143: 0.4528 | M143: 0.98 | N143: 0.068132319 | P143: 0.80+0.18 | Q143: 0.48 | T143: 0.040399589 | U143: 0.027732734 | V143: 0.068132323 | W143: 0.98 | X143: 0.48
B144: 9 | G144: 3.1028 | H144: 0.47731009 | I144: functional tooth | K144: 1.1128 | M144: 3.13 | N144: 0.47731009 | O144: functional tooth | Q144: 1.14 | T144: 0.25503239 | U144: 0.2222777 | V144: 0.47731009 | W144: 3.13 | X144: 1.14
G145: 0.1628 | H145: 0.0022710774 | K145: 0.1628 | M145: 0.19 | N145: 0.0022710774 | Q145: 0.19 | T145: 0.0011195452 | U145: 0.0011515322 | V145: 0.0022710774 | W145: 0.19 | X145: 0.19
B146: 10 | G146: 3.1828 | H146: 0.57957255 | I146: functional tooth | J146: 2.61+0.60 | K146: 1.8128 | M146: 3.21 | N146: 0.57957256 | O146: functional tooth | P146: 2.61+0.60 | Q146: 1.84 | T146: 0.14263006 | U146: 0.43694249 | V146: 0.57957255 | W146: 3.21 | X146: 1.84
G147: 0.7228 | H147: 0.065413427 | K147: 0.4628 | M147: 0.75 | N147: 0.065413423 | Q147: 0.49 | T147: 0.035313655 | U147: 0.030099772 | V147: 0.065413427 | W147: 0.75 | X147: 0.49
B148: 11 | G148: 3.8828 | H148: 0.94569581 | I148: functional tooth | J148: 3.80+0.11 | K148: 1.4928 | M148: 3.91 | N148: 0.94569582 | O148: functional tooth | P148: 3.80+0.11 | Q148: 1.52 | T148: 0.51000082 | U148: 0.43569499 | V148: 0.94569581 | W148: 3.91 | X148: 1.52
G149: 0.4528 | H149: 0.027061006 | K149: 0.2828 | M149: 0.48 | N149: 0.027061006 | Q149: 0.31 | T149: 0.015417736 | U149: 0.01164327 | V149: 0.027061006 | W149: 0.48 | X149: 0.31
B150: 12 | G150: 3.5628 | H150: 1.21445063 | I150: functional tooth | J150: 3.32+0.27 | K150: 2.1328 | M150: 3.59 | N150: 1.2144506 | O150: functional tooth | P150: 3.32+0.27 | Q150: 2.16 | T150: 0.31436828 | U150: 0.90008235 | V150: 1.21445063 | W150: 3.59 | X150: 2.16
G151: 1.6128 | H151: 0.35022571 | K151: 0.9228 | M151: 1.64 | N151: 0.35022572 | Q151: 0.95 | T151: 0.20049454 | U151: 0.14973117 | V151: 0.35022571 | W151: 1.64 | X151: 0.95
B152: 13 | G152: =W152-0.0272 -> 5.3928 | H152: 2.37506719 | I152: functional tooth | J152: 5.13+0.29 | K152: =X152-0.0272 -> 1.8128 | M152: 5.42 | N152: 2.375067 | O152: functional tooth | P152: 5.13+0.29 | Q152: 1.84 | T152: 1.5498984 | U152: 0.82516879 | V152: 2.37506719 | W152: 5.42 | X152: 1.84
G153: 0.8028 | H153: 0.068324242 | K153: 0.4528 | M153: 0.83 | N153: 0.068324246 | Q153: 0.48 | T153: 0.034066159 | U153: 0.034258083 | V153: 0.068324242 | W153: 0.83 | X153: 0.48
B154: 14 | G154: 4.1228 | H154: 1.76830563 | I154: functional tooth | J154: 3.77+0.38 | K154: 2.2828 | M154: 4.15 | N154: 1.7683057 | O154: functional tooth | P154: 3.77+0.38 | Q154: 2.31 | T154: 0.63548583 | U154: 1.1328198 | V154: 1.76830563 | W154: 4.15 | X154: 2.31
G155: 1.6928 | H155: 0.37901402 | K155: 0.8328 | M155: 1.72 | N155: 0.37901402 | Q155: 0.86 | T155: 0.20858726 | U155: 0.17042676 | V155: 0.37901402 | W155: 1.72 | X155: 0.86
B156: 15 | G156: 4.2528 | H156: 1.64803445 | I156: functional tooth | J156: 3.83+0.45 | K156: 1.5728 | M156: 4.28 | N156: 1.6480345 | O156: functional tooth | P156: 3.83+0.45 | Q156: 1.6 | T156: 0.85434091 | U156: 0.79369354 | V156: 1.64803445 | W156: 4.28 | X156: 1.6
G157: 0.3028 | H157: 0.0135624907 | K157: 0.2328 | M157: 0.33 | N157: 0.01356249 | Q157: 0.26 | T157: 0.0094361668 | U157: 0.0041263239 | V157: 0.0135624907 | W157: 0.33 | X157: 0.26
B158: 16 | G158: 3.7128 | H158: 1.48784348 | I158: functional tooth | J158: 2.30+1.44 | K158: 2.0428 | M158: 3.74 | N158: 1.4878435 | O158: functional tooth | P158: 2.30+1.44 | Q158: 2.07 | T158: 0.38499558 | U158: 1.1028479 | V158: 1.48784348 | W158: 3.74 | X158: 2.07
G159: 0.8428 | H159: 0.16985099 | K159: 0.5328 | M159: 0.87 | N159: 0.16985099 | Q159: 0.56 | T159: 0.073026329 | U159: 0.096824661 | V159: 0.16985099 | W159: 0.87 | X159: 0.56
B160: 17 | G160: 3.3428 | H160: 1.22740537 | I160: functional tooth | K160: 1.4128 | M160: 3.37 | N160: 1.2274053 | O160: functional tooth | Q160: 1.44 | T160: 0.53203988 | U160: 0.69536549 | V160: 1.22740537 | W160: 3.37 | X160: 1.44
G161: 0.1528 | H161: 0.0048620247 | K161: 0.1528 | M161: 0.18 | N161: 0.0048620249 | Q161: 0.18 | T161: 0.0037104925 | U161: 0.0011515322 | V161: 0.0048620247 | W161: 0.18 | X161: 0.18
B162: 18 | G162: 3.3828 | H162: 1.19980059 | I162: functional tooth | J162: 2.20+1.21 | K162: 1.8628 | M162: 3.41 | N162: 1.1998006 | O162: functional tooth | P162: 2.20+1.21 | Q162: 1.89 | T162: 0.27412865 | U162: 0.92567194 | V162: 1.19980059 | W162: 3.41 | X162: 1.89
G163: 0.6828 | H163: 0.110387154 | K163: 0.4328 | M163: 0.71 | N163: 0.11038715 | Q163: 0.46 | T163: 0.050603442 | U163: 0.059783712 | V163: 0.110387154 | W163: 0.71 | X163: 0.46
B164: 19 | G164: 3.4828 | H164: 1.01853019 | I164: functional tooth | K164: 1.6428 | M164: 3.51 | N164: 1.0185302 | O164: functional tooth | Q164: 1.67 | T164: 0.38086927 | U164: 0.63766092 | V164: 1.01853019 | W164: 3.51 | X164: 1.67
G165: 0.1128 | H165: 0.00281485655 | K165: 0.1128 | M165: 0.14 | N165: 0.0028148564 | Q165: 0.14 | T165: 0.0019831944 | U165: 0.00083166215 | V165: 0.00281485655 | W165: 0.14 | X165: 0.14
B166: 20 | G166: 2.8328 | H166: 0.65960404 | I166: functional tooth | J166: 2.02+0.84 | K166: 2.8328 | L166: (all crown) | M166: 2.86 | N166: 0.65960401 | O166: functional tooth | P166: 2.02+0.84 | Q166: 2.86 | R166: (all crown) | T166: 0.19185805 | U166: 0.46774599 | V166: 0.65960404 | W166: 2.86 | X166: 2.86
G167: 0.4228 | H167: 0.043278417 | K167: 0.3028 | M167: 0.45 | N167: 0.043278418 | Q167: 0.33 | T167: 0.022230968 | U167: 0.021047449 | V167: 0.043278417 | W167: 0.45 | X167: 0.33
A168: Large Alligator | B168: 1 | G168: =W168-0.175 -> 27.255 | H168: =V168 -> 290.1394973 | I168: functional tooth | K168: =X168-0.175 -> 5.655 | M168: 27.25 | N168: 286.41888 | O168: functional tooth | P168: (27.25-22.62) | Q168: 4.63 | S168: 3.731631 | T168: 259.6251253 | U168: 30.514372 | V168: =U168+T168 -> 290.1394973 | W168: 27.43 | X168: 5.83
A169: refenrence depth | B169: 2 | G169: =W169-0.175 -> 23.265 | H169: =V169 -> 249.0860286 | I169: functional tooth | J169: 22.21+1.23 | K169: =X169-0.175 -> 8.055 | M169: 23.08 | N169: 248.70331 | O169: functional tooth | P169: 21.85+1.23 | Q169: 8.23 | S169: 0.38502416 | T169: 175.0407096 | U169: 74.045319 | V169: =U169+T169 -> 249.0860286 | W169: 23.44 | X169: 8.23
A170: n.a. | G170: 7.955 | H170: 28.077571 | J170: -4.81 | K170: 3.145 | M170: 8.13 | N170: 28.069756 | P170: -4.81 | Q170: 3.32 | T170: 17.405621 | U170: 10.67195 | V170: =U170+T170 -> 28.077571 | W170: 8.13 | X170: 3.32
A171: Pmx | B171: 3 | G171: 39.015 | H171: 1013.04061 | I171: functional tooth | J171: 37.67+1.52 | K171: 11.455 | M171: 38.86 | N171: 1012.2333 | O171: functional tooth | P171: 37.34+1.52 | Q171: 11.63 | S171: 0.8144123 | T171: 784.9660899 | U171: 228.07452 | V171: 1013.04061 | W171: 39.19 | X171: 11.63
G172: 13.365 | H172: 94.174841 | K172: 4.795 | M172: 13.54 | N172: 94.174843 | Q172: 4.97 | T172: 62.470917 | U172: 31.703924 | V172: 94.174841 | W172: 13.54 | X172: 4.97
B173: 4 | I173: empty alveolus | O173: empty alveolus
B174: 5 | G174: 37.615 | H174: 855.4052964 | I174: functional tooth | K174: 8.645 | M174: 37.44 | N174: 854.13 | O174: functional tooth | Q174: 8.66 | S174: 1.2736828 | T174: 736.9240564 | U174: 118.48124 | V174: 855.4052964 | W174: 37.79 | X174: 8.82
G175: 6.505 | H175: 28.02838 | K175: 2.965 | M175: 6.68 | N175: 28.028379 | Q175: 3.14 | T175: 14.163602 | U175: 13.864778 | V175: 28.02838 | W175: 6.68 | X175: 3.14
A176: Large Alligator | B176: 1 | G176: 27.005 | H176: =V176 -> 431.1291242 | I176: functional tooth | J176: 26.18+1.00; tip missing | K176: 7.205 | M176: 26.56 | N176: 423.93893 | O176: functional tooth | P176: 25.56+1.00; tip missing | Q176: 6.75 | S176: 7.2255816 | T176: 331.6883052 | U176: 99.440819 | V176: 431.1291242 | W176: 27.18 | X176: 7.38
A177: refenrence depth | G177: 8.985 | H177: 43.789314 | K177: 3.915 | M177: 9.16 | N177: 43.789314 | Q177: 4.09 | T177: 24.094696 | U177: 19.694618 | V177: 43.789314 | W177: 9.16 | X177: 4.09
A178: n.a. | G178: 0.895 | H178: 0.4493864 | K178: 0.575 | M178: 1.07 | N178: 0.44938639 | Q178: 0.75 | T178: 0.15814723 | U178: 0.29123917 | V178: 0.4493864 | W178: 1.07 | X178: 0.75
A179: Mx | B179: 2 | G179: 20.825 | H179: 2.05591401 | J179: 19.0+2.00 | K179: 1.185 | M179: 21 | N179: 2.0559142 | P179: 19.0+2.00 | Q179: 1.36 | S179: complete | T179: 0.96658301 | U179: 1.089331 | V179: 2.05591401 | W179: 21 | X179: 1.36
B180: 3 | G180: 42.415 | H180: 1275.927461 | I180: functional tooth | J180: broken and split tip | K180: 5.455 | M180: 41.56 | N180: 1263.8169 | O180: functional tooth | P180: broken and split tip | Q180: 4.76 | S180: 12.268364 | T180: 1150.65715 | U180: 125.27031 | V180: 1275.927461 | W180: 42.59 | X180: 5.63
B181: 4 | G181: 62.495 | H181: 5008.193124 | I181: functional tooth | J181: broken and split tip | K181: 12.725 | M181: 60.74 | N181: 4818.3179 | O181: functional tooth | P181: broken and split tip | Q181: 12.63 | S181: 190.47685 | T181: 4358.445204 | U181: 649.74792 | V181: 5008.193124 | W181: 62.67 | X181: 12.9
B182: 5 | G182: 35.205 | H182: 839.5792739 | J182: 33.82+1.56 ; split tip, small part missing | K182: 6.025 | M182: 34.71 | N182: 820.56323 | P182: 33.15+1.56 ; split tip, small part missing | Q182: 5.6 | S182: 19.09375 | T182: 728.0850139 | U182: 111.49426 | V182: 839.5792739 | W182: 35.38 | X182: 6.2
B183: 6 | G183: 31.685 | H183: 748.6515621 | K183: 8.825 | M183: 31.46 | N183: 747.54407 | Q183: 8.77 | S183: 0.78131169 | T183: 572.7182721 | U183: 175.93329 | V183: 748.6515621 | W183: 31.86 | X183: 9
G184: 7.465 | H184: 54.487238 | J184: -5.41 | K184: 2.055 | M184: 7.64 | N184: 54.484249 | P184: -5.41 | Q184: 2.23 | T184: 35.717598 | U184: 18.76964 | V184: 54.487238 | W184: 7.64 | X184: 2.23
B185: 7 | G185: 28.485 | H185: 517.51246 | K185: 6.225 | M185: 28.42 | N185: 517.47614 | Q185: 6.13 | S185: 0.02850328 | T185: 417.23907 | U185: 100.27339 | V185: 517.51246 | W185: 28.66 | X185: 6.4
G186: 3.005 | H186: 5.1995499 | J186: 2.82+0.36 | K186: 1.785 | M186: 3.18 | N186: 5.1995502 | P186: 2.82+0.36 | Q186: 1.96 | T186: 2.5324244 | U186: 2.6671255 | V186: 5.1995499 | W186: 3.18 | X186: 1.96
B187: 8 | G187: 31.395 | H187: 665.7074485 | K187: 6.215 | M187: 31.2 | N187: 665.50885 | Q187: 6.1 | S187: 0.18917903 | T187: 552.1958885 | U187: 113.51156 | V187: 665.7074485 | W187: 31.57 | X187: 6.39
G188: 1.235 | H188: 1.3474696 | K188: 0.955 | M188: 1.41 | N188: 1.3474696 | Q188: 1.13 | T188: 0.49788794 | U188: 0.84958166 | V188: 1.3474696 | W188: 1.41 | X188: 1.13
B189: 9 | I189: empty alveolus | O189: empty alveolus
B190: 10 | G190: 42.205 | H190: 1986.865976 | K190: 10.435 | M190: 41.88 | N190: 1985.2496 | Q190: 10.24 | S190: 1.5784841 | T190: 1592.548596 | U190: 394.31738 | V190: 1986.865976 | W190: 42.38 | X190: 10.61
G191: 11.605 | H191: 131.282891 | K191: 4.225 | M191: 11.78 | N191: 131.27783 | Q191: 4.4 | T191: 85.920609 | U191: 45.362282 | V191: 131.282891 | W191: 11.78 | X191: 4.4
B192: 11 | G192: 42.235 | H192: 1459.51327 | K192: 6.855 | M192: 41.91 | N192: 1459.2914 | Q192: 6.67 | S192: 0.20549946 | T192: 1279.29806 | U192: 180.21521 | V192: 1459.51327 | W192: 42.41 | X192: 7.03
G193: 2.175 | H193: 6.4107097 | K193: 1.435 | M193: 2.35 | N193: 6.4107099 | Q193: 1.61 | T193: 3.3505147 | U193: 3.060195 | V193: 6.4107097 | W193: 2.35 | X193: 1.61
B194: 12 | G194: 31.695 | H194: 1007.147763 | K194: 7.765 | M194: 31.4 | N194: 1005.2631 | Q194: 7.61 | S194: 1.9205235 | T194: 794.8516534 | U194: 212.29611 | V194: 1007.147763 | W194: 31.87 | X194: 7.94
G195: 5.325 | H195: 46.051187 | K195: 2.905 | M195: 5.5 | N195: 46.051189 | Q195: 3.08 | T195: 20.207216 | U195: 25.843971 | V195: 46.051187 | W195: 5.5 | X195: 3.08
B196: 13 | G196: 26.395 | H196: 614.65509 | K196: 6.415 | M196: 26.35 | N196: 614.58936 | Q196: 6.35 | S196: 0.071488068 | T196: 488.84644 | U196: 125.80865 | V196: 614.65509 | W196: 26.57 | X196: 6.59
G197: 2.205 | H197: 6.7573465 | K197: 1.685 | M197: 2.38 | N197: 6.7573462 | Q197: 1.86 | T197: 1.7104267 | U197: 5.0469198 | V197: 6.7573465 | W197: 2.38 | X197: 1.86
B198: 14 | G198: 21.165 | H198: 428.2417889 | J198: 16.02+5.32 | K198: 6.175 | M198: 20.98 | N198: 427.96411 | P198: 15.66+5.32 | Q198: 6.22 | S198: 0.28411335 | T198: 312.1332189 | U198: 116.10857 | V198: 428.2417889 | W198: 21.34 | X198: 6.35
B199: 15 | G199: 16.945 | H199: 209.6266916 | J199: 16.63+0.49 | K199: 4.555 | M199: 17.21 | N199: 207.23471 | P199: 16.72+0.49 | Q199: 4.98 | S199: 2.3938158 | T199: 154.4942226 | U199: 55.132469 | V199: =U199+T199 -> 209.6266916 | W199: 17.12 | X199: 4.73
A200: Large Alligator | B200: 1 | I200: empty alveolus | O200: empty alveolus
... 31 more rows

Sheet Tooth measurements
A1: teeth of Alligators according to their position | F1: [mm]
C2: maxilla sin | Q2: premaxilla sin | W2: premaxilla dext
C3: dentary sin
C4: 20 | D4: 19 | E4: 18 | F4: 17 | G4: 16 | H4: 15 | I4: 14 | J4: 13 | K4: 12 | L4: 11 | M4: 10 | N4: 9 | O4: 8 | P4: 7 | Q4: 6 | R4: 5 | S4: 4 | T4: 3 | U4: 2 | V4: 1 | W4: 1 | X4: 2 | Y4: 3 | Z4: 4 | AA4: 5 | AB4: 6 | AC4: 7 | AD4: 8 | AE4: 9 | AF4: 10 | AG4: 11 | AH4: 12 | AI4: 13 | AJ4: 14 | AK4: 15 | AL4: 16 | AM4: 17 | AN4: 18 | AO4: 19 | AP4: 20
A5: Replacement tooth
A6: f | B6: upper jaw medium sized Alligator | W6: ='Tooth measurements raw data'!G3 -> 5.7075 | X6: ='Tooth measurements raw data'!G5 -> 5.1275 | Y6: ='Tooth measurements raw data'!G7 -> 9.0275 | Z6: ='Tooth measurements raw data'!G9 -> 11.4175 | AA6: ='Tooth measurements raw data'!G11 -> 7.8175 | AB6: ='Tooth measurements raw data'!G14 -> 8.0075 | AC6: ='Tooth measurements raw data'!G16 -> 7.2875 | AD6: ='Tooth measurements raw data'!G19 -> 12.2975 | AE6: ='Tooth measurements raw data'!G21 -> 9.9875 | AF6: ='Tooth measurements raw data'!G23 -> 11.1875 | AG6: ='Tooth measurements raw data'!G25 -> 9.6375 | AH6: ='Tooth measurements raw data'!G28 -> 8.2475 | AI6: ='Tooth measurements raw data'!G30 -> 9.0675 | AJ6: ='Tooth measurements raw data'!G32 -> 8.8675 | AK6: ='Tooth measurements raw data'!G34 -> 10.3075 | AL6: ='Tooth measurements raw data'!G36 -> 6.9075 | AM6: ='Tooth measurements raw data'!G38 -> 8.6975 | AN6: ='Tooth measurements raw data'!G40 -> 7.4375 | AO6: ='Tooth measurements raw data'!G42 -> 6.1675 | AP6: ='Tooth measurements raw data'!G44 -> 5.7775 | AQ6: upper jaw medium sized Alligator | AT6: 1
B7: dentary medium sized Alligator | W7: ='Tooth measurements raw data'!G46 -> 9.3875 | X7: ='Tooth measurements raw data'!G48 -> 8.1275 | Y7: ='Tooth measurements raw data'!G50 -> 8.5175 | Z7: ='Tooth measurements raw data'!G53 -> 11.1275 | AA7: ='Tooth measurements raw data'!G55 -> 7.5675 | AB7: ='Tooth measurements raw data'!G57 -> 6.7075 | AC7: ='Tooth measurements raw data'!G59 -> 5.2275 | AD7: ='Tooth measurements raw data'!G61 -> 6.0175 | AE7: ='Tooth measurements raw data'!G65 -> 5.8175 | AF7: ='Tooth measurements raw data'!G65 -> 5.8175 | AG7: ='Tooth measurements raw data'!G67 -> 5.5675 | AH7: ='Tooth measurements raw data'!G69 -> 8.5575 | AI7: ='Tooth measurements raw data'!G71 -> 7.5575 | AJ7: ='Tooth measurements raw data'!G73 -> 8.6475 | AK7: ='Tooth measurements raw data'!G75 -> 7.2475 | AL7: ='Tooth measurements raw data'!G77 -> 5.9175 | AM7: ='Tooth measurements raw data'!G79 -> 6.4675 | AN7: ='Tooth measurements raw data'!G81 -> 6.1175 | AO7: ='Tooth measurements raw data'!G83 -> 6.0475 | AP7: ='Tooth measurements raw data'!G85 -> 5.4375 | AQ7: dentary medium sized Alligator
A8: 1 | B8: upper jaw medium sized Alligator | W8: ='Tooth measurements raw data'!G4 -> 1.2775 | X8: ='Tooth measurements raw data'!G6 -> 2.1875 | Y8: ='Tooth measurements raw data'!G8 -> 3.0175 | Z8: ='Tooth measurements raw data'!G10 -> 2.2675 | AA8: ='Tooth measurements raw data'!G12 -> 2.8275 | AB8: ='Tooth measurements raw data'!G15 -> 2.0075 | AC8: ='Tooth measurements raw data'!G17 -> 5.7975 | AD8: ='Tooth measurements raw data'!G20 -> 3.3075 | AE8: ='Tooth measurements raw data'!G22 -> 1.6375 | AF8: ='Tooth measurements raw data'!G24 -> 2.4175 | AG8: ='Tooth measurements raw data'!G26 -> 3.1275 | AH8: ='Tooth measurements raw data'!G29 -> 1.2375 | AI8: ='Tooth measurements raw data'!G31 -> 2.7675 | AJ8: ='Tooth measurements raw data'!G33 -> 1.2775 | AK8: ='Tooth measurements raw data'!G35 -> 2.8875 | AL8: ='Tooth measurements raw data'!G37 -> 0.7775 | AM8: ='Tooth measurements raw data'!G39 -> 1.6675 | AN8: ='Tooth measurements raw data'!G41 -> 2.0675 | AO8: ='Tooth measurements raw data'!G43 -> 0.7775 | AP8: ='Tooth measurements raw data'!G45 -> 1.6075 | AQ8: upper jaw medium sized Alligator | AT8: 2
B9: dentary medium sized Alligator | W9: ='Tooth measurements raw data'!G47 -> 3.1675 | X9: ='Tooth measurements raw data'!G49 -> 1.7175 | Y9: ='Tooth measurements raw data'!G51 -> 4.5175 | Z9: ='Tooth measurements raw data'!G54 -> 2.2675 | AA9: ='Tooth measurements raw data'!G56 -> 2.0675 | AB9: ='Tooth measurements raw data'!G58 -> 0.8775 | AC9: ='Tooth measurements raw data'!G60 -> 2.2075 | AD9: ='Tooth measurements raw data'!G62 -> 1.1475 | AE9: ='Tooth measurements raw data'!G64 -> 0.2875 | AF9: ='Tooth measurements raw data'!G66 -> 1.3975 | AG9: ='Tooth measurements raw data'!G68 -> 0.7575 | AH9: ='Tooth measurements raw data'!G70 -> 2.5875 | AI9: ='Tooth measurements raw data'!G72 -> 0.5675 | AJ9: ='Tooth measurements raw data'!G74 -> 1.6175 | AK9: ='Tooth measurements raw data'!G76 -> 2.6275 | AL9: ='Tooth measurements raw data'!G78 -> 0.6175 | AM9: ='Tooth measurements raw data'!G80 -> 1.1875 | AN9: ='Tooth measurements raw data'!G82 -> 2.7075 | AO9: ='Tooth measurements raw data'!G84 -> 0.9075 | AP9: ='Tooth measurements raw data'!G86 -> 1.6275 | AQ9: dentary medium sized Alligator
A10: 2 | B10: upper jaw medium sized Alligator | AA10: ='Tooth measurements raw data'!G13 -> 0.3775 | AC10: ='Tooth measurements raw data'!G18 -> 1.0075 | AG10: ='Tooth measurements raw data'!G27 -> 0.3075 | AQ10: upper jaw medium sized Alligator | AT10: 3
B11: dentary medium sized Alligator | Y11: ='Tooth measurements raw data'!G52 -> 0.5175 | AQ11: dentary medium sized Alligator
AQ13: average size difference
A14: lower teeth/upper teeth | W14: =W6/W7 -> 0.6079893475 | X14: 0.6308828053 | Y14: 1.059876724 | Z14: 1.026061559 | AA14: 1.033036009 | AB14: 1.193812896 | AC14: =AC6/AC7 -> 1.394069823 | AD14: 2.043622767 | AE14: 1.71680275 | AF14: 1.923076923 | AG14: 1.731028289 | AH14: 0.9637744668 | AI14: 1.199801522 | AJ14: 1.025440879 | AK14: 1.422214557 | AL14: 1.16730038 | AM14: 1.344800928 | AN14: 1.215774418 | AO14: 1.01984291 | AP14: 1.062528736 | AQ14: =(SUM(W14:AP14))/20 -> 1.239086934
W15: =W8/W9 -> 0.4033149171 | X15: 1.273653566 | Y15: 0.6679579413 | Z15: 1 | AA15: 1.367593712 | AB15: 2.287749288 | AC15: 2.626274066 | AD15: 2.882352941 | AE15: 5.695652174 | AF15: 1.729874776 | AG15: 4.128712871 | AH15: 0.4782608696 | AI15: 4.876651982 | AJ15: 0.7897990726 | AK15: 1.098953378 | AL15: 1.259109312 | AM15: 1.404210526 | AN15: 0.7636195753 | AO15: 0.8567493113 | AP15: 0.9877112135 | AQ15: =(SUM(W15:AP15))/20 -> 1.828910075
Y16: =Y10/Y11 -> 0
Q61: premaxilla sin
C98: maxilla sin | W98: premaxilla dext
C99: dentary sin
C100: 20 | D100: 19 | E100: 18 | F100: 17 | G100: 16 | H100: 15 | I100: 14 | J100: 13 | K100: 12 | L100: 11 | M100: 10 | N100: 9 | O100: 8 | P100: 7 | Q100: 6 | R100: 5 | S100: 4 | T100: 3 | U100: 2 | V100: 1 | W100: 1 | X100: 2 | Y100: 3 | Z100: 4 | AA100: 5 | AB100: 6 | AC100: 7 | AD100: 8 | AE100: 9 | AF100: 10 | AG100: 11 | AH100: 12 | AI100: 13 | AJ100: 14 | AK100: 15 | AL100: 16 | AM100: 17 | AN100: 18 | AO100: 19 | AP100: 20 | AQ100: 21
A101: Replacement tooth
A102: f | B102: upper jaw medium sized Alligator | W102: ='Tooth measurements raw data'!G87 -> 3.2028 | X102: ='Tooth measurements raw data'!G89 -> 2.5328 | Y102: ='Tooth measurements raw data'!G91 -> 4.9228 | Z102: ='Tooth measurements raw data'!G93 -> 4.1328 | AA102: ='Tooth measurements raw data'!G95 -> 4.5928 | AB102: ='Tooth measurements raw data'!G97 -> 4.5528 | AC102: ='Tooth measurements raw data'!G99 -> 4.2228 | AD102: ='Tooth measurements raw data'!G101 -> 6.3228 | AE102: ='Tooth measurements raw data'!G103 -> 4.9028 | AF102: ='Tooth measurements raw data'!G105 -> 5.8728 | AG102: ='Tooth measurements raw data'!G107 -> 4.0428 | AH102: ='Tooth measurements raw data'!G109 -> 4.0528 | AI102: ='Tooth measurements raw data'!G111 -> 3.1028 | AJ102: ='Tooth measurements raw data'!G114 -> 4.7628 | AK102: ='Tooth measurements raw data'!G116 -> 3.9328 | AL102: ='Tooth measurements raw data'!G118 -> 4.7328 | AM102: ='Tooth measurements raw data'!G120 -> 4.5628 | AN102: ='Tooth measurements raw data'!G122 -> 3.8828 | AO102: ='Tooth measurements raw data'!G124 -> 3.2228 | AP102: ='Tooth measurements raw data'!G125 -> 2.8728 | AQ102: ='Tooth measurements raw data'!G127 -> 1.1528 | AR102: upper jaw medium sized Alligator | AT102: f
B103: dentary medium sized Alligator | W103: ='Tooth measurements raw data'!G128 -> 5.1628 | X103: ='Tooth measurements raw data'!G130 -> 2.1728 | Y103: ='Tooth measurements raw data'!G132 -> 4.4428 | Z103: ='Tooth measurements raw data'!G134 -> 3.7528 | AA103: ='Tooth measurements raw data'!G136 -> 4.1828 | AB103: ='Tooth measurements raw data'!G138 -> 3.2428 | AC103: ='Tooth measurements raw data'!G140 -> 3.1928 | AD103: ='Tooth measurements raw data'!G142 -> 3.0428 | AE103: ='Tooth measurements raw data'!G144 -> 3.1028 | AF103: ='Tooth measurements raw data'!G146 -> 3.1828 | AG103: ='Tooth measurements raw data'!G148 -> 3.8828 | AH103: ='Tooth measurements raw data'!G150 -> 3.5628 | AI103: ='Tooth measurements raw data'!G152 -> 5.3928 | AJ103: ='Tooth measurements raw data'!G154 -> 4.1228 | AK103: ='Tooth measurements raw data'!G156 -> 4.2528 | AL103: ='Tooth measurements raw data'!G158 -> 3.7128 | AM103: ='Tooth measurements raw data'!G160 -> 3.3428 | AN103: ='Tooth measurements raw data'!G162 -> 3.3828 | AO103: ='Tooth measurements raw data'!G164 -> 3.4828 | AP103: ='Tooth measurements raw data'!G166 -> 2.8328 | AR103: dentary medium sized Alligator
A104: 1 | B104: upper jaw medium sized Alligator | W104: ='Tooth measurements raw data'!G88 -> 0.2528 | X104: ='Tooth measurements raw data'!G90 -> 1.1528 | Y104: ='Tooth measurements raw data'!G92 -> 1.0528 | Z104: ='Tooth measurements raw data'!G94 -> 0.5328 | AA104: ='Tooth measurements raw data'!G96 -> 0.9928 | AB104: ='Tooth measurements raw data'!G98 -> 0.6928 | AC104: ='Tooth measurements raw data'!G100 -> 1.8028 | AD104: ='Tooth measurements raw data'!G102 -> 1.1028 | AE104: ='Tooth measurements raw data'!G104 -> 2.8028 | AF104: ='Tooth measurements raw data'!G106 -> 0.8928 | AG104: ='Tooth measurements raw data'!G108 -> 1.8428 | AH104: ='Tooth measurements raw data'!G110 -> 0.7128 | AI104: ='Tooth measurements raw data'!G112 -> 2.1128 | AJ104: ='Tooth measurements raw data'!G115 -> 1.0028 | AK104: ='Tooth measurements raw data'!G117 -> 0.4628 | AL104: ='Tooth measurements raw data'!G119 -> 1.3928 | AM104: ='Tooth measurements raw data'!G121 -> 0.3628 | AN104: ='Tooth measurements raw data'!G123 -> 0.7228 | AP104: ='Tooth measurements raw data'!G126 -> 0.3328 | AR104: upper jaw medium sized Alligator | AT104: 1
B105: dentary medium sized Alligator | W105: ='Tooth measurements raw data'!G129 -> 1.4828 | X105: ='Tooth measurements raw data'!G131 -> 2.0728 | Y105: ='Tooth measurements raw data'!G133 -> 1.0928 | Z105: ='Tooth measurements raw data'!G135 -> 0.3628 | AA105: ='Tooth measurements raw data'!G137 -> 0.6328 | AB105: ='Tooth measurements raw data'!G139 -> 0.9528 | AC105: ='Tooth measurements raw data'!G141 -> 0.1728 | AD105: ='Tooth measurements raw data'!G143 -> 0.9528 | AE105: ='Tooth measurements raw data'!G145 -> 0.1628 | AF105: ='Tooth measurements raw data'!G147 -> 0.7228 | AG105: ='Tooth measurements raw data'!G149 -> 0.4528 | AH105: ='Tooth measurements raw data'!G151 -> 1.6128 | AI105: ='Tooth measurements raw data'!G153 -> 0.8028 | AJ105: ='Tooth measurements raw data'!G155 -> 1.6928 | AK105: ='Tooth measurements raw data'!G157 -> 0.3028 | AL105: ='Tooth measurements raw data'!G159 -> 0.8428 | AM105: ='Tooth measurements raw data'!G161 -> 0.1528 | AN105: ='Tooth measurements raw data'!G163 -> 0.6828 | AO105: ='Tooth measurements raw data'!G165 -> 0.1128 | AP105: ='Tooth measurements raw data'!G167 -> 0.4228 | AR105: dentary medium sized Alligator
A106: 2 | B106: upper jaw medium sized Alligator | AI106: ='Tooth measurements raw data'!G113 -> 0.1628 | AR106: upper jaw medium sized Alligator | AT106: 2
B107: dentary medium sized Alligator | AR107: dentary medium sized Alligator
AR109: average size difference
A110: lower teeth/upper teeth | W110: =W102/W103 -> 0.6203610444 | X110: =X102/X103 -> 1.165684831 | Y110: 1.108039975 | Z110: 1.101257728 | AA110: 1.098020465 | AB110: 1.403971876 | AC110: 1.322600852 | AD110: 2.077954516 | AE110: 1.580121181 | AF110: 1.845167777 | AG110: 1.041207376 | AH110: 1.137532278 | AI110: 0.5753597389 | AJ110: 1.155234307 | AK110: 0.9247554552 | AL110: 1.274725275 | AM110: 1.364963504 | AN110: 1.147806551 | AO110: 0.9253474216 | AP110: 1.014120305 | AR110: =(SUM(W110:AP110))/20 -> 1.194211623
W111: =W104/W105 -> 0.1704882654 | X111: =X104/X105 -> 0.5561559244 | Y111: 0.9633967789 | Z111: 1.468577729 | AA111: 1.568900126 | AB111: 0.7271200672 | AC111: 10.43287037 | AD111: 1.15743073 | AE111: 17.21621622 | AF111: 1.235196458 | AG111: 4.069787986 | AH111: 0.4419642857 | AI111: 2.631788739 | AJ111: 0.5923913043 | AK111: 1.528401585 | AL111: 1.652586616 | AM111: 2.37434555 | AN111: 1.058582308 | AO111: 0 | AP111: 0.7871333964 | AR111: =(SUM(W111:AP111))/20 -> 2.531666722
C179: maxilla sin | W179: premaxilla dext
C180: dentary sin
C181: 20 | D181: 19 | E181: 18 | F181: 17 | G181: 16 | H181: 15 | I181: 14 | J181: 13 | K181: 12 | L181: 11 | M181: 10 | N181: 9 | O181: 8 | P181: 7 | Q181: 6 | R181: 5 | S181: 4 | T181: 3 | U181: 2 | V181: 1 | W181: 1 | X181: 2 | Y181: 3 | Z181: 4 | AA181: 5 | AB181: 6 | AC181: 7 | AD181: 8 | AE181: 9 | AF181: 10 | AG181: 11 | AH181: 12 | AI181: 13 | AJ181: 14 | AK181: 15 | AL181: 16 | AM181: 17 | AN181: 18 | AO181: 19 | AP181: 20 | AQ181: 21
A182: Replacement tooth
A183: f | B183: upper jaw medium sized Alligator | W183: ='Tooth measurements raw data'!G168 -> 27.255 | X183: ='Tooth measurements raw data'!G169 -> 23.265 | Y183: ='Tooth measurements raw data'!G171 -> 39.015 | AA183: ='Tooth measurements raw data'!G174 -> 37.615 | AB183: ='Tooth measurements raw data'!G176 -> 27.005 | AC183: ='Tooth measurements raw data'!G179 -> 20.825 | AD183: ='Tooth measurements raw data'!G180 -> 42.415 | AE183: ='Tooth measurements raw data'!G181 -> 62.495 | AF183: ='Tooth measurements raw data'!G182 -> 35.205 | AG183: ='Tooth measurements raw data'!G183 -> 31.685 | AH183: ='Tooth measurements raw data'!G185 -> 28.485 | AI183: ='Tooth measurements raw data'!G187 -> 31.395 | AK183: ='Tooth measurements raw data'!G190 -> 42.205 | AL183: ='Tooth measurements raw data'!G192 -> 42.235 | AM183: ='Tooth measurements raw data'!G194 -> 31.695 | AN183: ='Tooth measurements raw data'!G196 -> 26.395 | AO183: ='Tooth measurements raw data'!G198 -> 21.165 | AP183: ='Tooth measurements raw data'!G199 -> 16.945 | AR183: upper jaw medium sized Alligator | AT183: f
B184: dentary medium sized Alligator | W184: ='Tooth measurements raw data'!G201 -> 32.575 | Y184: ='Tooth measurements raw data'!G204 -> 43.715 | Z184: ='Tooth measurements raw data'!G208 -> 30.015 | AA184: ='Tooth measurements raw data'!G211 -> 24.315 | AB184: ='Tooth measurements raw data'!G213 -> 21.195 | AC184: ='Tooth measurements raw data'!G215 -> 20.045 | AD184: ='Tooth measurements raw data'!G217 -> 18.265 | AE184: ='Tooth measurements raw data'!G220 -> 21.315 | AF184: ='Tooth measurements raw data'!G222 -> 25.985 | AG184: ='Tooth measurements raw data'!G223 -> 36.585 | AH184: ='Tooth measurements raw data'!G225 -> 45.025 | AI184: ='Tooth measurements raw data'!G227 -> 38.215 | AJ184: ='Tooth measurements raw data'!G228 -> 28.035 | AK184: ='Tooth measurements raw data'!G230 -> 26.125 | AR184: dentary medium sized Alligator
A185: 1 | B185: upper jaw medium sized Alligator | X185: ='Tooth measurements raw data'!G170 -> 7.955 | Y185: ='Tooth measurements raw data'!G172 -> 13.365 | AA185: ='Tooth measurements raw data'!G175 -> 6.505 | AB185: ='Tooth measurements raw data'!G177 -> 8.985 | AG185: ='Tooth measurements raw data'!G184 -> 7.465 | AH185: ='Tooth measurements raw data'!G186 -> 3.005 | AI185: ='Tooth measurements raw data'!G188 -> 1.235 | AK185: ='Tooth measurements raw data'!G191 -> 11.605 | AL185: ='Tooth measurements raw data'!G193 -> 2.175 | AM185: ='Tooth measurements raw data'!G195 -> 5.325 | AN185: ='Tooth measurements raw data'!G197 -> 2.205 | AR185: upper jaw medium sized Alligator | AT185: 1
B186: dentary medium sized Alligator | W186: ='Tooth measurements raw data'!G202 -> 1.935 | Y186: ='Tooth measurements raw data'!G205 -> 28.655 | Z186: ='Tooth measurements raw data'!G209 -> 5.805 | AA186: ='Tooth measurements raw data'!G212 -> 6.225 | AB186: ='Tooth measurements raw data'!G214 -> 2.015 | AC186: ='Tooth measurements raw data'!G216 -> 3.545 | AD186: ='Tooth measurements raw data'!G218 -> 7.385 | AE186: ='Tooth measurements raw data'!G221 -> 2.505 | AG186: ='Tooth measurements raw data'!G224 -> 5.355 | AH186: ='Tooth measurements raw data'!G226 -> 13.045 | AJ186: ='Tooth measurements raw data'!G229 -> 8.865 | AK186: ='Tooth measurements raw data'!G231 -> 1.485 | AR186: dentary medium sized Alligator
A187: 2 | B187: upper jaw medium sized Alligator | AB187: ='Tooth measurements raw data'!G178 -> 0.895 | AJ187: ='Tooth measurements raw data'!G194 -> 31.695 | AR187: upper jaw medium sized Alligator | AT187: 2
B188: dentary medium sized Alligator | Y188: ='Tooth measurements raw data'!G206 -> 3.115 | Z188: ='Tooth measurements raw data'!G210 -> 5.625 | AD188: ='Tooth measurements raw data'!G219 -> 0.585 | AR188: dentary medium sized Alligator
Y190: ='Tooth measurements raw data'!G207 -> 3.545 | AR190: average size difference
A191: lower teeth/upper teeth | W191: =W183/W184 -> 0.8366845741 | Y191: =Y183/Y184 -> 0.8924854169 | Z191: =Z183/Z184 -> 0 | AA191: =AB183/AB184 -> 1.274121255 | AB191: =AC183/AC184 -> 1.038912447 | AC191: =AD183/AD184 -> 2.322200931 | AD191: =AF183/AE184 -> 1.651653765 | AE191: =AH183/AF184 -> 1.096209352 | AF191: 0.8581385814 | AG191: 0 | AH191: 1.104409263 | AI191: 1.50650972 | AJ191: 1.213205742
W192: =W185/W186 -> 0 | Y192: =Y185/Y186 -> 0.4664107486 | Z192: =Z185/Z186 -> 0 | AA192: =AB185/AB186 -> 4.459057072 | AB192: 0 | AC192: 0 | AD192: 0 | AF192: 1.394024276 | AG192: 0.2303564584 | AI192: 0 | AJ192: 7.814814815
Y193: =Y187/Y188 -> 0 | Z193: 0 | AC193: =AD187/AD188 -> 0

Sheet Tooth size Developmental st
B2: Measurements of teeth
B3: Premaxilla | F3: dext | V3: Premaxilla | Z3: dext | AP3: Premaxilla | AT3: dext
B4: Medium Alligator | C4: Functional tooth | I4: Tooth position 1 (labial) | O4: Tooth position 2 | V4: Large Alligator | W4: Functional tooth | AC4: Tooth position 1 (labial) | AI4: Tooth position 2 | AP4: Small Alligator | AQ4: Functional tooth | AW4: Tooth position 1 (labial) | BC4: Tooth position 2
C5: tooth height | D5: crown height | E5: volume | F5: developmental stage | G5: size compared to tooth befoe | H5: estimated age | I5: tooth height | J5: crown height | K5: volume | L5: developmental stage | M5: size compared to tooth before | N5: estimated age | O5: tooth height | P5: crown height | R5: developmental stage | S5: size compared to tooth befoe | T5: estimated age | W5: tooth height | X5: crown height | Y5: volume | Z5: developmental stage | AA5: size compared to tooth befoe | AC5: tooth height | AD5: crown height | AE5: volume | AF5: developmental stage | AG5: size compared to tooth befoe | AI5: tooth height | AJ5: crown height | AK5: volume | AL5: developmental stage | AM5: size compared to tooth before | AQ5: tooth height | AR5: crown height | AS5: volume | AT5: developmental stage | AU5: size compared to tooth befoe | AV5: average VEL | AW5: tooth height | AX5: crown height | AY5: volume | AZ5: developmental stage | BA5: size compared to tooth befoe | BB5: estimated age | BC5: tooth height | BD5: crown height | BE5: volume | BF5: developmental stage | BG5: size compared to tooth before
B6: 1. alveolus | C6: ='Tooth measurements raw data'!G3 -> 5.71 | D6: ='Tooth measurements raw data'!K3 -> 2.45 | E6: 2.28173 | F6: 4 | H6: 30.55833333 | I6: ='Tooth measurements raw data'!G4 -> 1.28 | J6: ='Tooth measurements raw data'!K4 -> 0.63 | K6: 0.21732 | L6: 2 | M6: =I6/C6 -> 0.2238282961 | S6: =O6/I6 -> 0 | V6: 1. alveolus | W6: ='Tooth measurements raw data'!G168 -> 27.255 | X6: ='Tooth measurements raw data'!K168 -> 5.655 | Y6: ='Tooth measurements raw data'!$H$168 -> 290.1394973 | Z6: 2 | AP6: 1. alveolus | AQ6: ='Tooth measurements raw data'!$G$87 -> 3.20 | AR6: ='Tooth measurements raw data'!K87 -> 1.4328 | AS6: ='Tooth measurements raw data'!$H$87 -> 0.62902447 | AT6: 6 | AW6: ='Tooth measurements raw data'!$G$88 -> 0.25 | AX6: ='Tooth measurements raw data'!K88 -> 0.1628 | AY6: ='Tooth measurements raw data'!$H$88 -> 0.0034545965 | AZ6: 3 | BA6: =AW6/AQ6 -> 0.07893093543
B7: 2. alveolus | C7: ='Tooth measurements raw data'!G5 -> 5.13 | D7: ='Tooth measurements raw data'!K5 -> 2.16 | E7: 3.0836 | F7: 5 | I7: ='Tooth measurements raw data'!G6 -> 2.19 | J7: ='Tooth measurements raw data'!K6 -> 0.92 | K7: 0.687425 | L7: 3 | M7: =I7/C7 -> 0.4266211604 | S7: =O7/I7 -> 0 | V7: 2. alveolus | W7: ='Tooth measurements raw data'!G169 -> 23.265 | X7: ='Tooth measurements raw data'!K169 -> 8.055 | Y7: ='Tooth measurements raw data'!$H$169 -> 249.0860286 | Z7: 3 | AC7: ='Tooth measurements raw data'!G170 -> 7.955 | AD7: ='Tooth measurements raw data'!K170 -> 3.145 | AE7: ='Tooth measurements raw data'!$H$170 -> 28.077571 | AF7: 2 | AG7: =AC7/W7 -> 0.3419299377 | AP7: 2. alveolus | AQ7: ='Tooth measurements raw data'!$G$89 -> 2.53 | AR7: ='Tooth measurements raw data'!K89 -> 1.7728 | AS7: ='Tooth measurements raw data'!$H$89 -> 0.371784978 | AT7: 7 | AW7: ='Tooth measurements raw data'!$G$90 -> 1.15 | AX7: ='Tooth measurements raw data'!K90 -> 0.7728 | AY7: ='Tooth measurements raw data'!$H$90 -> 0.139143475 | AZ7: 4 | BA7: =AW7/AQ7 -> 0.4551484523
B8: 3. alveolus | C8: ='Tooth measurements raw data'!G7 -> 9.03 | D8: ='Tooth measurements raw data'!K7 -> 2.95 | E8: 12.2091 | F8: 7 | H8: 33.82198953 | I8: ='Tooth measurements raw data'!G8 -> 3.02 | J8: ='Tooth measurements raw data'!K8 -> 1.04 | K8: 1.603 | L8: 2 | M8: =I8/C8 -> 0.3342564387 | N8: 43.10738589 | S8: =O8/I8 -> 0 | V8: 3. alveolus | W8: ='Tooth measurements raw data'!G171 -> 39.015 | X8: ='Tooth measurements raw data'!K171 -> 11.455 | Y8: ='Tooth measurements raw data'!$H$171 -> 1013.04061 | Z8: 6 | AC8: ='Tooth measurements raw data'!G172 -> 13.365 | AD8: ='Tooth measurements raw data'!K172 -> 4.795 | AE8: ='Tooth measurements raw data'!$H$172 -> 94.174841 | AF8: 3 | AG8: =AC8/W8 -> 0.3425605536 | AP8: 3. alveolus | AQ8: ='Tooth measurements raw data'!$G$91 -> 4.92 | AR8: ='Tooth measurements raw data'!K91 -> 1.7928 | AS8: ='Tooth measurements raw data'!$H$91 -> 1.49836725 | AT8: 7 | AV8: 0.0167 | AW8: ='Tooth measurements raw data'!$G$92 -> 1.05 | AX8: ='Tooth measurements raw data'!K92 -> 0.5328 | AY8: ='Tooth measurements raw data'!$H$92 -> 0.100599133 | AZ8: 4 | BA8: =AW8/AQ8 -> 0.2138620297
B9: 4. alveolus | C9: ='Tooth measurements raw data'!G9 -> 11.42 | D9: ='Tooth measurements raw data'!K9 -> 2.54 | E9: 21.3727 | F9: 6 | I9: ='Tooth measurements raw data'!G10 -> 2.27 | J9: ='Tooth measurements raw data'!K10 -> 0.92 | K9: 0.86493 | L9: 3 | M9: =I9/C9 -> 0.1985986424 | S9: =O9/I9 -> 0 | V9: 4. alveolus | AP9: 4. alveolus | AQ9: ='Tooth measurements raw data'!$G$93 -> 4.13 | AR9: ='Tooth measurements raw data'!K93 -> 1.4328 | AS9: ='Tooth measurements raw data'!$H$93 -> 1.32007173 | AT9: 6 | AW9: ='Tooth measurements raw data'!$G$94 -> 0.53 | AX9: ='Tooth measurements raw data'!K94 -> 0.3128 | AY9: ='Tooth measurements raw data'!$H$94 -> 0.0231266039 | AZ9: 3 | BA9: =AW9/AQ9 -> 0.1289198606
B10: 5.alveolus | C10: ='Tooth measurements raw data'!G11 -> 7.82 | D10: ='Tooth measurements raw data'!K11 -> 2.61 | E10: 7.32204 | F10: 6 | I10: ='Tooth measurements raw data'!G12 -> 2.83 | J10: ='Tooth measurements raw data'!K12 -> 1.38 | K10: 1.19799 | L10: 4 | M10: =I10/C10 -> 0.3616885193 | O10: ='Tooth measurements raw data'!G13 -> 0.38 | P10: ='Tooth measurements raw data'!K13 -> 0.12 | Q10: 0.015093 | R10: 1 | S10: =O10/I10 -> 0.133510168 | V10: 5.alveolus | W10: ='Tooth measurements raw data'!G174 -> 37.615 | X10: ='Tooth measurements raw data'!K174 -> 8.645 | Y10: ='Tooth measurements raw data'!$H$174 -> 855.4052964 | Z10: 5 | AC10: ='Tooth measurements raw data'!G175 -> 6.505 | AD10: ='Tooth measurements raw data'!K175 -> 2.965 | AE10: ='Tooth measurements raw data'!$H$175 -> 28.02838 | AF10: 1 | AG10: =AC10/W10 -> 0.1729363286 | AP10: 5.alveolus | AQ10: ='Tooth measurements raw data'!$G$95 -> 4.59 | AR10: ='Tooth measurements raw data'!K95 -> 1.7628 | AS10: ='Tooth measurements raw data'!$H$95 -> 1.21102804 | AT10: 7 | AW10: ='Tooth measurements raw data'!$G$96 -> 0.99 | AX10: ='Tooth measurements raw data'!K96 -> 0.5628 | AY10: ='Tooth measurements raw data'!$H$96 -> 0.088092212 | AZ10: 4 | BA10: =AW10/AQ10 -> 0.2161644313
L11: average | M11: =(M6+M7+M8+M9+M10)/5 -> 0.3089986114 | R11: average | S11: =S10 -> 0.133510168 | AF11: average | AG11: =(AG7+AG8+AG10)/3 -> 0.28580894 | AL11: average | AZ11: average | BA11: =(BA6+BA7+BA8+BA9+BA10)/5 -> 0.2186051419 | BF11: average
AP13: Maxilla | AT13: dext
B14: Maxilla | F14: dext | V14: Maxilla | Z14: dext | AP14: Small Alligator | AQ14: Functional tooth | AW14: Tooth position 1 (labial) | BC14: Tooth position 2
B15: Medium Alligator | C15: Functional tooth | I15: Tooth position 1 (labial) | O15: Tooth position 2 | V15: Large Alligator | W15: Functional tooth | AC15: Tooth position 1 (labial) | AI15: Tooth position 2 | AQ15: tooth height | AR15: crown height | AS15: volume | AT15: developmental stage | AU15: size compared to tooth before | AV15: estimated age | AW15: tooth height | AX15: crown height | AY15: volume | AZ15: developmental stage | BA15: size compared to tooth before | BB15: estimated age | BC15: tooth height | BD15: crown height | BE15: volume | BF15: developmental stage | BG15: size compared to tooth before
C16: tooth height | D16: crown height | E16: volume | F16: developmental stage | G16: size compared to tooth before | H16: estimated age | I16: tooth height | J16: crown height | K16: volume | L16: developmental stage | M16: size compared to tooth before | N16: estimated age | O16: tooth height | P16: crown height | Q16: volume | R16: developmental stage | S16: size compared to tooth before | T16: estimated age | W16: tooth height | X16: crown height | Y16: volume | Z16: developmental stage | AA16: size compared to tooth before | AC16: tooth height | AD16: crown height | AE16: volume | AF16: developmental stage | AG16: size compared to tooth before | AI16: tooth height | AJ16: crown height | AK16: volume | AL16: developmental stage | AM16: size compared to tooth before | AP16: 1. alveolus | AQ16: ='Tooth measurements raw data'!$G$97 -> 4.55 | AR16: ='Tooth measurements raw data'!K97 -> 1.6928 | AS16: ='Tooth measurements raw data'!$H$97 -> 1.12674225 | AT16: 6 | AW16: ='Tooth measurements raw data'!$G$98 -> 0.69 | AX16: ='Tooth measurements raw data'!K98 -> 0.4728 | AY16: ='Tooth measurements raw data'!$H$98 -> 0.047948521 | AZ16: 3 | BA16: =AW16/AQ16 -> 0.1521700931
B17: 1. alveolus | C17: ='Tooth measurements raw data'!G14 -> 8.01 | D17: ='Tooth measurements raw data'!K14 -> 2.61 | E17: 7.74965 | F17: 6 | I17: ='Tooth measurements raw data'!G15 -> 2.01 | J17: ='Tooth measurements raw data'!K15 -> 0.68 | K17: 0.549644 | L17: 2 | M17: =I17/C17 -> 0.2507024664 | V17: 1. alveolus | W17: ='Tooth measurements raw data'!G176 -> 27.005 | X17: ='Tooth measurements raw data'!K176 -> 7.205 | Y17: ='Tooth measurements raw data'!H176 -> 431.1291242 | Z17: 4 | AC17: ='Tooth measurements raw data'!$G$177 -> 8.985 | AD17: ='Tooth measurements raw data'!K177 -> 3.915 | AE17: ='Tooth measurements raw data'!$H$177 -> 43.789314 | AF17: 2 | AG17: =AC17/W17 -> 0.3327161637 | AI17: ='Tooth measurements raw data'!$G$178 -> 0.895 | AJ17: ='Tooth measurements raw data'!K178 -> 0.575 | AK17: ='Tooth measurements raw data'!$H$178 -> 0.4493864 | AL17: 0 | AM17: =AI17/AC17 -> 0.09961046188 | AP17: 2. alveolus | AQ17: ='Tooth measurements raw data'!$G$99 -> 4.22 | AR17: ='Tooth measurements raw data'!K99 -> 2.4328 | AS17: ='Tooth measurements raw data'!$H$99 -> 1.53774333 | AT17: 8 | AW17: ='Tooth measurements raw data'!$G$100 -> 1.80 | AX17: ='Tooth measurements raw data'!K100 -> 0.9528 | AY17: ='Tooth measurements raw data'!$H$100 -> 0.29076189 | AZ17: 4 | BA17: 0.4269205267
B18: 2. alveolus | C18: ='Tooth measurements raw data'!G16 -> 7.29 | D18: ='Tooth measurements raw data'!K16 -> 3.53 | E18: 7.61631 | F18: 7 | I18: ='Tooth measurements raw data'!G17 -> 5.80 | J18: ='Tooth measurements raw data'!K17 -> 2.01 | K18: 5.33875 | L18: 4 | M18: 0.7955403087 | O18: ='Tooth measurements raw data'!G18 -> 1.01 | P18: ='Tooth measurements raw data'!K18 -> 0.33 | Q18: 0.159449 | R18: 1 | S18: =O18/I18 -> 0.1737818025 | V18: 2. alveolus | W18: ='Tooth measurements raw data'!G179 -> 20.825 | X18: ='Tooth measurements raw data'!K179 -> 1.185 | Y18: ='Tooth measurements raw data'!H179 -> 2.05591401 | Z18: 1 | AP18: 3. alveolus | AQ18: ='Tooth measurements raw data'!$G$101 -> 6.32 | AR18: ='Tooth measurements raw data'!K101 -> 1.7928 | AS18: ='Tooth measurements raw data'!$H$101 -> 2.79448071 | AT18: 7 | AW18: ='Tooth measurements raw data'!$G$102 -> 1.10 | AX18: ='Tooth measurements raw data'!K102 -> 0.6028 | AY18: ='Tooth measurements raw data'!$H$102 -> 0.138087902 | AZ18: 3 | BA18: 0.1744163978
B19: 3. alveolus | C19: ='Tooth measurements raw data'!G19 -> 12.30 | D19: ='Tooth measurements raw data'!K19 -> 2.95 | E19: 30.1717 | F19: 6 | I19: ='Tooth measurements raw data'!G20 -> 3.31 | J19: ='Tooth measurements raw data'!K20 -> 1.04 | K19: 2.04579 | L19: 3 | M19: 0.2689571051 | V19: 3. alveolus | W19: ='Tooth measurements raw data'!G180 -> 42.415 | X19: ='Tooth measurements raw data'!K180 -> 5.455 | Y19: ='Tooth measurements raw data'!H180 -> 1275.927461 | Z19: 3 | AP19: 4. alveolus | AQ19: ='Tooth measurements raw data'!$G$103 -> 4.90 | AR19: ='Tooth measurements raw data'!K103 -> 2.5128 | AS19: ='Tooth measurements raw data'!$H$103 -> 2.9786619 | AT19: 9 | AW19: ='Tooth measurements raw data'!$G$104 -> 2.80 | AX19: ='Tooth measurements raw data'!K104 -> 1.2228 | AY19: ='Tooth measurements raw data'!$H$104 -> 0.88651982 | AZ19: 5 | BA19: 0.5716733295
B20: 4. alveolus | C20: ='Tooth measurements raw data'!G21 -> 9.99 | D20: ='Tooth measurements raw data'!K21 -> 2.64 | E20: 18.7089 | F20: 7 | I20: ='Tooth measurements raw data'!G22 -> 1.64 | J20: ='Tooth measurements raw data'!K22 -> 0.49 | K20: 0.468438 | L20: 2 | M20: 0.1639549437 | V20: 4. alveolus | W20: ='Tooth measurements raw data'!G181 -> 62.495 | X20: ='Tooth measurements raw data'!K181 -> 12.725 | Y20: ='Tooth measurements raw data'!H181 -> 5008.193124 | Z20: 7 | AP20: 5. alveolus | AQ20: ='Tooth measurements raw data'!$G$105 -> 5.87 | AR20: ='Tooth measurements raw data'!K105 -> 1.8328 | AS20: ='Tooth measurements raw data'!$H$105 -> 3.03908528 | AT20: 7 | AW20: ='Tooth measurements raw data'!$G$106 -> 0.89 | AX20: ='Tooth measurements raw data'!K106 -> 0.5028 | AY20: ='Tooth measurements raw data'!$H$106 -> 0.070979166 | AZ20: 3 | BA20: 0.1520228852
B21: 5. alveolus | C21: ='Tooth measurements raw data'!G23 -> 11.19 | D21: ='Tooth measurements raw data'!K23 -> 2.82 | E21: 22.7832 | F21: 8 | I21: ='Tooth measurements raw data'!G24 -> 2.42 | J21: ='Tooth measurements raw data'!K24 -> 0.93 | K21: 0.96734 | L21: 3 | M21: 0.2160893855 | V21: 5. alveolus | W21: ='Tooth measurements raw data'!G182 -> 35.205 | X21: ='Tooth measurements raw data'!K182 -> 6.025 | Y21: ='Tooth measurements raw data'!H182 -> 839.5792739 | Z21: 4 | AP21: 6. alveolus | AQ21: ='Tooth measurements raw data'!$G$107 -> 4.04 | AR21: ='Tooth measurements raw data'!K107 -> 2.1928 | AS21: ='Tooth measurements raw data'!$H$107 -> 1.41510514 | AT21: 9 | AV21: 0.01267 | AW21: ='Tooth measurements raw data'!$G$108 -> 1.84 | AX21: ='Tooth measurements raw data'!K108 -> 0.9328 | AY21: ='Tooth measurements raw data'!$H$108 -> 0.36407609 | AZ21: 5 | BA21: 0.4558226971
B22: 6. alveolus | C22: ='Tooth measurements raw data'!G25 -> 9.64 | D22: ='Tooth measurements raw data'!K25 -> 3.32 | E22: 16.4975 | F22: 9 | H22: 24.08695652 | I22: ='Tooth measurements raw data'!G26 -> 3.13 | J22: ='Tooth measurements raw data'!K26 -> 1.36 | K22: 2.14117 | L22: 1 | M22: 0.3245136187 | N22: 29.33333333 | O22: ='Tooth measurements raw data'!G27 -> 0.31 | P22: ='Tooth measurements raw data'!K27 -> 0.06 | Q22: 0.0167597 | R22: 0 | S22: =O22/I22 -> 0.09832134293 | V22: 6. alveolus | W22: ='Tooth measurements raw data'!G183 -> 31.685 | X22: ='Tooth measurements raw data'!K183 -> 8.825 | Y22: ='Tooth measurements raw data'!H183 -> 748.6515621 | Z22: 5 | AC22: ='Tooth measurements raw data'!$G$184 -> 7.465 | AD22: ='Tooth measurements raw data'!K184 -> 2.055 | AE22: ='Tooth measurements raw data'!$H$184 -> 54.487238 | AF22: 2 | AG22: =AC22/W22 -> 0.2356004418 | AP22: 7. alveolus | AQ22: ='Tooth measurements raw data'!$G$109 -> 4.05 | AR22: ='Tooth measurements raw data'!K109 -> 2.0628 | AS22: ='Tooth measurements raw data'!$H$109 -> 1.31613732 | AT22: 7 | AV22: 0.01533 | AW22: ='Tooth measurements raw data'!$G$110 -> 0.71 | AX22: ='Tooth measurements raw data'!K110 -> 0.4228 | AY22: ='Tooth measurements raw data'!$H$110 -> 0.068484179 | AZ22: 3 | BA22: 0.1758784051
B23: 7. alveolus | C23: ='Tooth measurements raw data'!G28 -> 8.25 | D23: ='Tooth measurements raw data'!K28 -> 2.32 | E23: 9.22033 | F23: 7 | H23: 39.2 | I23: ='Tooth measurements raw data'!G29 -> 1.24 | J23: ='Tooth measurements raw data'!K29 -> 0.59 | K23: 0.310378 | L23: 1 | M23: 0.1500454683 | V23: 7. alveolus | W23: ='Tooth measurements raw data'!G185 -> 28.485 | X23: ='Tooth measurements raw data'!K185 -> 6.225 | Y23: ='Tooth measurements raw data'!H185 -> 517.51246 | Z23: 3 | AC23: ='Tooth measurements raw data'!$G$186 -> 3.005 | AD23: ='Tooth measurements raw data'!K186 -> 1.785 | AE23: ='Tooth measurements raw data'!$H$186 -> 5.1995499 | AF23: 1 | AG23: =AC23/W23 -> 0.1054941197 | AP23: 8. alveolus | AQ23: ='Tooth measurements raw data'!$G$111 -> 3.10 | AR23: ='Tooth measurements raw data'!K111 -> 2.1028 | AS23: ='Tooth measurements raw data'!$H$111 -> 1.23284316 | AT23: 9 | AW23: ='Tooth measurements raw data'!$G$112 -> 2.11 | AX23: ='Tooth measurements raw data'!K112 -> 1.0628 | AY23: ='Tooth measurements raw data'!$H$112 -> 0.54963271 | AZ23: 5 | BA23: 0.6809333505 | BC23: ='Tooth measurements raw data'!$G$113 -> 0.1628 | BD23: ='Tooth measurements raw data'!K113 -> 0.1628 | BE23: ='Tooth measurements raw data'!H113 -> 0.0027188955 | BG23: =BC23/AW23 -> 0.07705414616
B24: 8. alveolus | C24: ='Tooth measurements raw data'!G30 -> 9.07 | D24: ='Tooth measurements raw data'!K30 -> 2.74 | E24: 14.8317 | F24: 6 | I24: ='Tooth measurements raw data'!G31 -> 2.77 | J24: ='Tooth measurements raw data'!K31 -> 1.29 | K24: 1.77884 | L24: 4 | M24: 0.3052109181 | V24: 8. alveolus | W24: ='Tooth measurements raw data'!G187 -> 31.395 | X24: ='Tooth measurements raw data'!K187 -> 6.215 | Y24: ='Tooth measurements raw data'!H187 -> 665.7074485 | Z24: 3 | AC24: ='Tooth measurements raw data'!$G$188 -> 1.235 | AD24: ='Tooth measurements raw data'!K188 -> 0.955 | AE24: ='Tooth measurements raw data'!$H$188 -> 1.3474696 | AF24: 1 | AG24: =AC24/W24 -> 0.03933747412 | AP24: 9. alveolus | AQ24: ='Tooth measurements raw data'!$G$114 -> 4.76 | AR24: ='Tooth measurements raw data'!K114 -> 2.2828 | AS24: ='Tooth measurements raw data'!$H$114 -> 2.02193062 | AT24: 10 | AW24: ='Tooth measurements raw data'!$G$115 -> 1.00 | AX24: ='Tooth measurements raw data'!K115 -> 0.6128 | AY24: ='Tooth measurements raw data'!$H$115 -> 0.11800006 | AZ24: 3 | BA24: 0.2105484169
B25: 9. alveolus | C25: ='Tooth measurements raw data'!G32 -> 8.87 | D25: ='Tooth measurements raw data'!K32 -> 2.30 | E25: 12.0575 | F25: 5 | I25: ='Tooth measurements raw data'!G33 -> 1.28 | J25: ='Tooth measurements raw data'!K33 -> 0.56 | K25: 0.318249 | L25: 1 | M25: 0.1440654074 | V25: 9. alveolus | AP25: 10. alveolus | AQ25: ='Tooth measurements raw data'!$G$116 -> 3.93 | AR25: ='Tooth measurements raw data'!K116 -> 1.3528 | AS25: ='Tooth measurements raw data'!$H$116 -> 1.866601716 | AT25: 6 | AW25: ='Tooth measurements raw data'!$G$117 -> 0.46 | AX25: ='Tooth measurements raw data'!K117 -> 0.2828 | AY25: ='Tooth measurements raw data'!$H$117 -> 0.0240542286 | AZ25: 2 | BA25: 0.1176769731
B26: 10. alveolus | C26: ='Tooth measurements raw data'!G34 -> 10.31 | D26: ='Tooth measurements raw data'!K34 -> 3.26 | E26: 26.017 | F26: 7 | I26: ='Tooth measurements raw data'!G35 -> 2.89 | J26: ='Tooth measurements raw data'!K35 -> 1.24 | K26: 2.04579 | L26: 3 | M26: 0.2801358234 | V26: 10. alveolus | W26: ='Tooth measurements raw data'!G190 -> 42.205 | X26: ='Tooth measurements raw data'!K190 -> 10.435 | Y26: ='Tooth measurements raw data'!H190 -> 1986.865976 | Z26: 5 | AC26: ='Tooth measurements raw data'!$G$191 -> 11.605 | AD26: ='Tooth measurements raw data'!K191 -> 4.225 | AE26: ='Tooth measurements raw data'!$H$191 -> 131.282891 | AF26: 3 | AG26: =AC26/W26 -> 0.2749674209 | AP26: 11. alveolus | AQ26: ='Tooth measurements raw data'!$G$118 -> 4.73 | AR26: ='Tooth measurements raw data'!K118 -> 2.3028 | AS26: ='Tooth measurements raw data'!$H$118 -> 2.7743928 | AT26: 10 | AW26: ='Tooth measurements raw data'!$G$119 -> 1.39 | AX26: ='Tooth measurements raw data'!K119 -> 0.7528 | AY26: ='Tooth measurements raw data'!$H$119 -> 0.322461 | AZ26: 4 | BA26: 0.2942866802
B27: 11. alveolus | C27: ='Tooth measurements raw data'!G36 -> 6.91 | D27: ='Tooth measurements raw data'!K36 -> 2.30 | E27: 11.6512 | F27: 5 | I27: ='Tooth measurements raw data'!G37 -> 0.78 | J27: ='Tooth measurements raw data'!K37 -> 0.25 | K27: 0.0840762 | L27: 0 | M27: 0.1125588129 | V27: 11. alveolus | W27: ='Tooth measurements raw data'!G192 -> 42.235 | X27: ='Tooth measurements raw data'!K192 -> 6.855 | Y27: ='Tooth measurements raw data'!H192 -> 1459.51327 | Z27: 4 | AC27: ='Tooth measurements raw data'!$G$193 -> 2.175 | AD27: ='Tooth measurements raw data'!K193 -> 1.435 | AE27: ='Tooth measurements raw data'!$H$193 -> 6.4107097 | AF27: 2 | AG27: =AC27/W27 -> 0.0514975731 | AP27: 12. alveolus | AQ27: ='Tooth measurements raw data'!$G$120 -> 4.56 | AR27: ='Tooth measurements raw data'!K120 -> 1.5628 | AS27: ='Tooth measurements raw data'!$H$120 -> 2.35849792 | AT27: 7 | AV27: 0.01200 | AW27: ='Tooth measurements raw data'!$G$121 -> 0.36 | AX27: ='Tooth measurements raw data'!K121 -> 0.2028 | AY27: ='Tooth measurements raw data'!$H$121 -> 0.0152578014 | AZ27: 2 | BA27: 0.07951257999 | BB27: 0.0115
B28: 12. alveolus | C28: ='Tooth measurements raw data'!G38 -> 8.70 | D28: ='Tooth measurements raw data'!K38 -> 3.02 | E28: 20.721 | F28: 8 | H28: 30.85185185 | I28: ='Tooth measurements raw data'!G39 -> 1.67 | J28: ='Tooth measurements raw data'!K39 -> 0.82 | K28: 0.89206 | L28: 1 | M28: 0.1917217591 | V28: 12. alveolus | W28: ='Tooth measurements raw data'!G194 -> 31.695 | X28: ='Tooth measurements raw data'!K194 -> 7.765 | Y28: ='Tooth measurements raw data'!H194 -> 1007.147763 | Z28: 3 | AC28: ='Tooth measurements raw data'!$G$195 -> 5.325 | AD28: ='Tooth measurements raw data'!K195 -> 2.905 | AE28: ='Tooth measurements raw data'!$H$195 -> 46.051187 | AF28: 2 | AG28: =AC28/W28 -> 0.1680075722 | AP28: 13. alveolus | AQ28: ='Tooth measurements raw data'!$G$122 -> 3.88 | AR28: ='Tooth measurements raw data'!K122 -> 2.0528 | AS28: ='Tooth measurements raw data'!$H$122 -> 1.67794234 | AT28: 9 | AV28: 0.01167 | AW28: ='Tooth measurements raw data'!$G$123 -> 0.72 | AX28: ='Tooth measurements raw data'!K123 -> 0.4528 | AY28: ='Tooth measurements raw data'!$H$123 -> 0.111762594 | AZ28: 2 | BA28: 0.1861543216
B29: 13. alveolus | C29: ='Tooth measurements raw data'!G40 -> 7.44 | D29: ='Tooth measurements raw data'!K40 -> 2.82 | E29: 13.689 | F29: 6 | H29: 22.15659341 | I29: ='Tooth measurements raw data'!G41 -> 2.07 | J29: ='Tooth measurements raw data'!K41 -> 1.11 | K29: 1.52495 | L29: 1 | M29: 0.2779831933 | N29: 21.44487179 | V29: 13. alveolus | W29: ='Tooth measurements raw data'!G196 -> 26.395 | X29: ='Tooth measurements raw data'!K196 -> 6.415 | Y29: ='Tooth measurements raw data'!H196 -> 614.65509 | Z29: 4 | AC29: ='Tooth measurements raw data'!$G$197 -> 2.205 | AD29: ='Tooth measurements raw data'!K197 -> 1.685 | AE29: ='Tooth measurements raw data'!$H$197 -> 6.7573465 | AF29: 2 | AG29: =AC29/W29 -> 0.08353854897 | AP29: 14. alveolus | AQ29: ='Tooth measurements raw data'!$G$124 -> 3.22 | AR29: ='Tooth measurements raw data'!K124 -> 1.3528 | AS29: ='Tooth measurements raw data'!$H$124 -> 1.08112881 | AT29: 6
B30: 14. alveolus | C30: ='Tooth measurements raw data'!G42 -> 6.17 | D30: ='Tooth measurements raw data'!K42 -> 2.20 | E30: 7.96021 | F30: 4 | I30: ='Tooth measurements raw data'!G43 -> 0.78 | J30: ='Tooth measurements raw data'!K43 -> 0.42 | K30: 0.147411 | L30: 0 | M30: 0.1260640454 | V30: 14. alveolus | W30: ='Tooth measurements raw data'!G198 -> 21.165 | X30: ='Tooth measurements raw data'!K198 -> 6.175 | Y30: ='Tooth measurements raw data'!H198 -> 428.2417889 | Z30: 4 | AP30: 15. alveolus | AQ30: ='Tooth measurements raw data'!$G$125 -> 2.87 | AR30: ='Tooth measurements raw data'!K125 -> 1.7528 | AS30: ='Tooth measurements raw data'!$H$125 -> 0.7628581 | AT30: 7 | AW30: ='Tooth measurements raw data'!$G$126 -> 0.3328 | AX30: ='Tooth measurements raw data'!K126 -> 0.3328 | AY30: ='Tooth measurements raw data'!H126 -> 0.0119631397 | AZ30: 2 | BA30: =AW30/AQ30 -> 0.1158451685
B31: 15. alveolus | C31: ='Tooth measurements raw data'!G44 -> 5.78 | D31: ='Tooth measurements raw data'!K44 -> 3.07 | E31: 5.16152 | F31: 6 | I31: ='Tooth measurements raw data'!G45 -> 1.61 | J31: ='Tooth measurements raw data'!K45 -> 0.42 | K31: 0.627979 | L31: 0 | M31: 0.2782345305 | V31: 15. alveolus | W31: ='Tooth measurements raw data'!G199 -> 16.945 | X31: ='Tooth measurements raw data'!K199 -> 4.555 | Y31: ='Tooth measurements raw data'!H199 -> 209.6266916 | Z31: 3 | AP31: 16. alveolus | AQ31: ='Tooth measurements raw data'!$G$127 -> 1.15 | AR31: ='Tooth measurements raw data'!K127 -> 0.6828 | AS31: ='Tooth measurements raw data'!$H$127 -> 0.134377403 | AT31: 3 | AZ31: avarage | BA31: =(BA16+BA17+BA18+BA19+BA20+BA21+BA22+BA23+BA24+BA25+BA26+BA27+BA28+BA29)/14 -> 0.2627154755 | BG31: =BG23 -> 0.07705414616
D32: =AVERAGE(D6:D31) -> 2.73 | J32: =AVERAGE(J6:J31) -> 0.90 | L32: average | M32: =(M17+M18+M19+M20+M21+M22+M23+M24+M25+M26+M27+M28+M29+M30+M31)/15 -> 0.2590518524 | S32: =(S18+S22)/2 -> 0.1360515727 | X32: =AVERAGE(X6:X31) -> 7.215 | AD32: =AVERAGE(AD6:AD31) -> 2.715 | AF32: average | AG32: =(AG17+AG1+AG22+AG23+AG24+AG26+AG27+AG28+AG29)/9 -> 0.1434621461 | AM32: =AM17 -> 0.09961046188
J33: =D32/J32 -> 3.022714681 | AD33: =X32/AD32 -> 2.657458564 | AP33: Dentary | AT33: dext
B34: Dentary | F34: dext | V34: Dentary | Z34: dext | AP34: Small Alligator | AQ34: Functional tooth | AW34: Tooth position 1 (labial) | BC34: Tooth position 2
B35: Medium Alligator | C35: Functional tooth | I35: Tooth position 1 (labial) | O35: Tooth position 2 | V35: Large Alligator | W35: Functional tooth | AC35: Tooth position 1 (labial) | AI35: Tooth position 2 | AQ35: tooth height | AR35: crown height | AS35: volume | AT35: developmental stage | AU35: size compared to tooth befoe | AV35: estimated age | AW35: tooth height | AX35: crown height | AY35: volume | AZ35: developmental stage | BA35: size compared to tooth before | BB35: estimated age | BC35: tooth height | BD35: crown height | BE35: volume | BF35: developmental stage | BG35: size compared to tooth before
C36: tooth height | D36: crown height | E36: volume | F36: developmental stage | G36: size compared to tooth befoe | H36: estimated age | I36: tooth height | J36: crown height | K36: volume | L36: developmental stage | M36: size compared to tooth before | N36: estimated age | O36: tooth height | P36: crown height | Q36: volume | R36: developmental stage | S36: size compared to tooth before | T36: estimated age | W36: tooth height | X36: crown height | Y36: volume | Z36: developmental stage | AA36: size compared to tooth befoe | AC36: tooth height | AD36: crown height | AE36: volume | AF36: developmental stage | AG36: size compared to tooth before | AI36: tooth height | AJ36: crown height | AK36: volume | AL36: developmental stage | AM36: size compared to tooth before | AP36: 1. alveolus | AQ36: ='Tooth measurements raw data'!$G$128 -> 5.16 | AR36: ='Tooth measurements raw data'!K128 -> 2.1428 | AS36: ='Tooth measurements raw data'!$H$128 -> 2.3972342 | AT36: 8 | AW36: ='Tooth measurements raw data'!$G$129 -> 1.48 | AX36: ='Tooth measurements raw data'!K129 -> 0.6628 | AY36: ='Tooth measurements raw data'!$H$129 -> 0.228323249 | AZ36: 4 | BA36: =AW36/AQ36 -> 0.2872084915
B37: 1. alveolus | C37: ='Tooth measurements raw data'!G46 -> 9.39 | D37: ='Tooth measurements raw data'!K46 -> 2.12 | E37: 14.4568 | F37: 5 | I37: ='Tooth measurements raw data'!G47 -> 3.17 | K37: 1.49541 | L37: 1 | M37: =I37/C37 -> 0.3374167776 | V37: 1. alveolus | AP37: 2. alveolus | AQ37: ='Tooth measurements raw data'!$G$130 -> 2.17 | AR37: ='Tooth measurements raw data'!K130 -> 1.6228 | AS37: ='Tooth measurements raw data'!$H$130 -> 0.68087539 | AT37: 6 | AV37: 0.01333 | AW37: ='Tooth measurements raw data'!$G$131 -> 2.07 | AX37: ='Tooth measurements raw data'!K131 -> 0.8228 | AY37: ='Tooth measurements raw data'!$H$131 -> 0.46800186 | AZ37: 4 | BA37: 0.9539764359
B38: 2. alveolus | C38: ='Tooth measurements raw data'!G48 -> 8.13 | D38: ='Tooth measurements raw data'!K48 -> 2.39 | E38: 9.52145 | F38: 9 | H38: 11.25 | I38: ='Tooth measurements raw data'!G49 -> 1.72 | J38: ='Tooth measurements raw data'!K49 -> 0.43 | K38: 0.364361 | L38: 4 | M38: 0.211319594 | N38: 10.2 | V38: 2. alveolus | W38: ='Tooth measurements raw data'!G201 -> 32.575 | X38: ='Tooth measurements raw data'!K201 -> 4.625 | Y38: ='Tooth measurements raw data'!H201 -> 417.8237788 | Z38: 3 | AC38: ='Tooth measurements raw data'!$G$202 -> 1.935 | AD38: ='Tooth measurements raw data'!K202 -> 1.175 | AE38: ='Tooth measurements raw data'!$H$202 -> 4.6723842 | AF38: 2 | AG38: =AC38/W38 -> 0.05940138143 | AP38: 3. alveolus | AQ38: ='Tooth measurements raw data'!$G$132 -> 4.44 | AR38: ='Tooth measurements raw data'!K132 -> 1.8428 | AS38: ='Tooth measurements raw data'!$H$132 -> 1.28811669 | AT38: 6 | AW38: ='Tooth measurements raw data'!$G$133 -> 1.09 | AX38: ='Tooth measurements raw data'!K133 -> 0.5428 | AY38: ='Tooth measurements raw data'!$H$133 -> 0.091738727 | AZ38: 4 | BA38: 0.2459710093
B39: 3. alveolus | C39: ='Tooth measurements raw data'!G50 -> 8.52 | D39: ='Tooth measurements raw data'!K50 -> 3.16 | E39: 7.5026 | F39: 7 | I39: ='Tooth measurements raw data'!G51 -> 4.52 | J39: ='Tooth measurements raw data'!K51 -> 1.48 | K39: 2.38015 | L39: 4 | M39: 0.5303786322 | O39: ='Tooth measurements raw data'!G52 -> 0.52 | P39: ='Tooth measurements raw data'!K52 -> 0.1075 | Q39: 0.0383343 | R39: 1 | S39: =O39/I39 -> 0.1145545102 | V39: 3. alveolus | AP39: 4. alveolus | AQ39: ='Tooth measurements raw data'!$G$134 -> 3.75 | AR39: ='Tooth measurements raw data'!K134 -> 1.2328 | AS39: ='Tooth measurements raw data'!$H$134 -> 1.12766987 | AT39: 4 | AV39: 0.01750 | AW39: ='Tooth measurements raw data'!$G$135 -> 0.36 | AX39: ='Tooth measurements raw data'!K135 -> 0.1928 | AY39: ='Tooth measurements raw data'!$H$135 -> 0.0110035297 | AZ39: 2 | BA39: 0.09667448305 | BB39: 0.0120
B40: 4. alveolus | C40: ='Tooth measurements raw data'!G53 -> 11.13 | D40: ='Tooth measurements raw data'!K53 -> 2.66 | E40: 20.1347 | F40: 7 | H40: 20.42857143 | I40: ='Tooth measurements raw data'!G54 -> 2.27 | J40: ='Tooth measurements raw data'!K54 -> 0.77 | K40: 0.850948 | L40: 3 | M40: 0.2037744327 | V40: 4. alveolus | W40: ='Tooth measurements raw data'!G204 -> 43.715 | X40: ='Tooth measurements raw data'!K204 -> 12.865 | Y40: ='Tooth measurements raw data'!H204 -> 966.1135499 | Z40: 11 | AC40: ='Tooth measurements raw data'!$G$205 -> 28.655 | AD40: ='Tooth measurements raw data'!K205 -> 4.565 | AE40: ='Tooth measurements raw data'!$H$205 -> 469.993874 | AF40: 4 | AG40: =AC40/W40 -> 0.6554958252 | AI40: ='Tooth measurements raw data'!$G$207 -> 3.545 | AJ40: ='Tooth measurements raw data'!K207 -> 1.595 | AK40: ='Tooth measurements raw data'!$H$207 -> 2.08639919 | AL40: 2 | AM40: =AI40/AC40 -> 0.1237131391 | AP40: 5. alveolus | AQ40: ='Tooth measurements raw data'!$G$136 -> 4.18 | AR40: ='Tooth measurements raw data'!K136 -> 1.5728 | AS40: ='Tooth measurements raw data'!$H$136 -> 1.10822174 | AT40: 5 | AW40: ='Tooth measurements raw data'!$G$137 -> 0.63 | AX40: ='Tooth measurements raw data'!K137 -> 0.3228 | AY40: ='Tooth measurements raw data'!$H$137 -> 0.045037704 | AZ40: 3 | BA40: 0.1512862198
B41: 5. alveolus | C41: ='Tooth measurements raw data'!G55 -> 7.57 | D41: ='Tooth measurements raw data'!K55 -> 2.17 | E41: 7.55344 | F41: 6 | I41: ='Tooth measurements raw data'!G56 -> 2.07 | J41: ='Tooth measurements raw data'!K56 -> 0.95 | K41: 0.607608 | L41: 3 | M41: 0.2732077965 | V41: 5. alveolus | W41: ='Tooth measurements raw data'!G208 -> 30.015 | X41: ='Tooth measurements raw data'!K208 -> 7.425 | Y41: ='Tooth measurements raw data'!H208 -> 461.985317 | Z41: 7 | AC41: ='Tooth measurements raw data'!$G$209 -> 5.805 | AD41: ='Tooth measurements raw data'!K209 -> 2.505 | AE41: ='Tooth measurements raw data'!$H$209 -> 11.4481812 | AF41: 2 | AG41: 0.1934032984 | AP41: 6. alveolus | AQ41: ='Tooth measurements raw data'!$G$138 -> 3.24 | AR41: ='Tooth measurements raw data'!K138 -> 1.9228 | AS41: ='Tooth measurements raw data'!$H$138 -> 0.77968325 | AT41: 6 | AW41: ='Tooth measurements raw data'!$G$139 -> 0.95 | AX41: ='Tooth measurements raw data'!K139 -> 0.5628 | AY41: ='Tooth measurements raw data'!$H$139 -> 0.127436228 | AZ41: 3 | BA41: 0.2938201554
B42: 6. alveolus | C42: ='Tooth measurements raw data'!G57 -> 6.71 | D42: ='Tooth measurements raw data'!K57 -> 1.92 | E42: 4.50447 | F42: 5 | I42: ='Tooth measurements raw data'!G58 -> 0.88 | J42: ='Tooth measurements raw data'!K58 -> 0.39 | K42: 0.123337 | L42: 2 | M42: 0.1308237048 | V42: 6. alveolus | W42: ='Tooth measurements raw data'!G211 -> 24.315 | X42: ='Tooth measurements raw data'!K211 -> 5.565 | Y42: ='Tooth measurements raw data'!H211 -> 267.761678 | Z42: 5 | AC42: ='Tooth measurements raw data'!$G$212 -> 6.225 | AD42: ='Tooth measurements raw data'!K212 -> 3.115 | AE42: ='Tooth measurements raw data'!$H$212 -> 11.6967097 | AF42: 3 | AG42: 0.2560148057 | AP42: 7. alveolus | AQ42: ='Tooth measurements raw data'!$G$140 -> 3.19 | AR42: ='Tooth measurements raw data'!K140 -> 1.0828 | AS42: ='Tooth measurements raw data'!$H$140 -> 0.56130796 | AT42: 4 | AW42: ='Tooth measurements raw data'!$G$141 -> 0.17 | AX42: ='Tooth measurements raw data'!K141 -> 0.1728 | AY42: ='Tooth measurements raw data'!$H$141 -> 0.00220710342 | AZ42: 2 | BA42: 0.05412177399
B43: 7. alveolus | C43: ='Tooth measurements raw data'!G59 -> 5.23 | D43: ='Tooth measurements raw data'!K59 -> 1.77 | E43: 3.99927 | F43: 5 | I43: ='Tooth measurements raw data'!G60 -> 2.21 | J43: ='Tooth measurements raw data'!K60 -> 1.05 | K43: 0.782983 | L43: 3 | M43: 0.4222859876 | V43: 7. alveolus | W43: ='Tooth measurements raw data'!G213 -> 21.195 | X43: ='Tooth measurements raw data'!K213 -> 4.385 | Y43: ='Tooth measurements raw data'!H213 -> 168.415051 | Z43: 4 | AC43: ='Tooth measurements raw data'!$G$214 -> 2.015 | AD43: ='Tooth measurements raw data'!K214 -> 1.135 | AE43: ='Tooth measurements raw data'!$H$214 -> 1.19390309 | AF43: 1 | AG43: 0.09506959188 | AP43: 8. alveolus | AQ43: ='Tooth measurements raw data'!$G$142 -> 3.04 | AR43: ='Tooth measurements raw data'!K142 -> 1.7028 | AS43: ='Tooth measurements raw data'!$H$142 -> 0.50373136 | AT43: 6 | AW43: ='Tooth measurements raw data'!$G$143 -> 0.95 | AX43: ='Tooth measurements raw data'!K143 -> 0.4528 | AY43: ='Tooth measurements raw data'!$H$143 -> 0.068132323 | AZ43: 3 | BA43: 0.313132641
B44: 8. alveolus | C44: ='Tooth measurements raw data'!G61 -> 6.02 | D44: ='Tooth measurements raw data'!K61 -> 2.28 | E44: 4.41039 | F44: 7 | I44: ='Tooth measurements raw data'!G62 -> 1.15 | J44: ='Tooth measurements raw data'!K62 -> 0.60 | K44: 0.238247 | L44: 3 | M44: 0.1906938097 | V44: 8. alveolus | W44: ='Tooth measurements raw data'!G215 -> 20.045 | X44: ='Tooth measurements raw data'!K215 -> 4.215 | Y44: ='Tooth measurements raw data'!H215 -> 184.648035 | Z44: 4 | AC44: ='Tooth measurements raw data'!$G$216 -> 3.545 | AD44: ='Tooth measurements raw data'!K216 -> 1.875 | AE44: ='Tooth measurements raw data'!$H$216 -> 5.4770563 | AF44: 2 | AG44: 0.1768520828 | AP44: 9. alveolus | AQ44: ='Tooth measurements raw data'!$G$144 -> 3.10 | AR44: ='Tooth measurements raw data'!K144 -> 1.1128 | AS44: ='Tooth measurements raw data'!$H$144 -> 0.47731009 | AT44: 4 | AW44: ='Tooth measurements raw data'!$G$145 -> 0.16 | AX44: ='Tooth measurements raw data'!K145 -> 0.1628 | AY44: ='Tooth measurements raw data'!$H$145 -> 0.0022710774 | AZ44: 2 | BA44: 0.05246873791
B45: 9. alveolus | C45: ='Tooth measurements raw data'!G63 -> 4.50 | D45: ='Tooth measurements raw data'!K63 -> 0.96 | E45: 2.81415 | F45: 4 | I45: ='Tooth measurements raw data'!G64 -> 0.29 | J45: ='Tooth measurements raw data'!K64 -> 0.17 | K45: 0.0177782 | L45: 2 | M45: 0.06392440245 | V45: 9. alveolus | W45: ='Tooth measurements raw data'!G217 -> 18.265 | X45: ='Tooth measurements raw data'!K217 -> 5.565 | Y45: ='Tooth measurements raw data'!H217 -> 164.824382 | Z45: 5 | AC45: ='Tooth measurements raw data'!$G$218 -> 7.385 | AD45: ='Tooth measurements raw data'!K218 -> 3.365 | AE45: ='Tooth measurements raw data'!$H$218 -> 25.102082 | AF45: 3 | AG45: 0.4043252122 | AI45: ='Tooth measurements raw data'!$G$219 -> 0.585 | AJ45: ='Tooth measurements raw data'!K219 -> 0.425 | AK45: ='Tooth measurements raw data'!$H$219 -> 0.177257697 | AL45: 1 | AM45: =AI45/AC45 -> 0.07921462424 | AP45: 10. alveolus | AQ45: ='Tooth measurements raw data'!$G$146 -> 3.18 | AR45: ='Tooth measurements raw data'!K146 -> 1.8128 | AS45: ='Tooth measurements raw data'!$H$146 -> 0.57957255 | AT45: 6 | AW45: ='Tooth measurements raw data'!$G$147 -> 0.72 | AX45: ='Tooth measurements raw data'!K147 -> 0.4628 | AY45: ='Tooth measurements raw data'!$H$147 -> 0.065413427 | AZ45: 3 | BA45: 0.2270956391
B46: 10. alveolus | C46: ='Tooth measurements raw data'!G65 -> 5.82 | D46: ='Tooth measurements raw data'!K65 -> 2.31 | E46: 4.55901 | F46: 7 | I46: ='Tooth measurements raw data'!G66 -> 1.40 | J46: ='Tooth measurements raw data'!K66 -> 0.67 | K46: 0.348435 | L46: 3 | M46: 0.2402234637 | V46: 10. alveolus | W46: ='Tooth measurements raw data'!G220 -> 21.315 | X46: ='Tooth measurements raw data'!K220 -> 4.555 | Y46: ='Tooth measurements raw data'!H220 -> 183.917174 | Z46: 4 | AC46: ='Tooth measurements raw data'!$G$221 -> 2.505 | AD46: ='Tooth measurements raw data'!K221 -> 1.545 | AE46: ='Tooth measurements raw data'!$H$221 -> 2.9533754 | AF46: 2 | AG46: 0.1175228712 | AP46: 11. alveolus | AQ46: ='Tooth measurements raw data'!$G$148 -> 3.88 | AR46: ='Tooth measurements raw data'!K148 -> 1.4928 | AS46: ='Tooth measurements raw data'!$H$148 -> 0.94569581 | AT46: 7 | AW46: ='Tooth measurements raw data'!$G$149 -> 0.45 | AX46: ='Tooth measurements raw data'!K149 -> 0.2828 | AY46: ='Tooth measurements raw data'!$H$149 -> 0.027061006 | AZ46: 2 | BA46: 0.1166168744
B47: 11. alveolus | C47: ='Tooth measurements raw data'!G67 -> 5.57 | D47: ='Tooth measurements raw data'!K67 -> 1.67 | E47: 4.16502 | F47: 5 | H47: 48.2875 | I47: ='Tooth measurements raw data'!G68 -> 0.76 | J47: ='Tooth measurements raw data'!K68 -> 0.33 | K47: 0.0602793 | L47: 2 | M47: 0.1360574764 | N47: 15.69565217 | V47: 11. alveolus | W47: ='Tooth measurements raw data'!G222 -> 25.985 | X47: ='Tooth measurements raw data'!K222 -> 5.025 | Y47: ='Tooth measurements raw data'!H222 -> 296.4443108 | Z47: 5 | AP47: 12. alveolus | AQ47: ='Tooth measurements raw data'!$G$150 -> 3.56 | AR47: ='Tooth measurements raw data'!K150 -> 2.1328 | AS47: ='Tooth measurements raw data'!$H$150 -> 1.21445063 | AT47: 6 | AV47: 0.01440 | AW47: ='Tooth measurements raw data'!$G$151 -> 1.61 | AX47: ='Tooth measurements raw data'!K151 -> 0.9228 | AY47: ='Tooth measurements raw data'!$H$151 -> 0.35022571 | AZ47: 4 | BA47: 0.4526776692 | BB47: 0.0130
B48: 12. alveolus | C48: ='Tooth measurements raw data'!G69 -> 8.56 | D48: ='Tooth measurements raw data'!K69 -> 2.80 | E48: 13.8068 | F48: 7 | H48: 33.38141923 | I48: ='Tooth measurements raw data'!G70 -> 2.59 | J48: ='Tooth measurements raw data'!K70 -> 1.19 | K48: 1.45319 | L48: 2 | M48: 0.3023663453 | V48: 12. alveolus | W48: ='Tooth measurements raw data'!G223 -> 36.585 | X48: ='Tooth measurements raw data'!K223 -> 9.475 | Y48: ='Tooth measurements raw data'!H223 -> 931.4485292 | Z48: 8 | AC48: ='Tooth measurements raw data'!$G$224 -> 5.355 | AD48: ='Tooth measurements raw data'!K224 -> 2.345 | AE48: ='Tooth measurements raw data'!$H$224 -> 16.3242622 | AF48: 2 | AG48: =AC48/W48 -> 0.1463714637 | AP48: 13. alveolus | AQ48: ='Tooth measurements raw data'!$G$152 -> 5.39 | AR48: ='Tooth measurements raw data'!K152 -> 1.8128 | AS48: ='Tooth measurements raw data'!$H$152 -> 2.37506719 | AT48: 5 | AW48: ='Tooth measurements raw data'!$G$153 -> 0.80 | AX48: ='Tooth measurements raw data'!K153 -> 0.4528 | AY48: ='Tooth measurements raw data'!$H$153 -> 0.068324242 | AZ48: 2 | BA48: 0.1488651535
B49: 13. alveolus | C49: ='Tooth measurements raw data'!G71 -> 7.56 | D49: ='Tooth measurements raw data'!K71 -> 2.12 | E49: 9.28959 | F49: 5 | I49: ='Tooth measurements raw data'!G72 -> 0.57 | J49: ='Tooth measurements raw data'!K72 -> 0.20 | K49: 0.0696314 | L49: 3 | M49: 0.07509096924 | V49: 13. alveolus | W49: ='Tooth measurements raw data'!G225 -> 45.025 | X49: ='Tooth measurements raw data'!K225 -> 11.975 | Y49: ='Tooth measurements raw data'!H225 -> 2305.19869 | Z49: 10 | AC49: ='Tooth measurements raw data'!$G$226 -> 13.045 | AD49: ='Tooth measurements raw data'!K226 -> 3.925 | AE49: ='Tooth measurements raw data'!$H$226 -> 130.832275 | AF49: 4 | AG49: =AC49/W49 -> 0.2897279289 | AP49: 14. alveolus | AQ49: ='Tooth measurements raw data'!$G$154 -> 4.12 | AR49: ='Tooth measurements raw data'!K154 -> 2.2828 | AS49: ='Tooth measurements raw data'!$H$154 -> 1.76830563 | AT49: 6 | AW49: ='Tooth measurements raw data'!$G$155 -> 1.69 | AX49: ='Tooth measurements raw data'!K155 -> 0.8328 | AY49: ='Tooth measurements raw data'!$H$155 -> 0.37901402 | AZ49: 3 | BA49: 0.4105947414
B50: 14. alveolus | C50: ='Tooth measurements raw data'!G73 -> 8.65 | D50: ='Tooth measurements raw data'!K73 -> 2.66 | E50: 17.8504 | F50: 6 | I50: ='Tooth measurements raw data'!G74 -> 1.62 | J50: ='Tooth measurements raw data'!K74 -> 0.82 | K50: 0.749649 | L50: 3 | M50: 0.1870482798 | V50: 14. alveolus | W50: ='Tooth measurements raw data'!G227 -> 38.215 | X50: ='Tooth measurements raw data'!K227 -> 7.705 | Y50: ='Tooth measurements raw data'!H227 -> 1332.20644 | Z50: 7 | AP50: 15. alveolus | AQ50: ='Tooth measurements raw data'!$G$156 -> 4.25 | AR50: ='Tooth measurements raw data'!K156 -> 1.5728 | AS50: ='Tooth measurements raw data'!$H$156 -> 1.64803445 | AT50: 5 | AW50: ='Tooth measurements raw data'!$G$157 -> 0.30 | AX50: ='Tooth measurements raw data'!K157 -> 0.2328 | AY50: ='Tooth measurements raw data'!$H$157 -> 0.0135624907 | AZ50: 1 | BA50: 0.07120015049
B51: 15. alveolus | C51: ='Tooth measurements raw data'!G75 -> 7.25 | D51: ='Tooth measurements raw data'!K75 -> 3.06 | E51: 11.3533 | F51: 7 | I51: ='Tooth measurements raw data'!G76 -> 2.63 | J51: ='Tooth measurements raw data'!K76 -> 1.37 | K51: 2.51442 | L51: 4 | M51: 0.3625388065 | V51: 15. alveolus | W51: ='Tooth measurements raw data'!G228 -> 28.035 | X51: ='Tooth measurements raw data'!K228 -> 6.975 | Y51: ='Tooth measurements raw data'!H228 -> 691.27449 | Z51: 6 | AC51: ='Tooth measurements raw data'!$G$229 -> 8.865 | AD51: ='Tooth measurements raw data'!K229 -> 3.475 | AE51: ='Tooth measurements raw data'!$H$229 -> 91.083332 | AF51: 2 | AG51: =AC51/W51 -> 0.316211878 | AP51: 16. alveolus | AQ51: ='Tooth measurements raw data'!$G$158 -> 3.71 | AR51: ='Tooth measurements raw data'!K158 -> 2.0428 | AS51: ='Tooth measurements raw data'!$H$158 -> 1.48784348 | AT51: 4 | AW51: ='Tooth measurements raw data'!$G$159 -> 0.84 | AX51: ='Tooth measurements raw data'!K159 -> 0.5328 | AY51: ='Tooth measurements raw data'!$H$159 -> 0.16985099 | AZ51: 2 | BA51: 0.2269984917
B52: 16. alveolus | C52: ='Tooth measurements raw data'!G77 -> 5.92 | D52: ='Tooth measurements raw data'!K77 -> 2.16 | E52: 9.66071 | F52: 5 | I52: ='Tooth measurements raw data'!G78 -> 0.62 | J52: ='Tooth measurements raw data'!K78 -> 0.40 | K52: 0.120188 | L52: 1 | M52: 0.1043514998 | V52: 16. alveolus | W52: ='Tooth measurements raw data'!G230 -> 26.125 | X52: ='Tooth measurements raw data'!K230 -> 5.265 | Y52: ='Tooth measurements raw data'!H230 -> 569.9745697 | Z52: 4 | AC52: ='Tooth measurements raw data'!$G$231 -> 1.485 | AD52: ='Tooth measurements raw data'!K231 -> 0.985 | AE52: ='Tooth measurements raw data'!$H$231 -> 2.6565666 | AF52: 1 | AG52: =AC52/W52 -> 0.05684210526 | AP52: 17. alveolus | AQ52: ='Tooth measurements raw data'!$G$160 -> 3.34 | AR52: ='Tooth measurements raw data'!K160 -> 1.4128 | AS52: ='Tooth measurements raw data'!$H$160 -> 1.22740537 | AT52: 5 | AW52: ='Tooth measurements raw data'!$G$161 -> 0.15 | AX52: ='Tooth measurements raw data'!K161 -> 0.1528 | AY52: ='Tooth measurements raw data'!$H$161 -> 0.0048620247 | AZ52: 1 | BA52: 0.04571018308
B53: 17. alveolus | C53: ='Tooth measurements raw data'!G79 -> 6.47 | D53: ='Tooth measurements raw data'!K79 -> 2.76 | E53: 11.2189 | F53: 5 | I53: ='Tooth measurements raw data'!G80 -> 1.19 | J53: ='Tooth measurements raw data'!K80 -> 0.73 | K53: 0.539644 | L53: 2 | M53: 0.1836103595 | V53: 17. alveolus | AP53: 18. alveolus | AQ53: ='Tooth measurements raw data'!$G$162 -> 3.38 | AR53: ='Tooth measurements raw data'!K162 -> 1.8628 | AS53: ='Tooth measurements raw data'!$H$162 -> 1.19980059 | AT53: 5 | AV53: 0.0145 | AW53: ='Tooth measurements raw data'!$G$163 -> 0.68 | AX53: ='Tooth measurements raw data'!K163 -> 0.4328 | AY53: ='Tooth measurements raw data'!$H$163 -> 0.110387154 | AZ53: 2 | BA53: 0.2018446258
B54: 18. alveolus | C54: ='Tooth measurements raw data'!G81 -> 6.12 | D54: ='Tooth measurements raw data'!K81 -> 2.49 | E54: 7.74955 | F54: 6 | H54: 32.11525974 | I54: ='Tooth measurements raw data'!G82 -> 2.71 | J54: ='Tooth measurements raw data'!K82 -> 1.33 | K54: 2.29691 | L54: 3 | M54: 0.4425827544 | V54: 18. alveolus | AP54: 19. alveolus | AQ54: ='Tooth measurements raw data'!$G$164 -> 3.48 | AR54: ='Tooth measurements raw data'!K164 -> 1.6428 | AS54: ='Tooth measurements raw data'!$H$164 -> 1.01853019 | AT54: 5 | AV54: 0.0125 | AW54: ='Tooth measurements raw data'!$G$165 -> 0.11 | AX54: ='Tooth measurements raw data'!K165 -> 0.1128 | AY54: ='Tooth measurements raw data'!$H$165 -> 0.00281485655 | AZ54: 1 | BA54: 0.03238773401
B55: 19. alveolus | C55: ='Tooth measurements raw data'!G83 -> 6.05 | D55: ='Tooth measurements raw data'!K83 -> 2.59 | E55: 8.31012 | F55: 9 | H55: 48.21605339 | I55: ='Tooth measurements raw data'!G84 -> 0.91 | J55: ='Tooth measurements raw data'!K84 -> 0.52 | K55: 0.336768 | L55: 1 | M55: 0.1500620091 | N55: 33.70833333 | V55: 19. alveolus | AP55: 20. alveolus | AQ55: ='Tooth measurements raw data'!$G$166 -> 2.83 | AR55: ='Tooth measurements raw data'!K166 -> 2.8328 | AS55: ='Tooth measurements raw data'!$H$166 -> 0.65960404 | AT55: 8 | AW55: ='Tooth measurements raw data'!$G$167 -> 0.42 | AX55: ='Tooth measurements raw data'!K167 -> 0.3028 | AY55: ='Tooth measurements raw data'!$H$167 -> 0.043278417 | AZ55: 1 | BA55: 0.1492516238
B56: 20. alveolus | C56: ='Tooth measurements raw data'!G85 -> 5.44 | D56: ='Tooth measurements raw data'!K85 -> 2.52 | E56: 4.81114 | F56: 8 | I56: ='Tooth measurements raw data'!G86 -> 1.63 | J56: ='Tooth measurements raw data'!K86 -> 1.03 | K56: 1.07392 | L56: 2 | M56: 0.2993103448 | V56: 20. alveolus | AZ56: average | BA56: =(BA36+BA37+BA38+BA39+BA40+BA41+BA42+BA43+BA44+BA45+BA46+BA47+BA48+BA49+BA50+BA51+BA52+BA53+BA54+BA55)/20 -> 0.2265951417
B57: average | C57: =AVERAGE(C6:C56) -> 7.74 | D57: =AVERAGE(D6:D56) -> 2.53 | E57: =AVERAGE(E6:E56) -> 11.2194425 | I57: =AVERAGE(I6:I56) -> 2.00 | J57: =AVERAGE(J6:J56) -> 0.89 | K57: =AVERAGE(K6:K56) -> 1.01 | L57: average | M57: =(M37+M38+M39+M40+M41+M42+M43+M44+M45+M46+M47+M48+M49+M50+M51+M52+M53+M54+M55+M56)/20 -> 0.2423533723 | X57: =AVERAGE(X37:X52) -> 6.83 | AD57: =AVERAGE(AD37:AD52) -> 2.500833333 | AF57: average | AG57: =(AG38+AG40+AG41+AG42+AG43+AG44+AG45+AG46+AG48+AG49+AG51+AG52)/12 -> 0.2306032037 | AM57: =(AM40+AM45)/2 -> 0.1014638817 | AP57: average | AQ57: =AVERAGE(AQ6:AQ55) -> 3.87865366 | AR57: =AVERAGE(AR6:AR55) -> 1.787678049 | AS57: =AVERAGE(AS6:AS55) -> 1.370665018
B58: averages with enamel | C58: 7.841 | D58: 2.6005 | E58: 11.2194425 | G58: 2.33 | J58: 0.7569736842 | V58: average | W58: =AVERAGE(W6:W52) -> 31.2096875 | X58: =AVERAGE(X6:X52) -> 7.051666667 | Y58: =AVERAGE(Y6:Y52) -> 829.5160742 | AD58: =X57/AD57 -> 2.731089637 | AP58: averages with enamel | AQ58: 3.905853659 | AR58: 1.814878049 | AS58: 1.368668557
J59: 3.072762037 | V59: averages with enamel | W59: 31.0709375 | X59: 6.965625 | Y59: 821.6883054
I69: Not used in this file | AN69: Not used in this file
BR72: Not used in this file
Q74: Not relaible VEIW
E75: Thinn section sampled | K75: All teeth in sampled positions | AG75: Large Alligator
E76: tooth height | F76: TFT (based on transect length) | G76: CAH | H76: TFT (based on CAH) | I76: Tooth growth rate | J76: Tooth growth rate (based on crown height ,mean VEIW of quadrant) | K76: tooth height | L76: TFT (based on transect length) | M76: CAH | N76: age by crown height (with enamel) | O76: average incremental line width (mm) | P76: min increment width | Q76: max incement width | R76: SD VEIW | S76: SD TFT | AJ76: tooth height | AK76: TFT (based on transect length) | AL76: CAH | AM76: TFT (based on CAH) | AN76: Tooth growth rate | AO76: Tooth growth rate (based on crown height , mean VEIW of quadrant) | AP76: tooth height | AQ76: TFT (based on transect length) | AR76: CAH | AS76: age by crown height | AT76: average incremental line width (mm) | AU76: min increment width | AV76: max incement width | AW76: SD VEIW | AX76: SD TFT
B77: Pmx | C77: 1. alveolus | E77: =C6 -> 5.71 | F77: 30.558 | G77: =D6 -> 2.45 | H77: =M77/O77 -> 97.900 | I77: =E6/H77 -> 0.023 | J77: =E6/C116 -> 0.014 | K77: =E77 -> 5.71 | L77: 30.55833333 | M77: =G77 -> 2.45 | N77: 105.4166667 | O77: 0.0250 | P77: 0.014 | Q77: 0.039 | R77: 0.0055 | S77: 11.6547619 | T77: Pmx | U77: 1. alveolus | AG77: Pmx | AH77: 1. alveolus | AJ77: =W6 -> 27.255 | AK77: 76.565 | AL77: =X6 -> 5.655 | AM77: =AL77/AT77 -> 408.795 | AN77: =Y6/AM77 -> 0.710 | AO77: =Y6/AQ77 -> 0.927 | AP77: =AJ77 -> 27.255 | AQ77: =X6/0.018070182 -> 312.9464883 | AR77: =AL77 -> 5.655 | AS77: 421.446 | AT77: 0.0138 | AU77: 0.006 | AV77: 0.028 | AW77: =(0.004+0.004+0.004+0.0025+0.004+0.004)/6 -> 0.0038 | AX77: 141.9377381 | AY77: Pmx | AZ77: 1. alveolus
C78: 3. alveolus | E78: =C8 -> 9.03 | F78: 33.822 | G78: =D8 -> 2.95 | H78: 189.550 | I78: =E8/H78 -> 0.064 | J78: =E8/E116 -> 0.060 | K78: =E78 -> 9.03 | L78: 33.82198953 | M78: =G78 -> 2.95 | N78: 158.6387435 | O78: 0.0156 | P78: 0.008 | Q78: 0.039 | R78: 0.0052 | S78: 34.01324928 | U78: 3. alveolus | AH78: 3. alveolus | AJ78: =W8 -> 39.015 | AK78: 59.552 | AL78: =X8 -> 11.455 | AM78: 1041.364 | AN78: =Y8/AM78 -> 0.973 | AO78: =Y8/AQ78 -> 1.598 | AP78: 39.015 | AQ78: =X8/0.018070182 -> 633.9172455 | AR78: 11.455 | AS78: 1057.273 | AT78: 0.0110 | AU78: 0.006 | AV78: 0.023 | AW78: =(0.004+0.002+0.003)/3 -> 0.0030 | AX78: 399.8781265 | AZ78: 3. alveolus | BK78: Small Alligator
C79: 3 alveolus replacement | H79: 42.261 | I79: =K8/H79 -> 0.038 | J79: =K8/E117 -> 0.022 | K79: =I8 -> 3.02 | L79: 43.10738589 | M79: =J8 -> 1.04 | N79: 45.63651452 | O79: 0.0246 | P79: 0.014 | Q79: 0.035 | R79: 0.0051 | S79: 7.21781864 | U79: 3 alveolus replacement | AG79: Mx | AH79: 6. alveolus | AJ79: =W22 -> 31.685 | AK79: 34.362 | AL79: =X22 -> 8.825 | AM79: 756.429 | AN79: =Y22/AM79 -> 0.990 | AO79: =Y22/AQ79 -> 1.533 | AP79: 31.685 | AQ79: =X22/0.018070182 -> 488.3736091 | AR79: 8.825 | AS79: 771.429 | AT79: 0.0117 | AU79: 0.005 | AV79: 0.026 | AW79: =(0.003+0.002+0.003)/3 -> 0.0027 | AX79: 293.8920012 | AY79: Mx | AZ79: 6. alveolus | BN79: tooth height | BO79: TFT (based on transect length) | BP79: CAH | BQ79: TFT (based on CAH) | BR79: Tooth growth rate | BS79: Tooth growth rate (based on crown height , mean VEIW of quadrant) | BT79: tooth height | BU79: TFT (based on transect length) | BV79: CAH | BW79: age by crown height | BX79: average incremental line width (mm) | BY79: min increment width | BZ79: max incement width | CA79: SD VEIW | CB79: SD TFT
B80: Mx | C80: 6. alveolus | E80: =C22 -> 9.64 | F80: 24.087 | G80: =D22 -> 3.32 | H80: 288.478 | I80: =E22/H80 -> 0.057 | J80: =E22/M116 -> 0.072 | K80: =E80 -> 9.64 | L80: 24.08695652 | M80: =D22 -> 3.32 | N80: 295.6521739 | O80: 0.0115 | P80: 0.006 | Q80: 0.026 | R80: 0.0046 | S80: 82.08230689 | T80: Mx | U80: 6. alveolus | AH80: 6. alveolus replacement | AJ80: =AC22 -> 7.465 | AK80: 22.100 | AL80: =AD22 -> 2.055 | AM80: 205.500 | AN80: =AE22/AM80 -> 0.265 | AO80: =AE22/AQ80 -> 0.479 | AP80: 7.465 | AQ80: =AD22/0.018070182 -> 113.7232597 | AR80: 2.055 | AS80: 223.000 | AT80: 0.0100 | AU80: 0.006 | AV80: 0.014 | AW80: =(0.002) -> 0.0020 | AX80: 51.375 | AZ80: 6. alveolus replacement | BK80: Pmx | BL80: 3. alveolus | BN80: =AQ8 -> 4.92 | BO80: 27.208 | BP80: =AR8 -> 1.79 | BQ80: =AR8/AV8 -> 107.568 | BR80: =AS8/BQ80 -> 0.014 | BS80: =AS8/BU80 -> 0.011 | BT80: =BN80 -> 4.92 | BU80: =AR8/BO111 -> 131.625 | BV80: 1.82 | BW80: =BV80/BX80 -> 109.200 | BX80: 0.0167 | BY80: 0.007 | BZ80: 0.031 | CA80: =(0.004+0.004+0.003)/3 -> 0.0037 | CB80: 19.72724359
C81: 6. alveolus replacement | H81: 36.689 | I81: =K22/H81 -> 0.058 | J81: =K22/M117 -> 0.023 | K81: =I22 -> 3.13 | L81: 13.595 | M81: =J22 -> 1.36 | N81: 36.689 | O81: 0.0370 | P81: 0.021 | Q81: 0.058 | R81: 0.0110 | S81: 15.52234927 | U81: 6. alveolus replacement | AH81: 7. alveolus | AJ81: =W23 -> 28.485 | AK81: 56.905 | AL81: =X23 -> 6.225 | AM81: 346.904 | AN81: =Y23/AM81 -> 1.492 | AO81: =Y23/AQ81 -> 1.502 | AP81: 28.485 | AQ81: =X23/0.018070182 -> 344.4901662 | AR81: 6.225 | AS81: 356.656 | AT81: 0.0179 | AU81: 0.007 | AV81: 0.05 | AW81: =(0.005+0.002667+0.004+0.0035+0.005+0.005+0.006+0.01+0.004)/9 -> 0.0050 | AX81: 169.5636547 | AZ81: 7. alveolus | BK81: Mx | BL81: 6. alveolus | BN81: =AQ21 -> 4.04 | BO81: 29.402 | BP81: =AR21 -> 2.19 | BQ81: =AR21/AV21 -> 173.116 | BR81: =AS21/BQ81 -> 0.008 | BS81: =AS21/BU81 -> 0.009 | BT81: 4.04 | BU81: =AR21/BO111 -> 160.992 | BV81: 2.22 | BW81: 175.263 | BX81: 0.0127 | BY81: 0.006 | BZ81: 0.023 | CA81: =(0.002+0.002+0.004)/3 -> 0.0027 | CB81: 20.33925149
C82: 7. alveolus | E82: =C23 -> 8.25 | F82: 39.200 | G82: =D23 -> 2.32 | H82: 231.750 | I82: =E23/H82 -> 0.040 | J82: =E23/N116 -> 0.058 | K82: =E82 -> 8.25 | L82: 39.2 | M82: =G82 -> 2.32 | N82: 240 | O82: 0.0100 | P82: 0.006 | Q82: 0.019 | R82: 0.0040 | S82: 66.21428571 | U82: 7. alveolus | AH82: 7. alveolus replacement | AJ82: =AC23 -> 3.005 | AK82: 29.166 | AL82: =AD23 -> 1.785 | AM82: 89.250 | AN82: =AE23/AM82 -> 0.058 | AO82: =AE23/AQ82 -> 0.053 | AP82: 3.005 | AQ82: =AD23/0.018070182 -> 98.78151753 | AR82: 1.785 | AS82: 98.000 | AT82: 0.0200 | AU82: 0.006 | AV82: 0.044 | AW82: =(0.008+0.002+0.006+0.006+0.005)/5 -> 0.0054 | AX82: 36.05871212 | AZ82: 7. alveolus replacement | BL82: 7. alveolus | BN82: =AQ22 -> 4.05 | BO82: 71.372 | BP82: =AR22 -> 2.06 | BQ82: =AR22/AV22 -> 134.530 | BR82: =AS22/BQ82 -> 0.010 | BS82: =AS22/BU82 -> 0.009 | BT82: 4.05 | BU82: =AR22/BO111 -> 151.448 | BV82: 2.09 | BW82: 136.304 | BX82: 0.0153 | BY82: 0.005 | BZ82: 0.031 | CA82: =(0.003+0.003+0.003)/3 -> 0.0030 | CB82: 28.22435897
C83: 12. alveolus | E83: =C28 -> 8.70 | F83: 30.852 | G83: =D28 -> 3.02 | H83: 274.318 | I83: =E28/H83 -> 0.076 | J83: =E28/S116 -> 0.100 | K83: =E83 -> 8.70 | L83: 30.85185185 | M83: =G83 -> 3.02 | N83: 287.037037 | O83: 0.0110 | P83: 0.005 | Q83: 0.02 | R83: =(0.002+0.002+0.005)/3 -> 0.0030 | S83: 56.94684945 | U83: 12. alveolus | AH83: 12. alveolus | AJ83: =W28 -> 31.695 | AK83: 16.639 | AL83: =X28 -> 7.765 | AM83: 228.382 | AN83: =Y28/AM83 -> 4.410 | AO83: =Y28/AQ83 -> 2.344 | AP83: 31.695 | AQ83: =X28/0.018070182 -> 429.7134362 | AR83: 7.765 | AS83: 233.529 | AT83: 0.0340 | AU83: 0.015 | AV83: 0.061 | AW83: =(0.036+0.012)/2 -> 0.0240 | AX83: 108.2630699 | AZ83: 12. alveolus | BL83: 12. alveolus | BN83: =AQ27 -> 4.56 | BO83: 26.250 | BP83: =AR27 -> 1.56 | BQ83: =AR27/AV27 -> 130.233 | BR83: =AS27/BQ83 -> 0.018 | BS83: =AS27/BU83 -> 0.021 | BT83: 4.56 | BU83: =AR27/BO111 -> 114.739 | BV83: 1.59 | BW83: 132.500 | BX83: 0.0120 | BY83: 0.007 | BZ83: 0.02 | CA83: =(0.003) -> 0.0030 | CB83: 13.63888889
C84: 13. alveolus | E84: =C29 -> 7.44 | F84: 22.157 | G84: =D29 -> 2.82 | H84: 208.704 | I84: =E29/H84 -> 0.066 | J84: =E29/T116 -> 0.070 | K84: =E84 -> 7.44 | L84: 22.15659341 | M84: =G84 -> 2.82 | N84: 215.1098901 | O84: 0.0135 | P84: 0.009 | Q84: 0.023 | R84: 0.0035 | S84: 42.67962073 | U84: 13. alveolus | AH84: 13. alveolus | AJ84: =W29 -> 26.395 | AK84: 87.656 | AL84: =X29 -> 6.415 | AM84: 342.133 | AN84: =Y29/AM84 -> 1.797 | AO84: =Y29/AQ84 -> 1.731 | AP84: 26.395 | AQ84: =X29/0.018070182 -> 355.0047255 | AR84: 6.415 | AS84: 351.467 | AT84: 0.0188 | AU84: 0.004 | AV84: 0.064 | AW84: =(0.008+0.005+0.005+0.003)/4 -> 0.0053 | AX84: 137.6430761 | AZ84: 13. alveolus | BL84: 12. alveolus replacement | BN84: =AW27 -> 0.36 | BO84: 27.489 | BP84: =AX27 -> 0.20 | BQ84: =AX27/BB27 -> 17.635 | BR84: =AY28/BQ84 -> 0.006 | BS84: =AY28/BU84 -> 0.008 | BT84: 0.36 | BU84: =AX27/BO111 -> 14.889 | BV84: 0.23 | BW84: 20.000 | BX84: 0.0115 | BY84: 0.007 | BZ84: 0.02 | CA84: =(0.002+0.003)/2 -> 0.0025 | CB84: 10.01136364
C85: 13 alveolus replacement | E85: =I29 -> 2.07 | F85: 21.445 | G85: ='Tooth measurements raw data'!K41 -> 1.11 | H85: 72.228 | I85: =K29/H85 -> 0.021 | J85: =K29/T117 -> 0.020 | K85: =E85 -> 2.07 | L85: 21.44487179 | M85: =G85 -> 1.11 | N85: 78.14102564 | O85: 0.0153 | P85: 0.008 | Q85: 0.028 | R85: =(0.005+0.004+0.002)/3 -> 0.0037 | S85: 14.75089031 | U85: 13 alveolus replacement | AG85: Dent | AH85: 2. alveolus | AJ85: =W38 -> 32.575 | AK85: 31.006 | AL85: =X38 -> 4.625 | AM85: 210.227 | AN85: =Y38/AM85 -> 1.987 | AO85: =Y38/AQ85 -> 1.632 | AP85: 32.575 | AQ85: =X38/0.018070182 -> 255.946509 | AR85: 4.625 | AS85: 218.182 | AT85: 0.0220 | AU85: 0.012 | AV85: 0.038 | AW85: =(0.004+0.005+0.006)/3 -> 0.0050 | AX85: 61.62708139 | AY85: Dent | AZ85: 2. alveolus | BL85: 13. alveolus | BN85: =AQ28 -> 3.88 | BO85: 86.037 | BP85: =AR28 -> 2.05 | BQ85: =AR28/AV28 -> 175.954 | BR85: =AS28/BQ85 -> 0.010 | BS85: =AS28/BU85 -> 0.011 | BT85: 3.88 | BU85: =AR28/BO111 -> 150.714 | BV85: 2.08 | BW85: 178.286 | BX85: 0.0117 | BY85: 0.005 | BZ85: 0.027 | CA85: =(0.003+0.002+0.004)/3 -> 0.0030 | CB85: 33.17913106
B86: Dent | C86: 2. alveolus | E86: =C38 -> 8.13 | F86: 11.250 | G86: =D38 -> 2.39 | H86: 298.438 | I86: =E38/H86 -> 0.032 | J86: =E38/D148 -> 0.058 | K86: =E86 -> 8.13 | L86: 11.25 | M86: =G86 -> 2.39 | N86: 308.75 | O86: 0.0080 | P86: 0.005 | Q86: 0.01 | R86: 0.0020 | S86: 59.6875 | T86: Dent | U86: 2. alveolus | AH86: 2. alveolus replacement | AJ86: =AC38 -> 1.935 | AK86: 59.082 | AL86: =AD38 -> 1.175 | AM86: 90.385 | AN86: =AE38/AM86 -> 0.052 | AO86: =AE38/AQ86 -> 0.072 | AP86: 1.935 | AQ86: =AD38/0.018070182 -> 65.02424823 | AR86: 1.175 | AS86: 103.846 | AT86: 0.0130 | AU86: 0.005 | AV86: 0.023 | AW86: =(0.003+0.004+0.004)/3 -> 0.0037 | AX86: 36.54838217 | AZ86: 2. alveolus replacement | BK86: Dent | BL86: 2. alveolus | BN86: =AQ37 -> 2.17 | BO86: 64.285 | BP86: =AR37 -> 1.62 | BQ86: =AR37/AV37 -> 121.710 | BR86: =AS37/BQ86 -> 0.006 | BS86: =AS37/BU86 -> 0.006 | BT86: 2.17 | BU86: =AR37/BO111 -> 119.144 | BV86: 1.65 | BW86: 123.750 | BX86: 0.0133 | BY86: 0.007 | BZ86: 0.025 | CA86: =(0.002+0.003+0.004)/3 -> 0.0030 | CB86: 23.32813714
C87: 2. alveolus replacement | H87: 85.500 | I87: =K38/H87 -> 0.004 | J87: =K38/D149 -> 0.012 | K87: =I38 -> 1.72 | L87: 10.2 | M87: =J38 -> 0.43 | N87: 102 | O87: 0.0050 | P87: 0.003 | Q87: 0.007 | R87: 0.0020 | S87: 24.42857143 | U87: 2. alveolus replacement | AH87: 4. alveolus | AJ87: =W40 -> 43.715 | AK87: 32.550 | AL87: =X40 -> 12.865 | AM87: 796.947 | AN87: =Y40/AM87 -> 1.212 | AO87: =Y40/AQ87 -> 1.357 | AP87: 43.715 | AQ87: =X40/0.018070182 -> 711.9463434 | AR87: 12.865 | AS87: 807.788 | AT87: 0.0161 | AU87: 0.006 | AV87: 0.041 | AW87: =(0.003+0.003+0.004+0.002+0.007+0.005+0.006)/7 -> 0.0043 | AX87: 302.8729712 | AZ87: 4. alveolus | BL87: 4. alveolus | BN87: =AQ39 -> 3.75 | BO87: 65.833 | BP87: =AR39 -> 1.23 | BQ87: =AR39/AV39 -> 70.446 | BR87: =AS39/BQ87 -> 0.016 | BS87: =AS39/BU87 -> 0.012 | BT87: 3.75 | BU87: =AR39/BO111 -> 90.511 | BV87: 1.26 | BW87: 72.000 | BX87: 0.0175 | BY87: 0.005 | BZ87: 0.032 | CA87: =(0.005+0.004+0.0055)/3 -> 0.0048 | CB87: 39.14452919
C88: 4. alveolus | E88: =C40 -> 11.13 | F88: 20.429 | G88: =D40 -> 2.66 | H88: 189.821 | I88: =E40/H88 -> 0.106 | J88: =E40/F148 -> 0.110 | K88: =E88 -> 11.13 | L88: 20.42857143 | M88: =G88 -> 2.66 | N88: 195.7142857 | O88: 0.0140 | P88: 0.006 | Q88: 0.031 | R88: 0.0070 | S88: 63.27380952 | U88: 4. alveolus | AH88: 4. alveolus replacement | AJ88: =AC40 -> 28.655 | AK88: 38.616 | AL88: =AD40 -> 4.565 | AM88: 243.467 | AN88: =AE40/AM88 -> 1.930 | AO88: =AE40/AQ88 -> 1.860 | AP88: 28.655 | AQ88: =AD40/0.018070182 -> 252.6261219 | AR88: 4.565 | AS88: 252.800 | AT88: 0.0188 | AU88: 0.009 | AV88: 0.03 | AW88: =(0.004+0.005+0.004+0.003)/4 -> 0.0040 | AX88: 68.19557307 | AZ88: 4. alveolus replacement | BL88: 4. alveolus replacement | BN88: =AW39 -> 0.36 | BO88: 31.472 | BP88: =AX39 -> 0.19 | BQ88: =AX39/BB39 -> 16.067 | BR88: =BA39/BQ88 -> 0.006 | BS88: =BA39/BU88 -> 0.007 | BT88: 0.36 | BU88: =AX39/BO111 -> 14.155 | BV88: 0.22 | BW88: 18.333 | BX88: 0.0120 | BY88: 0.006 | BZ88: 0.018 | CA88: =(0.003+0.003)/2 -> 0.0030 | CB88: 29.58986014
C89: 11. alveolus | E89: =C47 -> 5.57 | F89: 48.288 | G89: =D47 -> 1.67 | H89: 145.000 | I89: =E47/H89 -> 0.029 | J89: =E47/M148 -> 0.036 | K89: =E89 -> 5.57 | L89: 48.2875 | M89: =G89 -> 1.67 | N89: 155.2083333 | O89: 0.0115 | P89: 0.007 | Q89: 0.02 | R89: =(0.002+0.003+0.003+0.003)/4 -> 0.0028 | S89: 29.45790913 | U89: 11. alveolus | AH89: 11. alveolus | AJ89: =W47 -> 25.985 | AK89: 43.345 | AL89: =X47 -> 5.025 | AM89: 296.650 | AN89: =Y47/AM89 -> 0.999 | AO89: =Y47/AQ89 -> 1.066 | AP89: 25.985 | AQ89: =X47/0.018070182 -> 278.0824233 | AR89: 5.025 | AS89: 306.982 | AT89: 0.0169 | AU89: 0.006 | AV89: 0.037 | AW89: =(0.005+0.007+0.003+0.005+0.004+0.003+0.004+0.003+0.00375+0.003+0.004+0.004+0.004+0.003+0.006+0.006+0.003+0.005+0.0035+0.004+0.003+0.003+0.004)/23 -> 0.0041 | AX89: 96.88863473 | AZ89: 11. alveolus | BL89: 12. alveolus | BN89: =AQ47 -> 3.56 | BO89: 112.955 | BP89: =AR47 -> 2.13 | BQ89: =AR47/AV47 -> 148.111 | BR89: =AS47/BQ89 -> 0.008 | BS89: =AS47/BU89 -> 0.008 | BT89: 3.56 | BU89: =AR47/BO111 -> 156.587 | BV89: 2.16 | BW89: 150.000 | BX89: 0.0144 | BY89: 0.006 | BZ89: 0.03 | CA89: =(0.003+0.0045+0.0035+0.004+0.0035)/5 -> 0.0037 | CB89: 68.64892704
C90: 11. alveolus replacement | H90: 14.243 | I90: =K47/H90 -> 0.004 | J90: =K47/M149 -> 0.003 | K90: =I47 -> 0.76 | L90: 15.69565217 | M90: =J47 -> 0.33 | N90: 17.83080365 | O90: 0.0230 | P90: 0.033 | Q90: 0.079 | R90: 0.0150 | S90: 3.502351977 | U90: 11. alveolus replacement | AH90: 12. alveolus | AJ90: =W48 -> 36.585 | AK90: 41.870 | AL90: =X48 -> 9.475 | AM90: 551.942 | AN90: =Y48/AM90 -> 1.688 | AO90: =Y48/AQ90 -> 1.776 | AP90: 36.585 | AQ90: =X48/0.018070182 -> 524.3444698 | AR90: 9.475 | AS90: 562.136 | AT90: 0.0172 | AU90: 0.009 | AV90: 0.039 | AW90: =(0.005+0.006)/2 -> 0.0055 | AX90: 262.8096666 | AZ90: 12. alveolus | BL90: 12. alveolus replacement | BN90: =AW47 -> 1.61 | BO90: 54.626 | BP90: =AX47 -> 0.92 | BQ90: =AX47/BB47 -> 70.985 | BR90: =BA47/BQ90 -> 0.006 | BS90: =BA47/BU90 -> 0.007 | BT90: 1.61 | BU90: =AX47/BO111 -> 67.751 | BV90: 0.95 | BW90: 73.077 | BX90: 0.0130 | BY90: 0.006 | BZ90: 0.024 | CA90: =(0.003+0.003+0.003+0.003)/4 -> 0.0030 | CB90: 18.15691115
C91: 12. alveolus | E91: =C48 -> 8.56 | F91: 33.381 | G91: =D48 -> 2.80 | H91: 195.174 | I91: =E48/H91 -> 0.071 | J91: =E48/N148 -> 0.072 | K91: =E91 -> 8.56 | L91: 33.38141923 | M91: =G91 -> 2.80 | N91: 205.0420168 | O91: 0.0143 | P91: 0.007 | Q91: 0.031 | R91: =(0.005+0.003+0.004)/3 -> 0.0040 | S91: 43.64786255 | U91: 12. alveolus | AH91: 15. alveolus | AJ91: =W51 -> 28.035 | AK91: 30.217 | AL91: =X51 -> 6.975 | AM91: 422.727 | AN91: =Y51/AM91 -> 1.635 | AO91: =Y51/AQ91 -> 1.791 | AP91: 28.035 | AQ91: =X51/0.018070182 -> 385.9950055 | AR91: 6.975 | AS91: 433.333 | AT91: 0.0165 | AU91: 0.007 | AV91: 0.028 | AW91: =(0.005+0.004+0.005)/3 -> 0.0047 | AX91: 159.0646853 | AZ91: 15. alveolus | BL91: 18. alveolus | BN91: =AQ53 -> 3.38 | BO91: 52.808 | BP91: =AR53 -> 1.86 | BQ91: =AR53/AV53 -> 128.469 | BR91: =AS53/BQ91 -> 0.009 | BS91: =AS53/BU91 -> 0.009 | BT91: 3.38 | BU91: =AR53/BO111 -> 136.764 | BV91: 1.89 | BW91: 130.345 | BX91: 0.0145 | BY91: 0.007 | BZ91: 0.025 | CA91: =(0.004+0.003+0.003+0.003)/4 -> 0.0033 | CB91: 24.98916965
C92: 18. alveolus | E92: =C54 -> 6.12 | F92: 32.115 | G92: =D54 -> 2.49 | H92: 171.552 | I92: =E54/H92 -> 0.045 | J92: =E54/T148 -> 0.045 | K92: =E92 -> 6.12 | L92: 32.11525974 | M92: =G92 -> 2.49 | N92: 187.0365711 | O92: 0.0145 | P92: 0.005 | Q92: 0.034 | R92: =(0.002+0.004+0.003+0.004+0.002+0.003+0.005+0.006+0.005+0.002+0.004+0.005)/12 -> 0.0038 | S92: 36.71343216 | U92: 18. alveolus | AH92: 15 alveolus replacement | AJ92: =AC51 -> 8.865 | AK92: 17.038 | AL92: =AD51 -> 3.475 | AM92: 133.654 | AN92: =AE51/AM92 -> 0.681 | AO92: =AE51/AQ92 -> 0.474 | AP92: 8.865 | AQ92: =AD51/0.018070182 -> 192.3057554 | AR92: 3.475 | AS92: 140.385 | AT92: 0.0260 | AU92: 0.014 | AV92: 0.047 | AW92: =(0.008) -> 0.0080 | AX92: 59.4017094 | AZ92: 15 alveolus replacement | BL92: 19. alveolus | BN92: =AQ54 -> 3.48 | BO92: 47.090 | BP92: =AR54 -> 1.64 | BQ92: =AR54/AV54 -> 131.424 | BR92: =AS54/BQ92 -> 0.008 | BS92: =AS54/BU92 -> 0.008 | BT92: 3.48 | BU92: =AR54/BO111 -> 120.612 | BV92: 1.67 | BW92: 133.600 | BX92: 0.0125 | BY92: 0.006 | BZ92: 0.022 | CA92: =(0.003+0.002+0.003+0.003)/4 -> 0.0028 | CB92: 21.14123931
C93: 19. alveolus | E93: =C55 -> 6.05 | F93: 48.216 | G93: =D55 -> 2.59 | H93: 274.432 | I93: =E55/H93 -> 0.030 | J93: =E55/U148 -> 0.047 | K93: =E93 -> 6.05 | L93: 48.21605339 | M93: =G93 -> 2.59 | N93: 287.6125541 | O93: 0.0094 | P93: 0.005 | Q93: 0.019 | R93: =(0.005+0.003+0.003+0.002+0.001+0.003+0.002)/7 -> 0.0027 | S93: 58.86417154 | U93: 19. alveolus | AH93: 16. alveolus | AJ93: =W52 -> 26.125 | AK93: 38.331 | AL93: =X52 -> 5.27 | AM93: 224.043 | AN93: =Y52/AM93 -> 2.544 | AO93: =Y52/AQ93 -> 1.956 | AP93: 26.125 | AQ93: =X52/0.018070182 -> 291.3639719 | AR93: 5.265 | AS93: 231.489 | AT93: 0.0235 | AU93: 0.012 | AV93: 0.046 | AW93: =(0.008+0.005)/2 -> 0.0065 | AX93: 84.92763158 | AZ93: 16. alveolus | BW93: average | BX93: 0.01362051282 | CA93: 38 CA measurements
C94: 19. alveolus replacement | H94: 21.563 | I94: =K55/H94 -> 0.016 | J94: =K55/U149 -> 0.009 | K94: =I55 -> 0.91 | L94: 33.70833333 | M94: =J55 -> 0.52 | N94: 25 | O94: 0.0240 | P94: 0.015 | Q94: 0.034 | R94: 0.004 | S94: 3.056752874 | U94: 19. alveolus replacement | AS94: average | AT94: 0.01807018227 | AW94: 40 CA measurements
N95: average | O95: 0.0162 | R95: 9 CA measurements | AH95: Large sized Alligator, right premaxilla | AM95: Large sized Alligator, right maxilla | BL95: Small sized Alligator, right premaxilla | BQ95: Small sized Alligator, right maxilla
AH96: 1 | AI96: 2 | AJ96: 3 | AK96: 4 | AL96: 5 | AM96: 6 | AN96: 7 | AO96: 8 | AP96: 9 | AQ96: 10 | AR96: 11 | AS96: 12 | AT96: 13 | AU96: 14 | AV96: 15 | AW96: 16 | AX96: 17 | AY96: 18 | AZ96: 19 | BA96: 20 | BB96: alveolus | BL96: 1 | BM96: 2 | BN96: 3 | BO96: 4 | BP96: 5 | BQ96: 6 | BR96: 7 | BS96: 8 | BT96: 9 | BU96: 10 | BV96: 11 | BW96: 12 | BX96: 13 | BY96: 14 | BZ96: 15 | CA96: 16 | CB96: 17 | CC96: 18 | CD96: 19 | CE96: 20 | CF96: 21 | CG96: alveolus
C97: Medium sized Alligator, right premaxilla | H97: Medium sized Alligator, right maxilla | AH97: =AM77 -> 408.80 | AI97: =X7/0.0138 -> 583.70 | AJ97: =AM78 -> 1041.36 | AL97: =X10/0.011 -> 785.91 | AM97: =X17/0.011 -> 655.00 | AN97: =X18/0.011 -> 107.73 | AO97: =X19/0.011 -> 495.91 | AP97: =X20/0.0117 -> 1087.61 | AQ97: =X21/0.0117 -> 514.96 | AR97: =AM79 -> 756.43 | AS97: =AM81 -> 346.90 | AT97: =X24/0.0179 -> 347.21 | AV97: =X26/0.0188 -> 555.05 | AW97: =X27/0.0188 -> 364.63 | AX97: =AM83 -> 228.38 | AY97: =AM84 -> 342.13 | AZ97: =X30/0.0188 -> 328.46 | BA97: =X31/0.0188 -> 242.29 | BB97: tooth formation time 1 | BL97: =AR6/0.0167 -> 85.80 | BM97: =AR7/0.0167 -> 106.16 | BN97: =BQ80 -> 107.57 | BO97: =AR9/AV8 -> 85.97 | BP97: =AR10/AV8 -> 105.77 | BQ97: =AR16/AV8 -> 101.57 | BR97: =AR17/AV8 -> 145.97 | BS97: =AR18/AV8 -> 107.57 | BT97: =AR19/0.0153 -> 164.24 | BU97: =AR20/0.0153 -> 119.79 | BV97: =BQ81 -> 173.12 | BW97: =BQ82 -> 134.53 | BX97: =AR23/0.012 -> 175.23 | BY97: =AR24/0.012 -> 190.23 | BZ97: =AR25/0.012 -> 112.73 | CA97: =AR26/0.012 -> 191.90 | CB97: =BQ83 -> 130.23 | CC97: =BQ85 -> 175.95 | CD97: =AR29/0.0117 -> 115.62 | CE97: =AR30/0.0117 -> 149.81 | CF97: =AR31/0.0117 -> 58.36 | CG97: tooth formation time 1
C98: 1 | D98: 2 | E98: 3 | F98: 4 | G98: 5 | H98: 6 | I98: 7 | J98: 8 | K98: 9 | L98: 10 | M98: 11 | N98: 12 | O98: 13 | P98: 14 | Q98: 15 | R98: 16 | S98: 17 | T98: 18 | U98: 19 | V98: 20 | W98: alveolus | AI98: =AD7/0.0138 -> 227.90 | AJ98: =AD8/0.011 -> 435.91 | AL98: =AD10/0.011 -> 269.55 | AM98: =AD17/0.011 -> 355.91 | AR98: =AM80 -> 205.50 | AS98: =AM82 -> 89.25 | AT98: =AD24/0.02 -> 47.75 | AV98: =AD26/0.0188 -> 224.73 | AW98: =AD27/0.0188 -> 76.33 | AX98: =AD28/0.034 -> 85.44 | AY98: =AD29/0.0188 -> 89.63 | BB98: tooth formation time 2 | BL98: =AX6/0.0167 -> 9.75 | BM98: =AX7/0.0167 -> 46.28 | BN98: =AX8/0.0167 -> 31.90 | BO98: =AX9/0.0167 -> 18.73 | BP98: =AX10/0.0167 -> 33.70 | BQ98: =AX16/0.0167 -> 28.31 | BR98: =AX17/0.0167 -> 57.05 | BS98: =AX18/0.0167 -> 36.10 | BT98: =AX19/0.0153 -> 79.92 | BU98: =AX20/0.0153 -> 32.86 | BV98: =AX21/0.01267 -> 73.62 | BW98: =AX22/0.01533 -> 27.58 | BX98: =AX23/0.012 -> 88.57 | BY98: =AX24/0.012 -> 51.07 | BZ98: =AX25/0.012 -> 23.57 | CA98: =AX26/0.012 -> 62.73 | CB98: =BQ84 -> 17.63 | CC98: =AX28/0.0117 -> 38.70 | CE98: =AX30/0.0117 -> 28.44 | CG98: tooth formation time 2
C99: =H77 -> 97.90 | D99: =D7/0.01555 -> 138.75 | E99: =H78 -> 189.55 | F99: =D9/0.01555 -> 163.18 | G99: =D10/0.0155 -> 168.23 | H99: =D17/0.01555 -> 167.68 | I99: =D18/0.01555 -> 226.85 | J99: =D19/0.01555 -> 189.55 | K99: =D20/0.0115 -> 229.35 | L99: =D21/0.0115 -> 245.00 | M99: =H80 -> 288.48 | N99: =H82 -> 231.75 | O99: =D24/0.0135 -> 202.78 | P99: =D25/0.0135 -> 170.19 | Q99: =D26/0.0135 -> 241.30 | R99: =D27/0.0135 -> 170.19 | S99: =H83 -> 274.32 | T99: =H84 -> 208.70 | U99: =D30/0.0135 -> 162.78 | V99: =D31/0.0135 -> 227.22 | W99: tooth formation time 1 | AM99: =AJ17/0.011 -> 52.27272727 | BB99: tooth formation time 3 | BX99: =BD23/0.0115 -> 14.15652174 | CG99: tooth formation time 3
C100: =J7/O77 -> 36.70 | D100: =J7/0.01555 -> 59.00 | E100: =M79/O79 -> 42.26 | F100: =J9/0.01555 -> 59.00 | G100: =J10/0.01555 -> 88.59 | H100: =J17/0.01555 -> 43.57 | I100: =J18/0.01555 -> 129.10 | J100: =J19/0.0155 -> 66.94 | K100: =J20/0.0115 -> 42.39 | L100: =J21/0.0115 -> 80.65 | M100: =H81 -> 36.69 | N100: =J23/0.0135 -> 43.52 | O100: =J24/0.0135 -> 95.37 | P100: =J25/0.0135 -> 41.30 | Q100: =J26/0.0135 -> 91.67 | R100: =J27/0.0135 -> 18.33 | S100: =J28/0.011 -> 74.32 | T100: =H85 -> 72.23 | U100: =J30/0.0135 -> 30.93 | V100: =J31/0.0135 -> 30.93 | W100: tooth formation time 2 | AI100: =AI97-AI98 -> 355.80 | AJ100: =AJ97-AJ98 -> 605.45 | AL100: =AL97-AL98 -> 516.36 | AM100: =AM97-AM98 -> 299.09 | AR100: =AR97-AR98 -> 550.93 | AS100: =AS97-AS98 -> 257.65 | AT100: =AT97-AT98 -> 299.46 | AV100: =AV97-AV98 -> 330.32 | AW100: =AW97-AW98 -> 288.30 | AX100: =AX97-AX98 -> 142.94 | AY100: =AY97-AY98 -> 252.51 | BB100: replacement rate f-r1 | BL100: =BL97-BL98 -> 76.05 | BM100: 59.88 | BN100: 75.66 | BO100: 67.24 | BP100: 72.07 | BQ100: 73.26 | BR100: 88.91 | BS100: 71.47 | BT100: 84.31 | BU100: 86.93 | BV100: 99.49 | BW100: 106.95 | BX100: 86.67 | BY100: 139.17 | BZ100: 89.17 | CA100: 129.17 | CB100: 112.60 | CC100: 137.25 | CE100: =CE97-CE98 -> 121.37 | CG100: replacement rate f-r1
G101: =P10/0.01555 -> 7.56 | I101: =P18/0.01555 -> 21.06 | M101: =P22/0.042 -> 1.37 | W101: tooth formation time 3 | AM101: =AM98-AM99 -> 303.64 | BB101: replacement rate r1-r2 | BD101: Average of average relacement rates | BX101: =BX98-BX99 -> 74.41 | CG101: replacement rate r1-r2 | CH101: Average of average relacement rates
C102: =C99-C100 -> 61.20 | D102: 79.74 | E102: 147.29 | F102: 104.18 | G102: 79.64 | H102: 124.12 | I102: 97.75 | J102: 122.61 | K102: 186.96 | L102: 164.35 | M102: 251.79 | N102: 188.23 | O102: 107.41 | P102: 128.89 | Q102: 149.63 | R102: 151.85 | S102: 200.00 | T102: 136.48 | U102: 131.85 | V102: 196.30 | W102: replacement rate f-r1 | AI102: =AI100 -> 355.80 | AJ102: =AJ100 -> 605.45 | AL102: =(AL100+AL101)/2 -> 258.18 | AM102: =(AM100+AM101)/2 -> 301.36 | AR102: =(AR100+AR101)/2 -> 275.46 | AS102: =AS100 -> 257.65 | AT102: =AT100 -> 299.46 | AV102: =AV100 -> 330.32 | AW102: =AW100 -> 288.30 | AX102: =AX100 -> 142.94 | AY102: =AY100 -> 252.51 | BB102: replacement rate (average) | BD102: =AVERAGE(AH102:BA102) -> 306.13 | BL102: =BL100 -> 76.05 | BM102: =BM100 -> 59.88 | BN102: =BN100 -> 75.66 | BO102: =BO100 -> 67.24 | BP102: =(BP100)/1 -> 72.07 | BQ102: =BQ100 -> 73.26 | BR102: =(BR100)/1 -> 88.91 | BS102: =BS100 -> 71.47 | BT102: =BT100 -> 84.31 | BU102: =BU100 -> 86.93 | BV102: =(BV100)/1 -> 99.49 | BW102: =BW100 -> 106.95 | BX102: 86.67 | BY102: 139.17 | BZ102: 89.17 | CA102: 129.17 | CB102: 112.60 | CC102: 137.25 | CE102: =CE100 -> 121.37 | CG102: replacement rate (average) | CH102: =AVERAGE(BL102:CF102) -> 93.56
G103: =G100-G101 -> 81.03 | I103: =I100-I101 -> 108.04 | M103: =M100-M101 -> 35.32 | W103: replacement rate r1-r2 | Y103: Average of average relacement rates | AG103: Based on incremental line width of tooth | AI103: Pmx 1 0.0138 | AJ103: Pmx 3 replacement 0.011 | AL103: Pmx 3 replacement 0.011 | AM103: Pmx 3 replacement 0.011 | AN103: Pmx 3 replacement 0.011 | AO103: Pmx 3 replacement 0.011 | AP103: Mx 6 0.0117 | AQ103: Mx 6 0.0117 | AT103: Mx 7 0.0179 Mx 7 replacement 0.02 | AV103: Mx 13 0.0188 | AW103: Mx 13 0.0188 | AX103: Mx 12 0.034 | AZ103: Mx 13 0.0188 | BA103: Mx 13 0.0188 | BK103: Based on incremental line width of tooth | BL103: Pmx 3 0.0167 | BM103: Pmx 3 0.0167 | BN103: Pmx 3 0.0167 | BO103: Pmx 3 0.0167 | BP103: Pmx 3 0.0167 | BQ103: Pmx 3 0.0167 | BR103: Pmx 3 0.0167 | BS103: Pmx 3 0.0167 | BT103: Mx 7 0.0153 | BU103: Mx 7 0.0153 | BV103: Mx 6 0.01267 | BW103: Mx 7 0.01533 | BX103: Mx 12 0.0120 replacement 0.0115 | BY103: Mx 12 0.0120 replacement 0.0115 | BZ103: Mx 12 0.0120 replacement 0.0115 | CA103: Mx 12 0.0120 replacement 0.0115 | CB103: Mx 12 0.0120 replacement 0.0115 | CC103: Mx 13 0.0117 | CD103: Mx 13 0.0117 | CE103: Mx 13 0.0117 | CF103: Mx 13 0.0117
C104: =C102 -> 61.20 | D104: =D102 -> 79.74 | E104: =E102 -> 147.29 | F104: =F102 -> 104.18 | G104: =(G102+G103)/2 -> 80.33 | H104: =H102 -> 124.12 | I104: =(I102+I103)/2 -> 102.89 | J104: =J102 -> 122.61 | K104: =K102 -> 186.96 | L104: =L102 -> 164.35 | M104: =(M102+M103)/2 -> 143.55 | N104: =N102 -> 188.23 | O104: 107.41 | P104: 128.89 | Q104: 149.63 | R104: 151.85 | S104: 200.00 | T104: 136.48 | U104: 131.85 | V104: 196.30 | W104: replacement rate (average) | Y104: =AVERAGE(C104:V104) -> 135.39 | AI104: Tooth formation time based on mean incremental line width of a different tooth | BM104: Tooth formation time based on mean incremental line width of a different tooth
AG111: Version using the same incremental line width for all values | AK111: 0.01807018227 | BK111: Version using the same incremental line width for all values | BO111: 0.01362051282
AH112: Large sized Alligator, right premaxilla | AM112: Large sized Alligator, right maxilla | BL112: Small sized Alligator, right premaxilla | BQ112: Small sized Alligator, right maxilla
B113: Version using the same incremental line width for all values | F113: 0.0145 | AH113: 1 | AI113: 2 | AJ113: 3 | AK113: 4 | AL113: 5 | AM113: 6 | AN113: 7 | AO113: 8 | AP113: 9 | AQ113: 10 | AR113: 11 | AS113: 12 | AT113: 13 | AU113: 14 | AV113: 15 | AW113: 16 | AX113: 17 | AY113: 18 | AZ113: 19 | BA113: 20 | BB113: alveolus | BL113: 1 | BM113: 2 | BN113: 3 | BO113: 4 | BP113: 5 | BQ113: 6 | BR113: 7 | BS113: 8 | BT113: 9 | BU113: 10 | BV113: 11 | BW113: 12 | BX113: 13 | BY113: 14 | BZ113: 15 | CA113: 16 | CB113: 17 | CC113: 18 | CD113: 19 | CE113: 20 | CF113: 21 | CG113: alveolus
C114: Medium sized Alligator, right premaxilla | H114: Medium sized Alligator, right maxilla | AH114: =AM77 -> 408.80 | AI114: =X7/AK111 -> 445.76 | AJ114: =AM78 -> 1041.36 | AL114: =X10/AK111 -> 478.41 | AM114: =X17/AK111 -> 398.72 | AN114: =X18/AK111 -> 65.58 | AO114: =X19/AK111 -> 301.88 | AP114: =X20/AK111 -> 704.20 | AQ114: =X21/AK111 -> 333.42 | AR114: =AM79 -> 756.43 | AS114: =AM81 -> 346.90 | AT114: =X24/AK111 -> 343.94 | AV114: =X26/AK111 -> 577.47 | AW114: =X27/AK111 -> 379.35 | AX114: =AM83 -> 228.38 | AY114: =AM84 -> 342.133 | AZ114: =X30/AK111 -> 341.72 | BA114: =X31/AK111 -> 252.07 | BB114: tooth formation time 1 | BL114: =AR6/BO111 -> 105.19 | BM114: =AR7/BO111 -> 130.16 | BN114: =BQ80 -> 107.57 | BO114: =AR8/BO111 -> 131.63 | BP114: =AR9/BO111 -> 105.19 | BQ114: =AR16/BO111 -> 124.28 | BR114: =AR18/BO111 -> 131.63 | BS114: =AR18/BO111 -> 131.63 | BT114: =AR19/BO111 -> 184.49 | BU114: =AR20/BO111 -> 134.56 | BV114: =BQ81 -> 173.12 | BW114: =BQ82 -> 134.53 | BX114: =AR23/BO111 -> 154.38 | BY114: =AR24/BO111 -> 167.60 | BZ114: =AR25/BO111 -> 99.32 | CA114: =AR26/BO111 -> 169.07 | CB114: =BQ83 -> 130.23 | CC114: =BQ85 -> 175.95 | CD114: =AR29/BO111 -> 99.32 | CE114: =AR30/BO111 -> 128.69 | CF114: =AR31/BO111 -> 50.13 | CG114: tooth formation time 1
C115: 1 | D115: 2 | E115: 3 | F115: 4 | G115: 5 | H115: 6 | I115: 7 | J115: 8 | K115: 9 | L115: 10 | M115: 11 | N115: 12 | O115: 13 | P115: 14 | Q115: 15 | R115: 16 | S115: 17 | T115: 18 | U115: 19 | V115: 20 | W115: alveolus | AI115: =AD7/AK111 -> 174.04 | AJ115: =AD8/AK111 -> 265.35 | AL115: =AD10/AK111 -> 164.08 | AM115: =AD17/AK111 -> 216.66 | AR115: =AM80 -> 205.50 | AS115: =AM82 -> 89.25 | AT115: =AD24/AK111 -> 52.85 | AV115: =AD26/AK111 -> 233.81 | AW115: =AD27/AK111 -> 79.41 | AX115: =AD28/AK111 -> 160.76 | AY115: =AD29/AK111 -> 93.25 | BB115: tooth formation time 2 | BL115: =AX6/BO111 -> 11.95 | BM115: =AX7/BO111 -> 56.74 | BN115: =AX8/BO111 -> 39.12 | BO115: =AX9/BO111 -> 22.97 | BP115: =AX10/BO111 -> 41.32 | BQ115: =AX16/BO111 -> 34.71 | BR115: =AX17/BO111 -> 69.95 | BS115: =AX18/BO111 -> 44.26 | BT115: =AX19/BO111 -> 89.78 | BU115: =AX20/BO111 -> 36.91 | BV115: =AX21/BO111 -> 68.48 | BW115: =AX22/BO111 -> 31.04 | BX115: =AX23/BO111 -> 78.03 | BY115: =AX24/BO111 -> 44.99 | BZ115: =AX25/BO111 -> 20.76 | CA115: =AX26/BO111 -> 55.27 | CB115: =BQ84 -> 17.63 | CC115: =AX28/BO111 -> 33.24 | CE115: =AX30/BO111 -> 24.43 | CG115: tooth formation time 2
C116: =D6/F113 -> 168.79 | D116: =D7/F113 -> 148.79 | E116: =D8/F113 -> 203.28 | F116: =D9/F113 -> 175.00 | G116: =D10/F113 -> 179.83 | H116: =D17/F113 -> 179.83 | I116: =D19/F113 -> 203.28 | J116: =D19/F113 -> 203.28 | K116: =D20/F113 -> 181.90 | L116: =D21/F113 -> 194.31 | M116: =D22/F113 -> 228.79 | N116: =D23/F113 -> 159.83 | O116: =D24/F113 -> 188.79 | P116: =D25/F113 -> 158.45 | Q116: =D26/F113 -> 224.66 | R116: =D27/F113 -> 158.45 | S116: =D28/F113 -> 208.10 | T116: =D29/F113 -> 194.31 | U116: =D30/F113 -> 151.55 | V116: =D31/F113 -> 211.55 | W116: tooth formation time 1 | AM116: =AJ17/AK111 -> 31.82037633 | BB116: tooth formation time 3 | BX116: =BD23/BO111 -> 11.95256024 | CG116: tooth formation time 3
C117: =J6/F113 -> 43.28 | D117: =J7/F113 -> 63.28 | E117: =J8/F113 -> 71.55 | F117: =J9/F113 -> 63.28 | G117: =J10/F113 -> 95.00 | H117: =J17/F113 -> 46.72 | I117: =J18/F113 -> 138.45 | J117: =J19/F113 -> 71.55 | K117: =J40/F113 -> 52.93 | L117: =J21/F113 -> 63.97 | M117: =J22/F113 -> 93.62 | N117: =J23/F113 -> 40.52 | O117: =J24/F113 -> 88.79 | P117: =J25/F113 -> 38.45 | Q117: =J26/F113 -> 85.34 | R117: =J27/F113 -> 17.07 | S117: =J28/F113 -> 56.38 | T117: =J29/F113 -> 76.38 | U117: =J30/F113 -> 28.79 | V117: =J31/F113 -> 28.79 | W117: tooth formation time 2 | AI117: =AI114-AI115 -> 271.72 | AJ117: =AJ114-AJ115 -> 776.01 | AL117: =AL114-AL115 -> 314.33 | AM117: =AM114-AM115 -> 182.07 | AR117: =AR114-AR115 -> 550.93 | AS117: =AS114-AS115 -> 257.65 | AT117: =AT114-AT115 -> 291.09 | AV117: =AV114-AV115 -> 343.66 | AW117: =AW114-AW115 -> 299.94 | AX117: =AX114-AX115 -> 67.62 | AY117: =AY114-AY115 -> 248.89 | BB117: replacement rate f-r1 | BL117: =BL114-BL115 -> 93.24 | BM117: 73.42 | BN117: 68.45 | BO117: 108.66 | BP117: 63.87 | BQ117: 89.57 | BR117: 61.67 | BS117: 87.37 | BT117: 94.71 | BU117: 97.65 | BV117: 104.63 | BW117: 103.49 | BX117: 76.36 | BY117: 122.61 | BZ117: 78.56 | CA117: 113.80 | CB117: 112.60 | CC117: 142.71 | CE117: =CE114-CE115 -> 104.25 | CF117: =CF114-CF115 -> 50.13 | CG117: replacement rate f-r1
G118: =P10/F113 -> 8.10 | I118: =P18/F113 -> 22.59 | M118: =P22/F113 -> 3.97 | W118: tooth formation time 3 | AL118: =AL115-AL116 -> 164.08 | AM118: =AM115-AM116 -> 184.83 | BB118: replacement rate r1-r2 | BD118: Average of average relacement rates | BX118: =BX115-BX116 -> 66.08 | CG118: replacement rate r1-r2 | CI118: Average of average relacement rates
C119: =C116-C117 -> 125.52 | D119: 85.52 | E119: 131.72 | F119: 111.72 | G119: 84.83 | H119: 133.10 | I119: 64.83 | J119: 131.72 | K119: 128.97 | L119: 130.34 | M119: 135.17 | N119: 119.31 | O119: 100.00 | P119: 120.00 | Q119: 139.31 | R119: 141.38 | S119: 151.72 | T119: 117.93 | U119: 122.76 | V119: 182.76 | W119: replacement rate f-r1 | AI119: =AI117 -> 271.72 | AJ119: =AJ117 -> 776.01 | AL119: =(AL117+AL118)/2 -> 239.21 | AM119: =(AM117+AM118)/2 -> 183.45 | AR119: =AR117 -> 550.93 | AS119: =AS117 -> 257.65 | AT119: =AT117 -> 291.09 | AV119: =AV117 -> 343.66 | AW119: =AW117 -> 299.94 | AX119: =AX117 -> 67.62 | AY119: =AY117 -> 248.89 | BB119: replacement rate (average) | BD119: =AVERAGE(AH119:BA119) -> 320.92 | BL119: =BL117 -> 93.24 | BM119: =BM117 -> 73.42 | BN119: =BN117 -> 68.45 | BO119: =BO117 -> 108.66 | BP119: =(BP117)/1 -> 63.87 | BQ119: =BQ117 -> 89.57 | BR119: =(BR117)/1 -> 61.67 | BS119: =BS117 -> 87.37 | BT119: =BT117 -> 94.71 | BU119: =BU117 -> 97.65 | BV119: =(BV117)/1 -> 104.63 | BW119: =BW117 -> 103.49 | BX119: =(BX117+BX118)/2 -> 71.22 | BY119: =BY117 -> 122.61 | BZ119: =BZ117 -> 78.56 | CA119: =CA117 -> 113.80 | CB119: =CB117 -> 112.60 | CC119: =CC117 -> 142.71 | CE119: =CE117 -> 104.25 | CG119: replacement rate (average) | CI119: =AVERAGE(BL119:CF119) -> 94.34
G120: =G117-G118 -> 86.90 | I120: =I117-I118 -> 115.86 | M120: =M117-M118 -> 89.66 | W120: replacement rate r1-r2 | Y120: Average of average relacement rates
C121: =C119 -> 125.52 | D121: =D119 -> 85.52 | E121: =E119 -> 131.72 | F121: =F119 -> 111.72 | G121: =(G119+G120)/2 -> 85.86 | H121: =H119 -> 133.10 | I121: =(I119+I120)/2 -> 90.34 | J121: =J119 -> 131.72 | K121: =K119 -> 128.97 | L121: =L119 -> 130.34 | M121: =(M119+M120)/2 -> 112.41 | N121: =N119 -> 119.31 | O121: 100.00 | P121: 120.00 | Q121: 139.31 | R121: 141.38 | S121: 151.72 | T121: 117.93 | U121: 122.76 | V121: 182.76 | W121: replacement rate (average) | Y121: =AVERAGE(C121:V121) -> 123.12
AH128: Large sized Alligator, right dentary | BL128: Small sized Alligator, right dentary
AH129: 1 | AI129: 2 | AJ129: 3 | AK129: 4 | AL129: 5 | AM129: 6 | AN129: 7 | AO129: 8 | AP129: 9 | AQ129: 10 | AR129: 11 | AS129: 12 | AT129: 13 | AU129: 14 | AV129: 15 | AW129: 16 | AX129: 17 | AY129: 18 | AZ129: 19 | BA129: 20 | BB129: alveolus | BL129: 1 | BM129: 2 | BN129: 3 | BO129: 4 | BP129: 5 | BQ129: 6 | BR129: 7 | BS129: 8 | BT129: 9 | BU129: 10 | BV129: 11 | BW129: 12 | BX129: 13 | BY129: 14 | BZ129: 15 | CA129: 16 | CB129: 17 | CC129: 18 | CD129: 19 | CE129: 20 | CF129: alveolus
C130: Medium sized Alligator, right dentary | AI130: =AM85 -> 210.23 | AK130: =AM87 -> 796.95 | AL130: =X41/0.0161 -> 461.18 | AM130: =X42/0.0161 -> 345.65 | AN130: =X43/0.0161 -> 272.36 | AO130: =X44/0.0161 -> 261.80 | AP130: =X45/0.0169 -> 329.29 | AQ130: =X46/0.0169 -> 269.53 | AR130: =AM89 -> 296.65 | AS130: =AM90 -> 551.94 | AT130: =X49/0.0172 -> 696.22 | AU130: =X50/0.0172 -> 447.97 | AV130: =AM91 -> 422.73 | AW130: =AM93 -> 224.04 | BB130: tooth formation time 1 | BL130: =AR36/0.0133 -> 161.11 | BM130: =BQ86 -> 121.71 | BN130: =AR38/0.0175 -> 105.30 | BO130: =BQ87 -> 70.45 | BP130: =AR40/0.0175 -> 89.87 | BQ130: =AR41/0.0175 -> 109.87 | BR130: =AR42/0.0175 -> 61.87 | BS130: =AR43/0.0144 -> 118.25 | BT130: =AR44/0.0144 -> 77.28 | BU130: =AR45/0.0144 -> 125.89 | BV130: =AR46/0.0144 -> 103.67 | BW130: =BQ89 -> 148.11 | BX130: =AR48/0.0144 -> 125.89 | BY130: =AR49/0.0144 -> 158.53 | BZ130: =AR50/0.0144 -> 109.22 | CA130: =AR51/0.0145 -> 140.88 | CB130: =AR52/0.0145 -> 97.43 | CC130: =BQ91 -> 128.47 | CD130: =BQ92 -> 131.42 | CE130: =AR55/0.0125 -> 226.62 | CF130: tooth formation time 1
C131: 1 | D131: 2 | E131: 3 | F131: 4 | G131: 5 | H131: 6 | I131: 7 | J131: 8 | K131: 9 | L131: 10 | M131: 11 | N131: 12 | O131: 13 | P131: 14 | Q131: 15 | R131: 16 | S131: 17 | T131: 18 | U131: 19 | V131: 20 | W131: alveolus | AI131: =AM86 -> 90.38 | AK131: =AM88 -> 243.47 | AL131: =AD41/0.0188 -> 133.24 | AM131: =AD42/0.0188 -> 165.69 | AN131: 69.68 | AO131: 109.04 | AP131: =AD45/0.0169 -> 199.11 | AQ131: =AD46/0.0169 -> 91.42 | AS131: =AD48/0.0172 -> 136.34 | AT131: =AD49/0.0172 -> 228.20 | AV131: =AM92 -> 133.65 | AW131: =AD52/0.0225 -> 43.78 | BB131: tooth formation time 2 | BL131: =AX36/0.0133 -> 49.83 | BM131: =AX37/0.0133 -> 61.86 | BN131: =AX38/0.012 -> 45.23 | BO131: =BQ88 -> 16.07 | BP131: =AX40/0.012 -> 26.90 | BQ131: =AX41/0.012 -> 46.90 | BR131: =AX42/0.012 -> 14.40 | BS131: =AX43/0.013 -> 34.83 | BT131: =AX44/0.013 -> 12.52 | BU131: =AX45/0.013 -> 35.60 | BV131: =AX46/0.013 -> 21.75 | BW131: =BQ90 -> 70.98 | BX131: =AX48/0.013 -> 34.83 | BY131: =AX49/0.013 -> 64.06 | BZ131: =AX50/0.013 -> 17.91 | CA131: =AX51/0.0145 -> 36.74 | CB131: =AX52/0.0145 -> 10.54 | CC131: =AX53/0.0145 -> 29.85 | CD131: =AX54/0.0125 -> 9.02 | CE131: =AX55/0.0125 -> 24.22 | CF131: tooth formation time 2
C132: =D37/0.014 -> 151.25 | D132: =H86 -> 298.44 | E132: =D39/0.014 -> 225.54 | F132: 195.71 | G132: 160.71 | H132: 142.86 | I132: 132.14 | J132: 205.22 | K132: 90.43 | L132: 207.83 | M132: 155.21 | N132: 205.04 | O132: 153.49 | P132: 191.16 | Q132: 219.07 | R132: 154.48 | S132: 154.48 | T132: 187.04 | U132: 287.61 | V132: 275.76 | W132: tooth formation time 1 | AK132: =AJ40/0.0188 -> 84.84 | AP132: =AJ45/0.0169 -> 25.15 | BB132: tooth formation time 3 | CF132: tooth formation time 3
D133: =H87 -> 85.50 | E133: =J39/0.014 -> 105.54 | F133: =J40/0.014 -> 54.82 | G133: =J41/0.014 -> 67.68 | H133: 33.57 | I133: 80.71 | J133: 59.13 | K133: 21.74 | L133: 65.22 | M133: 17.83 | N133: 55.23 | O133: 88.60 | P133: 62.79 | Q133: 101.16 | R133: 2.24 | S133: 55.86 | T133: 97.24 | U133: 25.00 | V133: 46.25 | W133: tooth formation time 2 | AI133: =AI130-AI131 -> 119.84 | AK133: =AK130-AK131 -> 553.48 | AL133: 327.94 | AM133: 179.96 | AN133: 202.68 | AO133: 152.76 | AP133: 130.18 | AQ133: 178.11 | AS133: =AS130-AS131 -> 415.60 | AT133: =AT130-AT131 -> 468.02 | AV133: =AV130-AV131 -> 289.07 | AW133: =AW130-AW131 -> 180.26 | BB133: replacement rate f-r1 | BL133: =BL130-BL131 -> 111.28 | BM133: 59.85 | BN133: 60.07 | BO133: 54.38 | BP133: 62.97 | BQ133: 62.97 | BR133: 47.47 | BS133: 83.42 | BT133: 64.75 | BU133: 90.29 | BV133: 81.91 | BW133: 77.13 | BX133: 91.06 | BY133: 94.47 | BZ133: 91.31 | CA133: 104.14 | CB133: 86.90 | CC133: 98.62 | CD133: 122.40 | CE133: 202.40 | CF133: replacement rate f-r1
E134: =P39/0.014 -> 7.678571429 | W134: tooth formation time 3 | AK134: =AK131-AK132 -> 158.63 | AP134: =AP131-AP132 -> 173.96 | BB134: replacement rate r1-r2 | BD134: Average of average relacement rates | CF134: replacement rate r1-r2 | CH134: Average of average relacement rates
D135: =D132-D133 -> 212.94 | E135: 120.00 | F135: 140.89 | G135: 93.04 | H135: 109.29 | I135: 51.43 | J135: 146.09 | K135: 68.70 | L135: 142.61 | M135: 137.38 | N135: 149.81 | O135: 64.88 | P135: 128.37 | Q135: 117.91 | R135: 152.24 | S135: 98.62 | T135: 89.80 | U135: 262.61 | V135: 229.51 | W135: replacement rate f-r1 | AI135: =AI133 -> 119.84 | AK135: =(AK133+AK134)/2 -> 356.05 | AL135: =AL133 -> 327.94 | AM135: =AM133 -> 179.96 | AN135: =AN133 -> 202.68 | AO135: =AO133 -> 152.76 | AP135: =(AP133+AP134)/2 -> 152.07 | AQ135: =AQ133 -> 178.11 | AS135: =AS133 -> 415.60 | AT135: =AT133 -> 468.02 | AV135: =AV133 -> 289.07 | AW135: =AW133 -> 180.26 | BB135: replacement rate (average) | BD135: =AVERAGE(AH135:BA135) -> 251.86 | BL135: =BL133 -> 111.28 | BM135: =BM133 -> 59.85 | BN135: =(BN133)/1 -> 60.07 | BO135: =BO133 -> 54.38 | BP135: 62.97 | BQ135: 62.97 | BR135: 47.47 | BS135: 83.42 | BT135: 64.75 | BU135: 90.29 | BV135: 81.91 | BW135: 77.13 | BX135: 91.06 | BY135: 94.47 | BZ135: 91.31 | CA135: 104.14 | CB135: 86.90 | CC135: 98.62 | CD135: 122.40 | CE135: 202.40 | CF135: replacement rate (average) | CH135: =AVERAGE(BL135:CE135) -> 87.39
E136: =E133-E134 -> 97.86 | W136: replacement rate r1-r2 | Y136: Average of average relacement rates
D137: =D135 -> 212.94 | E137: =(E135+E136)/2 -> 108.93 | F137: =F135 -> 140.89 | G137: 93.04 | H137: 109.29 | I137: 51.43 | J137: 146.09 | K137: 68.70 | L137: 142.61 | M137: 137.38 | N137: 149.81 | O137: 64.88 | P137: 128.37 | Q137: 117.91 | R137: 152.24 | S137: 98.62 | T137: 89.80 | U137: 262.61 | V137: 229.51 | W137: replacement rate (average) | Y137: =AVERAGE(C137:V137) -> 131.84
AG143: Version using the same incremental line width for all values | AK143: 0.01807018227 | BK143: Version using the same incremental line width for all values | BO143: 0.01362051282
AH144: Large sized Alligator, right dentary | BL144: Small sized Alligator, right dentary
B145: Version using the same incremental line width for all values | F145: 0.0145 | AH145: 1 | AI145: 2 | AJ145: 3 | AK145: 4 | AL145: 5 | AM145: 6 | AN145: 7 | AO145: 8 | AP145: 9 | AQ145: 10 | AR145: 11 | AS145: 12 | AT145: 13 | AU145: 14 | AV145: 15 | AW145: 16 | AX145: 17 | AY145: 18 | AZ145: 19 | BA145: 20 | BB145: alveolus | BL145: 1 | BM145: 2 | BN145: 3 | BO145: 4 | BP145: 5 | BQ145: 6 | BR145: 7 | BS145: 8 | BT145: 9 | BU145: 10 | BV145: 11 | BW145: 12 | BX145: 13 | BY145: 14 | BZ145: 15 | CA145: 16 | CB145: 17 | CC145: 18 | CD145: 19 | CE145: 20 | CF145: alveolus
C146: Medium sized Alligator, right dentary | AI146: =AI130 -> 210.23 | AK146: =AK130 -> 796.95 | AL146: =X41/AK143 -> 410.90 | AM146: =X42/AK143 -> 307.97 | AN146: =X43/AK143 -> 242.66 | AO146: =X44/AK143 -> 233.26 | AP146: =X45/AK143 -> 307.97 | AQ146: =X46/AK143 -> 252.07 | AR146: =AR130 -> 296.65 | AS146: =AS130 -> 551.94 | AT146: =X49/AK143 -> 662.69 | AU146: =X50/AK143 -> 426.39 | AV146: =AV130 -> 422.73 | AW146: =AW130 -> 224.04 | BB146: tooth formation time 1 | BL146: =AR36/BO143 -> 157.32 | BM146: =BQ86 -> 121.71 | BN146: =AR38/BO143 -> 135.30 | BO146: =BQ87 -> 70.45 | BP146: =AR40/BO143 -> 115.47 | BQ146: =AR41/BO143 -> 141.17 | BR146: =AR42/BO143 -> 79.50 | BS146: =AR43/BO143 -> 125.02 | BT146: =AR44/BO143 -> 81.70 | BU146: =AR45/BO143 -> 133.09 | BV146: =AR46/BO143 -> 109.60 | BW146: =BQ89 -> 148.11 | BX146: =AR48/BO143 -> 133.09 | BY146: =AR49/BO143 -> 167.60 | BZ146: =AR50/BO143 -> 115.47 | CA146: =AR51/BO143 -> 149.98 | CB146: =AR52/BO143 -> 103.73 | CC146: =BQ91 -> 128.47 | CD146: =BQ92 -> 131.42 | CE146: =AR55/BO143 -> 207.98 | CF146: tooth formation time 1
C147: 1 | D147: 2 | E147: 3 | F147: 4 | G147: 5 | H147: 6 | I147: 7 | J147: 8 | K147: 9 | L147: 10 | M147: 11 | N147: 12 | O147: 13 | P147: 14 | Q147: 15 | R147: 16 | S147: 17 | T147: 18 | U147: 19 | V147: 20 | W147: alveolus | AI147: =AI131 -> 90.38 | AK147: =AK131 -> 243.47 | AL147: =AD41/AK143 -> 138.63 | AM147: =AD42/AK143 -> 172.38 | AN147: =AD43/AK143 -> 62.81 | AO147: =AD44/AK143 -> 103.76 | AP147: =AD45/AK143 -> 186.22 | AQ147: =AD46/AK143 -> 85.50 | AS147: =AD48/AK143 -> 129.77 | AT147: =AD49/AK143 -> 217.21 | AV147: =AV131 -> 133.65 | AW147: =AD52/AK143 -> 54.51 | BB147: tooth formation time 2 | BL147: =AX36/0.0136205128205128 -> 48.66 | BM147: =AX37/0.0136205128205128 -> 60.41 | BN147: =AX38/0.0136205128205128 -> 39.85 | BO147: =BQ88 -> 16.07 | BP147: =AX40/0.0136205128205128 -> 23.70 | BQ147: =AX41/0.0136205128205128 -> 41.32 | BR147: =AX42/0.0136205128205128 -> 12.69 | BS147: =AX43/0.0136205128205128 -> 33.24 | BT147: =AX44/0.0136205128205128 -> 11.95 | BU147: =AX45/0.0136205128205128 -> 33.98 | BV147: =AX46/0.0136205128205128 -> 20.76 | BW147: =BQ90 -> 70.98 | BX147: =AX48/0.0136205128205128 -> 33.24 | BY147: =AX49/0.0136205128205128 -> 61.14 | BZ147: =AX50/0.0136205128205128 -> 17.09 | CA147: =AX51/BO143 -> 39.12 | CB147: =AX52/BO143 -> 11.22 | CC147: =AX53/BO143 -> 31.78 | CD147: =AX54/BO143 -> 8.28 | CE147: =AX55/BO143 -> 22.23 | CF147: tooth formation time 2
C148: =D37/F145 -> 146.03 | D148: =D38/F145 -> 164.66 | E148: =D39/F145 -> 217.76 | F148: =D40/F145 -> 183.28 | G148: =D41/F145 -> 149.48 | H148: =D42/F145 -> 132.24 | I148: =D43/F145 -> 121.90 | J148: =D44/F145 -> 157.07 | K148: =D45/F145 -> 66.03 | L148: =D46/F145 -> 159.14 | M148: =D47/F145 -> 115.00 | N148: =D48/F145 -> 192.93 | O148: =D49/F145 -> 146.03 | P148: =D50/F145 -> 183.28 | Q148: =D51/F145 -> 210.86 | R148: =D52/F145 -> 148.79 | S148: =D53/F145 -> 190.17 | T148: =D54/F145 -> 171.55 | U148: =D55/F145 -> 178.45 | V148: =D56/F145 -> 173.62 | W148: tooth formation time 1 | AK148: =AJ40/AK143 -> 88.27 | AP148: =AJ45/AK143 -> 23.52 | BB148: tooth formation time 3 | CF148: tooth formation time 3
D149: =J38/F145 -> 29.48 | E149: =J39/F145 -> 101.90 | F149: =J40/F145 -> 52.93 | G149: =J41/F145 -> 65.34 | H149: =J42/F145 -> 26.72 | I149: =J43/F145 -> 72.24 | J149: =J44/F145 -> 41.21 | K149: =J45/F145 -> 11.55 | L149: =J46/F145 -> 46.03 | M149: =J47/F145 -> 22.59 | N149: =J48/F145 -> 81.90 | O149: =J49/F145 -> 13.62 | P149: =J50/F145 -> 56.38 | Q149: =J51/F145 -> 94.31 | R149: =J52/F145 -> 27.41 | S149: =J53/F145 -> 50.17 | T149: =J54/F145 -> 91.55 | U149: =J55/F145 -> 35.69 | V149: =J56/F145 -> 70.86 | W149: tooth formation time 2 | AI149: =AI146-AI147 -> 119.84 | AK149: =AK146-AK147 -> 553.48 | AL149: 272.27 | AM149: 135.58 | AN149: 179.85 | AO149: 129.50 | AP149: 121.75 | AQ149: 166.57 | AS149: =AS146-AS147 -> 422.17 | AT149: =AT146-AT147 -> 445.49 | AV149: =AV146-AV147 -> 289.07 | AW149: =AW146-AW147 -> 169.53 | BB149: replacement rate f-r1 | BL149: =BL146-BL147 -> 108.66 | BM149: 61.30 | BN149: 95.44 | BO149: 54.38 | BP149: 91.77 | BQ149: 99.85 | BR149: 66.81 | BS149: 91.77 | BT149: 69.75 | BU149: 99.12 | BV149: 88.84 | BW149: 77.13 | BX149: 99.85 | BY149: 106.46 | BZ149: 98.38 | CA149: 110.86 | CB149: 92.51 | CC149: 96.69 | CD149: 123.14 | CE149: 185.75 | CF149: replacement rate f-r1
E150: =P39/F145 -> 7.413793103 | W150: tooth formation time 3 | AK150: =AK147-AK148 -> 155.20 | BB150: replacement rate r1-r2 | BD150: Average of average relacement rates | CF150: replacement rate r1-r2 | CH150: Average of average relacement rates
D151: =D148-D149 -> 135.17 | E151: 115.86 | F151: 130.34 | G151: 84.14 | H151: 105.52 | I151: 49.66 | J151: 115.86 | K151: 54.48 | L151: 113.10 | M151: 92.41 | N151: 111.03 | O151: 132.41 | P151: 126.90 | Q151: 116.55 | R151: 121.38 | S151: 140.00 | T151: 80.00 | U151: 142.76 | V151: 102.76 | W151: replacement rate f-r1 | AI151: =AI149 -> 119.84 | AK151: =(AK149+AK150)/2 -> 354.34 | AL151: =AL149 -> 272.27 | AM151: 135.58 | AN151: 179.85 | AO151: 129.50 | AP151: 121.75 | AQ151: 166.57 | AS151: =AS149 -> 422.17 | AT151: =AT149 -> 445.49 | AV151: =AV149 -> 289.07 | AW151: =AW149 -> 169.53 | BB151: replacement rate (average) | BD151: =AVERAGE(AH151:BA151) -> 233.83 | BL151: =BL149 -> 108.66 | BM151: =BM149 -> 61.30 | BN151: =(BN149+BN150)/1 -> 95.44 | BO151: =BO149 -> 54.38 | BP151: 91.77 | BQ151: 99.85 | BR151: 66.81 | BS151: 91.77 | BT151: 69.75 | BU151: 99.12 | BV151: 88.84 | BW151: 77.13 | BX151: 99.85 | BY151: 106.46 | BZ151: 98.38 | CA151: 110.86 | CB151: 92.51 | CC151: 96.69 | CD151: 123.14 | CE151: 185.75 | CF151: replacement rate (average) | CH151: =AVERAGE(BL151:CE151) -> 95.92
E152: =E149-E150 -> 94.48 | W152: replacement rate r1-r2 | Y152: Average of average relacement rates
D153: =D151 -> 135.17 | E153: =(E151+E152)/2 -> 105.17 | F153: =F151 -> 130.34 | G153: 84.14 | H153: 105.52 | I153: 49.66 | J153: 115.86 | K153: 54.48 | L153: 113.10 | M153: 92.41 | N153: 111.03 | O153: 132.41 | P153: 126.90 | Q153: 116.55 | R153: 121.38 | S153: 140.00 | T153: 80.00 | U153: 142.76 | V153: 102.76 | W153: replacement rate (average) | Y153: =AVERAGE(C153:V153) -> 108.40
B161: Measurements of teeth in log
B162: Premaxilla | F162: dext | V162: Premaxilla | Z162: dext | AP162: Premaxilla | AT162: dext | BJ162: Medium Alligator | BP162: Large Alligator | BV162: Small Alligator
B163: Medium Alligator | C163: Functional tooth | I163: Tooth position 1 (labial) | O163: Tooth position 2 | V163: Large Alligator | W163: Functional tooth | AC163: Tooth position 1 (labial) | AI163: Tooth position 2 | AP163: Small Alligator | AQ163: Functional tooth | AW163: Tooth position 1 (labial) | BC163: Tooth position 2 | BJ163: =C163 -> Functional tooth | BM163: Replacement tooth 1 | BP163: =W163 -> Functional tooth | BS163: Replacement tooth 1 | BV163: =AQ163 -> Functional tooth | BY163: Replacement tooth 1
C164: tooth height | D164: crown height | E164: volume | F164: developmental stage | G164: size compared to tooth befoe | H164: estimated age | I164: tooth height | J164: crown height | K164: volume | L164: developmental stage | M164: size compared to tooth before | N164: estimated age | O164: tooth height | P164: crown height | R164: developmental stage | S164: size compared to tooth befoe | T164: estimated age | W164: tooth height | X164: crown height | Y164: volume | Z164: developmental stage | AA164: size compared to tooth befoe | AC164: tooth height | AD164: crown height | AE164: volume | AF164: developmental stage | AG164: size compared to tooth befoe | AI164: tooth height | AJ164: crown height | AK164: volume | AL164: developmental stage | AM164: size compared to tooth before | AQ164: tooth height | AR164: crown height | AS164: volume | AT164: developmental stage | AU164: size compared to tooth befoe | AV164: estimated age | AW164: tooth height | AX164: crown height | AY164: volume | AZ164: developmental stage | BA164: size compared to tooth befoe | BB164: estimated age | BC164: tooth height | BD164: crown height | BE164: volume | BF164: developmental stage | BG164: size compared to tooth before | BJ164: tooth height | BK164: =D164 -> crown height | BL164: volume | BM164: =I164 -> tooth height | BN164: crown height | BO164: volume | BP164: =W164 -> tooth height | BQ164: =X164 -> crown height | BR164: volume | BS164: =AC164 -> tooth height | BT164: =AD164 -> crown height | BU164: =AE164 -> volume | BV164: tooth height | BW164: =AR164 -> crown height | BX164: volume | BY164: =AW164 -> tooth height | BZ164: crown height | CA164: volume
B165: 1. alveolus | C165: =LOG(C6) -> 0.7564459202 | D165: 0.3887227005 | E165: 0.3582642525 | H165: =LOG(H6) -> 1.485129664 | I165: =LOG(I6) -> 0.1063609088 | J165: =LOG(J6) -> -0.2023862698 | K165: =LOG(K6) -> -0.6629003036 | M165: =I165/C165 -> 0.1406060975 | V165: 1. alveolus | W165: =LOG(W6) -> 1.435446186 | X165: 0.7524326093 | Y165: 2.462606854 | AP165: 1. alveolus | AQ165: =LOG(AQ6) -> 0.5055298198 | AR165: 0.1561855728 | AS165: -0.2013324595 | AW165: =LOG(AW6) -> -0.5972229304 | AX165: -0.7883455994 | AY165: -2.461602671 | BA165: =LOG(BA6) -> -1.10275275 | BI165: 1. alveolus | BJ165: 0.7564459202 | BK165: 0.3887227005 | BL165: 0.3582642525 | BM165: 0.1063609088 | BN165: -0.2023862698 | BO165: -0.6629003036 | BP165: =W165 -> 1.435446186 | BQ165: 0.7524326093 | BR165: 2.462606854 | BV165: 0.5055298198 | BW165: 0.1561855728 | BX165: -0.2013324595 | BY165: -0.5972229304 | BZ165: -0.7883455994 | CA165: -2.461602671
B166: 2. alveolus | C166: 0.709905669 | D166: 0.3339508044 | E166: 0.489058037 | I166: =LOG(I7) -> 0.3399480617 | J166: -0.03739392708 | K166: -0.1627746777 | M166: =I166/C166 -> 0.478863709 | V166: 2. alveolus | W166: 1.366703057 | X166: 0.9060655448 | Y166: 2.396349368 | AC166: =LOG(AC7) -> 0.900640184 | AD166: 0.4976206498 | AE166: 1.448359534 | AG166: =LOG(AG7) -> -0.4660628729 | AP166: 2. alveolus | AQ166: 0.4036008975 | AR166: 0.248659743 | AS166: -0.4297081619 | AW166: 0.06175396781 | AX166: -0.1119328866 | AY166: -0.8565371547 | BA166: -0.3418469297 | BI166: 2. alveolus | BJ166: 0.709905669 | BK166: 0.3339508044 | BL166: 0.489058037 | BM166: =I166 -> 0.3399480617 | BO166: =K166 -> -0.1627746777 | BP166: =W166 -> 1.366703057 | BQ166: 0.9060655448 | BR166: 2.396349368 | BS166: =AC166 -> 0.900640184 | BT166: 0.4976206498 | BU166: 1.448359534 | BV166: 0.4036008975 | BW166: 0.248659743 | BX166: -0.4297081619 | BY166: 0.06175396781 | BZ166: -0.1119328866 | CA166: -0.8565371547
B167: 3. alveolus | C167: 0.9555674971 | D167: 0.4694538138 | E167: 1.086683651 | H167: =LOG(H8) -> 1.529199151 | I167: 0.4796472788 | J167: 0.01598810538 | K167: 0.2049335224 | M167: =I167/C167 -> 0.5019501817 | N167: =LOG(N8) -> 1.634551687 | V167: 3. alveolus | W167: 1.591231611 | X167: 1.058995094 | Y167: 3.005626855 | AC167: 1.125968963 | AD167: 0.6807886115 | AE167: 1.973934896 | AG167: =LOG(AG8) -> -0.4652626482 | AP167: 3. alveolus | AQ167: 0.6922121919 | AR167: 0.2535318435 | AS167: 0.175618272 | AV167: =LOG(AV8) -> -1.7782 | AW167: 0.02234587627 | AX167: -0.2734357838 | AY167: -0.9974057622 | BA167: -0.6698663157 | BI167: 3. alveolus | BJ167: 0.9555674971 | BK167: 0.4694538138 | BL167: 1.086683651 | BM167: =I167 -> 0.4796472788 | BN167: =J167 -> 0.01598810538 | BO167: =K167 -> 0.2049335224 | BP167: =W167 -> 1.591231611 | BQ167: 1.058995094 | BR167: 3.005626855 | BS167: 1.125968963 | BT167: 0.6807886115 | BU167: 1.973934896 | BV167: 0.6922121919 | BW167: 0.2535318435 | BX167: 0.175618272 | BY167: 0.02234587627 | BZ167: -0.2734357838 | CA167: -0.9974057622
B168: 4. alveolus | C168: 1.05757102 | D168: 0.4044060509 | E168: 1.32985939 | I168: 0.3555472957 | J168: -0.03739392708 | K168: -0.06301903918 | M168: =I168/C168 -> 0.3361923586 | V168: 4. alveolus | AP168: 4. alveolus | AQ168: 0.6162443888 | AR168: 0.1561855728 | AS168: 0.1205975305 | AW168: -0.2734357838 | AX168: -0.5047332556 | AY168: -1.635888138 | BA168: -0.8896801727 | BI168: 4. alveolus | BJ168: 1.05757102 | BK168: 0.4044060509 | BL168: 1.32985939 | BM168: =I168 -> 0.3555472957 | BO168: =K168 -> -0.06301903918 | BV168: 0.6162443888 | BW168: 0.1561855728 | BX168: 0.1205975305 | BY168: -0.2734357838 | BZ168: -0.5047332556 | CA168: -1.635888138
B169: 5.alveolus | C169: 0.8930678899 | D169: 0.4162243171 | E169: 0.8646320971 | I169: 0.4514026136 | J169: 0.1390916075 | K169: 0.07845319288 | M169: =I169/C169 -> 0.5054516221 | O169: =LOG(O10) -> -0.423083044 | P169: =LOG(P10) -> -0.9299621334 | Q169: =LOG(Q10) -> -1.821224428 | S169: =O169/I169 -> -0.9372631688 | V169: 5.alveolus | W169: =LOG(W10) -> 1.575361066 | X169: =LOG(X10) -> 0.9367649976 | Y169: =LOG(Y10) -> 2.932171935 | AC169: =LOG(AC10) -> 0.8132473009 | AD169: =LOG(AD10) -> 0.4720246977 | AE169: =LOG(AE10) -> 1.447597997 | AG169: =LOG(AG10) -> -0.7621137653 | AP169: 5.alveolus | AQ169: 0.6620775339 | AR169: 0.2462030418 | AS169: 0.08315419886 | AW169: -0.003138231509 | AX169: -0.2496459112 | AY169: -1.055062485 | BA169: -0.6652157654 | BI169: 5.alveolus | BJ169: 0.8930678899 | BK169: 0.4162243171 | BL169: 0.8646320971 | BM169: =I169 -> 0.4514026136 | BN169: =J169 -> 0.1390916075 | BO169: =K169 -> 0.07845319288 | BP169: =W169 -> 1.575361066 | BQ169: =X169 -> 0.9367649976 | BR169: =Y169 -> 2.932171935 | BS169: =AC169 -> 0.8132473009 | BT169: =AD169 -> 0.4720246977 | BU169: =AE169 -> 1.447597997 | BV169: 0.6620775339 | BW169: 0.2462030418 | BX169: 0.08315419886 | BY169: -0.003138231509 | BZ169: -0.2496459112 | CA169: -1.055062485
L170: average | M170: =(M165+M166+M167+M168+M169)/5 -> 0.3926127938 | R170: average | AF170: =AF11 -> average | AG170: =(AG166+AG167+AG169)/3 -> -0.5644797621 | AL170: =AL11 -> average | AZ170: =AZ11 -> average | BA170: -0.6603396271 | BF170: =BF11 -> average | BI170: 1. alveolus | BJ170: =C176 -> 0.9034969473 | BK170: =D176 -> 0.4162243171 | BL170: =E176 -> 0.8892820888 | BM170: =I176 -> 0.302655554 | BN170: =J176 -> -0.1690907005 | BO170: =K176 -> -0.2599185085 | BP170: =W176 -> 1.431444182 | BQ170: 0.8576339852 | BR170: 2.634607362 | BS170: =AC176 -> 0.9535180814 | BT170: =AD176 -> 0.5927317664 | BU170: =AE176 -> 1.641368142 | BV170: =AQ175 -> 0.6582785726 | BW170: =AR175 -> 0.2286056504 | BX170: =AS175 -> 0.05182457957 | BY170: =AW175 -> -0.159392121 | BZ170: =AX175 -> -0.3253225321 | CA170: =AY175 -> -1.319224784
BI171: 2. alveolus | BJ171: 0.8625785678 | BK171: 0.5474670224 | BL171: 0.8817446124 | BM171: 0.7632407573 | BN171: 0.302655554 | BO171: 0.7274395844 | BP171: 1.31858501 | BQ171: 0.07371835035 | BR171: 0.313004946 | BV171: 0.6256005129 | BW171: 0.3861064071 | BX171: 0.1868838519 | BY171: 0.2559475494 | BZ171: -0.02099825153 | CA171: -0.5364625168
AP172: Maxilla | AT172: dext | BI172: 3. alveolus | BJ172: 1.089816831 | BK172: 0.4694538138 | BL172: 1.479599781 | BM172: 0.5194998529 | BN172: 0.01598810538 | BO172: 0.3108610514 | BP172: 1.627519471 | BQ172: 0.7367947549 | BR172: 3.105825984 | BV172: 0.8009094446 | BW172: 0.2535318435 | BX172: 0.4463011161 | BY172: 0.04249675743 | BZ172: -0.2198267564 | CA172: -0.8598443687
B173: Maxilla | F173: dext | V173: Maxilla | Z173: dext | AP173: Small Alligator | AQ173: Functional tooth | AW173: Tooth position 1 (labial) | BC173: Tooth position 2 | BI173: 4. alveolus | BJ173: 0.9994567923 | BK173: 0.4211924683 | BL173: 1.272048254 | BM173: 0.2141813087 | BN173: -0.31202538 | BO173: -0.3293478819 | BP173: 1.795845272 | BQ173: 1.104657791 | BR173: 3.699681068 | BV173: 0.6904441774 | BW173: 0.4001579234 | BX173: 0.4740212104 | BY173: 0.4475921088 | BZ173: 0.08735543005 | CA173: -0.0523115504
B174: Medium Alligator | C174: Functional tooth | I174: Tooth position 1 (labial) | O174: Tooth position 2 | V174: Large Alligator | W174: Functional tooth | AC174: Tooth position 1 (labial) | AI174: Tooth position 2 | AQ174: tooth height | AR174: crown height | AS174: volume | AT174: developmental stage | AU174: size compared to tooth befoe | AV174: estimated age | AW174: tooth height | AX174: crown height | AY174: volume | AZ174: developmental stage | BA174: size compared to tooth befoe | BB174: estimated age | BC174: tooth height | BD174: crown height | BE174: volume | BF174: developmental stage | BG174: size compared to tooth before | BI174: 5. alveolus | BJ174: 1.048733048 | BK174: 0.4498639247 | BL174: 1.357614723 | BM174: 0.3833664828 | BN174: -0.03268608171 | BO174: -0.01442085356 | BP174: 1.546604349 | BQ174: 0.7799570512 | BR174: 2.924061709 | BV174: 0.7688452111 | BW174: 0.2631150762 | BX174: 0.482742887 | BY174: -0.04924581841 | BZ174: -0.298604731 | CA174: -1.148869108
C175: tooth height | D175: crown height | E175: volume | F175: developmental stage | G175: size compared to tooth before | H175: estimated age | I175: tooth height | J175: crown height | K175: volume | L175: developmental stage | M175: size compared to tooth before | N175: estimated age | O175: tooth height | P175: crown height | Q175: volume | R175: developmental stage | S175: size compared to tooth before | T175: estimated age | W175: tooth height | X175: crown height | Y175: volume | Z175: developmental stage | AA175: size compared to tooth befoe | AC175: tooth height | AD175: crown height | AE175: volume | AF175: developmental stage | AG175: size compared to tooth befoe | AI175: tooth height | AJ175: crown height | AK175: volume | AL175: developmental stage | AM175: size compared to tooth before | AP175: 1. alveolus | AQ175: =LOG(AQ16) -> 0.6582785726 | AR175: 0.2286056504 | AS175: 0.05182457957 | AW175: =LOG(AW16) -> -0.159392121 | AX175: -0.3253225321 | AY175: -1.319224784 | BA175: =LOG(BA16) -> -0.8176706936 | BI175: 6. alveolus | BJ175: 0.9839643911 | BK175: 0.5208109315 | BL175: 1.217418137 | BM175: 0.4951973184 | BN175: 0.1327398383 | BO175: 0.3306511498 | BP175: 1.500853711 | BQ175: 0.9457147141 | BR175: 2.874279735 | BS175: =AC181 -> 0.8730298121 | BT175: 0.3128118262 | BU175: 1.736294794 | BV175: 0.606682257 | BW175: 0.3409990225 | BX175: 0.1507887084 | BY175: 0.2654782036 | BZ175: -0.03021146259 | CA175: -0.4388078416
B176: 1. alveolus | C176: =LOG(C17) -> 0.9034969473 | D176: 0.4162243171 | E176: 0.8892820888 | I176: =LOG(I17) -> 0.302655554 | J176: -0.1690907005 | K176: -0.2599185085 | M176: =I176/C176 -> 0.3349823758 | V176: 1. alveolus | W176: =LOG(W17) -> 1.431444182 | X176: 0.8576339852 | Y176: 2.634607362 | AC176: =LOG(AC17) -> 0.9535180814 | AD176: =LOG(AD17) -> 0.5927317664 | AE176: =LOG(AE17) -> 1.641368142 | AG176: =LOG(AG17) -> -0.4779261002 | AI176: =LOG(AI17) -> -0.04817696468 | AJ176: =LOG(AJ17) -> -0.2403321553 | AK176: =LOG(AK17) -> -0.347380075 | AM176: =LOG(AM17) -> -1.001695046 | AP176: 2. alveolus | AQ176: 0.6256005129 | AR176: 0.3861064071 | AS176: 0.1868838519 | AW176: 0.2559475494 | AX176: -0.02099825153 | AY176: -0.5364625168 | BA176: -0.3696529635 | BI176: 7. alveolus | BJ176: 0.9163223242 | BK176: 0.3650197428 | BL176: 0.9647464649 | BM176: 0.09254520761 | BN176: -0.2309921291 | BO176: -0.5081090697 | BP176: 1.454616224 | BQ176: 0.7941393558 | BR176: 2.713920811 | BS176: 0.4778444763 | BT176: 0.2516382204 | BU176: 0.7159657505 | BV176: 0.6077551724 | BW176: 0.3144571227 | BX176: 0.119301204 | BY176: -0.147032309 | BZ176: -0.3738650214 | CA176: -1.164409746
B177: 2. alveolus | C177: 0.8625785678 | D177: 0.5474670224 | E177: 0.8817446124 | I177: 0.7632407573 | J177: 0.302655554 | K177: 0.7274395844 | M177: 0.8848362176 | O177: =LOG(O18) -> 0.003245054813 | P177: =LOG(P18) -> -0.4847886957 | Q177: =LOG(Q18) -> -0.7973782001 | S177: =O177/I177 -> 0.004251679149 | V177: 2. alveolus | W177: 1.31858501 | X177: 0.07371835035 | Y177: 0.313004946 | AP177: 3. alveolus | AQ177: 0.8009094446 | AR177: 0.2535318435 | AS177: 0.4463011161 | AW177: 0.04249675743 | AX177: -0.2198267564 | AY177: -0.8598443687 | BA177: -0.7584126872 | BI177: 8. alveolus | BJ177: 0.9574875643 | BK177: 0.4373541278 | BL177: 1.171190932 | BM177: 0.4420876296 | BN177: 0.1097472377 | BO177: 0.2501368867 | BP177: 1.496860487 | BQ177: 0.793441133 | BR177: 2.823283416 | BS177: 0.0916669576 | BT177: -0.01999662842 | BU177: 0.1295189759 | BV177: 0.4917537828 | BW177: 0.3227979683 | BX177: 0.09090782998 | BY177: 0.3248583882 | BZ177: 0.02645154574 | CA177: -0.2599274292
B178: 3. alveolus | C178: 1.089816831 | D178: 0.4694538138 | E178: 1.479599781 | I178: 0.5194998529 | J178: 0.01598810538 | K178: 0.3108610514 | M178: 0.4766854741 | V178: 3. alveolus | W178: 1.627519471 | X178: 0.7367947549 | Y178: 3.105825984 | AP178: 4. alveolus | AQ178: 0.6904441774 | AR178: 0.4001579234 | AS178: 0.4740212104 | AW178: 0.4475921088 | AX178: 0.08735543005 | AY178: -0.0523115504 | BA178: -0.2428520686 | BI178: 9. alveolus | BJ178: 0.9478011971 | BK178: 0.3612555201 | BL178: 1.081257271 | BM178: 0.1063609088 | BN178: -0.2537551283 | BO178: -0.4972329523 | BV178: 0.677862345 | BW178: 0.3584678639 | BX178: 0.3057662492 | BY178: 0.001214325286 | BZ178: -0.2126812434 | CA178: -0.9281177719
B179: 4. alveolus | C179: 0.9994567923 | D179: 0.4211924683 | E179: 1.272048254 | I179: 0.2141813087 | J179: -0.31202538 | K179: -0.3293478819 | M179: 0.2142977168 | V179: 4. alveolus | W179: 1.795845272 | X179: 1.104657791 | Y179: 3.699681068 | AP179: 5. alveolus | AQ179: 0.7688452111 | AR179: 0.2631150762 | AS179: 0.482742887 | AW179: -0.04924581841 | AX179: -0.298604731 | AY179: -1.148869108 | BA179: -0.8180910295 | BI179: 10. alveolus | BJ179: 1.013153343 | BK179: 0.5128844244 | BL179: 1.415257217 | BM179: 0.4605219929 | BN179: 0.09254520761 | BO179: 0.3108610514 | BP179: =W185 -> 1.625363905 | BQ179: 1.018492453 | BR179: 3.298168573 | BS179: =AC185 -> 1.064645145 | BT179: 0.6258267133 | BU179: 2.118208132 | BV179: 0.5947018612 | BW179: 0.1312335946 | BX179: 0.2710516607 | BY179: -0.3346066497 | BZ179: -0.5485205949 | CA179: -1.618808566
B180: 5. alveolus | C180: 1.048733048 | D180: 0.4498639247 | E180: 1.357614723 | I180: 0.3833664828 | J180: -0.03268608171 | K180: -0.01442085356 | M180: 0.3655520186 | V180: 5. alveolus | W180: 1.546604349 | X180: 0.7799570512 | Y180: 2.924061709 | AP180: 6. alveolus | AQ180: 0.606682257 | AR180: 0.3409990225 | AS180: 0.1507887084 | AV180: =LOG(AV21) -> -1.89734 | AW180: 0.2654782036 | AX180: -0.03021146259 | AY180: -0.4388078416 | BA180: -0.3412040534 | BI180: 11. alveolus | BJ180: 0.8393208936 | BK180: 0.3612555201 | BL180: 1.066370657 | BM180: -0.1092996023 | BN180: -0.6064247967 | BO180: -1.075326925 | BP180: 1.625672499 | BQ180: 0.8360074591 | BR180: 3.164208048 | BS180: 0.3374592613 | BT180: 0.1568519011 | BU180: 0.8069061109 | BV180: 0.6751181523 | BW180: 0.3622562208 | BX180: 0.4431679487 | BY180: 0.1438887581 | BZ180: -0.1233203896 | CA180: -0.4915228035
B181: 6. alveolus | C181: 0.9839643911 | D181: 0.5208109315 | E181: 1.217418137 | H181: =LOG(H22) -> 1.381781929 | I181: 0.4951973184 | J181: 0.1327398383 | K181: 0.3306511498 | M181: 0.5032675195 | N181: =LOG(N22) -> 1.467361417 | O181: =LOG(O22) -> -0.5121548799 | P181: =LOG(P22) -> -1.240332155 | Q181: =LOG(Q22) -> -1.77573376 | S181: =O181/I181 -> -1.03424405 | V181: 6. alveolus | W181: 1.500853711 | X181: 0.9457147141 | Y181: 2.874279735 | AC181: =LOG(AC22) -> 0.8730298121 | AD181: 0.3128118262 | AE181: 1.736294794 | AG181: =LOG(AG22) -> -0.6278238994 | AP181: 7. alveolus | AQ181: 0.6077551724 | AR181: 0.3144571227 | AS181: 0.119301204 | AV181: =LOG(AV22) -> -1.81436 | AW181: -0.147032309 | AX181: -0.3738650214 | AY181: -1.164409746 | BA181: -0.7547874814 | BI181: 12. alveolus | BJ181: 0.9393944374 | BK181: 0.4796472788 | BL181: 1.316410711 | BM181: 0.2220658426 | BN181: -0.08751223867 | BO181: -0.04960593397 | BP181: 1.500990756 | BQ181: 0.8901414601 | BR181: 3.003093193 | BS181: 0.7263196121 | BT181: 0.4631461367 | BU181: 1.663240829 | BV181: 0.6592314329 | BW181: 0.1939034026 | BX181: 0.3726354976 | BY181: -0.4403327216 | BZ181: -0.6929320493 | CA181: -1.816508042
B182: 7. alveolus | C182: 0.9163223242 | D182: 0.3650197428 | E182: 0.9647464649 | H182: =LOG(H23) -> 1.593286067 | I182: 0.09254520761 | J182: -0.2309921291 | K182: -0.5081090697 | M182: 0.1009963472 | V182: 7. alveolus | W182: 1.454616224 | X182: 0.7941393558 | Y182: 2.713920811 | AC182: 0.4778444763 | AD182: 0.2516382204 | AE182: 0.7159657505 | AG182: =LOG(AG23) -> -0.9767717475 | AP182: 8. alveolus | AQ182: 0.4917537828 | AR182: 0.3227979683 | AS182: 0.09090782998 | AW182: 0.3248583882 | AX182: 0.02645154574 | AY182: -0.2599274292 | BA182: -0.1668953946 | BC182: =LOG(BC23) -> -0.7883455994 | BD182: =LOG(BD23) -> -0.7883455994 | BE182: =LOG(BE23) -> -2.565607484 | BG182: =LOG(BG23) -> -1.113203988 | BI182: 13. alveolus | BJ182: 0.8714269787 | BK182: 0.4498639247 | BL182: 1.136371723 | BM182: 0.3154455182 | BN182: 0.0443437349 | BO182: 0.1832556043 | BP182: 1.421521666 | BQ182: 0.8071966607 | BR182: 2.788631482 | BS182: 0.3434085938 | BT182: 0.2265999052 | BU182: 0.829776189 | BV182: 0.589145021 | BW182: 0.312346639 | BX182: 0.2247770329 | BY182: -0.1409818561 | BZ182: -0.3440935818 | CA182: -0.9517035268
B183: 8. alveolus | C183: 0.9574875643 | D183: 0.4373541278 | E183: 1.171190932 | I183: 0.4420876296 | J183: 0.1097472377 | K183: 0.2501368867 | M183: 0.4617163147 | V183: 8. alveolus | W183: 1.496860487 | X183: 0.793441133 | Y183: 2.823283416 | AC183: 0.0916669576 | AD183: -0.01999662842 | AE183: 0.1295189759 | AG183: =LOG(AG24) -> -1.40519353 | AP183: 9. alveolus | AQ183: 0.677862345 | AR183: 0.3584678639 | AS183: 0.3057662492 | AW183: 0.001214325286 | AX183: -0.2126812434 | AY183: -0.9281177719 | BA183: -0.6766480197 | BI183: 14. alveolus | BJ183: 0.7901091582 | BK183: 0.3419288837 | BL183: 0.9009245251 | BM183: -0.1092996023 | BN183: -0.3793435202 | BO183: -0.8314701077 | BP183: 1.325618273 | BQ183: 0.7906369619 | BR183: 2.631689045 | BV183: 0.508233355 | BW183: 0.1312335946 | BX183: 0.03387744061
B184: 9. alveolus | C184: 0.9478011971 | D184: 0.3612555201 | E184: 1.081257271 | I184: 0.1063609088 | J184: -0.2537551283 | K184: -0.4972329523 | M184: 0.1122185846 | V184: 9. alveolus | AP184: 10. alveolus | AQ184: 0.5947018612 | AR184: 0.1312335946 | AS184: 0.2710516607 | AW184: -0.3346066497 | AX184: -0.5485205949 | AY184: -1.618808566 | BA184: -0.9293085109 | BI184: 15. alveolus | BJ184: 0.7617399542 | BK184: 0.4867845714 | BL184: 0.7127776145 | BM184: 0.2061509816 | BN184: -0.3793435202 | BO184: -0.2020548791 | BP184: 1.229041573 | BQ184: 0.6584883813 | BR184: 2.32144658 | BV184: 0.4583053921 | BW184: 0.2437323646 | BX184: -0.1175562381 | BY184: =AW189 -> -0.4778166824 | BZ184: =AX189 -> -0.4778166824 | CA184: =AY189 -> -1.922154826
B185: 10. alveolus | C185: 1.013153343 | D185: 0.5128844244 | E185: 1.415257217 | I185: 0.4605219929 | J185: 0.09254520761 | K185: 0.3108610514 | M185: 0.4545432297 | V185: 10. alveolus | W185: =LOG(W26) -> 1.625363905 | X185: 1.018492453 | Y185: 3.298168573 | AC185: =LOG(AC26) -> 1.064645145 | AD185: 0.6258267133 | AE185: 2.118208132 | AG185: =LOG(AG26) -> -0.5607187598 | AP185: 11. alveolus | AQ185: 0.6751181523 | AR185: 0.3622562208 | AS185: 0.4431679487 | AW185: 0.1438887581 | AX185: -0.1233203896 | AY185: -0.4915228035 | BA185: -0.5312293942 | BI185: 16. alveolus | BV185: 0.06175396781 | BW185: -0.1657064876 | BX185: -0.8716737564
B186: 11. alveolus | C186: 0.8393208936 | D186: 0.3612555201 | E186: 1.066370657 | I186: -0.1092996023 | J186: -0.6064247967 | K186: -1.075326925 | M186: -0.1302238549 | V186: 11. alveolus | W186: 1.625672499 | X186: 0.8360074591 | Y186: 3.164208048 | AC186: 0.3374592613 | AD186: 0.1568519011 | AE186: 0.8069061109 | AG186: =LOG(AG27) -> -1.288213237 | AP186: 12. alveolus | AQ186: 0.6592314329 | AR186: 0.1939034026 | AS186: 0.3726354976 | AV186: =LOG(AV27) -> -1.92082 | AW186: -0.4403327216 | AX186: -0.6929320493 | AY186: -1.816508042 | BA186: -1.099564154 | BB186: =LOG(BB27) -> -1.93930216 | BI186: 1. alveolus | BJ186: =C196 -> 0.97254995 | BK186: =D196 -> 0.325823419 | BL186: =E196 -> 1.160072173 | BM186: =I196 -> 0.5007166236 | BO186: =K196 -> 0.1747602805 | BV186: =AQ195 -> 0.7128853014 | BW186: =AR195 -> 0.3309816377 | BX186: =AS195 -> 0.3797104649 | BY186: =AW195 -> 0.1710825774 | BZ186: =AX195 -> -0.1786175003 | CA186: =AY195 -> -0.6414498643
B187: 12. alveolus | C187: 0.9393944374 | D187: 0.4796472788 | E187: 1.316410711 | H187: =LOG(H28) -> 1.489281237 | I187: 0.2220658426 | J187: -0.08751223867 | K187: -0.04960593397 | M187: 0.2363925458 | V187: 12. alveolus | W187: 1.500990756 | X187: 0.8901414601 | Y187: 3.003093193 | AC187: 0.7263196121 | AD187: 0.4631461367 | AE187: 1.663240829 | AG187: =LOG(AG28) -> -0.774671144 | AP187: 13. alveolus | AQ187: 0.589145021 | AR187: 0.312346639 | AS187: 0.2247770329 | AV187: =LOG(AV28) -> -1.93305 | AW187: -0.1409818561 | AX187: -0.3440935818 | AY187: -0.9517035268 | BA187: -0.7301268771 | BI187: 2. alveolus | BJ187: 0.9099569782 | BK187: 0.3779433803 | BL187: 0.9787030911 | BM187: 0.2348967457 | BN187: =J197 -> -0.3690638809 | BO187: -0.4384681147 | BP187: =W197 -> 1.512884424 | BQ187: =X197 -> 0.6651117371 | BR187: =Y197 -> 2.620993153 | BS187: =AC197 -> 0.2866809694 | BT187: =AD197 -> 0.07003786661 | BU187: =AE197 -> 0.6695385467 | BV187: 0.3370197526 | BW187: 0.210264999 | BX187: -0.166932363 | BY187: 0.3165574 | BZ187: -0.08470571698 | CA187: -0.3297524209
B188: 13. alveolus | C188: 0.8714269787 | D188: 0.4498639247 | E188: 1.136371723 | H188: =LOG(H29) -> 1.345502988 | I188: 0.3154455182 | J188: 0.0443437349 | K188: 0.1832556043 | M188: 0.3619873219 | N188: =LOG(N29) -> 1.331323454 | V188: 13. alveolus | W188: 1.421521666 | X188: 0.8071966607 | Y188: 2.788631482 | AC188: 0.3434085938 | AD188: 0.2265999052 | AE188: 0.829776189 | AG188: =LOG(AG29) -> -1.078113073 | AP188: 14. alveolus | AQ188: 0.508233355 | AR188: 0.1312335946 | AS188: 0.03387744061 | BI188: 3. alveolus | BJ188: 0.9303121422 | BK188: 0.4993433592 | BL188: 0.8752117927 | BM188: 0.6548981612 | BN188: 0.1695274896 | BO188: 0.3766043277 | BV188: 0.6476567632 | BW188: 0.2654782036 | BX188: 0.1099552074 | BY188: 0.03854068634 | BZ188: -0.265360161 | CA188: -1.037447291
B189: 14. alveolus | C189: 0.7901091582 | D189: 0.3419288837 | E189: 0.9009245251 | I189: -0.1092996023 | J189: -0.3793435202 | K189: -0.8314701077 | M189: -0.1383348126 | V189: 14. alveolus | W189: 1.325618273 | X189: 0.7906369619 | Y189: 2.631689045 | AP189: 15. alveolus | AQ189: 0.4583053921 | AR189: 0.2437323646 | AS189: -0.1175562381 | AW189: =LOG(AW30) -> -0.4778166824 | AX189: =LOG(AX30) -> -0.4778166824 | AY189: =LOG(AY30) -> -1.922154826 | BA189: =LOG(BA30) -> -0.9361220745 | BI189: 4. alveolus | BJ189: 1.046397603 | BK189: 0.4244732732 | BL189: 1.303945163 | BM189: 0.3555472957 | BN189: -0.1149216159 | BO189: -0.07009697811 | BP189: =W199 -> 1.640630483 | BQ189: =X199 -> 1.109409791 | BR189: =Y199 -> 2.985028173 | BS189: =AC199 -> 1.457200413 | BT189: 0.6594407819 | BU189: 2.672092197 | BV189: 0.5743554199 | BW189: 0.09089262571 | BX189: 0.05218197676 | BY189: -0.4403327216 | BZ189: -0.7148929704 | CA189: -1.95846798
B190: 15. alveolus | C190: 0.7617399542 | D190: 0.4867845714 | E190: 0.7127776145 | I190: 0.2061509816 | J190: -0.3793435202 | K190: -0.2020548791 | M190: 0.2706317037 | V190: 15. alveolus | W190: 1.229041573 | X190: 0.6584883813 | Y190: 2.32144658 | AP190: 16. alveolus | AQ190: 0.06175396781 | AR190: -0.1657064876 | AS190: -0.8716737564 | AZ190: =AZ31 -> avarage | BA190: =LOG(BA31) -> -0.580514344 | BG190: =LOG(BG31) -> -1.113203988 | BI190: 5. alveolus | BJ190: 0.8789524296 | BK190: 0.3359591061 | BL190: 0.8781447838 | BM190: 0.3154455182 | BN190: -0.02342078136 | BO190: -0.2163765167 | BP190: 1.477338348 | BQ190: 0.870696458 | BR190: 2.664628173 | BS190: 0.7638022241 | BT190: 0.3988077302 | BU190: 1.058736495 | BV190: 0.6214670993 | BW190: 0.1966735005 | BX190: 0.04462666547 | BY190: -0.1987335295 | BZ190: -0.4910664739 | CA190: -1.346423758
L191: average | M191: =(M176+M177+M178+M179+M180+M181+M182+M183+M184+M185+M186+M187+M188+M189+M190)/15 -> 0.3006365802 | S191: =(S177+S181)/2 -> -0.5149961852 | AF191: =AF32 -> average | AG191: =(AG176+AG160+AG181+AG182+AG183+AG185+AG186+AG187+AG188)/9 -> -0.7988257212 | AM191: =LOG(AM32) -> -1.001695046 | BI191: 6. alveolus | BJ191: 0.8265606813 | BK191: 0.2827353726 | BL191: 0.6536436988 | BM191: -0.05675287486 | BN191: -0.4117282932 | BO191: -0.9089066194 | BP191: 1.385874274 | BQ191: 0.7454651687 | BR191: 2.427748421 | BS191: 0.7941393558 | BT191: 0.493458051 | BU191: 1.068063711 | BV191: 0.5109201643 | BW191: 0.2839341135 | BX191: -0.1080817957 | BY191: -0.02099825153 | BZ191: -0.2496459112 | CA191: -0.8947070918
AP192: Dentary | AT192: dext | BI192: 7. alveolus | BJ192: 0.7182940415 | BK192: 0.2473594225 | BL192: 0.6019807254 | BM192: 0.3439007122 | BN192: 0.02015403164 | BO192: -0.1062476672 | BP192: 1.326233421 | BQ192: 0.6419695977 | BR192: 2.226380901 | BS192: 0.3042750505 | BT192: 0.05499586153 | BU192: 0.07696907622 | BV192: 0.5041717148 | BW192: 0.0345482471 | BX192: -0.2507987989 | BY192: -0.7624562619 | BZ192: -0.7624562619 | CA192: -2.656177316
B193: Dentary | F193: dext | V193: Dentary | Z193: dext | AP193: Small Alligator | AQ193: Functional tooth | AW193: Tooth position 1 (labial) | BC193: Tooth position 2 | BI193: 8. alveolus | BJ193: 0.7794160989 | BK193: 0.3574583856 | BL193: 0.6444769948 | BM193: 0.05975269421 | BN193: -0.2236620904 | BO193: -0.6229725593 | BP193: 1.302006061 | BQ193: 0.624797579 | BR193: 2.26634469 | BS193: 0.5496162395 | BT193: 0.2730012721 | BU193: 0.7385472052 | BV193: 0.4832734076 | BW193: 0.2311636415 | BX193: -0.2978010111 | BY193: -0.02099825153 | BZ193: -0.3440935818 | CA193: -1.166646803
B194: Medium Alligator | C194: Functional tooth | I194: Tooth position 1 (labial) | O194: Tooth position 2 | V194: Large Alligator | W194: Functional tooth | AC194: Tooth position 1 (labial) | AI194: Tooth position 2 | AQ194: tooth height | AR194: crown height | AS194: volume | AT194: developmental stage | AU194: size compared to tooth befoe | AV194: estimated age | AW194: tooth height | AX194: crown height | AY194: volume | AZ194: developmental stage | BA194: size compared to tooth befoe | BB194: estimated age | BC194: tooth height | BD194: crown height | BE194: volume | BF194: developmental stage | BG194: size compared to tooth before | BI194: 9. alveolus | BJ194: 0.652971172 | BK194: -0.01886121736 | BL194: 0.4493472425 | BM194: -0.541362151 | BN194: -0.7759851886 | BO194: -1.750112212 | BP194: 1.261619677 | BQ194: 0.7454651687 | BR194: 2.217021456 | BS194: 0.8683504996 | BT194: 0.5269850686 | BU194: 1.399709744 | BV194: 0.4917537828 | BW194: 0.04641711698 | BX194: -0.3211993849 | BY194: -0.7883455994 | BZ194: -0.7883455994 | CA194: -2.643768064
C195: tooth height | D195: crown height | E195: volume | F195: developmental stage | G195: size compared to tooth befoe | H195: estimated age | I195: tooth height | J195: crown height | K195: volume | L195: developmental stage | M195: size compared to tooth before | N195: estimated age | O195: tooth height | P195: crown height | Q195: volume | R195: developmental stage | S195: size compared to tooth before | T195: estimated age | W195: tooth height | X195: crown height | Y195: volume | Z195: developmental stage | AA195: size compared to tooth befoe | AC195: tooth height | AD195: crown height | AE195: volume | AF195: developmental stage | AG195: size compared to tooth befoe | AI195: tooth height | AJ195: crown height | AK195: volume | AL195: developmental stage | AM195: size compared to tooth before | AP195: 1. alveolus | AQ195: =LOG(AQ36) -> 0.7128853014 | AR195: 0.3309816377 | AS195: 0.3797104649 | AW195: =LOG(AW36) -> 0.1710825774 | AX195: -0.1786175003 | AY195: -0.6414498643 | BA195: =LOG(BA36) -> -0.541802724 | BI195: 10. alveolus | BJ195: 0.764736392 | BK195: 0.3631417097 | BL195: 0.6588705448 | BM195: 0.1453518166 | BN195: -0.17554873 | BO195: -0.457878227 | BP195: 1.328685337 | BQ195: 0.6584883813 | BR195: 2.264622285 | BS195: 0.3988077302 | BT195: 0.1889284838 | BU195: 0.4703186531 | BV195: 0.5028093494 | BW195: 0.2583498925 | BX195: -0.236892192 | BY195: -0.1409818561 | BZ195: -0.3346066497 | CA195: -1.184333098
B196: 1. alveolus | C196: =LOG(C37) -> 0.97254995 | D196: 0.325823419 | E196: 1.160072173 | I196: =LOG(I37) -> 0.5007166236 | K196: =LOG(K37) -> 0.1747602805 | M196: =I196/C196 -> 0.5148492615 | V196: 1. alveolus | AP196: 2. alveolus | AQ196: 0.3370197526 | AR196: 0.210264999 | AS196: -0.166932363 | AV196: =LOG(AV37) -> -1.87506 | AW196: 0.3165574 | AX196: -0.08470571698 | AY196: -0.3297524209 | BA196: -0.02046235262 | BI196: 11. alveolus | BJ196: 0.7456602257 | BK196: 0.2220658426 | BL196: 0.6196170912 | BM196: -0.1206173628 | BN196: -0.4847886957 | BO196: -1.2198318 | BP196: 1.414722721 | BQ196: 0.7011360661 | BR196: 2.47194312 | BV196: 0.589145021 | BW196: 0.1740016264 | BX196: -0.02424853514 | BY196: -0.3440935818 | BZ196: -0.5485205949 | CA196: -1.567656062
B197: 2. alveolus | C197: 0.9099569782 | D197: 0.3779433803 | E197: 0.9787030911 | H197: =LOG(H38) -> 1.051152522 | I197: 0.2348967457 | J197: =LOG(J38) -> -0.3690638809 | K197: -0.4384681147 | M197: 0.2581404961 | N197: =LOG(N38) -> 1.008600172 | V197: 2. alveolus | W197: =LOG(W38) -> 1.512884424 | X197: =LOG(X38) -> 0.6651117371 | Y197: =LOG(Y38) -> 2.620993153 | AC197: =LOG(AC38) -> 0.2866809694 | AD197: =LOG(AD38) -> 0.07003786661 | AE197: =LOG(AE38) -> 0.6695385467 | AG197: =LOG(AG38) -> -1.226203455 | AP197: 3. alveolus | AQ197: 0.6476567632 | AR197: 0.2654782036 | AS197: 0.1099552074 | AW197: 0.03854068634 | AX197: -0.265360161 | AY197: -1.037447291 | BA197: -0.6091160769 | BI197: 12. alveolus | BJ197: 0.9323469078 | BK197: 0.4467700952 | BL197: 1.140093034 | BM197: 0.4128803585 | BN197: 0.0746336183 | BO197: 0.1623224006 | BP197: 1.563303059 | BQ197: 0.9765792186 | BR197: 2.969158861 | BS197: =AC207 -> 0.7287594752 | BT197: 0.3701428471 | BU197: 1.212833562 | BV197: 0.5517914436 | BW197: 0.3289501321 | BX197: 0.08437986451 | BY197: 0.2075805148 | BZ197: -0.03489241415 | CA197: -0.4556519756
B198: 3. alveolus | C198: 0.9303121422 | D198: 0.4993433592 | E198: 0.8752117927 | I198: 0.6548981612 | J198: 0.1695274896 | K198: 0.3766043277 | M198: 0.7039552979 | O198: =LOG(O39) -> -0.2860896459 | P198: =LOG(P39) -> -0.9685915357 | Q198: =LOG(Q39) -> -1.416412463 | S198: =O198/I198 -> -0.4368460057 | V198: 3. alveolus | AP198: 4. alveolus | AQ198: 0.5743554199 | AR198: 0.09089262571 | AS198: 0.05218197676 | AV198: =LOG(AV39) -> -1.75696 | AW198: -0.4403327216 | AX198: -0.7148929704 | AY198: -1.95846798 | BA198: -1.014688142 | BB198: =LOG(BB39) -> -1.9208 | BI198: 13. alveolus | BJ198: 0.8783781558 | BK198: 0.325823419 | BL198: 0.9679965466 | BM198: -0.2460341341 | BN198: -0.7044329 | BO198: -1.157194873 | BP198: 1.653453721 | BQ198: 1.078275522 | BR198: 3.362708364 | BS198: 1.115444083 | BT198: 0.5938396611 | BU198: 2.116714893 | BV198: 0.7318143141 | BW198: 0.2583498925 | BX198: 0.3756759002 | BY198: -0.09539263618 | BZ198: -0.3440935818 | CA198: -1.165425178
B199: 4. alveolus | C199: 1.046397603 | D199: 0.4244732732 | E199: 1.303945163 | H199: =LOG(H40) -> 1.310237997 | I199: 0.3555472957 | J199: -0.1149216159 | K199: -0.07009697811 | M199: 0.3397822154 | V199: 4. alveolus | W199: =LOG(W40) -> 1.640630483 | X199: 1.109409791 | Y199: 2.985028173 | AC199: =LOG(AC40) -> 1.457200413 | AD199: 0.6594407819 | AE199: 2.672092197 | AG199: =LOG(AG40) -> -0.1834300699 | AI199: =LOG(AI40) -> 0.5496162395 | AJ199: =LOG(AJ40) -> 0.2027606874 | AK199: =LOG(AK40) -> 0.3193974054 | AM199: =LOG(AM40) -> -0.9075841733 | AP199: 5. alveolus | AQ199: 0.6214670993 | AR199: 0.1966735005 | AS199: 0.04462666547 | AW199: -0.1987335295 | AX199: -0.4910664739 | AY199: -1.346423758 | BA199: -0.8202006289 | BI199: 14. alveolus | BJ199: 0.9368905707 | BK199: 0.4244732732 | BL199: 1.251647952 | BM199: 0.2088442893 | BN199: -0.08751223867 | BO199: -0.125142034 | BP199: 1.582233864 | BQ199: 0.8867726431 | BR199: 3.124571529 | BV199: 0.6151922674 | BW199: 0.3584678639 | BX199: 0.2475573297 | BY199: 0.2286056504 | BZ199: -0.0794592835 | CA199: -0.4213447249
B200: 5. alveolus | C200: 0.8789524296 | D200: 0.3359591061 | E200: 0.8781447838 | I200: 0.3154455182 | J200: -0.02342078136 | K200: -0.2163765167 | M200: 0.358888044 | V200: 5. alveolus | W200: 1.477338348 | X200: 0.870696458 | Y200: 2.664628173 | AC200: 0.7638022241 | AD200: 0.3988077302 | AE200: 1.058736495 | AG200: -0.7135361236 | AP200: 6. alveolus | AQ200: 0.5109201643 | AR200: 0.2839341135 | AS200: -0.1080817957 | AW200: -0.02099825153 | AX200: -0.2496459112 | AY200: -0.8947070918 | BA200: -0.5319184159 | BI200: 15. alveolus | BJ200: 0.860188224 | BK200: 0.4853664657 | BL200: 1.055122114 | BM200: 0.4195427247 | BN200: 0.135927335 | BO200: 0.4004378225 | BP200: 1.44770056 | BQ200: 0.8435442119 | BR200: 2.83965053 | BS200: =AC210 -> 0.9476787399 | BT200: 0.5409548089 | BU200: 1.95943891 | BV200: 0.6286749593 | BW200: 0.1966735005 | BX200: 0.2169662858 | BY200: -0.5188441292 | BZ200: -0.633017024 | CA200: -1.867660547
B201: 6. alveolus | C201: 0.8265606813 | D201: 0.2827353726 | E201: 0.6536436988 | I201: -0.05675287486 | J201: -0.4117282932 | K201: -0.9089066194 | M201: -0.06866147416 | V201: 6. alveolus | W201: 1.385874274 | X201: 0.7454651687 | Y201: 2.427748421 | AC201: 0.7941393558 | AD201: 0.493458051 | AE201: 1.068063711 | AG201: -0.5917349181 | AP201: 7. alveolus | AQ201: 0.5041717148 | AR201: 0.0345482471 | AS201: -0.2507987989 | AW201: -0.7624562619 | AX201: -0.7624562619 | AY201: -2.656177316 | BA201: -1.266627977 | BI201: 16. alveolus | BJ201: 0.7721382666 | BK201: 0.3339508044 | BL201: 0.9850090454 | BM201: -0.2093630381 | BN201: -0.400662867 | BO201: -0.9201388917 | BP201: 1.417056299 | BQ201: 0.7213983755 | BR201: 2.755855479 | BS201: 0.1717264537 | BT201: -0.006563769502 | BU201: 0.4243207081 | BV201: 0.5697015554 | BW201: 0.3102258492 | BX201: 0.1725572462 | BY201: -0.07427547306 | BZ201: -0.2734357838 | CA201: -0.7699319174
B202: 7. alveolus | C202: 0.7182940415 | D202: 0.2473594225 | E202: 0.6019807254 | I202: 0.3439007122 | J202: 0.02015403164 | K202: -0.1062476672 | M202: 0.4787742796 | V202: 7. alveolus | W202: 1.326233421 | X202: 0.6419695977 | Y202: 2.226380901 | AC202: 0.3042750505 | AD202: 0.05499586153 | AE202: 0.07696907622 | AG202: -1.02195837 | AP202: 8. alveolus | AQ202: 0.4832734076 | AR202: 0.2311636415 | AS202: -0.2978010111 | AW202: -0.02099825153 | AX202: -0.3440935818 | AY202: -1.166646803 | BA202: -0.5042716591 | BI202: 17. alveolus | BJ202: 0.8107364374 | BK202: 0.4405155211 | BL202: 1.049950277 | BM202: 0.0746336183 | BN202: -0.1381670023 | BO202: -0.2678926473 | BV202: 0.5241103935 | BW202: 0.1500806862 | BX202: 0.08898801903 | BY202: -0.8158766458 | BZ202: -0.8158766458 | CA202: -2.313182839
B203: 8. alveolus | C203: 0.7794160989 | D203: 0.3574583856 | E203: 0.6444769948 | I203: 0.05975269421 | J203: -0.2236620904 | K203: -0.6229725593 | M203: 0.07666340776 | V203: 8. alveolus | W203: 1.302006061 | X203: 0.624797579 | Y203: 2.26634469 | AC203: 0.5496162395 | AD203: 0.2730012721 | AE203: 0.7385472052 | AG203: -0.7523898211 | AP203: 9. alveolus | AQ203: 0.4917537828 | AR203: 0.04641711698 | AS203: -0.3211993849 | AW203: -0.7883455994 | AX203: -0.7883455994 | AY203: -2.643768064 | BA203: -1.280099382 | BI203: 18. alveolus | BJ203: 0.786573978 | BK203: 0.3957630894 | BL203: 0.8892764847 | BM203: 0.4325684653 | BN203: 0.1230345298 | BO203: 0.3611439785 | BV203: 0.5292763219 | BW203: 0.2701662293 | BX203: 0.07910907117 | BY203: -0.1657064876 | BZ203: -0.3637127479 | CA203: -0.9570814635
B204: 9. alveolus | C204: 0.652971172 | D204: -0.01886121736 | E204: 0.4493472425 | I204: -0.541362151 | J204: -0.7759851886 | K204: -1.750112212 | M204: -0.8290751172 | V204: 9. alveolus | W204: 1.261619677 | X204: 0.7454651687 | Y204: 2.217021456 | AC204: 0.8683504996 | AD204: 0.5269850686 | AE204: 1.399709744 | AG204: -0.3932691769 | AI204: =LOG(AI45) -> -0.2328441339 | AJ204: =LOG(AJ45) -> -0.3716110699 | AK204: =LOG(AK45) -> -0.7513948975 | AM204: =LOG(AM45) -> -1.101194634 | AP204: 10. alveolus | AQ204: 0.5028093494 | AR204: 0.2583498925 | AS204: -0.236892192 | AW204: -0.1409818561 | AX204: -0.3346066497 | AY204: -1.184333098 | BA204: -0.6437912055 | BI204: 19. alveolus | BJ204: 0.781575877 | BK204: 0.4128803585 | BL204: 0.9196072951 | BM204: -0.04215336629 | BN204: -0.2860896459 | BO204: -0.4726691823 | BV204: 0.5419285358 | BW204: 0.2155846942 | BX204: 0.007973906342 | BY204: -0.9476909004 | BZ204: -0.9476909004 | CA204: -2.550543733
B205: 10. alveolus | C205: 0.764736392 | D205: 0.3631417097 | E205: 0.6588705448 | I205: 0.1453518166 | J205: -0.17554873 | K205: -0.457878227 | M205: 0.1900678693 | V205: 10. alveolus | W205: 1.328685337 | X205: 0.6584883813 | Y205: 2.264622285 | AC205: 0.3988077302 | AD205: 0.1889284838 | AE205: 0.4703186531 | AG205: -0.9298776068 | AP205: 11. alveolus | AQ205: 0.589145021 | AR205: 0.1740016264 | AS205: -0.02424853514 | AW205: -0.3440935818 | AX205: -0.5485205949 | AY205: -1.567656062 | BA205: -0.9332386028 | BI205: 20. alveolus | BJ205: 0.73539927 | BK205: 0.4009694792 | BL205: 0.6822479947 | BM205: 0.2115209972 | BN205: 0.01178183055 | BO205: 0.03097193048 | BV205: 0.4522159138 | BW205: 0.4522159138 | BX205: -0.180716693 | BY205: -0.3738650214 | BZ205: -0.5188441292 | CA205: -1.363728633
B206: 11. alveolus | C206: 0.7456602257 | D206: 0.2220658426 | E206: 0.6196170912 | H206: =LOG(H47) -> 1.683834721 | I206: -0.1206173628 | J206: -0.4847886957 | K206: -1.2198318 | M206: -0.161759148 | N206: =LOG(N47) -> 1.195779366 | V206: 11. alveolus | W206: 1.414722721 | X206: 0.7011360661 | Y206: 2.47194312 | AP206: 12. alveolus | AQ206: 0.5517914436 | AR206: 0.3289501321 | AS206: 0.08437986451 | AV206: =LOG(AV47) -> -1.84164 | AW206: 0.2075805148 | AX206: -0.03489241415 | AY206: -0.4556519756 | BA206: -0.3442109289 | BB206: =LOG(BB47) -> -1.8861
B207: 12. alveolus | C207: 0.9323469078 | D207: 0.4467700952 | E207: 1.140093034 | H207: =LOG(H48) -> 1.523504797 | I207: 0.4128803585 | J207: 0.0746336183 | K207: 0.1623224006 | M207: 0.4428398432 | V207: 12. alveolus | W207: 1.563303059 | X207: 0.9765792186 | Y207: 2.969158861 | AC207: =LOG(AC48) -> 0.7287594752 | AD207: 0.3701428471 | AE207: 1.212833562 | AG207: =LOG(AG48) -> -0.8345435842 | AP207: 13. alveolus | AQ207: 0.7318143141 | AR207: 0.2583498925 | AS207: 0.3756759002 | AW207: -0.09539263618 | AX207: -0.3440935818 | AY207: -1.165425178 | BA207: -0.8272069503
B208: 13. alveolus | C208: 0.8783781558 | D208: 0.325823419 | E208: 0.9679965466 | I208: -0.2460341341 | J208: -0.7044329 | K208: -1.157194873 | M208: -0.2801004698 | V208: 13. alveolus | W208: 1.653453721 | X208: 1.078275522 | Y208: 3.362708364 | AC208: 1.115444083 | AD208: 0.5938396611 | AE208: 2.116714893 | AG208: =LOG(AG49) -> -0.5380096381 | AP208: 14. alveolus | AQ208: 0.6151922674 | AR208: 0.3584678639 | AS208: 0.2475573297 | AW208: 0.2286056504 | AX208: -0.0794592835 | AY208: -0.4213447249 | BA208: -0.386586617
B209: 14. alveolus | C209: 0.9368905707 | D209: 0.4244732732 | E209: 1.251647952 | I209: 0.2088442893 | J209: -0.08751223867 | K209: -0.125142034 | M209: 0.2229121478 | V209: 14. alveolus | W209: 1.582233864 | X209: 0.8867726431 | Y209: 3.124571529 | AP209: 15. alveolus | AQ209: 0.6286749593 | AR209: 0.1966735005 | AS209: 0.2169662858 | AW209: -0.5188441292 | AX209: -0.633017024 | AY209: -1.867660547 | BA209: -1.147519088
B210: 15. alveolus | C210: 0.860188224 | D210: 0.4853664657 | E210: 1.055122114 | I210: 0.4195427247 | J210: 0.135927335 | K210: 0.4004378225 | M210: 0.4877336297 | V210: 15. alveolus | W210: 1.44770056 | X210: 0.8435442119 | Y210: 2.83965053 | AC210: =LOG(AC51) -> 0.9476787399 | AD210: 0.5409548089 | AE210: 1.95943891 | AG210: =LOG(AG51) -> -0.5000218205 | AP210: 16. alveolus | AQ210: 0.5697015554 | AR210: 0.3102258492 | AS210: 0.1725572462 | AW210: -0.07427547306 | AX210: -0.2734357838 | AY210: -0.7699319174 | BA210: -0.6439770285
B211: 16. alveolus | C211: 0.7721382666 | D211: 0.3339508044 | E211: 0.9850090454 | I211: -0.2093630381 | J211: -0.400662867 | K211: -0.9201388917 | M211: -0.2711470822 | V211: 16. alveolus | W211: 1.417056299 | X211: 0.7213983755 | Y211: 2.755855479 | AC211: 0.1717264537 | AD211: -0.006563769502 | AE211: 0.4243207081 | AG211: =LOG(AG52) -> -1.245329845 | AP211: 17. alveolus | AQ211: 0.5241103935 | AR211: 0.1500806862 | AS211: 0.08898801903 | AW211: -0.8158766458 | AX211: -0.8158766458 | AY211: -2.313182839 | BA211: -1.339987039
B212: 17. alveolus | C212: 0.8107364374 | D212: 0.4405155211 | E212: 1.049950277 | I212: 0.0746336183 | J212: -0.1381670023 | K212: -0.2678926473 | M212: 0.09205657333 | V212: 17. alveolus | AP212: 18. alveolus | AQ212: 0.5292763219 | AR212: 0.2701662293 | AS212: 0.07910907117 | AV212: =LOG(AV53) -> -1.838631998 | AW212: -0.1657064876 | AX212: -0.3637127479 | AY212: -0.9570814635 | BA212: -0.6949828095
B213: 18. alveolus | C213: 0.786573978 | D213: 0.3957630894 | E213: 0.8892764847 | H213: =LOG(H54) -> 1.506711439 | I213: 0.4325684653 | J213: 0.1230345298 | K213: 0.3611439785 | M213: 0.5499399642 | V213: 18. alveolus | AP213: 19. alveolus | AQ213: 0.5419285358 | AR213: 0.2155846942 | AS213: 0.007973906342 | AV213: =LOG(AV54) -> -1.903089987 | AW213: -0.9476909004 | AX213: -0.9476909004 | AY213: -2.550543733 | BA213: -1.489619436
B214: 19. alveolus | C214: 0.781575877 | D214: 0.4128803585 | E214: 0.9196072951 | H214: =LOG(H55) -> 1.683191659 | I214: -0.04215336629 | J214: -0.2860896459 | K214: -0.4726691823 | M214: -0.05393381184 | N214: =LOG(N55) -> 1.52773728 | V214: 19. alveolus | AP214: 20. alveolus | AQ214: 0.4522159138 | AR214: 0.4522159138 | AS214: -0.180716693 | AW214: -0.3738650214 | AX214: -0.5188441292 | AY214: -1.363728633 | BA214: -0.8260809351
B215: 20. alveolus | C215: 0.73539927 | D215: 0.4009694792 | E215: 0.6822479947 | I215: 0.2115209972 | J215: 0.01178183055 | K215: 0.03097193048 | M215: 0.2876274235 | V215: 20. alveolus | AZ215: average | BA215: =(BA195+BA196+BA197+BA198+BA199+BA200+BA201+BA202+BA203+BA204+BA205+BA206+BA207+BA208+BA209+BA210+BA211+BA212+BA213+BA214)/20 -> -0.7933194
B216: average | C216: =AVERAGE(C165:C215) -> 0.8754348957 | D216: =AVERAGE(D165:D215) -> 0.3929429679 | E216: =AVERAGE(E165:E215) -> 0.9689119046 | L216: average | M216: =(M196+M197+M198+M199+M200+M201+M202+M203+M204+M205+M206+M207+M208+M209+M210+M211+M212+M213+M214+M215)/20 -> 0.1669776675 | AF216: average | AG216: =(AG197+AG199+AG200+AG201+AG202+AG203+AG204+AG205+AG207+AG208+AG210+AG211)/12 -> -0.7441920358 | AM216: =(AM199+AM204)/2 -> -1.004389403 | AP216: average | AQ216: =AVERAGE(AQ164:AQ210) -> 0.5791058867 | AR216: =AVERAGE(AR164:AR210) -> 0.2354966709 | AS216: =AVERAGE(AS164:AS210) -> 0.07272441792
V217: average | W217: =AVERAGE(W165:W211) -> 1.474469423 | X217: =AVERAGE(X165:X211) -> 0.8128246461 | Y217: =AVERAGE(Y165:Y211) -> 2.696541003
C218: tooth height vs volume | E218: crown height vs volume | I218: Replacement teeth 1 | K218: tooth height vs volume | M218: crown height vs volume | V218: Functional teeth | X218: tooth height vs volume | Z218: crown height vs volume | AC218: Replacement teeth 1 | AE218: tooth height vs volume | AG218: crown height vs volume | AP218: Functional teeth | AR218: tooth height vs volume | AT218: crown height vs volume | AW218: Replacement teeth 1 | AY218: tooth height vs volume | BA218: crown height vs volume
B219: R-square | C219: p-value | E219: R-square | F219: p-value | J219: R-square | K219: p-value | M219: R-square | N219: p-value | W219: R-square | X219: p-value | Z219: R-square | AA219: p-value | AD219: R-square | AE219: p-value | AG219: R-square | AH219: p-value | AQ219: R-square | AR219: p-value | AT219: R-square | AU219: p-value | AX219: R-square | AY219: p-value | BA219: R-square | BB219: p-value
B220: =RSQ(BJ165:BJ205,BL165:BL205) -> 0.7853124705 | C220: =FDIST(38*B220/(1-B220),1,38) -> 2.904543943e-14 | E220: =RSQ(BK165:BK206,BL165:BL206) -> 0.3172289543 | F220: =FDIST(38*E220/(1-E220),1,38) -> 0.0001544501419 | J220: =RSQ(BM165:BM205,BO165:BO205) -> 0.9136162007 | K220: =FDIST(38*J220/(1-J220),1,38) -> 8.317681777e-22 | M220: =RSQ(BN165:BN205,BO165:BO205) -> 0.8993351851 | N220: =FDIST(37*M220/(1-M220),1,37) -> 4.897152603e-20 | W220: =RSQ(BP165:BP201,BR165:BR201) -> 0.5566804584 | X220: =FDIST(29*W220/(1-W220),1,29) -> 1.448882745e-06 | Z220: =RSQ(BQ165:BQ201,BR165:BR201) -> 0.7876569867 | AA220: =FDIST(29*Z220/(1-Z220),1,29) -> 2.865342888e-11 | AD220: =RSQ(BS165:BS201,BU165:BU201) -> 0.900419566 | AE220: =FDIST(23*AD220/(1-AD220),1,23) -> 5.202757072e-13 | AG220: =RSQ(BT165:BT201,BU165:BU201) -> 0.8188572922 | AH220: =FDIST(23*AG220/(1-AG220),1,23) -> 5.287186193e-10 | AQ220: =RSQ(BV165:BV205,BX165:BX205) -> 0.8026382421 | AR220: =FDIST(39*AQ220/(1-AQ220),1,39) -> 2.549318518e-15 | AT220: =RSQ(BW165:BW205,BX165:BX205) -> 0.3287013116 | AU220: =FDIST(39*AT220/(1-AT220),1,39) -> 8.923920665e-05 | AX220: =RSQ(BY165:BY205,CA165:CA205) -> 0.9500778582 | AY220: =FDIST(38*AX220/(1-AX220),1,38) -> 2.439574221e-26 | BA220: =RSQ(BZ165:BZ205,CA165:CA205) -> 0.9354878941 | BB220: =FDIST(38*BA220/(1-BA220),1,38) -> 3.207079733e-24
E235: log | N235: log
C236: tooth height | D236: crown height | E236: tooth height | F236: crown height | H236: ratio of tooth height to crown height | L236: crown volume | M236: crown volume [ccm] | N236: crown volume [ccm] | P236: Body length | Q236: Skull length
B237: 1. alveolus | C237: =C6 -> 5.7075 | D237: 2.4475 | E237: =LOG(C237) -> 0.7564459202 | F237: =LOG(D237) -> 0.3887227005 | H237: =C237/D237 -> 2.331971399 | L237: ='Tooth measurements raw data'!U3 -> 1.0623423 | M237: =L237/1000 -> 0.0010623423 | N237: =LOG(M237) -> -2.973735526 | P237: 0.9 | Q237: 115.6
B238: 2. alveolus | C238: 5.1275 | D238: 2.1575 | E238: 0.709905669 | F238: 0.3339508044 | H238: 2.376593279 | L238: ='Tooth measurements raw data'!U5 -> 1.4073511 | M238: 0.0014073511 | N238: -2.851597543 | P238: 0.9 | Q238: 115.6
B239: 3. alveolus | C239: 9.0275 | D239: 2.9475 | E239: 0.9555674971 | F239: 0.4694538138 | H239: 3.062765055 | L239: ='Tooth measurements raw data'!U7 -> 3.5724998 | M239: 0.0035724998 | N239: -2.447027787 | P239: 0.9 | Q239: 115.6
B240: 4. alveolus | C240: 11.4175 | D240: 2.5375 | E240: 1.05757102 | F240: 0.4044060509 | H240: 4.499507389 | L240: ='Tooth measurements raw data'!U9 -> 2.7612751 | M240: 0.0027612751 | N240: -2.558890323 | P240: 0.9 | Q240: 115.6
B241: 5. alveolus | C241: 7.8175 | D241: 2.6075 | E241: 0.8930678899 | F241: 0.4162243171 | H241: 2.998082454 | L241: ='Tooth measurements raw data'!U11 -> 2.7214592 | M241: 0.0027214592 | N241: -2.565198172 | P241: 0.9 | Q241: 115.6
B242: 1. alveolus | C242: =C17 -> 8.0075 | D242: 2.6075 | E242: 0.9034969473 | F242: 0.4162243171 | H242: 3.070949185 | L242: ='Tooth measurements raw data'!U14 -> 1.9802364 | M242: 0.0019802364 | N242: -2.703282961 | P242: 0.9 | Q242: 115.6
B243: 2. alveolus | C243: 7.2875 | D243: 3.5275 | E243: 0.8625785678 | F243: 0.5474670224 | H243: 2.065910702 | L243: ='Tooth measurements raw data'!U16 -> 5.1345773 | M243: 0.0051345773 | N243: -2.289495304 | P243: 0.9 | Q243: 115.6
B244: 3. alveolus | C244: 12.2975 | D244: 2.9475 | E244: 1.089816831 | F244: 0.4694538138 | H244: 4.172179813 | L244: ='Tooth measurements raw data'!U19 -> 4.0562158 | M244: 0.0040562158 | N244: -2.391878948 | P244: 0.9 | Q244: 115.6
B245: 4. alveolus | C245: 9.9875 | D245: 2.6375 | E245: 0.9994567923 | F245: 0.4211924683 | H245: 3.786729858 | L245: ='Tooth measurements raw data'!U21 -> 3.3916616 | M245: 0.0033916616 | N245: -2.469587486 | P245: 0.9 | Q245: 115.6
B246: 5. alveolus | C246: 11.1875 | D246: 2.8175 | E246: 1.048733048 | F246: 0.4498639247 | H246: 3.970718722 | L246: ='Tooth measurements raw data'!U23 -> 3.3375862 | M246: 0.0033375862 | N246: -2.476567509 | P246: 0.9 | Q246: 115.6
B247: 6. alveolus | C247: 9.6375 | D247: 3.3175 | E247: 0.9839643911 | F247: 0.5208109315 | H247: 2.905048983 | L247: ='Tooth measurements raw data'!U25 -> 5.212357 | M247: 0.005212357 | N247: -2.282965847 | P247: 0.9 | Q247: 115.6 | NI247: =((#REF!/#REF!)*100)-100 ->  | NJ247: =((#REF!/#REF!)*100)-100 -> 
B248: 7. alveolus | C248: 8.2475 | D248: 2.3175 | E248: 0.9163223242 | F248: 0.3650197428 | H248: 3.558791802 | L248: ='Tooth measurements raw data'!U28 -> 2.518954 | M248: 0.002518954 | N248: -2.598779763 | P248: 0.9 | Q248: 115.6 | NI248: =((#REF!/#REF!)*100)-100 ->  | NJ248: =((#REF!/#REF!)*100)-100 ->  | NK248: =#REF!-#REF! ->  | NL248: =#REF!-#REF! ->  | NM248: =#REF!-#REF! ->  | NN248: =#REF!-#REF! ->  | NO248: =#REF!-#REF! ->  | NP248: =((NL248/NK248)*100)-100 ->  | NQ248: =((NM248/NK248)*100)-100 -> 
B249: 8. alveolus | C249: 9.0675 | D249: 2.7375 | E249: 0.9574875643 | F249: 0.4373541278 | H249: 3.312328767 | L249: ='Tooth measurements raw data'!U30 -> 4.090291 | M249: 0.004090291 | N249: -2.388245793 | P249: 0.9 | Q249: 115.6 | NI249: =((#REF!/#REF!)*100)-100 ->  | NJ249: =((#REF!/#REF!)*100)-100 -> 
B250: 9. alveolus | C250: 8.8675 | D250: 2.2975 | E250: 0.9478011971 | F250: 0.3612555201 | H250: 3.859630033 | L250: ='Tooth measurements raw data'!U32 -> 3.2350836 | M250: 0.0032350836 | N250: -2.490114492 | P250: 0.9 | Q250: 115.6
B251: 10. alveolus | C251: 10.3075 | D251: 3.2575 | E251: 1.013153343 | F251: 0.5128844244 | H251: 3.164236378 | L251: ='Tooth measurements raw data'!U34 -> 6.7745271 | M251: 0.0067745271 | N251: -2.169121016 | P251: 0.9 | Q251: 115.6
B252: 11. alveolus | C252: 6.9075 | D252: 2.2975 | E252: 0.8393208936 | F252: 0.3612555201 | H252: 3.006528836 | L252: ='Tooth measurements raw data'!U36 -> 4.0425119 | M252: 0.0040425119 | N252: -2.393348693 | P252: 0.9 | Q252: 115.6
... 207 more rows

Sheet Enamel thickness
B2: Enamel thickness
B3: small | C3: small | D3: small | E3: small | F3: small | G3: medium | H3: medium | I3: medium | J3: medium | K3: medium | M3: large | N3: large | O3: large | P3: large | Q3: large
C4: Picture number | H4: Picture number | N4: Picture number
B5: Dent 4 | C5: 9326 | D5: 0.036 | G5: Dent 19 | H5: 9007 | I5: 0.122 | J5: 0.081 | K5: 0.07 | M5: Dent 11 | N5: 7954 | O5: 0.166 | P5: 0.18 | Q5: 0.162
C6: 9336 | D6: 0.024 | E6: 0.029 | G6: Dent 18 | H6: 9021 | I6: 0.116 | J6: 0.071 | K6: 0.08 | M6: Mx 7 | N6: 7928 | O6: 0.206 | P6: 0.174
B7: Mx 6 | C7: 9235 | D7: 0.056 | E7: 0.023 | F7: 0.017 | G7: Mx 12 | H7: 8111 | I7: 0.096 | J7: 0.066 | K7: 0.072 | L7: 0.072
B9: tip of apex | C9: average | D9: =AVERAGE(D5:D7) -> 0.039 | E9: =AVERAGE(E5:E7) -> 0.026 | F9: =AVERAGE(F5:F7) -> 0.017 | I9: =AVERAGE(I5:I7) -> 0.111 | J9: =AVERAGE(J5:J7) -> 0.073 | K9: =AVERAGE(K5:K7) -> 0.074 | L9: =AVERAGE(L5:L7) -> 0.072 | O9: =AVERAGE(O5:O7) -> 0.186 | P9: =AVERAGE(P5:P7) -> 0.177 | Q9: =AVERAGE(Q5:Q7) -> 0.162
C11: average of averages | D11: =(D9+E9+F9)/3 -> 0.0272 | I11: =(I9+J9+K9+L9)/4 -> 0.0825 | O11: =(O9+P9+Q9)/3 -> 0.1750
C12: average without apex tips | D12: =(((D5+D6)/2)+(((E6+E7)/2))+F7)/3 -> 0.0243 | I12: =(J9+K9+L9)/3 -> 0.0729 | O12: =(O5+P9+Q9)/3 -> 0.1683
C13: average of apex tips | D13: =D7 -> 0.056 | I13: =(I5+I6+I7)/3 -> 0.111 | O13: =O6 -> 0.206
C14: average tooth length | D14: ='Tooth size Developmental st'!$AQ$58 -> 3.906 | E14: ='Tooth size Developmental st'!$AR$58 -> 1.815 | F14: <--average crown height | I14: ='Tooth size Developmental st'!C58 -> 7.841 | J14: ='Tooth size Developmental st'!D58 -> 2.6005 | O14: ='Tooth size Developmental st'!W59 -> 31.071 | P14: ='Tooth size Developmental st'!X59 -> 6.966
D15: =$D$14/$D$12 -> 160.5145339 | E15: =$E$14/$D$12 -> 74.5840294 | I15: =I14/I12 -> 107.5746951 | J15: =J14/I12 -> 35.67759146 | O15: =O14/O12 -> 184.5798267 | P15: =P14/O12 -> 41.3799505
D16: =$D$12/$D$14 -> 0.006229965447 | E16: =$D$12/$E$14 -> 0.0134076961 | I16: =I12/I14 -> 0.009295866457 | J16: =I12/J14 -> 0.02802879788 | O16: =O12/O14 -> 0.005417710146 | P16: =O12/P14 -> 0.02416629281
E17: =((D5+D6+E6)/3)/'Tooth measurements raw data'!$Q$134 -> 0.02354497354 | F17: specific CH to enamel | J17: =((J5+K5)/2)/'Tooth measurements raw data'!$Q$83 -> 0.02827715356 | P17: =((O5+P5+Q5)/3)/'Tooth measurements raw data'!$Q$222 -> 0.03313763862
E18: =((E7+F7)/2)/'Tooth measurements raw data'!$Q$107 -> 0.009009009009 | J18: =((J6+K6)/2)/'Tooth measurements raw data'!$Q$81 -> 0.02937743191 | K18: =((J7+K7+L7)/3)/'Tooth measurements raw data'!Q38 -> 0.02258064516 | P18: =P6/'Tooth measurements raw data'!$Q$185 -> 0.02838499184

Sheet Oblique and perpendicular trans
R2: t-Test: Paired Two Sample for Means
E4: oblique | J4: perpendicular | S4: Variable 1 | T4: Variable 2
B5: Tooth | C5: mean VEIW [µm] | D5: SD | E5: min | F5: max | G5: TFT [days] | H5: mean VEIW [µm] | I5: SD | J5: min | K5: max | L5: TFT [days] | M5: TFT difference | R5: Mean | S5: 195.3823954 | T5: 259.2707538
B6: Medium [NCSM 100804] Dent 18 | C6: 21 | D6: 5 | E6: 12 | F6: 34 | G6: =2.4875/0.021 -> 118.4524 | H6: 14 | I6: 4 | J6: 8 | K6: 21 | L6: =2.4875/0.014 -> 177.6786 | M6: =L6-G6 -> 59.2262 | R6: Variance | S6: 4468.245574 | T6: 5013.021107
B7: Large [NCSM 100805] Dent 11 | C7: 21 | D7: 6 | E7: 12 | F7: 29 | G7: =5.025/0.021 -> 239.2857143 | H7: 17.5 | I7: 3 | J7: 13 | K7: 23.5 | L7: =5.025/0.017 -> 295.5882353 | M7: =L7-G7 -> 56.3025 | R7: Observations | S7: 3 | T7: 3
B8: Large [NCSM 100805] Dent 11 | C8: 22 | D8: 6 | E8: 12 | F8: 36 | G8: =5.025/0.022 -> 228.4090909 | H8: 16.5 | I8: 3 | J8: 12.5 | K8: 21.5 | L8: =5.025/0.0165 -> 304.5454545 | M8: =L8-G8 -> 76.1364 | R8: Pearson Correlation | S8: 0.9895428357
R9: Hypothesized Mean Difference | S9: 0
R10: df | S10: 2
R11: t Stat | S11: -10.33476623
R12: P(T<=t) one-tail | S12: 0.004616588873
R13: t Critical one-tail | S13: 2.91998558
R14: P(T<=t) two-tail | S14: 0.009233177746
R15: t Critical two-tail | S15: 4.30265273

Sheet VEIW var along CA
B3: Transect position along CA of tooth | C3: mean VEIW [µm] | D3: SD | E3: min | F3: max | G3: CH [mm] | H3: TFT [days]
B4: apical | C4: 16 | D4: 4 | E4: 10 | F4: 30 | H4: =5.025/0.016 -> 314.0625 | L4: ANOVA: Single Factor | V4: TUKEY HSD/KRAMER | Y4: alpha | Z4: 0.05 | AC4: Pairwise t tests | AF4: 17
C5: 16 | D5: 3 | E5: 9 | F5: 30 | H5: =5.025/0.016 -> 314.0625 | V5: group | W5: mean | X5: n | Y5: ss | Z5: df | AA5: q-crit | AF5: 18
C6: 17 | D6: 3 | E6: 10 | F6: 24 | H6: =5.025/0.017 -> 295.5882353 | L6: DESCRIPTION | Q6: Alpha | R6: 0.05 | V6: =Q39 -> CA Apex | W6: =AVERAGE(Q40:Q387) -> 0.01560465116 | X6: =COUNT(Q40:Q387) -> 86 | Y6: =DEVSQ(Q40:Q387) -> 0.00114055814 | AC6: group 1 | AD6: group 2 | AE6: p-value | AF6: mean
B7: mid crown | C7: 17 | D7: 3 | E7: 9 | F7: 23 | G7: 5.025 | H7: =5.025/0.017 -> 295.5882353 | L7: Group | M7: Count | N7: Sum | O7: Mean | P7: Variance | Q7: SS | R7: Std Err | S7: Lower | T7: Upper | V7: =R39 -> CA Mid | W7: =AVERAGE(R40:R387) -> 0.01726149425 | X7: =COUNT(R40:R387) -> 348 | Y7: =DEVSQ(R40:R387) -> 0.004489204023 | AC7: =Q39 -> CA Apex | AD7: =R39 -> CA Mid | AE7: =_xlfn.T.TEST(Q40:Q387,R40:R387,2,3) -> 0.0002483124946 | AF7: =ABS(AVERAGE(Q40:Q387)-AVERAGE(R40:R387)) -> 0.00165684309
C8: 18 | D8: 4 | E8: 11 | F8: 30 | H8: =5.025/0.018 -> 279.1666667 | L8: =Q39 -> CA Apex | M8: =COUNT(Q40:Q387) -> 86 | N8: =SUM(Q40:Q387) -> 1.342 | O8: =AVERAGE(Q40:Q387) -> 0.01560465116 | P8: =_xlfn.VAR.S(Q40:Q387) -> 1.341833105e-05 | Q8: =DEVSQ(Q40:Q387) -> 0.00114055814 | R8: =SQRT(O15/M8) -> 0.0003850875259 | S8: =O8-R8*_xlfn.T.INV.2T(R6,N15) -> 0.01484795726 | T8: =O8+R8*_xlfn.T.INV.2T(R6,N15) -> 0.01636134507 | V8: =S39 -> CA Base | W8: =AVERAGE(S40:S387) -> 0.01719047619 | X8: =COUNT(S40:S387) -> 42 | Y8: =DEVSQ(S40:S387) -> 0.0004024761905 | AC8: =Q39 -> CA Apex | AD8: =S39 -> CA Base | AE8: =_xlfn.T.TEST(Q40:Q387,S40:S387,2,3) -> 0.01272275021 | AF8: =ABS(AVERAGE(Q40:Q387)-AVERAGE(S40:S387)) -> 0.001585825028
C9: 18 | D9: 4 | E9: 11 | F9: 30 | H9: =5.025/0.018 -> 279.1666667 | L9: =R39 -> CA Mid | M9: =COUNT(R40:R387) -> 348 | N9: =SUM(R40:R387) -> 6.007 | O9: =AVERAGE(R40:R387) -> 0.01726149425 | P9: =_xlfn.VAR.S(R40:R387) -> 1.293718739e-05 | Q9: =DEVSQ(R40:R387) -> 0.004489204023 | R9: =SQRT(O15/M9) -> 0.0001914339914 | S9: =O9-R9*_xlfn.T.INV.2T(R6,N15) -> 0.01688532799 | T9: =O9+R9*_xlfn.T.INV.2T(R6,N15) -> 0.01763766051 | X9: =SUM(X6:X8) -> 476 | Y9: =SUM(Y6:Y8) -> 0.006032238353 | Z9: =X9-COUNT(X6:X8) -> 473 | AA9: =[1]!QCRIT(COUNT(X6:X8),Z9,Z4,2) -> 3.324655391 | AC9: =R39 -> CA Mid | AD9: =S39 -> CA Base | AE9: =_xlfn.T.TEST(R40:R387,S40:S387,2,3) -> 0.8919671924 | AF9: =ABS(AVERAGE(R40:R387)-AVERAGE(S40:S387)) -> 7.10180624e-05
C10: 17 | D10: 4 | E10: 7 | F10: 29 | H10: =5.025/0.017 -> 295.5882353 | L10: =S39 -> CA Base | M10: =COUNT(S40:S387) -> 42 | N10: =SUM(S40:S387) -> 0.722 | O10: =AVERAGE(S40:S387) -> 0.01719047619 | P10: =_xlfn.VAR.S(S40:S387) -> 9.816492451e-06 | Q10: =DEVSQ(S40:S387) -> 0.0004024761905 | R10: =SQRT(O15/M10) -> 0.0005510411493 | S10: =O10-R10*_xlfn.T.INV.2T(R6,N15) -> 0.01610768474 | T10: =O10+R10*_xlfn.T.INV.2T(R6,N15) -> 0.01827326764 | V10: Q TEST
B11: basal | C11: 17 | D11: 3 | E11: 10 | F11: 27 | H11: =5.025/0.017 -> 295.5882353 | V11: group 1 | W11: group 2 | X11: mean | Y11: std err | Z11: q-stat | AA11: lower | AB11: upper | AC11: p-value | AD11: mean-crit | AE11: Cohen d
L12: ANOVA | V12: =V6 -> CA Apex | W12: =V7 -> CA Mid | X12: =ABS(W6-W7) -> 0.00165684309 | Y12: =SQRT(Y9/Z9/HARMEAN(X6,X7)) -> 0.0003040882895 | Z12: =X12/Y12 -> 5.44855934 | AA12: =X12-Y12*AA$9 -> 0.0006458543189 | AB12: =X12+Y12*AA$9 -> 0.002667831861 | AC12: =[1]!QDIST(Z12,COUNT($X$6:$X$8),Z$9) -> 0.0003902460347 | AD12: =Y12*AA$9 -> 0.001010988771 | AE12: =X12*SQRT(Z$9/Y$9) -> 0.4639516296
L13: Sources | M13: SS | N13: df | O13: MS | P13: F | Q13: P value | R13: F crit | S13: RMSSE | T13: Omega Sq | V13: =V6 -> CA Apex | W13: =V8 -> CA Base | X13: =ABS(W6-W8) -> 0.001585825028 | Y13: =SQRT(Y9/Z9/HARMEAN(X6,X8)) -> 0.0004753623622 | Z13: =X13/Y13 -> 3.336034053 | AA13: =X13-Y13*AA$9 -> 5.408987477e-06 | AB13: =X13+Y13*AA$9 -> 0.003166241068 | AC13: =[1]!QDIST(Z13,COUNT($X$6:$X$8),Z$9) -> 0.0490278885 | AD13: =Y13*AA$9 -> 0.00158041604 | AE13: =X13*SQRT(Z$9/Y$9) -> 0.4440650477
L14: Between Groups | M14: =M16-M15 -> 0.0001918351764 | N14: =COUNTA(L8:L10)-1 -> 2 | O14: =M14/N14 -> 9.591758821e-05 | P14: =O14/O15 -> 7.521091934 | Q14: =_xlfn.F.DIST.RT(P14,N14,N15) -> 0.0006088267346 | R14: =_xlfn.F.INV.RT(R6,N14,N15) -> 3.014786026 | S14: =SQRT(DEVSQ(O8:O10)/(O15*N14)) -> 0.2623103624 | T14: =(M16-N16*O15)/(M16+O15) -> 0.02666883205 | V14: =V7 -> CA Mid | W14: =V8 -> CA Base | X14: =ABS(W7-W8) -> 7.10180624e-05 | Y14: =SQRT(Y9/Z9/HARMEAN(X7,X8)) -> 0.0004124883763 | Z14: 0.1721698512 | AA14: =X14-Y14*AA$9 -> -0.001300363642 | AB14: =X14+Y14*AA$9 -> 0.001442399767 | AC14: =[1]!QDIST(Z14,COUNT($X$6:$X$8),Z$9) -> 0.9918623181 | AD14: =Y14*AA$9 -> 0.001371381704 | AE14: =X14*SQRT(Z$9/Y$9) -> 0.01988658188
L15: Within Groups | M15: =SUM(Q8:Q10) -> 0.006032238353 | N15: =N16-N14 -> 473 | O15: =M15/N15 -> 1.275314662e-05
L16: Total | M16: =DEVSQ(Q40:S387) -> 0.006224073529 | N16: =COUNT(Q40:S387)-1 -> 475 | O16: =M16/N16 -> 1.310331269e-05 | AA16: 0.0006458543189 | AB16: 0.002667831861 | AC16: 0.0003902460347 | AD16: 0.001010988771 | AE16: 0.4639516296
AA17: 5.408987477e-06 | AB17: 0.003166241068 | AC17: 0.0490278885 | AD17: 0.00158041604 | AE17: 0.4440650477
AA18: -0.001300363642 | AB18: 0.001442399767 | AC18: 0.9918623181 | AD18: 0.001371381704 | AE18: 0.01988658188
K19: Alternate computation
L20: Anova: Single Factor
L22: SUMMARY
L23: Groups | M23: Count | N23: Sum | O23: Average | P23: Variance
B24: Transect position along CA of tooth | C24: mean VEIW [µm] | D24: SD | E24: min | F24: max | G24: CH [mm] | H24: TFT [days] | L24: Column 1 | M24: 86 | N24: 1.342 | O24: 0.01560465116 | P24: 1.341833105e-05
B25: apical | C25: 16 | D25: 4 | E25: 10 | F25: 30 | H25: =5.025/0.016 -> 314.1 | L25: Column 2 | M25: 348 | N25: 6.007 | O25: 0.01726149425 | P25: 1.293718739e-05
C26: 16 | D26: 3 | E26: 9 | F26: 30 | H26: =5.025/0.016 -> 314.1 | L26: Column 3 | M26: 42 | N26: 0.722 | O26: 0.01719047619 | P26: 9.816492451e-06
C27: 17 | D27: 3 | E27: 10 | F27: 24 | H27: =5.025/0.017 -> 295.6
B28: mid crown | C28: 17 | D28: 3 | E28: 9 | F28: 23 | G28: 5.025 | H28: =5.025/0.017 -> 295.6
C29: 18 | D29: 4 | E29: 11 | F29: 30 | H29: =5.025/0.018 -> 279.2 | L29: ANOVA
C30: 18 | D30: 4 | E30: 11 | F30: 30 | H30: =5.025/0.018 -> 279.2 | L30: Source of Variation | M30: SS | N30: df | O30: MS | P30: F | Q30: P-value | R30: F crit
C31: 17 | D31: 4 | E31: 7 | F31: 29 | H31: =5.025/0.017 -> 295.6 | L31: Between Groups | M31: 0.0001918351764 | N31: 2 | O31: 9.591758821e-05 | P31: 7.521091934 | Q31: 0.0006088267346 | R31: 3.014786026
B32: basal | C32: 17 | D32: 3 | E32: 10 | F32: 27 | H32: =5.025/0.017 -> 295.6 | L32: Within Groups | M32: 0.006032238353 | N32: 473 | O32: 1.275314662e-05
L34: Total | M34: 0.006224073529 | N34: 475
Q39: CA Apex | R39: CA Mid | S39: CA Base
Q40: 0.013 | R40: 0.02 | S40: 0.01
Q41: 0.015 | R41: 0.013 | S41: 0.012
Q42: 0.016 | R42: 0.014 | S42: 0.016
Q43: 0.013 | R43: 0.013 | S43: 0.014
Q44: 0.011 | R44: 0.015 | S44: 0.013
Q45: 0.015 | R45: 0.011 | S45: 0.011
Q46: 0.011 | R46: 0.012 | S46: 0.02
Q47: 0.016 | R47: 0.012 | S47: 0.017
Q48: 0.017 | R48: 0.015 | S48: 0.017
Q49: 0.015 | R49: 0.013 | S49: 0.015
Q50: 0.019 | R50: 0.009 | S50: 0.019
Q51: 0.016 | R51: 0.01 | S51: 0.019
Q52: 0.02 | R52: 0.011 | S52: 0.018
Q53: 0.017 | R53: 0.015 | S53: 0.022
Q54: 0.015 | R54: 0.013 | S54: 0.018
Q55: 0.013 | R55: 0.011 | S55: 0.019
Q56: 0.027 | R56: 0.012 | S56: 0.018
Q57: 0.015 | R57: 0.018 | S57: 0.017
Q58: 0.016 | R58: 0.02 | S58: 0.019
Q59: 0.015 | R59: 0.019 | S59: 0.017
Q60: 0.013 | R60: 0.013 | S60: 0.021
Q61: 0.01 | R61: 0.016 | S61: 0.016
Q62: 0.01 | R62: 0.017 | S62: 0.014
Q63: 0.012 | R63: 0.019 | S63: 0.023
Q64: 0.012 | R64: 0.018 | S64: 0.019
Q65: 0.012 | R65: 0.017 | S65: 0.017
Q66: 0.016 | R66: 0.016 | S66: 0.014
Q67: 0.012 | R67: 0.014 | S67: 0.019
Q68: 0.012 | R68: 0.019 | S68: 0.018
Q69: 0.013 | R69: 0.012 | S69: 0.017
Q70: 0.016 | R70: 0.012 | S70: 0.018
Q71: 0.013 | R71: 0.017 | S71: 0.018
Q72: 0.012 | R72: 0.017 | S72: 0.019
Q73: 0.016 | R73: 0.017 | S73: 0.018
Q74: 0.018 | R74: 0.016 | S74: 0.016
Q75: 0.015 | R75: 0.017 | S75: 0.016
Q76: 0.02 | R76: 0.017 | S76: 0.019
Q77: 0.017 | R77: 0.016 | S77: 0.017
Q78: 0.023 | R78: 0.014 | S78: 0.014
Q79: 0.014 | R79: 0.02 | S79: 0.014
Q80: 0.015 | R80: 0.013 | S80: 0.017
Q81: 0.018 | R81: 0.013 | S81: 0.027
Q82: 0.01 | R82: 0.017
Q83: 0.016 | R83: 0.016
Q84: 0.016 | R84: 0.017
Q85: 0.03 | R85: 0.017
Q86: 0.016 | R86: 0.019
Q87: 0.023 | R87: 0.017
Q88: 0.012 | R88: 0.017
Q89: 0.013 | R89: 0.017
Q90: 0.016 | R90: 0.016
Q91: 0.016 | R91: 0.018
Q92: 0.016 | R92: 0.018
Q93: 0.016 | R93: 0.016
Q94: 0.016 | R94: 0.018
Q95: 0.015 | R95: 0.015
Q96: 0.023 | R96: 0.015
Q97: 0.017 | R97: 0.018
Q98: 0.02 | R98: 0.014
Q99: 0.022 | R99: 0.016
Q100: 0.01 | R100: 0.017
Q101: 0.013 | R101: 0.015
Q102: 0.02 | R102: 0.013
Q103: 0.014 | R103: 0.018
Q104: 0.018 | R104: 0.015
Q105: 0.019 | R105: 0.019
Q106: 0.016 | R106: 0.019
Q107: 0.015 | R107: 0.015
Q108: 0.015 | R108: 0.019
Q109: 0.012 | R109: 0.014
Q110: 0.016 | R110: 0.017
Q111: 0.018 | R111: 0.018
Q112: 0.015 | R112: 0.02
Q113: 0.012 | R113: 0.02
Q114: 0.012 | R114: 0.022
Q115: 0.018 | R115: 0.018
Q116: 0.017 | R116: 0.027
Q117: 0.015 | R117: 0.019
Q118: 0.016 | R118: 0.019
Q119: 0.013 | R119: 0.021
Q120: 0.022 | R120: 0.02
Q121: 0.011 | R121: 0.017
Q122: 0.013 | R122: 0.024
Q123: 0.018 | R123: 0.024
Q124: 0.012 | R124: 0.022
Q125: 0.015 | R125: 0.021
R126: 0.021
R127: 0.016
R128: 0.023
R129: 0.016
R130: 0.017
R131: 0.017
R132: 0.01
R133: 0.016
R134: 0.024
R135: 0.014
R136: 0.017
R137: 0.018
R138: 0.021
R139: 0.016
R140: 0.016
R141: 0.011
R142: 0.02
R143: 0.014
R144: 0.018
R145: 0.013
R146: 0.013
R147: 0.018
R148: 0.022
R149: 0.018
R150: 0.016
R151: 0.018
R152: 0.016
R153: 0.016
R154: 0.021
R155: 0.014
R156: 0.015
R157: 0.017
R158: 0.015
R159: 0.023
R160: 0.015
R161: 0.018
R162: 0.019
R163: 0.02
R164: 0.021
R165: 0.017
R166: 0.022
R167: 0.014
R168: 0.015
R169: 0.019
R170: 0.013
R171: 0.013
R172: 0.018
R173: 0.021
R174: 0.019
R175: 0.014
R176: 0.014
R177: 0.015
R178: 0.014
R179: 0.02
R180: 0.017
R181: 0.016
R182: 0.018
R183: 0.02
R184: 0.018
R185: 0.009
R186: 0.015
R187: 0.014
R188: 0.016
R189: 0.023
R190: 0.023
R191: 0.015
R192: 0.015
R193: 0.018
R194: 0.017
R195: 0.021
R196: 0.016
R197: 0.014
R198: 0.011
R199: 0.011
R200: 0.02
R201: 0.019
R202: 0.017
R203: 0.02
R204: 0.016
R205: 0.019
R206: 0.017
R207: 0.019
R208: 0.015
... 179 more rows

Sheet VEIW near and far CA
C3: Tooth | D3: Transect | E3: mean VEIW near CA [µm] | F3: based on # VEL | G3: TFT based on near CA VEIW | H3: mean VEIW far CA [µm] | I3: based on # VEL | J3: TFT based on far CA VEIW | K3: Difference in TFT estimates [%] | O3: mean VEIW near CA [µm] | P3: mean VEIW far CA [µm] | U3: T Test: Two Independent Samples
C4: Medium [NCSM 100804] Dent 18 | D4: mid crown | E4: 17.5 | F4: 10 | G4: =2.4875/0.0175 -> 142.1429 | H4: 13.5 | I4: 15 | J4: =2.4875/0.0135 -> 184.2593 | K4: =(G4/J4)*100 -> 77.14 | N4: med Dent 18 1 | O4: 0.025 | P4: 0.018
D5: mid crown | E5: 18.4 | F5: 10 | G5: =2.4875/0.0184 -> 135.1902 | H5: 13.9 | I5: 19 | J5: =2.4875/0.0139473684210526 -> 178.3491 | K5: =(G5/J5)*100 -> 75.80 | O5: 0.018 | P5: 0.01 | U5: SUMMARY | X5: Hyp Mean Diff | Y5: 0
C6: Large [NCSM 100805] Dent 4 | D6: root base | E6: 19.3 | F6: 26 | G6: =12.865/0.019308 -> 666.3041 | H6: 12.1 | I6: 9 | J6: =12.865/0.0121111111111111 -> 1062.247706 | K6: =(G6/J6)*100 -> 62.73 | O6: 0.014 | P6: 0.011 | U6: Groups | V6: Count | W6: Mean | X6: Variance | Y6: Cohen d
O7: 0.013 | P7: 0.011 | U7: =O3 -> mean VEIW near CA [µm] | V7: =COUNT(O4:O81) -> 47 | W7: =AVERAGE(O4:O81) -> 0.01870212766 | X7: =_xlfn.VAR.S(O4:O81) -> 3.082238668e-05
O8: 0.019 | P8: 0.01 | U8: =P3 -> mean VEIW far CA [µm] | V8: =COUNT(P4:P81) -> 44 | W8: =AVERAGE(P4:P81) -> 0.01340909091 | X8: =_xlfn.VAR.S(P4:P81) -> 1.341014799e-05
O9: 0.018 | P9: 0.022 | U9: Pooled | X9: =((V7-1)*X7+(V8-1)*X8)/(V7+V8-2) -> 2.240973203e-05 | Y9: =ABS(W7-W8-Y5)/SQRT(X9) -> 1.118115268
O10: 0.019 | P10: 0.014
O11: 0.015 | P11: 0.011 | U11: T TEST: Equal Variances | Y11: Alpha | Z11: 0.05
O12: 0.027 | P12: 0.011 | V12: std err | W12: t-stat | X12: df | Y12: p-value | Z12: t-crit | AA12: lower | AB12: upper | AC12: sig | AD12: effect r
O13: 0.016 | P13: 0.016 | U13: One Tail | V13: =SQRT(X9*(1/V7+1/V8)) -> 0.0009930331821 | W13: =(ABS(W7-W8-Y5))/V13 -> 5.330171082 | X13: =V7+V8-2 -> 89 | Y13: =_xlfn.T.DIST.RT(W13,X13) -> 3.673705104e-07 | Z13: =_xlfn.T.INV.2T(Z11*2,X13) -> 1.662155326 | AC13: =IF(Y13<Z11,"yes","no") -> yes | AD13: =SQRT(W13^2/(W13^2+X13)) -> 0.491911829
P14: 0.015 | U14: Two Tail | V14: =V13 -> 0.0009930331821 | W14: =W13 -> 5.330171082 | X14: 89 | Y14: =_xlfn.T.DIST.2T(W14,X14) -> 7.347410208e-07 | Z14: =_xlfn.T.INV.2T(Z11,X14) -> 1.9869787 | AA14: =(W7-W8)-Z14*V14 -> 0.00331990097 | AB14: =(W7-W8)+Z14*V14 -> 0.007266172531 | AC14: =IF(Y14<Z11,"yes","no") -> yes | AD14: =AD13 -> 0.491911829
P15: 0.013
P16: 0.01 | U16: T TEST: Unequal Variances | Y16: Alpha | Z16: =Z11 -> 0.05
P17: 0.011 | V17: std err | W17: t-stat | X17: df | Y17: p-value | Z17: t-crit | AA17: lower | AB17: upper | AC17: sig | AD17: effect r
P18: 0.012 | U18: One Tail | V18: =SQRT(X7/V7+X8/V8) -> 0.0009800875226 | W18: =(ABS(W7-W8-Y5))/V18 -> 5.40057559 | X18: =(X7/V7+X8/V8)^2/((X7/V7)^2/(V7-1)+(X8/V8)^2/(V8-1)) -> 80.16839604 | Y18: =[1]!T_DIST_RT(W18,X18) -> 3.307255902e-07 | Z18: =[1]!T_INV(1-Z16,X18) -> 1.664083626 | AC18: =IF(Y18<Z16,"yes","no") -> yes | AD18: =SQRT(W18^2/(W18^2+X18)) -> 0.516489163
P19: 0.016 | U19: Two Tail | V19: =V18 -> 0.0009800875226 | W19: =W18 -> 5.40057559 | X19: 80.16839604 | Y19: =[1]!T_DIST_2T(W19,X19) -> 6.614511805e-07 | Z19: =[1]!T_INV_2T(Z16,X19) -> 1.989999251 | AA19: =(W7-W8)-Z19*V19 -> 0.003342663315 | AB19: =(W7-W8)+Z19*V19 -> 0.007243410186 | AC19: =IF(Y19<Z16,"yes","no") -> yes | AD19: =AD18 -> 0.516489163
P20: 0.012
P21: 0.023
P22: 0.019
U23: Alternate computations
U24: t-Test: Two-Sample Assuming Unequal Variances
V26: Variable 1 | W26: Variable 2 | Y26: =_xlfn.T.TEST(O4:O81, P4:P81,2,3) -> 6.61451E-07
U27: Mean | V27: 0.01870212766 | W27: 0.01340909091
U28: Variance | V28: 3.082238668e-05 | W28: 1.341014799e-05
U29: Observations | V29: 47 | W29: 44
N30: med Dent 18 2 | U30: Hypothesized Mean Difference | V30: 0
U31: df | V31: 80
U32: t Stat | V32: 5.40057559
U33: P(T<=t) one-tail | V33: 3.320333155e-07
U34: t Critical one-tail | V34: 1.664124579
U35: P(T<=t) two-tail | V35: 6.64066631e-07
U36: t Critical two-tail | V36: 1.990063421
O40: 0.014 | P40: 0.011
O41: 0.012 | P41: 0.015
O42: 0.015 | P42: 0.018
O43: 0.013 | P43: 0.016
O44: 0.032 | P44: 0.014
O45: 0.013 | P45: 0.02
O46: 0.013 | P46: 0.012
O47: 0.018 | P47: 0.013
O48: 0.013 | P48: 0.011
O49: 0.016 | P49: 0.013
O50: 0.034 | P50: 0.018
P51: 0.008
P52: 0.009
P53: 0.012
P54: 0.012
P55: 0.014
N56: large Dent 4 | O56: 0.018 | P56: 0.011
O57: 0.016 | P57: 0.014
O58: 0.015 | P58: 0.008
O59: 0.02 | P59: 0.01
O60: 0.016 | P60: 0.013
O61: 0.015 | P61: 0.009
O62: 0.018 | P62: 0.01
O63: 0.016 | P63: 0.019
O64: 0.022 | P64: 0.015
O65: 0.019
O66: 0.019
O67: 0.028
O68: 0.031
O69: 0.019
O70: 0.015
O71: 0.019
O72: 0.02
O73: 0.018
O74: 0.014
O75: 0.012
O76: 0.014
O77: 0.016
O78: 0.024
O79: 0.025
O80: 0.027
O81: 0.026
N82: SD | O82: =_xlfn.STDEV.S(O4:O81) -> 0.005551791304 | P82: =_xlfn.STDEV.S(P4:P81) -> 0.003661986891

Sheet VEIW by tooth position
C2: VEIW in mm
D4: Tooth position | E4: 1 | F4: 2 | G4: 3 | H4: 4 | I4: 11 | J4: 12 | K4: 15 | L4: 16 | M4: 17 | N4: 18 | O4: 19
C5: Small Alligator | D5: functional teeth upper dentition | G5: =(0.017+0.02)/2 -> 0.019 | I5: 0.0127 | J5: 0.0153 | M5: 0.0120 | N5: 0.0117
C6: NCSM 100803 | D6: replacement teeth upper dentition | M6: 0.0115
D7: functional teeth lower dentition | F7: 0.0133 | H7: 0.0175 | J7: 0.0144 | N7: 0.0145 | O7: 0.0125
D8: replacement teeth lower dentition | H8: 0.0120 | J8: 0.0130
C9: Medium Alligator | D9: functional teeth upper dentition | G9: 0.0156* | I9: 0.0115* | M9: 0.009' | N9: 0.0135' | O9: 0.0094*
C10: NCSM 100804 | D10: replacement teeth upper dentition | G10: 0.0246 | I10: 0.0370 | N10: 0.0153 | O10: 0.0240
D11: functional teeth lower dentition | I11: 0.0115* | J11: 0.0143* | N11: 0.0128*
D12: replacement teeth lower dentition | I12: 0.0230
C13: Large Alligator | D13: functional teeth upper dentition | E13: =(0.013+0.014+0.014+0.016)/4 -> 0.0143 | H13: =0.023 -> 0.0230 | I13: 0.0170 | J13: =(0.015+0.0145+0.016+0.018+0.022)/5 -> 0.0171 | N13: 0.0188
C14: NCSM 100805 | D14: replacement teeth upper dentition | F14: 0.0130 | H14: =(0.017+0.019+0.019)/3 -> 0.0183 | I14: 0.0100 | J14: 0.0200
D15: functional teeth lower dentition | I15: =(0.016+0.016+0.014+0.017+0.017+0.018+0.018+0.017+0.017)/9 -> 0.0167 | L15: 0.0270
D16: replacement teeth upper dentition | K16: 0.0260
AU27: 1 | AV27: 2 | AW27: 3 | AX27: 4 | AY27: 5 | AZ27: 6 | BA27: 7 | BB27: 8 | BC27: 9 | BD27: 10 | BE27: 11 | BF27: 12 | BG27: 13 | BH27: 14 | BI27: 15 | BJ27: 16 | BK27: 17 | BL27: 18 | BM27: 19 | BN27: 20
AS28: Small Alligator | AT28: functional teeth lower dentition | AV28: 0.0133 | AX28: 0.0175 | BF28: 0.0144 | BL28: 0.0145 | BM28: 0.0125
AT29: replacement teeth lower dentition | AX29: 0.0120 | BF29: 0.0130
E30: Combining replacement and functional teeth | AS30: Medium Alligator | AT30: functional teeth lower dentition | BE30: 0.0115 | BF30: 0.0143 | BL30: =(0.01+0.011+0.016+0.014+0.011+0.011+0.014+0.015)/8 -> 0.0128 | BM30: 0.0094
AT31: replacement teeth lower dentition | BE31: 0.0230 | BM31: 0.0240
E32: With just tooth positions of the same orientation | AS32: Large Alligator | AT32: functional teeth lower dentition | AX32: =0.023 -> 0.0230 | BE32: =(0.016+0.016+0.014+0.017+0.017+0.018+0.018+0.017+0.017)/9 -> 0.0167 | BJ32: 0.0270
G33: Mean increment width by tooth position | W33: =W35-W36 -> 0.0005 | AT33: replacement teeth lower dentition | AV33: 0.0130 | AX33: =(0.017+0.019+0.019)/3 -> 0.0183 | BI33: 0.0260
G34: 1 | H34: 2 | I34: 3 | J34: 4 | K34: 5 | L34: 6 | M34: 7 | N34: 8 | O34: 9 | P34: 10 | Q34: 11 | R34: 12 | S34: 13 | T34: 14 | U34: 15 | V34: 16 | W34: 17 | X34: 18 | Y34: 19 | Z34: 20
E35: Small Alligator | F35: functional teeth upper dentition | I35: =(0.017+0.02)/2 -> 0.019 | Q35: 0.0127 | R35: 0.0153 | W35: 0.0120 | X35: 0.0117
F36: replacement teeth upper dentition | W36: 0.0115
E37: Medium Alligator | F37: functional teeth upper dentition | I37: 0.0156 | Q37: 0.0115 | W37: =(0.009)/1 -> 0.0090 | X37: 0.0135
F38: replacement teeth upper dentition | I38: 0.0246 | Q38: 0.0370 | X38: 0.0153
E39: Large Alligator | F39: functional teeth upper dentition | G39: =(0.013+0.014+0.014+0.016)/4 -> 0.0143 | Q39: 0.0170 | R39: =(0.015+0.0145+0.016+0.018+0.022)/5 -> 0.0171 | X39: 0.0188
F40: replacement teeth upper dentition | Q40: 0.0100 | R40: 0.0200
T49: Mean | U49: SDs | V49: only CA | W49: SDs
E50: 1 | F50: =COUNT(H50:S50) -> 1 | G50: 1 | P50: =(0.013+0.014+0.014+0.016)/4 -> 0.0143 | T50: =AVERAGE(H50:S50) -> 0.01425 | V50: =AVERAGE(H50:K50,M50,O50:S50) -> 0.01425
E51: 2 | F51: 2 | G51: 2 | J51: 0.0133 | S51: 0.0130 | T51: =AVERAGE(H51:S51) -> 0.0132 | U51: =_xlfn.STDEV.S(H51:S51) -> 0.0002357022604 | V51: =AVERAGE(H51:K51,M51,O51:S51) -> 0.01316666667 | W51: =_xlfn.STDEV.S(H51:K51,M51,O51:S51) -> 0.0002357022604
E52: 2 | F52: 3 | G52: 3 | H52: =(0.017+0.02)/2 -> 0.019 | L52: 0.0156 | M52: 0.0246 | T52: =AVERAGE(H52:S52) -> 0.020 | U52: =_xlfn.STDEV.S(H52:S52) -> 0.004588118714 | V52: =AVERAGE(H52:K52,M52,O52:S52) -> 0.021525 | W52: =_xlfn.STDEV.S(H52:K52,M52,O52:S52) -> 0.004277996026 | Z52: ANOVA by hand for all | AB52: SD from averaging SDs
E53: 4 | F53: 4 | G53: 4 | J53: 0.0175 | K53: 0.012 | R53: =0.023 -> 0.0230 | S53: =(0.017+0.019+0.019)/3 -> 0.0183 | T53: =AVERAGE(H53:S53) -> 0.0177 | U53: =_xlfn.STDEV.S(H53:S53) -> 0.004510019709 | V53: =AVERAGE(H53:K53,M53,O53:S53) -> 0.01770833333 | W53: =_xlfn.STDEV.S(H53:K53,M53,O53:S53) -> 0.004510019709 | AA53: SS | AB53: df | AC53: MS | AD53: F | AE53: F crit | AF53: p
F54: 0 | G54: 5 | Z54: Between Groups | AA54: =(1*(V50-V70)^2)+(2*(V51-V70)^2)+(2*(V52-V70)^2)+(4*(V53-V70)^2)+(6*(V60-V70)^2)+(5*(V61-V70)^2)+(1*(V64-V70)^2)+(1*(V65-V70)^2)+(2*(V66-V70)^2)+(4*(V67-V70)^2)+(2*(V68-V70)^2) -> 0.0003673065075 | AB54: =11-1 -> 10 | AC54: =AA54/AB54 -> 3.673065075e-05 | AD54: =AC54/AC55 -> 1.041677871 | AE54: 2.38 | AF54: =FDIST(AD54,AB54,AB55) -> 0.4481012774
F55: 0 | G55: 6 | Z55: Within Groups | AA55: =((1-1)*(0^2))+((2-1)*(W51^2))+((2-1)*(W52^2))+((4-1)*(W53^2))+((6-1)*(W60^2))+((5-1)*(W61^2))+((1-1)*(0^2))+((1-1)*(0^2))+((2-1)*(W66^2))+((4-1)*(W67^2))+((2-1)*(W68^2)) -> 0.0006699598634 | AB55: =(F70-8)-11 -> 19 | AC55: =AA55/AB55 -> 3.526104544e-05 | AE55: From F table for alpha = 0.05
F56: 0 | G56: 7 | Z56: total | AA56: =AA54+AA55 -> 0.001037266371
F57: 0 | G57: 8
F58: 0 | G58: 9
F59: 0 | G59: 10 | Z59: Just the tooth positions wit 3 or more samples
E60: 6 | F60: 8 | G60: 11 | H60: 0.0127 | L60: 0.0115 | M60: 0.0370 | N60: 0.0115 | O60: 0.0230 | P60: 0.0170 | Q60: 0.0100 | R60: =(0.016+0.016+0.014+0.017+0.017+0.018+0.018+0.017+0.017)/9 -> 0.0167 | T60: =AVERAGE(H60:S60) -> 0.01741590616 | U60: =_xlfn.STDEV.S(H60:S60) -> 0.008967656912 | V60: =AVERAGE(H60:K60,M60,O60:S60) -> 0.0194 | W60: =_xlfn.STDEV.S(H60:K60,M60,O60:S60) -> 0.009691276886 | Z60: ANOVA by hand for all | AB60: SD from averaging SDs
E61: 5 | F61: 6 | G61: 12 | H61: 0.0153 | J61: 0.0144 | K61: 0.0130 | N61: 0.0143 | P61: =(0.015+0.0145+0.016+0.018+0.022)/5 -> 0.0171 | Q61: 0.0200 | T61: =AVERAGE(H61:S61) -> 0.01569444444 | U61: =_xlfn.STDEV.S(H61:S61) -> 0.002507270908 | V61: =AVERAGE(H61:K61,M61,O61:S61) -> 0.01596666667 | W61: =_xlfn.STDEV.S(H61:K61,M61,O61:S61) -> 0.002702262427 | AA61: SS | AB61: df | AC61: MS | AD61: F | AE61: F crit | AF61: p
F62: 0 | G62: 13 | Z62: Between Groups | AA62: =(4*(V53-V70)^2)+(6*(V60-V70)^2)+(5*(V61-V70)^2)+(4*(V67-V70)^2) -> 5.671241481e-05 | AB62: =4-1 -> 3 | AC62: =AA62/AB62 -> 1.890413827e-05 | AD62: =AC62/AC63 -> 0.4844291325 | AE62: 3.29 | AF62: =FDIST(AD62,AB62,AB63) -> 0.6981057649
F63: 0 | G63: 14 | Z63: Within Groups | AA63: =((4-1)*(W53^2))+((6-1)*(W60^2))+((5-1)*(W61^2))+((4-1)*(W67^2)) -> 0.0005853530579 | AB63: =(4+6+5+4)-4 -> 15 | AC63: =AA63/AB63 -> 3.902353719e-05 | AE63: From F table for alpha = 0.05
F64: 1 | G64: 15 | S64: 0.0260 | T64: =AVERAGE(H64:S64) -> 0.026 | V64: =AVERAGE(H64:K64,M64,O64:S64) -> 0.026 | Z64: total | AA64: =AA62+AA63 -> 0.0006420654727
F65: 1 | G65: 16 | R65: 0.0270 | T65: =AVERAGE(H65:S65) -> 0.027 | V65: =AVERAGE(H65:K65,M65,O65:S65) -> 0.027
E66: 2 | F66: 3 | G66: 17 | H66: 0.0120 | I66: 0.0115 | L66: =(0.009)/1 -> 0.0090 | T66: =AVERAGE(H66:S66) -> 0.0108 | U66: =_xlfn.STDEV.S(H66:S66) -> 0.001607275127 | V66: =AVERAGE(H66:K66,M66,O66:S66) -> 0.01175 | W66: =_xlfn.STDEV.S(H66:K66,M66,O66:S66) -> 0.0003535533906
E67: 4 | F67: 6 | G67: 18 | H67: 0.0117 | J67: 0.0145 | L67: 0.0135 | M67: 0.0153 | N67: =(0.01+0.011+0.016+0.014+0.011+0.011+0.014+0.015)/8 -> 0.0128 | P67: 0.0188 | T67: =AVERAGE(H67:S67) -> 0.0144 | U67: =_xlfn.STDEV.S(H67:S67) -> 0.002482158559 | V67: =AVERAGE(H67:K67,M67,O67:S67) -> 0.0150625 | W67: =_xlfn.STDEV.S(H67:K67,M67,O67:S67) -> 0.002916567459
E68: 2 | F68: 3 | G68: 19 | J68: 0.0125 | L68: 0.0094 | M68: 0.0240 | T68: =AVERAGE(H68:S68) -> 0.0153 | U68: =_xlfn.STDEV.S(H68:S68) -> 0.007681256452 | V68: =AVERAGE(H68:K68,M68,O68:S68) -> 0.01825 | W68: =_xlfn.STDEV.S(H68:K68,M68,O68:S68) -> 0.008131727984
F69: 0 | G69: 20
E70: =SUM(E50:E69) -> 28 | F70: =SUM(F50:F69) -> 38 | T70: =AVERAGE(H50:S69) -> 0.0164 | U70: =_xlfn.STDEV.S(H50:S68) -> 0.005810437188 | V70: =AVERAGE(H50:K69,M50:M69,O50:S69) -> 0.0175 | W70: =_xlfn.STDEV.S(H50:K69,M50:M69,O50:S69) -> 0.00598061919
Z74: 1 | AA74: 2 | AB74: 3 | AC74: 4 | AD74: 5 | AE74: 6 | AF74: 7 | AG74: 8 | AH74: 9 | AI74: 10 | AJ74: 11 | AK74: 12 | AL74: 13 | AM74: 14 | AN74: 15 | AO74: 16 | AP74: 17 | AQ74: 18 | AR74: 19 | AS74: 20
X75: Small Alligator | Y75: functional teeth upper dentition | AB75: =(0.017+0.02)/2 -> 0.019 | AJ75: 0.0127 | AK75: 0.0153 | AP75: 0.0120 | AQ75: 0.0117
Y76: replacement teeth upper dentition | AP76: 0.0115
Y77: functional teeth lower dentition | AA77: 0.0133 | AC77: 0.0175 | AK77: 0.0144 | AQ77: 0.0145 | AR77: 0.0125
Y78: replacement teeth lower dentition | AC78: 0.012 | AK78: 0.0130
X79: Medium Alligator | Y79: functional teeth upper dentition | AB79: 0.0156 | AJ79: 0.0115 | AP79: =(0.009)/1 -> 0.0090 | AQ79: 0.0135 | AR79: 0.0094
N80: ANOVA by hand for all | P80: SD from calculation from those present | Y80: replacement teeth upper dentition | AB80: 0.0246 | AJ80: 0.0370 | AQ80: 0.0153 | AR80: 0.0240
O81: SS | P81: df | Q81: MS | R81: F | S81: F crit | T81: p | Y81: functional teeth lower dentition | AJ81: 0.0115 | AK81: 0.0143 | AQ81: =(0.01+0.011+0.016+0.014+0.011+0.011+0.014+0.015)/8 -> 0.0128
N82: Between Groups | O82: =(13*(N88-M88)^2)+(13*(O88-M88)^2)+(12*(P88-M88)^2) -> 0.0001448469565 | P82: =3-1 -> 2 | Q82: =O82/P82 -> 7.242347826e-05 | R82: =Q82/Q83 -> 2.295375687 | S82: 3.27 | T82: =FDIST(R82,P82,P83) -> 0.1156911809 | Y82: replacement teeth lower dentition | AJ82: 0.0230
N83: Within Groups | O83: =((13-1)*(S89^2))+((13-1)*(T89^2))+((12-1)*(U89^2)) -> 0.001104316715 | P83: =(13+13+12)-3 -> 35 | Q83: =O83/P83 -> 3.155190614e-05 | S83: From F table for alpha = 0.05 | X83: Large Alligator | Y83: functional teeth upper dentition | Z83: =(0.013+0.014+0.014+0.016)/4 -> 0.0143 | AJ83: 0.0170 | AK83: =(0.015+0.0145+0.016+0.018+0.022)/5 -> 0.0171 | AQ83: 0.0188
N84: total | O84: =O82+O83 -> 0.001249163672 | Y84: replacement teeth upper dentition | AJ84: 0.0100 | AK84: 0.0200
Y85: functional teeth lower dentition | AC85: =0.023 -> 0.0230 | AJ85: =(0.016+0.016+0.014+0.017+0.017+0.018+0.018+0.017+0.017)/9 -> 0.0167 | AO85: 0.0270
Q86: SDs | Y86: replacement teeth lower dentition | AA86: 0.0130 | AC86: =(0.017+0.019+0.019)/3 -> 0.0183 | AN86: 0.0260
M87: overall mean | N87: small mean | O87: medium mean | P87: large mean | R87: overall mean | S87: small mean | T87: medium mean | U87: large mean | X87: median | Y87: small | AA87: =MEDIAN(AA75:AA78) -> 0.0133 | AB87: =MEDIAN(AB75:AB78) -> 0.0185 | AC87: =MEDIAN($AC$75:$AC$78) -> 0.0148 | AJ87: =MEDIAN(AJ75:AJ78) -> 0.01266666667 | AK87: =MEDIAN(AK75:AK78) -> 0.0144 | AP87: =MEDIAN(AP75:AP78) -> 0.0118 | AQ87: =MEDIAN(AQ75:AQ78) -> 0.01308 | AR87: =MEDIAN(AR75:AR78) -> 0.0125
M88: =(SUM(Z75:AS86))/(13+13+12) -> 0.01635366195 | N88: =(SUM(Z75:AS78))/13 -> 0.01376153846 | O88: =(SUM(Z79:AS82))/13 -> 0.01703378108 | P88: =(SUM(Z83:AS86))/12 -> 0.018425 | Y88: medium | AB88: =MEDIAN(AB79:AB82) -> 0.0201 | AJ88: =MEDIAN(AJ79:AJ82) -> 0.0172 | AK88: =MEDIAN(AK79:AK82) -> 0.0143 | AP88: =MEDIAN(AP79:AP82) -> 0.0090 | AQ88: =MEDIAN(AQ79:AQ82) -> 0.01350 | AR88: =MEDIAN(AR79:AR82) -> 0.0167
Q89: calculated | R89: =_xlfn.STDEV.S(Z75:AS86) -> 0.005810437188 | S89: =_xlfn.STDEV.S(Z75:AS78) -> 0.002219519724 | T89: =_xlfn.STDEV.S(Z79:AS82) -> 0.007989811807 | U89: =_xlfn.STDEV.S(Z83:AS86) -> 0.005037643649 | Y89: large | Z89: =MEDIAN(Z83:Z85) -> 0.0143 | AC89: =MEDIAN(AC83:AC85) -> 0.0230 | AJ89: =MEDIAN(AJ83:AJ85) -> 0.0167 | AK89: =MEDIAN(AK83:AK85) -> 0.0186 | AO89: =MEDIAN(AO83:AO85) -> 0.0270 | AQ89: =MEDIAN(AQ83:AQ85) -> 0.01875
X90: mean | Y90: small | AA90: =AVERAGE(AA75:AA78) -> 0.0133 | AB90: =AVERAGE(AB75:AB78) -> 0.0185 | AC90: =AVERAGE(AC75:AC78) -> 0.0148 | AJ90: =AVERAGE(AJ75:AJ78) -> 0.0127 | AK90: =AVERAGE(AK75:AK78) -> 0.0142 | AP90: =AVERAGE(AP75:AP78) -> 0.0118 | AQ90: =AVERAGE(AQ75:AQ78) -> 0.0131 | AR90: =AVERAGE(AR75:AR78) -> 0.0125
Y91: medium | AB91: =AVERAGE(AB79:AB82) -> 0.0201 | AJ91: =AVERAGE(AJ79:AJ82) -> 0.0207 | AK91: =AVERAGE(AK79:AK82) -> 0.0143 | AP91: =AVERAGE(AP79:AP82) -> 0.0090 | AQ91: =AVERAGE(AQ79:AQ82) -> 0.0139 | AR91: =AVERAGE(AR79:AR82) -> 0.0167
Y92: large | Z92: =AVERAGE(Z83:Z86) -> 0.0143 | AA92: =AVERAGE(AA83:AA86) -> 0.0130 | AC92: =AVERAGE(AC83:AC86) -> 0.0207 | AJ92: =AVERAGE(AJ83:AJ86) -> 0.0146 | AK92: =AVERAGE(AK83:AK86) -> 0.0186 | AN92: =AVERAGE(AN83:AN86) -> 0.0260 | AO92: =AVERAGE(AO83:AO86) -> 0.0270 | AQ92: =AVERAGE(AQ83:AQ86) -> 0.0188

Sheet TFT +- SD
BW3: max | CB3: min | CX3: max | DC3: min
BW4: t-Test: Two-Sample Assuming Unequal Variances | CB4: t-Test: Two-Sample Assuming Unequal Variances
CX5: t-Test: Two-Sample Assuming Unequal Variances | DC5: t-Test: Two-Sample Assuming Unequal Variances
BX6: Variable 1 | BY6: Variable 2 | CC6: Variable 1 | CD6: Variable 2
D7: SDs | Z7: TFT from VEIW of all sampled positions | BW7: Mean | BX7: 280.4489248 | BY7: 194.4540907 | CB7: Mean | CC7: 150.2112336 | CD7: 194.4540907 | CH7: Large Alligator | CY7: Variable 1 | CZ7: Variable 2 | DD7: Variable 1 | DE7: Variable 2
AA8: crown height | AB8: 0.1928 | AC8: 0.2028 | AD8: 0.9228 | AE8: 1.1750 | AF8: 1.2328 | AG8: 1.5628 | AH8: 1.6228 | AI8: 1.6428 | AJ8: 1.7850 | AK8: 1.793 | AL8: 1.8628 | AM8: 2.0528 | AN8: 2.0550 | AO8: 2.0628 | AP8: 2.1328 | AQ8: 2.1928 | AR8: 3.4750 | AS8: 4.5650 | AT8: 5.0250 | AU8: 5.2650 | AV8: 5.6550 | AW8: 6.2250 | AX8: 6.4150 | AY8: 8.8250 | AZ8: 12.8650 | BW8: Variance | BX8: 37706.37529 | BY8: 20739.04716 | CB8: Variance | CC8: 13402.55655 | CD8: 20739.04716 | CH8: crown height | CI8: 1.1750 | CJ8: 1.7850 | CK8: 2.0550 | CL8: 2.1928 | CM8: 3.4750 | CN8: 4.5650 | CO8: 5.0250 | CP8: 5.2650 | CQ8: 5.6550 | CR8: 6.2250 | CS8: 6.4150 | CT8: 8.8250 | CU8: 12.8650 | CX8: Mean | CY8: 278.3754039 | CZ8: 391.2654299 | DC8: Mean | DD8: 278.3754039 | DE8: 218.0448348
F9: 1 | G9: 2 | H9: 3 | I9: 4 | J9: 5 | K9: 6 | L9: 7 | M9: 8 | N9: 9 | O9: 10 | P9: 11 | Q9: 12 | R9: 13 | S9: 14 | T9: 15 | U9: 16 | V9: 17 | W9: 18 | X9: 19 | Y9: 20 | AA9: TFT by sampled CA sections | AB9: 16.06666667 | AC9: 17.63478261 | AD9: 70.9846 | AE9: 90.3846 | AF9: 70.44571429 | AG9: 130.233 | AH9: 121.7100 | AI9: 131.4240 | AJ9: 89.2500 | AK9: 96.908 | AL9: 128.4690 | AM9: 175.954 | AN9: 205.5000 | AO9: 134.530 | AP9: 148.1111 | AQ9: 173.116 | AR9: 133.6538 | AS9: 249.0000 | AT9: 301.5000 | AU9: 195.0000 | AV9: 396.8421 | AW9: 364.0351 | AX9: 342.1333 | AY9: 519.1176 | AZ9: 559.3478 | BW9: Observations | BX9: 25 | BY9: 25 | CB9: Observations | CC9: 25 | CD9: 25 | CH9: TFT by sampled CA sections | CI9: 90.3846 | CJ9: 89.2500 | CK9: 205.5000 | CL9: 173.116 | CM9: 133.6538 | CN9: 249.0000 | CO9: 301.5000 | CP9: 195.0000 | CQ9: 396.8421 | CR9: 364.0351 | CS9: 342.1333 | CT9: 519.1176 | CU9: 559.3478 | CX9: Variance | CY9: 23261.0132 | CZ9: 41536.45315 | DC9: Variance | DD9: 23261.0132 | DE9: 15188.38755
D10: Small Alligator | E10: functional teeth upper dentition | H10: =(0.004+0.004)/2 -> 0.004 | P10: 0.0030 | Q10: 0.0030 | V10: 0.0030 | W10: 0.0030 | AA10: VEIW of the tooth | AB10: 0.0120 | AC10: 0.0115 | AD10: 0.0130 | AE10: 0.0130 | AF10: 0.0175 | AG10: 0.0120 | AH10: 0.0133 | AI10: 0.0125 | AJ10: 0.0200 | AK10: 0.019 | AL10: 0.0145 | AM10: 0.0117 | AN10: 0.0100 | AO10: 0.0153 | AP10: 0.0144 | AQ10: 0.0127 | AR10: 0.0260 | AS10: 0.0183 | AT10: 0.0167 | AU10: 0.0270 | AV10: 0.0143 | AW10: 0.0171 | AX10: 0.0188 | AY10: 0.0170 | AZ10: 0.0230 | BA10: =AVERAGE(AB10:AZ10) -> 0.0160 | BW10: Hypothesized Mean Difference | BX10: 0 | CB10: Hypothesized Mean Difference | CC10: 0 | CH10: VEIW of the tooth | CI10: 0.0130 | CJ10: 0.0200 | CK10: 0.0100 | CL10: 0.0127 | CM10: 0.0260 | CN10: 0.0183 | CO10: 0.0167 | CP10: 0.0270 | CQ10: 0.0143 | CR10: 0.0171 | CS10: 0.0188 | CT10: 0.0170 | CU10: 0.0230 | CX10: Observations | CY10: 13 | CZ10: 13 | DC10: Observations | DD10: 13 | DE10: 13
E11: replacement teeth upper dentition | V11: 0.0025 | AA11: TFT + SD | AB11: =(AB8/(AB10-E26)) -> 26.73940178 | AC11: =(AC8/(AC10-$E$26)) -> 30.2220456 | AD11: 112.3949495 | AE11: 143.1123381 | AF11: 96.99194881 | AG11: 216.7444871 | AH11: 189.9418673 | AI11: 213.0647183 | AJ11: 117.3544301 | AK11: 130.7626851 | AL11: 191.8368748 | AM11: 298.5022539 | AN11: 394.4085471 | AO11: 195.6435143 | AP11: 221.9277861 | AQ11: 278.3800939 | AR11: 163.8352375 | AS11: 337.0579114 | AT11: 423.086638 | AU11: 237.0518227 | AV11: 597.7590642 | AW11: 505.6727411 | AX11: 459.5162484 | AY11: 722.7484917 | AZ11: 706.4670242 | BW11: df | BX11: 44 | CB11: df | CC11: 46 | CH11: TFT + SD | CI11: 143.1123381 | CJ11: 117.3544301 | CK11: 394.4085471 | CL11: 278.3800939 | CM11: 163.8352375 | CN11: 337.0579114 | CO11: 423.086638 | CP11: 237.0518227 | CQ11: 597.7590642 | CR11: 505.6727411 | CS11: 459.5162484 | CT11: 722.7484917 | CU11: 706.4670242 | CX11: Hypothesized Mean Difference | CY11: 0 | DC11: Hypothesized Mean Difference | DD11: 0
G12: =0.003 -> 0.0030 | I12: 0.0048 | Q12: 0.0037 | W12: 0.0030 | X12: 0.0028 | AA12: TFT - SD | AB12: =(AB8/(AB10+$E$26)) -> 11.48325359 | AC12: 12.44961018 | AD12: 51.87281006 | AE12: 66.04957934 | AF12: 55.3081398 | AG12: 93.08106176 | AH12: 89.54367378 | AI12: 95.01629104 | AJ12: 72.00580887 | AK12: 76.97834519 | AL12: 96.56983877 | AM12: 124.7422472 | AN12: 138.9483648 | AO12: 102.5095662 | AP12: 111.14315 | AQ12: 125.6162997 | AR12: 112.8625405 | AS12: 197.4224798 | AT12: 234.1965853 | AU12: 165.6198555 | AV12: 297.0115023 | AW12: 284.380758 | AX12: 272.5187273 | AY12: 405.0084903 | AZ12: 462.9418609 | BW12: t Stat | BX12: 1.778554249 | CB12: t Stat | CC12: -1.197212413 | CH12: TFT - SD | CI12: 66.04957934 | CJ12: 72.00580887 | CK12: 138.9483648 | CL12: 125.6162997 | CM12: 112.8625405 | CN12: 197.4224798 | CO12: 234.1965853 | CP12: 165.6198555 | CQ12: 297.0115023 | CR12: 284.380758 | CS12: 272.5187273 | CT12: 405.0084903 | CU12: 462.9418609 | CX12: df | CY12: 22 | DC12: df | DD12: 23
I13: 0.003 | Q13: 0.0030 | AA13: SD + | AB13: =AB11-AB9 -> 10.67273512 | AC13: 12.58726299 | AD13: 41.41033407 | AE13: 52.72772273 | AF13: 26.54623452 | AG13: 86.51115375 | AH13: 68.2319 | AI13: 81.64071834 | AJ13: 28.1044301 | AK13: 33.85457697 | AL13: 63.36790929 | AM13: 122.5479682 | AN13: 188.9085471 | AO13: 61.11307949 | AP13: 73.81667495 | AQ13: 105.2643045 | AR13: 30.18139139 | AS13: 88.05791145 | AT13: 121.586638 | AU13: 42.05182273 | AV13: 200.9169589 | AW13: 141.6376533 | AX13: 117.3829151 | AY13: 203.6308447 | AZ13: 147.1191981 | BW13: P(T<=t) one-tail | BX13: 0.04111139169 | CB13: P(T<=t) one-tail | CC13: 0.1186785642 | CH13: SD + | CI13: 52.72772273 | CJ13: 28.1044301 | CK13: 188.9085471 | CL13: 105.2643045 | CM13: 30.18139139 | CN13: 88.05791145 | CO13: 121.586638 | CP13: 42.05182273 | CQ13: 200.9169589 | CR13: 141.6376533 | CS13: 117.3829151 | CT13: 203.6308447 | CU13: 147.1191981 | CX13: t Stat | CY13: -1.598999165 | DC13: t Stat | DD13: 1.109339074
D14: Medium Alligator | E14: functional teeth upper dentition | AA14: SD - | AB14: =AB12-AB9 -> -4.583413078 | AC14: -5.185172426 | AD14: -19.11180533 | AE14: -24.33503604 | AF14: -15.13757449 | AG14: -37.15227157 | AH14: -32.1663 | AI14: -36.40770896 | AJ14: -17.24419113 | AK14: -19.92976292 | AL14: -31.89912674 | AM14: -51.21203856 | AN14: -66.55163515 | AO14: -32.02086861 | AP14: -36.96796115 | AQ14: -47.49948975 | AR14: -20.79130569 | AS14: -51.57752022 | AT14: -67.30341469 | AU14: -29.38014449 | AV14: -99.83060296 | AW14: -79.65432968 | AX14: -69.61460608 | AY14: -114.1091568 | AZ14: -96.4059652 | BW14: t Critical one-tail | BX14: 1.680229977 | CB14: t Critical one-tail | CC14: 1.678660414 | CH14: SD - | CI14: -24.33503604 | CJ14: -17.24419113 | CK14: -66.55163515 | CL14: -47.49948975 | CM14: -20.79130569 | CN14: -51.57752022 | CO14: -67.30341469 | CP14: -29.38014449 | CQ14: -99.83060296 | CR14: -79.65432968 | CS14: -69.61460608 | CT14: -114.1091568 | CU14: -96.4059652 | CX14: P(T<=t) one-tail | CY14: 0.06204249442 | DC14: P(T<=t) one-tail | DD14: 0.1393744011
E15: replacement teeth upper dentition | H15: 0.0025 | P15: 0.0110 | W15: 0.0037 | X15: 0.0040 | AA15: SD + [%] | AB15: =((AB11/AB$9)*100)-100 -> 66.42781194 | AC15: 71.37747752 | AD15: 58.33705493 | AE15: 58.33705493 | AF15: 37.68324985 | AG15: 66.42781194 | AH15: 56.06101986 | AI15: 62.12009857 | AJ15: 31.48955754 | AK15: 34.93472077 | AL15: 49.32546085 | AM15: 69.64761766 | AN15: 91.9263003 | AO15: 45.42695457 | AP15: 49.83871527 | AQ15: 60.8057213 | AR15: 22.58176046 | AS15: 35.36462307 | AT15: 40.32724313 | AU15: 21.56503729 | AV15: 50.6289419 | AW15: 38.90769272 | AX15: 34.30911392 | AY15: 39.22633835 | AZ15: 26.30191649 | BA15: =AVERAGE(AB15:AZ15) -> 48.7752 | BW15: P(T<=t) two-tail | BX15: 0.08222278339 | CB15: P(T<=t) two-tail | CC15: 0.2373571283 | CH15: SD + [%] | CI15: 58.33705493 | CJ15: 31.48955754 | CK15: 91.9263003 | CL15: 60.8057213 | CM15: 22.58176046 | CN15: 35.36462307 | CO15: 40.32724313 | CP15: 21.56503729 | CQ15: 50.6289419 | CR15: 38.90769272 | CS15: 34.30911392 | CT15: 39.22633835 | CU15: 26.30191649 | CX15: t Critical one-tail | CY15: 1.717144374 | DC15: t Critical one-tail | DD15: 1.713871528
AA16: SD - [%] | AB16: =((AB12/AB$9)*100)-100 -> -28.52746729 | AC16: -29.40309808 | AD16: -26.92386966 | AE16: -26.92386966 | AF16: -21.48828306 | AG16: -28.52746729 | AH16: -26.42866339 | AI16: -27.70248125 | AJ16: -19.32122255 | AK16: -20.56562996 | AL16: -24.83021998 | AM16: -29.105309 | AN16: -32.38522392 | AO16: -23.80195133 | AP16: -24.95961368 | AQ16: -27.43798812 | AR16: -15.55608483 | AS16: -20.71386354 | AT16: -22.32285728 | AU16: -15.06674076 | AV16: -25.15625274 | AW16: -21.88094839 | AX16: -20.34721534 | AY16: -21.98136731 | AZ16: -17.23542324 | BA16: =AVERAGE(AB16:AZ16) -> -23.9437 | BW16: t Critical two-tail | BX16: 2.015367574 | CB16: t Critical two-tail | CC16: 2.012895599 | CH16: SD - [%] | CI16: -26.92386966 | CJ16: -19.32122255 | CK16: -32.38522392 | CL16: -27.43798812 | CM16: -15.55608483 | CN16: -20.71386354 | CO16: -22.32285728 | CP16: -15.06674076 | CQ16: -25.15625274 | CR16: -21.88094839 | CS16: -20.34721534 | CT16: -21.98136731 | CU16: -17.23542324 | CX16: P(T<=t) two-tail | CY16: 0.1240849888 | DC16: P(T<=t) two-tail | DD16: 0.2787488022
P17: 0.0150 | AA17: TFT (tooth specific SD) + | AB17: =(AB8/(AB10-I13)) -> 21.42222222 | AC17: =(AC8/(AC10-V11)) -> 22.53333333 | AD17: =(AD8/(AD10-Q13)) -> 92.28 | AE17: =(AE8/(AE10-G21)) -> 126.344086 | AF17: =(AF8/(AF10-I12)) -> 97.07086614 | AG17: =(AG8/(AG10-V10)) -> 173.6444444 | AH17: =(AH8/(AH10-G12)) -> 157.0451613 | AI17: =(AI8/(AI10-X12)) -> 169.3608247 | AJ17: =(AJ8/(AJ10-Q19)) -> 122.260274 | AK17: =(AK8/(AK10-H10)) -> 123.6413793 | AL17: =(AL8/(AL10-W12)) -> 161.9826087 | AM17: =(AM8/(AM10-W10)) -> 236.8615385 | AN17: =(AN8/(AN10-P19)) -> 256.875 | AO17: =(AO8/(AO10-Q10)) -> 167.2540541 | AP17: =(AP8/(AP10-Q12)) -> 199.3271028 | AQ17: =(AQ8/(AQ10-P10)) -> 226.8413793 | AR17: =(AR8/(AR10-T21)) -> 193.0555556 | AS17: =(AS8/(AS10-I21)) -> 325.993811 | AT17: =(AT8/(AT10-P20)) -> 381.6455696 | AU17: =(AU8/(AU10-U20)) -> 256.8292683 | AV17: =(AV8/(AV10-F18)) -> 904.8 | AW17: =(AW8/(AW10-Q18)) -> 1020.491803 | AX17: =(AX8/(AX10-W18)) -> 476.9516729 | AY17: =(AY8/(AY10-P18)) -> 630.3571429 | AZ17: =(AZ8/(AZ10-I20)) -> 714.7222222 | CH17: TFT (tooth specific SD) + | CI17: 126.344086 | CJ17: 122.260274 | CK17: 256.875 | CL17: 226.8413793 | CM17: 193.0555556 | CN17: 325.993811 | CO17: 381.6455696 | CP17: 256.8292683 | CQ17: 904.8 | CR17: 1020.491803 | CS17: 476.9516729 | CT17: 630.3571429 | CU17: 714.7222222 | CX17: t Critical two-tail | CY17: 2.073873068 | DC17: t Critical two-tail | DD17: 2.06865761
D18: Large Alligator | E18: functional teeth upper dentition | F18: 0.0080 | P18: 0.0030 | Q18: 0.0110 | W18: 0.0053 | AA18: TFT (tooth specific SD) - | AB18: =(AB8/(AB10+I13)) -> 12.85333333 | AC18: =(AC8/(AC10+V11)) -> 14.48571429 | AD18: =(AD8/(AD10+Q13)) -> 57.675 | AE18: =(AE8/(AE10+G21)) -> 70.35928144 | AF18: =(AF8/(AF10+I12)) -> 55.28251121 | AG18: =(AG8/(AG10+G12)) -> 104.1866667 | AH18: =(AH8/(AH10+G12)) -> 99.35510204 | AI18: =(AI8/(AI10+X12)) -> 107.372549 | AJ18: =(AJ8/(AJ10+Q19)) -> 70.27559055 | AK18: =(AK8/(AK10+H10)) -> 79.68 | AL18: =(AL8/(AL10+W12)) -> 106.4457143 | AM18: =(AM8/(AM10+W10)) -> 139.9636364 | AN18: =(AN8/(AN10+P19)) -> 171.25 | AO18: =(AO8/(AO10+Q10)) -> 112.5163636 | AP18: =(AP8/(AP10+Q12)) -> 117.8342541 | AQ18: =(AQ8/(AQ10+P10)) -> 139.9659574 | AR18: =(AR8/(AR10+T21)) -> 102.2058824 | AS18: =(AS8/(AS10+I21)) -> 201.4266804 | AT18: =(AT8/(AT10+P20)) -> 249.1735537 | AU18: =(AU8/(AU10+U20)) -> 157.1641791 | AV18: =(AV8/(AV10+F18)) -> 254.1573034 | AW18: =(AW8/(AW10+Q18)) -> 221.5302491 | AX18: =(AX8/(AX10+W18)) -> 266.7359667 | AY18: =(AY8/(AY10+P18)) -> 441.25 | AZ18: =(AZ8/(AZ10+I20)) -> 459.4642857 | CH18: TFT (tooth specific SD) - | CI18: 70.35928144 | CJ18: 70.27559055 | CK18: 171.25 | CL18: 139.9659574 | CM18: 102.2058824 | CN18: 201.4266804 | CO18: 249.1735537 | CP18: 157.1641791 | CQ18: 254.1573034 | CR18: 221.5302491 | CS18: 266.7359667 | CT18: 441.25 | CU18: 459.4642857
E19: replacement teeth upper dentition | P19: 0.0020 | Q19: 0.0054 | AA19: SD + | AB19: =AB17-AB9 -> 5.355555556 | AC19: 4.898550725 | AD19: 21.29538462 | AE19: 35.95947064 | AF19: 26.62515186 | AG19: 43.41111111 | AH19: 35.3352 | AI19: 37.93682474 | AJ19: 33.01027397 | AK19: 26.7332712 | AL19: 33.51364318 | AM19: 60.90725275 | AN19: 51.375 | AO19: 32.72361927 | AP19: 51.21599169 | AQ19: 53.72558984 | AR19: 59.4017094 | AS19: 76.993811 | AT19: 80.14556962 | AU19: 61.82926829 | AV19: 507.9578947 | AW19: 656.4567156 | AX19: 134.8183395 | AY19: 111.2394958 | AZ19: 155.3743961 | CH19: SD + | CI19: 35.95947064 | CJ19: 33.01027397 | CK19: 51.375 | CL19: 53.72558984 | CM19: 59.4017094 | CN19: 76.993811 | CO19: 80.14556962 | CP19: 61.82926829 | CQ19: 507.9578947 | CR19: 656.4567156 | CS19: 134.8183395 | CT19: 111.2394958 | CU19: 155.3743961
I20: 0.0050 | P20: 0.0035 | U20: 0.0065 | AA20: SD - | AB20: =AB18-AB9 -> -3.213333333 | AC20: -3.149068323 | AD20: -13.30961538 | AE20: -20.02533395 | AF20: -15.16320307 | AG20: -26.04666667 | AH20: -22.3549 | AI20: -24.05145098 | AJ20: -18.97440945 | AK20: -17.22810811 | AL20: -22.02325123 | AM20: -35.99064935 | AN20: -34.25 | AO20: -22.01407115 | AP20: -30.27685697 | AQ20: -33.14983203 | AR20: -31.4479638 | AS20: -47.57331961 | AT20: -52.32644628 | AU20: -37.8358209 | AV20: -142.6848019 | AW20: -142.5048386 | AX20: -75.3973666 | AY20: -77.86764706 | AZ20: -99.88354037 | CH20: SD - | CI20: -20.02533395 | CJ20: -18.97440945 | CK20: -34.25 | CL20: -33.14983203 | CM20: -31.4479638 | CN20: -47.57331961 | CO20: -52.32644628 | CP20: -37.8358209 | CQ20: -142.6848019 | CR20: -142.5048386 | CS20: -75.3973666 | CT20: -77.86764706 | CU20: -99.88354037
G21: 0.0037 | I21: 0.0043 | T21: 0.0080 | Z21: # measurents for CA | AA21: SD + [%] | AB21: =((AB17/AB$9)*100)-100 -> 33.33333333 | AC21: 27.77777778 | AD21: 30 | AE21: 39.78494624 | AF21: 37.79527559 | AG21: 33.33333333 | AH21: 29.03225806 | AI21: 28.86597938 | AJ21: 36.98630137 | AK21: 27.5862069 | AL21: 26.08695652 | AM21: 34.61538462 | AN21: 25 | AO21: 24.32432432 | AP21: 34.57943925 | AQ21: 31.03448276 | AR21: 44.44444444 | AS21: 30.92120924 | AT21: 26.58227848 | AU21: 31.70731707 | AV21: 128 | AW21: 180.3278689 | AX21: 39.40520446 | AY21: 21.42857143 | AZ21: 27.77777778 | BA21: =AVERAGE(AB21:AZ21) -> 41.2292 | CH21: SD + [%] | CI21: 39.78494624 | CJ21: 36.98630137 | CK21: 25 | CL21: 31.03448276 | CM21: 44.44444444 | CN21: 30.92120924 | CO21: 26.58227848 | CP21: 31.70731707 | CQ21: 128 | CR21: 180.3278689 | CS21: 39.40520446 | CT21: 21.42857143 | CU21: 27.77777778
D22: mean | E22: small | G22: =G12 -> 0.0030 | H22: =H10 -> 0.004 | I22: =(I12+I13)/2 -> 0.0039 | P22: =P10 -> 0.0030 | Q22: =(Q10+Q12+Q13)/3 -> 0.003233333333 | V22: =(V10+V11)/2 -> 0.00275 | W22: =(W10+W12)/2 -> 0.003 | X22: =X12 -> 0.0028 | Z22: 38 | AA22: SD - [%] | AB22: =((AB18/AB$9)*100)-100 -> -20 | AC22: -17.85714286 | AD22: -18.75 | AE22: -22.15568862 | AF22: -21.52466368 | AG22: -20 | AH22: -18.36734694 | AI22: -18.30065359 | AJ22: -21.25984252 | AK22: -17.77777778 | AL22: -17.14285714 | AM22: -20.45454545 | AN22: -16.66666667 | AO22: -16.36363636 | AP22: -20.44198895 | AQ22: -19.14893617 | AR22: -23.52941176 | AS22: -19.10575085 | AT22: -17.3553719 | AU22: -19.40298507 | AV22: -35.95505618 | AW22: -39.14590747 | AX22: -22.03742204 | AY22: -15 | AZ22: -17.85714286 | BA22: =AVERAGE(AB22:AZ22) -> -20.6240 | CH22: SD - [%] | CI22: -22.15568862 | CJ22: -21.25984252 | CK22: -16.66666667 | CL22: -19.14893617 | CM22: -23.52941176 | CN22: -19.10575085 | CO22: -17.3553719 | CP22: -19.40298507 | CQ22: -35.95505618 | CR22: -39.14590747 | CS22: -22.03742204 | CT22: -15 | CU22: -17.85714286
E23: medium | H23: =(H14+H15)/2 -> 0.00123 | P23: =(P14+P15+P16+P17)/4 -> 0.0065 | Q23: =Q16 -> 0.0000 | V23: =V14 -> 0.0000 | W23: =(W14+W15+W16)/3 -> 0.001233333333 | X23: =(X14+X15)/2 -> 0.002 | Z23: 9 | AA23: Tooth specific SD | AB23: 0.003 | AC23: 0.0025 | AD23: 0.0030 | AE23: 0.0037 | AF23: 0.0048 | AG23: 0.0030 | AH23: =0.003 -> 0.0030 | AI23: 0.0028 | AJ23: 0.0054 | AK23: =(0.004+0.004)/2 -> 0.004 | AL23: 0.0030 | AM23: 0.0030 | AN23: 0.0020 | AO23: 0.0030 | AP23: 0.0037 | AQ23: 0.0030 | AR23: 0.0080 | AS23: 0.0043 | AT23: 0.0035 | AU23: 0.0065 | AV23: 0.0080 | AW23: 0.0110 | AX23: 0.0053 | AY23: 0.0030 | AZ23: 0.0050 | BA23: =AVERAGE(AB23:AZ23) -> 0.0043 | CH23: Tooth specific SD | CI23: 0.0037 | CJ23: 0.0054 | CK23: 0.0020 | CL23: 0.0030 | CM23: 0.0080 | CN23: 0.0043 | CO23: 0.0035 | CP23: 0.0065 | CQ23: 0.0080 | CR23: 0.0110 | CS23: 0.0053 | CT23: 0.0030 | CU23: 0.0050
E24: large | F24: =F18 -> 0.0080 | G24: =G21 -> 0.0037 | I24: =(I20+I21)/2 -> 0.004665 | P24: =(P18+P19+P20)/3 -> 0.002833333333 | Q24: =(Q18+Q19)/2 -> 0.0082 | T24: =T21 -> 0.0080 | U24: =U20 -> 0.0065 | W24: =W18 -> 0.0053 | Z24: 40 | BA24: =E26 -> 0.004789666667 | CX24: max | DC24: min
Z25: =SUM(Z22:Z24) -> 87 | AT25: SD/VEIW ratio for tooth used in Fig. 5 (VEIW variation along the CA) | BA25: =BA23/BA10 -> 0.268825 | CH25: Small Alligator
D26: mean of all: | E26: =AVERAGE(F10:Y21) -> 0.00479 | AA26: Replacement rates from Erickson 1996 | AD26: Alligator mean | AE26: =AVERAGE(AB10:AZ10) -> 0.016 | AG26: ratio SD/VEIW | AH26: =E26/AE26 -> 0.2993541667 | AT26: =AT23/AT10 -> 0.21 | AZ26: =BA10/BA24 -> 3.340524741 | BA26: =BA24/BA10 -> 0.2993541667 | CH26: crown height | CI26: 0.1928 | CJ26: 0.2028 | CK26: 0.9228 | CL26: 1.2328 | CM26: 1.5628 | CN26: 1.6228 | CO26: 1.6428 | CP26: 1.793 | CQ26: 1.8628 | CR26: 2.0528 | CS26: 2.0628 | CT26: 2.1328 | CX26: t-Test: Two-Sample Assuming Unequal Variances | DC26: t-Test: Two-Sample Assuming Unequal Variances
CH27: TFT by sampled CA sections | CI27: 16.06666667 | CJ27: 17.63478261 | CK27: 70.9846 | CL27: 70.44571429 | CM27: 130.233 | CN27: 121.7100 | CO27: 131.4240 | CP27: 96.908 | CQ27: 128.4690 | CR27: 175.954 | CS27: 134.530 | CT27: 148.1111
B28: crown heights of the sampled positions | F28: 1 | G28: 2 | H28: 3 | I28: 4 | J28: 5 | K28: 6 | L28: 7 | M28: 8 | N28: 9 | O28: 10 | P28: 11 | Q28: 12 | R28: 13 | S28: 14 | T28: 15 | U28: 16 | V28: 17 | W28: 18 | X28: 19 | Y28: 20 | BW28: max | CB28: min | CH28: VEIW of the tooth | CI28: 0.0120 | CJ28: 0.0115 | CK28: 0.0130 | CL28: 0.0175 | CM28: 0.0120 | CN28: 0.0133 | CO28: 0.0125 | CP28: 0.019 | CQ28: 0.0145 | CR28: 0.0117 | CS28: 0.0153 | CT28: 0.0144 | CY28: Variable 1 | CZ28: Variable 2 | DD28: Variable 1 | DE28: Variable 2
D29: Small Alligator | E29: functional teeth upper dentition | F29: 1.4328 | G29: 1.7728 | H29: 1.793 | I29: 1.4328 | J29: 1.7628 | K29: 1.6928 | L29: 2.4328 | M29: 1.7928 | N29: 2.5128 | O29: 1.8328 | P29: 2.1928 | Q29: 2.0628 | R29: 2.1028 | S29: 2.2828 | T29: 1.3528 | U29: 2.3028 | V29: 1.5628 | W29: 2.0528 | X29: 1.3528 | Y29: 1.7528 | BW29: t-Test: Two-Sample Assuming Unequal Variances | CB29: t-Test: Two-Sample Assuming Unequal Variances | CH29: TFT + SD | CI29: 26.73940178 | CJ29: 30.2220456 | CK29: 112.3949495 | CL29: 96.99194881 | CM29: 216.7444871 | CN29: 189.9418673 | CO29: 213.0647183 | CP29: 130.7626851 | CQ29: 191.8368748 | CR29: 298.5022539 | CS29: 195.6435143 | CT29: 221.9277861 | CX29: Mean | CY29: 103.5393348 | CZ29: 160.397711 | DC29: Mean | DD29: 103.5393348 | DE29: 76.72483229
E30: replacement teeth upper dentition | F30: 0.1628 | G30: 0.7728 | H30: 0.5328 | I30: 0.3128 | J30: 0.5628 | K30: 0.4728 | L30: 0.9528 | M30: 0.6028 | N30: 1.2228 | O30: 0.5028 | P30: 0.9328 | Q30: 0.4228 | R30: 1.0628 | S30: 0.6128 | T30: 0.2828 | U30: 0.7528 | V30: 0.2028 | W30: 0.4528 | Y30: 0.3328 | CH30: TFT - SD | CI30: 11.48325359 | CJ30: 12.44961018 | CK30: 51.87281006 | CL30: 55.3081398 | CM30: 93.08106176 | CN30: 89.54367378 | CO30: 95.01629104 | CP30: 76.97834519 | CQ30: 96.56983877 | CR30: 124.7422472 | CS30: 102.5095662 | CT30: 111.14315 | CX30: Variance | CY30: 2532.98461 | CZ30: 6720.379147 | DC30: Variance | DD30: 2532.98461 | DE30: 1343.593243
E31: functional teeth lower dentition | F31: 2.1428 | G31: 1.6228 | H31: 1.8428 | I31: 1.2328 | J31: 1.5728 | K31: 1.9228 | L31: 1.0828 | M31: 1.7028 | N31: 1.1128 | O31: 1.8128 | P31: 1.4928 | Q31: 2.1328 | R31: 1.8128 | S31: 2.2828 | T31: 1.5728 | U31: 2.0428 | V31: 1.4128 | W31: 1.8628 | X31: 1.6428 | Y31: 2.8328 | BX31: Variable 1 | BY31: Variable 2 | CC31: Variable 1 | CD31: Variable 2 | CH31: SD + | CI31: 10.67273512 | CJ31: 12.58726299 | CK31: 41.41033407 | CL31: 26.54623452 | CM31: 86.51115375 | CN31: 68.2319 | CO31: 81.64071834 | CP31: 33.85457697 | CQ31: 63.36790929 | CR31: 122.5479682 | CS31: 61.11307949 | CT31: 73.81667495 | CX31: Observations | CY31: 12 | CZ31: 12 | DC31: Observations | DD31: 12 | DE31: 12
E32: replacement teeth lower dentition | F32: 0.6628 | G32: 0.8228 | H32: 0.5428 | I32: 0.1928 | J32: 0.3228 | K32: 0.5628 | L32: 0.1728 | M32: 0.4528 | N32: 0.1628 | O32: 0.4628 | P32: 0.2828 | Q32: 0.9228 | R32: 0.4528 | S32: 0.8328 | T32: 0.2328 | U32: 0.5328 | V32: 0.1528 | W32: 0.4328 | X32: 0.1128 | Y32: 0.3028 | BW32: Mean | BX32: 290.3836528 | BY32: 194.4540907 | CB32: Mean | CC32: 152.504391 | CD32: 194.4540907 | CH32: SD - | CI32: -4.583413078 | CJ32: -5.185172426 | CK32: -19.11180533 | CL32: -15.13757449 | CM32: -37.15227157 | CN32: -32.1663 | CO32: -36.40770896 | CP32: -19.92976292 | CQ32: -31.89912674 | CR32: -51.21203856 | CS32: -32.02086861 | CT32: -36.96796115 | CX32: Hypothesized Mean Difference | CY32: 0 | DC32: Hypothesized Mean Difference | DD32: 0
D33: Large Alligator | E33: functional teeth upper dentition | F33: 5.6550 | G33: 8.0550 | H33: 11.4550 | J33: 8.645 | K33: 7.205 | L33: 1.185 | M33: 5.455 | N33: 12.725 | O33: 6.025 | P33: 8.8250 | Q33: 6.2250 | R33: 6.215 | T33: 10.4350 | U33: 6.8550 | V33: 7.7650 | W33: 6.4150 | X33: 6.175 | Y33: 4.555 | BW33: Variance | BX33: 69121.1599 | BY33: 20739.04716 | CB33: Variance | CC33: 12859.53558 | CD33: 20739.04716 | CH33: SD + [%] | CI33: 66.42781194 | CJ33: 71.37747752 | CK33: 58.33705493 | CL33: 37.68324985 | CM33: 66.42781194 | CN33: 56.06101986 | CO33: 62.12009857 | CP33: 34.93472077 | CQ33: 49.32546085 | CR33: 69.64761766 | CS33: 45.42695457 | CT33: 49.83871527 | CX33: df | CY33: 18 | DC33: df | DD33: 20
E34: replacement teeth upper dentition | F34: 3.145 | G34: 4.7950 | I34: 2.9650 | J34: 2.965 | K34: 3.915 | P34: 2.0550 | Q34: 1.7850 | R34: 0.955 | T34: 4.2250 | U34: 1.435 | V34: 2.905 | W34: 1.685 | BW34: Observations | BX34: 25 | BY34: 25 | CB34: Observations | CC34: 25 | CD34: 25 | CH34: SD - [%] | CI34: -28.52746729 | CJ34: -29.40309808 | CK34: -26.92386966 | CL34: -21.48828306 | CM34: -28.52746729 | CN34: -26.42866339 | CO34: -27.70248125 | CP34: -20.56562996 | CQ34: -24.83021998 | CR34: -29.105309 | CS34: -23.80195133 | CT34: -24.95961368 | CX34: t Stat | CY34: -2.047553502 | DC34: t Stat | DD34: 1.491887625
E35: functional teeth lower dentition | G35: 4.625 | I35: 12.8650 | J35: 7.425 | K35: 5.565 | L35: 4.385 | M35: 4.215 | N35: 5.565 | O35: 4.555 | P35: 5.0250 | Q35: 9.475 | R35: 11.975 | S35: 7.705 | T35: 6.9750 | U35: 5.2650 | BW35: Hypothesized Mean Difference | BX35: 0 | CB35: Hypothesized Mean Difference | CC35: 0 | CH35: TFT (tooth specific SD) + | CI35: 21.42222222 | CJ35: 22.53333333 | CK35: 92.28 | CL35: 97.07086614 | CM35: 173.6444444 | CN35: 157.0451613 | CO35: 169.3608247 | CP35: 123.6413793 | CQ35: 161.9826087 | CR35: 236.8615385 | CS35: 167.2540541 | CT35: 199.3271028 | CX35: P(T<=t) one-tail | CY35: 0.02774181159 | DC35: P(T<=t) one-tail | DD35: 0.07566736551
E36: replacement teeth lower dentition | G36: 1.1750 | I36: 4.5650 | J36: 2.505 | K36: 3.115 | L36: 1.135 | M36: 1.875 | N36: 3.365 | O36: 1.545 | Q36: 2.345 | R36: 3.925 | T36: 3.4750 | U36: 0.985 | V36: 0.985 | BW36: df | BX36: 37 | CB36: df | CC36: 45 | CH36: TFT (tooth specific SD) - | CI36: 12.85333333 | CJ36: 14.48571429 | CK36: 57.675 | CL36: 55.28251121 | CM36: 104.1866667 | CN36: 99.35510204 | CO36: 107.372549 | CP36: 79.68 | CQ36: 106.4457143 | CR36: 139.9636364 | CS36: 112.5163636 | CT36: 117.8342541 | CX36: t Critical one-tail | CY36: 1.734063607 | DC36: t Critical one-tail | DD36: 1.724718243
BW37: t Stat | BX37: 1.600069176 | CB37: t Stat | CC37: -1.144296005 | CH37: SD + | CI37: 5.355555556 | CJ37: 4.898550725 | CK37: 21.29538462 | CL37: 26.62515186 | CM37: 43.41111111 | CN37: 35.3352 | CO37: 37.93682474 | CP37: 26.7332712 | CQ37: 33.51364318 | CR37: 60.90725275 | CS37: 32.72361927 | CT37: 51.21599169 | CX37: P(T<=t) two-tail | CY37: 0.05548362318 | DC37: P(T<=t) two-tail | DD37: 0.151334731
BW38: P(T<=t) one-tail | BX38: 0.05904426878 | CB38: P(T<=t) one-tail | CC38: 0.1292756176 | CH38: SD - | CI38: -3.213333333 | CJ38: -3.149068323 | CK38: -13.30961538 | CL38: -15.16320307 | CM38: -26.04666667 | CN38: -22.3549 | CO38: -24.05145098 | CP38: -17.22810811 | CQ38: -22.02325123 | CR38: -35.99064935 | CS38: -22.01407115 | CT38: -30.27685697 | CX38: t Critical two-tail | CY38: 2.10092204 | DC38: t Critical two-tail | DD38: 2.085963447
BW39: t Critical one-tail | BX39: 1.68709362 | CB39: t Critical one-tail | CC39: 1.679427393 | CH39: SD + [%] | CI39: 33.33333333 | CJ39: 27.77777778 | CK39: 30 | CL39: 37.79527559 | CM39: 33.33333333 | CN39: 29.03225806 | CO39: 28.86597938 | CP39: 27.5862069 | CQ39: 26.08695652 | CR39: 34.61538462 | CS39: 24.32432432 | CT39: 34.57943925
BW40: P(T<=t) two-tail | BX40: 0.1180885376 | CB40: P(T<=t) two-tail | CC40: 0.2585512352 | CH40: SD - [%] | CI40: -20 | CJ40: -17.85714286 | CK40: -18.75 | CL40: -21.52466368 | CM40: -20 | CN40: -18.36734694 | CO40: -18.30065359 | CP40: -17.77777778 | CQ40: -17.14285714 | CR40: -20.45454545 | CS40: -16.36363636 | CT40: -20.44198895
BW41: t Critical two-tail | BX41: 2.026192463 | CB41: t Critical two-tail | CC41: 2.014103389 | CH41: Tooth specific SD | CI41: 0.003 | CJ41: 0.0025 | CK41: 0.0030 | CL41: 0.0048 | CM41: 0.0030 | CN41: 0.0030 | CO41: 0.0028 | CP41: 0.004 | CQ41: 0.0030 | CR41: 0.0030 | CS41: 0.0030 | CT41: 0.0037
D42: # of VEIWs | CB42: P(T<=t) two-tail | CC42: 0.08222278339
CB43: t Critical two-tail | CC43: 2.015367574
F44: 1 | G44: 2 | H44: 3 | I44: 4 | J44: 5 | K44: 6 | L44: 7 | M44: 8 | N44: 9 | O44: 10 | P44: 11 | Q44: 12 | R44: 13 | S44: 14 | T44: 15 | U44: 16 | V44: 17 | W44: 18 | X44: 19 | Y44: 20
D45: Small Alligator | E45: functional teeth upper dentition | H45: =(37+28) -> 65 | P45: =31+31+27 -> 89 | Q45: =91+68+53 -> 212 | V45: =26 -> 26 | W45: =83+95+78 -> 256
E46: replacement teeth upper dentition | V46: =29+26 -> 55
G47: =82+41+69 -> 192 | I47: =65+101+(24+12) -> 202 | Q47: =(59+54)+(37+54)+(57+64)+(55+72)+(57+53) -> 562 | W47: =51+58+46+58 -> 213 | X47: =51+28+56+54 -> 189
I48: =37+26 -> 63 | Q48: =53+53+58+53 -> 217
D49: Medium Alligator | E49: functional teeth upper dentition
E50: replacement teeth upper dentition | H50: =13+19 -> 32 | P50: =15 -> 15 | W50: =14+15+16 -> 45 | X50: =20+18 -> 38
P52: =10 -> 10
D53: Large Alligator | E53: functional teeth upper dentition | F53: =95+85+98+85 -> 363 | P53: =(24+9) -> 33 | Q53: =101+(58+36)+(31+51)+49+22 -> 348 | W53: =(36+91)+93+60+105 -> 385
E54: replacement teeth upper dentition | P54: =21 -> 21 | Q54: =23+33+31 -> 87
I55: =57 -> 57 | P55: =86+82+91+63+38+47+71+42 -> 520 | U55: =34 -> 34
G56: =53+60+65 -> 178 | I56: =45+47+38 -> 130 | T56: =17 -> 17
E58: =SUM(F45:X56) -> 4654
E64: crown height [mm] | F64: 0.1928 | G64: 0.2028 | H64: 0.9228 | I64: 1.1750 | J64: 1.2328 | K64: 1.5628 | L64: 1.6228 | M64: 1.6428 | N64: 1.7850 | O64: 1.7928 | P64: 1.8628 | Q64: 2.0528 | R64: 2.0550 | S64: 2.0628 | T64: 2.1328 | U64: 2.1928 | V64: 3.4750 | W64: 4.5650 | X64: 5.0250 | Y64: 5.2650 | Z64: 5.6550 | AA64: 6.2250 | AB64: 6.4150 | AC64: 8.8250 | AD64: 12.8650 | AE64: Mean | AF64: Variance | AG64: t -statistic | AH64: p-value | AJ64: crown height [mm] | AK64: 0.1928 | AL64: 0.2028 | AM64: 0.9228 | AN64: 1.1750 | AO64: 1.2328 | AP64: 1.5628 | AQ64: 1.6228 | AR64: 1.6428 | AS64: 1.7850 | AT64: 1.7928 | AU64: 1.8628 | AV64: 2.0528 | AW64: 2.0550 | AX64: 2.0628 | AY64: 2.1328 | AZ64: 2.1928 | BA64: 3.4750 | BB64: 4.5650 | BC64: 5.0250 | BD64: 5.2650 | BE64: 5.6550 | BF64: 6.2250 | BG64: 6.4150 | BH64: 8.8250 | BI64: 12.8650 | BJ64: Mean | BK64: Variance | BL64: t -statistic | BM64: p-value
E65: TFT by sampled CA sections [days] | F65: 16.0667 | G65: 17.6348 | H65: 70.9846 | I65: 90.3846 | J65: 70.4457 | K65: 130.2333 | L65: 121.7100 | M65: 131.4240 | N65: 89.2500 | O65: 96.9081 | P65: 128.4690 | Q65: 175.9543 | R65: 205.5000 | S65: 134.5304 | T65: 148.1111 | U65: 173.1158 | V65: 133.6538 | W65: 249.0000 | X65: 301.5000 | Y65: 195.0000 | Z65: 396.8421 | AA65: 364.0351 | AB65: 342.1333 | AC65: 519.1176 | AD65: 559.3478 | AE65: 194.4541 | AF65: 20739.047 | AJ65: TFT by sampled CA sections [days] | AK65: 16.0667 | AL65: 17.6348 | AM65: 70.9846 | AN65: 90.3846 | AO65: 70.4457 | AP65: 130.2333 | AQ65: 121.7100 | AR65: 131.4240 | AS65: 89.2500 | AT65: 96.9081 | AU65: 128.4690 | AV65: 175.9543 | AW65: 205.5000 | AX65: 134.5304 | AY65: 148.1111 | AZ65: 173.1158 | BA65: 133.6538 | BB65: 249.0000 | BC65: 301.5000 | BD65: 195.0000 | BE65: 396.8421 | BF65: 364.0351 | BG65: 342.1333 | BH65: 519.1176 | BI65: 559.3478 | BJ65: 194.4541 | BK65: 20739.047
E66: VEIW of the tooth [mm] | F66: 0.0120 | G66: 0.0115 | H66: 0.0130 | I66: 0.0130 | J66: 0.0175 | K66: 0.0120 | L66: 0.0133 | M66: 0.0125 | N66: 0.0200 | O66: 0.0185 | P66: 0.0145 | Q66: 0.0117 | R66: 0.0100 | S66: 0.0153 | T66: 0.0144 | U66: 0.0127 | V66: 0.0260 | W66: 0.0183 | X66: 0.0167 | Y66: 0.0270 | Z66: 0.0143 | AA66: 0.0171 | AB66: 0.0188 | AC66: 0.0170 | AD66: 0.0230 | AJ66: VEIW of the tooth [mm] | AK66: 0.0120 | AL66: 0.0115 | AM66: 0.0130 | AN66: 0.0130 | AO66: 0.0175 | AP66: 0.0120 | AQ66: 0.0133 | AR66: 0.0125 | AS66: 0.0200 | AT66: 0.0185 | AU66: 0.0145 | AV66: 0.0117 | AW66: 0.0100 | AX66: 0.0153 | AY66: 0.0144 | AZ66: 0.0127 | BA66: 0.0260 | BB66: 0.0183 | BC66: 0.0167 | BD66: 0.0270 | BE66: 0.0143 | BF66: 0.0171 | BG66: 0.0188 | BH66: 0.0170 | BI66: 0.0230
E67: TFT + SD [days] | F67: 26.7394 | G67: 30.2220 | H67: 112.3949 | I67: 143.1123 | J67: 96.9919 | K67: 216.7445 | L67: 189.9419 | M67: 213.0647 | N67: 117.3544 | O67: 130.7627 | P67: 191.8369 | Q67: 298.5023 | R67: 394.4085 | S67: 195.6435 | T67: 221.9278 | U67: 278.3801 | V67: 163.8352 | W67: 337.0579 | X67: 423.0866 | Y67: 237.0518 | Z67: 597.7591 | AA67: 505.6727 | AB67: 459.5162 | AC67: 722.7485 | AD67: 706.4670 | AE67: 280.4489 | AF67: 37706.375 | AG67: 1.7786 | AH67: 0.0411 | AJ67: Tooth specific SD [mm] | AK67: 0.003 | AL67: 0.0025 | AM67: 0.0030 | AN67: 0.0037 | AO67: 0.0048 | AP67: 0.0030 | AQ67: =0.003 -> 0.0030 | AR67: 0.0028 | AS67: 0.0054 | AT67: =(0.004+0.004)/2 -> 0.004 | AU67: 0.0030 | AV67: 0.0030 | AW67: 0.0020 | AX67: 0.0030 | AY67: 0.0037 | AZ67: 0.0030 | BA67: 0.0080 | BB67: 0.0043 | BC67: 0.0035 | BD67: 0.0065 | BE67: 0.0080 | BF67: 0.0110 | BG67: 0.0053 | BH67: 0.0030 | BI67: 0.0050
E68: TFT - SD [days] | F68: 11.4833 | G68: 12.4496 | H68: 51.8728 | I68: 66.0496 | J68: 55.3081 | K68: 93.0811 | L68: 89.5437 | M68: 95.0163 | N68: 72.0058 | O68: 76.9783 | P68: 96.5698 | Q68: 124.7422 | R68: 138.9484 | S68: 102.5096 | T68: 111.1431 | U68: 125.6163 | V68: 112.8625 | W68: 197.4225 | X68: 234.1966 | Y68: 165.6199 | Z68: 297.0115 | AA68: 284.3808 | AB68: 272.5187 | AC68: 405.0085 | AD68: 462.9419 | AE68: 150.2112 | AF68: 13402.557 | AG68: -1.1972 | AH68: 0.1187 | AJ68: TFT (tooth specific SD) + [days] | AK68: 21.4222 | AL68: 22.5333 | AM68: 92.2800 | AN68: 126.3441 | AO68: 97.0709 | AP68: 173.6444 | AQ68: 157.0452 | AR68: 169.3608 | AS68: 122.2603 | AT68: 123.6414 | AU68: 161.9826 | AV68: 236.8615 | AW68: 256.8750 | AX68: 167.2541 | AY68: 199.3271 | AZ68: 226.8414 | BA68: 193.0556 | BB68: 325.9938 | BC68: 381.6456 | BD68: 256.8293 | BE68: 904.8000 | BF68: 1020.4918 | BG68: 476.9517 | BH68: 630.3571 | BI68: 714.7222 | BJ68: 290.3837 | BK68: 69121.160 | BL68: 1.6001 | BM68: 0.0590
E69: SD + [days] | F69: 10.6727 | G69: 12.5873 | H69: 41.4103 | I69: 52.7277 | J69: 26.5462 | K69: 86.5112 | L69: 68.2319 | M69: 81.6407 | N69: 28.1044 | O69: 33.8546 | P69: 63.3679 | Q69: 122.5480 | R69: 188.9085 | S69: 61.1131 | T69: 73.8167 | U69: 105.2643 | V69: 30.1814 | W69: 88.0579 | X69: 121.5866 | Y69: 42.0518 | Z69: 200.9170 | AA69: 141.6377 | AB69: 117.3829 | AC69: 203.6308 | AD69: 147.1192 | AJ69: TFT (tooth specific SD) - [days] | AK69: 12.8533 | AL69: 14.4857 | AM69: 57.6750 | AN69: 70.3593 | AO69: 55.2825 | AP69: 104.1867 | AQ69: 99.3551 | AR69: 107.3725 | AS69: 70.2756 | AT69: 79.6800 | AU69: 106.4457 | AV69: 139.9636 | AW69: 171.2500 | AX69: 112.5164 | AY69: 117.8343 | AZ69: 139.9660 | BA69: 102.2059 | BB69: 201.4267 | BC69: 249.1736 | BD69: 157.1642 | BE69: 254.1573 | BF69: 221.5302 | BG69: 266.7360 | BH69: 441.2500 | BI69: 459.4643 | BJ69: 152.5044 | BK69: 12859.536 | BL69: -1.1443 | BM69: 0.1293
E70: SD - [days] | F70: -4.5834 | G70: -5.1852 | H70: -19.1118 | I70: -24.3350 | J70: -15.1376 | K70: -37.1523 | L70: -32.1663 | M70: -36.4077 | N70: -17.2442 | O70: -19.9298 | P70: -31.8991 | Q70: -51.2120 | R70: -66.5516 | S70: -32.0209 | T70: -36.9680 | U70: -47.4995 | V70: -20.7913 | W70: -51.5775 | X70: -67.3034 | Y70: -29.3801 | Z70: -99.8306 | AA70: -79.6543 | AB70: -69.6146 | AC70: -114.1092 | AD70: -96.4060 | AJ70: SD + [days] | AK70: 5.3556 | AL70: 4.8986 | AM70: 21.2954 | AN70: 35.9595 | AO70: 26.6252 | AP70: 43.4111 | AQ70: 35.3352 | AR70: 37.9368 | AS70: 33.0103 | AT70: 26.7333 | AU70: 33.5136 | AV70: 60.9073 | AW70: 51.3750 | AX70: 32.7236 | AY70: 51.2160 | AZ70: 53.7256 | BA70: 59.4017 | BB70: 76.9938 | BC70: 80.1456 | BD70: 61.8293 | BE70: 507.9579 | BF70: 656.4567 | BG70: 134.8183 | BH70: 111.2395 | BI70: 155.3744
E71: SD + [%] | F71: 66.4278 | G71: 71.3775 | H71: 58.3371 | I71: 58.3371 | J71: 37.6832 | K71: 66.4278 | L71: 56.0610 | M71: 62.1201 | N71: 31.4896 | O71: 34.9347 | P71: 49.3255 | Q71: 69.6476 | R71: 91.9263 | S71: 45.4270 | T71: 49.8387 | U71: 60.8057 | V71: 22.5818 | W71: 35.3646 | X71: 40.3272 | Y71: 21.5650 | Z71: 50.6289 | AA71: 38.9077 | AB71: 34.3091 | AC71: 39.2263 | AD71: 26.3019 | AJ71: SD - [days] | AK71: -3.2133 | AL71: -3.1491 | AM71: -13.3096 | AN71: -20.0253 | AO71: -15.1632 | AP71: -26.0467 | AQ71: -22.3549 | AR71: -24.0515 | AS71: -18.9744 | AT71: -17.2281 | AU71: -22.0233 | AV71: -35.9906 | AW71: -34.2500 | AX71: -22.0141 | AY71: -30.2769 | AZ71: -33.1498 | BA71: -31.4480 | BB71: -47.5733 | BC71: -52.3264 | BD71: -37.8358 | BE71: -142.6848 | BF71: -142.5048 | BG71: -75.3974 | BH71: -77.8676 | BI71: -99.8835
E72: SD - [%] | F72: -28.5275 | G72: -29.4031 | H72: -26.9239 | I72: -26.9239 | J72: -21.4883 | K72: -28.5275 | L72: -26.4287 | M72: -27.7025 | N72: -19.3212 | O72: -20.5656 | P72: -24.8302 | Q72: -29.1053 | R72: -32.3852 | S72: -23.8020 | T72: -24.9596 | U72: -27.4380 | V72: -15.5561 | W72: -20.7139 | X72: -22.3229 | Y72: -15.0667 | Z72: -25.1563 | AA72: -21.8809 | AB72: -20.3472 | AC72: -21.9814 | AD72: -17.2354 | AJ72: SD + [%] | AK72: 33.3333 | AL72: 27.7778 | AM72: 30.0000 | AN72: 39.7849 | AO72: 37.7953 | AP72: 33.3333 | AQ72: 29.0323 | AR72: 28.8660 | AS72: 36.9863 | AT72: 27.5862 | AU72: 26.0870 | AV72: 34.6154 | AW72: 25.0000 | AX72: 24.3243 | AY72: 34.5794 | AZ72: 31.0345 | BA72: 44.4444 | BB72: 30.9212 | BC72: 26.5823 | BD72: 31.7073 | BE72: 128.0000 | BF72: 180.3279 | BG72: 39.4052 | BH72: 21.4286 | BI72: 27.7778
AJ73: SD - [%] | AK73: -20.0000 | AL73: -17.8571 | AM73: -18.7500 | AN73: -22.1557 | AO73: -21.5247 | AP73: -20.0000 | AQ73: -18.3673 | AR73: -18.3007 | AS73: -21.2598 | AT73: -17.7778 | AU73: -17.1429 | AV73: -20.4545 | AW73: -16.6667 | AX73: -16.3636 | AY73: -20.4420 | AZ73: -19.1489 | BA73: -23.5294 | BB73: -19.1058 | BC73: -17.3554 | BD73: -19.4030 | BE73: -35.9551 | BF73: -39.1459 | BG73: -22.0374 | BH73: -15.0000 | BI73: -17.8571

Sheet Body length vs. VEIW, TRR
G4: Are volumes from Erickson wrong by factor of 10? Corrected
D5: Extend of Ericksons (1996) and Erickson (1992 MSc Thesis) tables | M5: skull lengths estimated for all but small and medium alligator from this study
D6: Taxon (total length, m) | F6: Sample size (n) | G6: Mean crown vol (cc) | H6: Mean tooth vol (cmm) | I6: Mean tooth replacement rate est. (days) | J6: STD | K6: VEIW (average increment width) | L6: VEIW (average) preliminary correction | M6: skull length | O6: r squared | P6: p value (actual degrees of freedom) | R6: r squared skull | S6: p value skull (actual degrees of freedom)
N7: VELW All data | O7: =RSQ(K12:K20,E12:E20) -> 0.3866 | P7: =FDIST(7*O7/(1-O7),1,7) -> 0.0738 | R7: =RSQ(K12:K20,M12:M20) -> 0.3799534552 | S7: =FDIST(7*R7/(1-R7),1,7) -> 0.0771
C8: Erickson 1992 referencing Westergard & Ferguson (1990) | D8: Alligator | E8: 0.22 | F8: 1 | I8: 6.49 | N8: VELW Erickson 1996 & this study | O8: =RSQ(K24:K30,E24:E30) -> 0.4055911727 | P8: =FDIST(4*O8/(1-O8),1,4) -> 0.1738618745
E9: 0.3 | F9: 1 | I9: 24.74 | N9: VELW Erickson 1996 | O9: =RSQ(K28:K30,E28:E30) -> 0.8895111115 | P9: =FDIST(1*O9/(1-O9),1,1) -> 0.2157158998
C10: Erickson 1996 referencing Westergard & Ferguson (1990) | E10: 0.18 | I10: 11.41 | N10: VELW This study | O10: =RSQ(K24:K26,E24:E26) -> 0.7867406009 | P10: =FDIST(1*O10/(1-O10),1,1) -> 0.3055925608
E11: 0.2 | I11: 20.26 | O11: r squared | P11: p value (actual degrees of freedom)
D12: Alligator (0.37) | E12: 0.37 | F12: 1 | G12: =(('Tooth measurements raw data'!U87+'Tooth measurements raw data'!U89+'Tooth measurements raw data'!U91+'Tooth measurements raw data'!U93+'Tooth measurements raw data'!U95+'Tooth measurements raw data'!U97+'Tooth measurements raw data'!U99+'Tooth measurements raw data'!U101+'Tooth measurements raw data'!U103+'Tooth measurements raw data'!U105+'Tooth measurements raw data'!U107+'Tooth measurements raw data'!U109+'Tooth measurements raw data'!U111+'Tooth measurements raw data'!U114+'Tooth measurements raw data'!U116+'Tooth measurements raw data'!U118+'Tooth measurements raw data'!U120+'Tooth measurements raw data'!U122+'Tooth measurements raw data'!U124+'Tooth measurements raw data'!U125+'Tooth measurements raw data'!U127+'Tooth measurements raw data'!U128+'Tooth measurements raw data'!U130+'Tooth measurements raw data'!U132+'Tooth measurements raw data'!U134+'Tooth measurements raw data'!U136+'Tooth measurements raw data'!U138+'Tooth measurements raw data'!U140+'Tooth measurements raw data'!U142+'Tooth measurements raw data'!U144+'Tooth measurements raw data'!U146+'Tooth measurements raw data'!U148+'Tooth measurements raw data'!U150+'Tooth measurements raw data'!U152+'Tooth measurements raw data'!U154+'Tooth measurements raw data'!U156+'Tooth measurements raw data'!U158+'Tooth measurements raw data'!U160+'Tooth measurements raw data'!U162+'Tooth measurements raw data'!U164+'Tooth measurements raw data'!U166)/41)/1000 -> 0.0007023691015 | H12: 1.370665018 | I12: 90 | K12: 13.6 | L12: 13.6 | M12: 57.73 | N12: replacement rate all alligators | O12: =RSQ(I12:I20,E12:E20) -> 0.899150613 | P12: =FDIST(7*O12/(1-O12),1,7) -> 9.876127437e-05
C13: Erickson 1996 | D13: Alligator (0.60) | E13: 0.6 | F13: 2 | G13: 0.002 | I13: 83 | J13: 1.4 | K13: 6.6 | L13: =K13+((K13*(1/5))*1.3333333333333) -> 8.36 | M13: =((1000*E13)-130.31)/7.13 -> 65.87517532 | N13: replacement rate this study | O13: =RSQ(I24:I26,E24:E26) -> 0.9931944636 | P13: =FDIST(1*O13/(1-O13),1,1) -> 0.05257813026
C14: Erickson 1996 | D14: Alligator (0.85) | E14: 0.85 | F14: 2 | G14: 0.004 | I14: 109 | J14: 2 | K14: 10.5 | L14: =K14+((K14*(1/5))*1.3333333333333) -> 13.3 | M14: =((1000*E14)-130.31)/7.13 -> 100.9382889 | N14: replacement rate all + Erickson 1992 | O14: =RSQ(I12:I22,E12:E22) -> 0.8829972717 | P14: =FDIST(9*O14/(1-O14),1,9) -> 1.744109021e-05
D15: Alligator (0.90) | E15: 0.9 | F15: 1 | G15: =(('Tooth measurements raw data'!U3+'Tooth measurements raw data'!U5+'Tooth measurements raw data'!U7+'Tooth measurements raw data'!U9+'Tooth measurements raw data'!U11+'Tooth measurements raw data'!U14+'Tooth measurements raw data'!U16+'Tooth measurements raw data'!U19+'Tooth measurements raw data'!U21+'Tooth measurements raw data'!U23+'Tooth measurements raw data'!U25+'Tooth measurements raw data'!U28+'Tooth measurements raw data'!U30+'Tooth measurements raw data'!U32+'Tooth measurements raw data'!U34+'Tooth measurements raw data'!U36+'Tooth measurements raw data'!U38+'Tooth measurements raw data'!U40+'Tooth measurements raw data'!U42+'Tooth measurements raw data'!U44+'Tooth measurements raw data'!U46+'Tooth measurements raw data'!U48+'Tooth measurements raw data'!U50+'Tooth measurements raw data'!U53+'Tooth measurements raw data'!U55+'Tooth measurements raw data'!U57+'Tooth measurements raw data'!U59+'Tooth measurements raw data'!U61+'Tooth measurements raw data'!U63+'Tooth measurements raw data'!U65+'Tooth measurements raw data'!U67+'Tooth measurements raw data'!U69+'Tooth measurements raw data'!U71+'Tooth measurements raw data'!U73+'Tooth measurements raw data'!U75+'Tooth measurements raw data'!U77+'Tooth measurements raw data'!U79+'Tooth measurements raw data'!U81+'Tooth measurements raw data'!U83+'Tooth measurements raw data'!U85)/40)/1000 -> 0.003235352147 | H15: 11.2194425 | I15: 134 | K15: 16.2 | L15: 16.2 | M15: 115.6 | N15: replacement rate all + Erickson 1996 | O15: =RSQ(I10:I20,E10:E20) -> 0.8924612564 | P15: =FDIST(9*O15/(1-O15),1,9) -> 1.188152419e-05
C16: Erickson 1996 | D16: Alligator (1.40) | E16: 1.4 | F16: 2 | G16: 0.012 | I16: 122 | J16: 2.1 | K16: 13 | L16: =K16+((K16*(1/5))*1.3333333333333) -> 16.46666667 | M16: =((1000*E16)-130.31)/7.13 -> 178.0771388
C17: Erickson 1992 | D17: Alligator (1.50) | E17: 1.5 | F17: ? | G17: 0.02 | I17: 115 | K17: 14 | L17: =K17+((K17*(1/5))*1.3333333333333) -> 17.73333333 | M17: =((1000*E17)-130.31)/7.13 -> 192.1023843
C18: Erickson 1992 | D18: Alligator (2.50) | E18: 2.5 | F18: ? | G18: 0.045 | I18: 154 | K18: 16.3 | L18: 20.64666667 | M18: =((1000*E18)-130.31)/7.13 -> 332.3548387 | S18: OLS Regressions
C19: Erickson 1992 | D19: Alligator (3.20) | E19: 3.2 | F19: ? | G19: 0.13 | I19: 260 | K19: 14 | L19: 17.73333333 | M19: =((1000*E19)-130.31)/7.13 -> 430.5315568
D20: Alligator (3.95) | E20: 3.95 | F20: 1 | G20: 0.148375508 | H20: 829.5160742 | I20: 279 | K20: 18.07 | L20: 18.07 | M20: 428
C21: Erickson 1992 referencing Westergard & Ferguson (1990) | D21: Alligator | E21: 0.22 | F21: 1 | I21: 6.49
E22: 0.3 | F22: 1 | I22: 24.74
D24: Alligator (0.37) | E24: 0.37 | F24: 1 | H24: =H12 -> 1.370665018 | I24: =I12 -> 90 | K24: 13.6
D25: Alligator (0.90) | E25: 0.9 | F25: 1 | H25: =H15 -> 11.2194425 | I25: =I15 -> 134 | K25: 16.2
D26: Alligator (3.95) | E26: 3.95 | F26: 1 | H26: =H20 -> 829.5160742 | I26: =I20 -> 279 | K26: 18.07
C28: Erickson 1996 | D28: Alligator (0.60) | E28: 0.6 | F28: 2 | G28: 0.002 | I28: 83 | J28: 1.4 | K28: 6.6
C29: Erickson 1996 | D29: Alligator (0.85) | E29: 0.85 | F29: 2 | G29: 0.004 | I29: 109 | J29: 2 | K29: 10.5
C30: Erickson 1996 | D30: Alligator (1.40) | E30: 1.4 | F30: 2 | G30: 0.012 | I30: 122 | J30: 2.1 | K30: 13
C32: Erickson 1996 | D32: Caiman (0.13) | E32: 0.13 | F32: 1 | G32: 0.001 | I32: 111 | J32: 1.1 | K32: 5.2
D34: VAR.S | E34: =_xlfn.VAR.S(E12:E20) -> 1.552975 | I34: =_xlfn.VAR.S(I12:I20) -> 5093.169617 | K34: =_xlfn.VAR.S(K12:K20) -> 11.66487778 | L34: =_xlfn.VAR.S(L12:L20) -> 12.89572222
E35: =_xlfn.VAR.S(E10:E20) -> 1.613861818 | I35: =_xlfn.VAR.S(I10:I20) -> 7004.901488
C36: Elements for reduced major axis regression calculation | E36: =_xlfn.VAR.S(E12:E22) -> 1.580447273 | I36: =_xlfn.VAR.S(I12:I22) -> 7027.275008
D37: uncorrected VEIW | E37: corrected VEIW | F37: replacement rate no hatchlings | G37: replacement rate hatchlings low | H37: replacement rate hatchlings high
C38: Mean x | D38: =AVERAGE(E12:E20) -> 1.696666667 | E38: =AVERAGE(E12:E20) -> 1.696666667 | F38: =AVERAGE(E12:E20) -> 1.696666667 | G38: =AVERAGE(E10:E20) -> 1.422727273 | H38: =AVERAGE(E12:E22) -> 1.435454545
C39: Mean y | D39: =AVERAGE(K12:K20) -> 13.58555556 | E39: =AVERAGE(L12:L20) -> 15.79 | F39: =AVERAGE(I12:I20) -> 150 | G39: =AVERAGE(I10:I20) -> 125 | H39: =AVERAGE(I12:I22) -> 125
C40: DEVSQ x | D40: =DEVSQ(E12:E20) -> 12.4238 | E40: =DEVSQ(E12:E20) -> 12.4238 | F40: =DEVSQ(E12:E20) -> 12.4238 | G40: =DEVSQ(E10:E20) -> 16.13861818 | H40: =DEVSQ(E12:E22) -> 15.80447273
C41: DEVSQ y | D41: =DEVSQ(K12:K20) -> 93.31902222 | E41: =DEVSQ(L12:L20) -> 103.1657778 | F41: =DEVSQ(I12:I20) -> 40745.35694 | G41: =DEVSQ(I10:I20) -> 70049.01488 | H41: =DEVSQ(I12:I22) -> 70272.75008
C42: SUM Product - means | D42: =SUMPRODUCT(E12:E20-D38,K12:K20-D39) -> 21.17206667 | E42: =SUMPRODUCT(E12:E20-E38,L12:L20-E39) -> 24.21286667 | F42: =SUMPRODUCT(E12:E20-F38,I12:I20-F39) -> 674.6561931 | G42: =SUMPRODUCT(E10:E20-G38,I10:I20-G39) -> 1004.451277 | H42: =SUMPRODUCT(E12:E22-H38,I12:I22-H39) -> 990.2917508
C43: n | D43: =COUNT(E12:E20) -> 9 | E43: =COUNT(E12:E20) -> 9 | F43: =COUNT(E12:E20) -> 9 | G43: =COUNT(E10:E20) -> 11 | H43: =COUNT(E12:E22) -> 11
C44: lambda | D44: =(E34/K34) -> 0.1331325565 | E44: =(E34/L34) -> 0.1204255933 | F44: =(E34/I34) -> 0.0003049132695 | G44: =(E35/I35) -> 0.0002303903661 | H44: =(E36/I36) -> 0.0002249018675
C45: b0 | D45: =D39-D38*D46 -> 8.93554015 | E45: =E39-E38*E46 -> 10.90080757 | F45: =F39-F38*F46 -> 52.4008799 | G45: =G39-G38*G46 -> 31.5185531 | H45: =H39-H38*H46 -> 29.49305638
C46: b1 | D46: =(D44*D41-D40+SQRT((D44*D41-D40)^2+4*D44*D42^2)/(2*D44*D42)) -> 2.740677056 | E46: =(E44*E41-E40+SQRT((E44*E41-E40)^2+4*E44*E42^2)/(2*E44*E42)) -> 2.88164583 | F46: =(F44*F41-F40+SQRT((F44*F41-F40)^2+4*F44*F42^2)/(2*F44*F42)) -> 57.26797644 | G46: =(G44*G41-G40+SQRT((G44*G41-G40)^2+4*G44*G42^2)/(2*G44*G42)) -> 65.882162 | H46: =(H44*H41-H40+SQRT((H44*H41-H40)^2+4*H44*H42^2)/(2*H44*H42)) -> 66.68120957
G47: reduced major axis replacement rate hatchlings low | H47: reduced major axis replacement rate hatchlings high
G48: =G$46*E10+G$45 -> 43.37734226
B49: x | C49: y | D49: reduced major axis uncorrected values | E49: reduced major axis corrected values | F49: reduced major axis replacement rate no hatchlings | G49: =G$46*E11+G$45 -> 44.6949855
B50: 0.37 | C50: 13.6 | D50: =D$46*B50+D$45 -> 9.949590661 | E50: =E$46*B50+E$45 -> 11.96701653 | F50: =F$46*B50+F$45 -> 73.59003119 | G50: =G$46*E12+G$45 -> 55.89495304 | H50: =H$46*E12+H$45 -> 54.16510393
B51: 0.6 | C51: 8.36 | D51: 10.57994638 | E51: 12.62979507 | F51: 86.76166577 | G51: =G$46*E13+G$45 -> 71.0478503 | H51: =H$46*E13+H$45 -> 69.50178213 | AF51: Reduced Major Axis Regressions
B52: 0.85 | C52: 13.3 | D52: 11.26511565 | E52: 13.35020653 | F52: 101.0786599 | G52: 87.5183908 | H52: 86.17208452
B53: 0.9 | C53: 16.2 | D53: 11.4021495 | E53: 13.49428882 | F53: 103.9420587 | G53: 90.8124989 | H53: 89.506145
B54: 1.4 | C54: 16.46666667 | D54: 12.77248803 | E54: 14.93511174 | F54: 132.5760469 | G54: 123.7535799 | H54: 122.8467498
B55: 1.5 | C55: 17.73333333 | D55: 13.04655573 | E55: 15.22327632 | F55: 138.3028446 | G55: 130.3417961 | H55: 129.5148707
B56: 2.5 | C56: 20.64666667 | D56: 15.78723279 | E56: 18.10492215 | F56: 195.570821 | G56: 196.2239581 | H56: 196.1960803
B57: 3.2 | C57: 17.73333333 | D57: 17.70570673 | E57: 20.12207423 | F57: 235.6584045 | G57: 242.3414715 | H57: 242.872927
B58: 3.95 | C58: 18.07 | D58: 19.76121452 | E58: 22.2833086 | F58: 278.6093868 | G58: 291.753093 | H58: 292.8838342
H59: 44.16292249
H60: 49.49741926

Sheet TFTs in Archosaurs
M2: Replacement rates from Erickson 1996 | P2: Alligator mean | Q2: ='TFT +- SD'!$AE$26 -> 0.016 | S2: ratio SD/VEIW | T2: ='TFT +- SD'!$E$26/$Q$2 -> 0.2993541667
B3: Taxon | C3: Mean increment width, micro m | D3: Central axis height (back calculated from mean VEIW and TFT) | E3: Mean tooth formation rate, days | F3: SD based on Alligator | G3: TFT + SD | H3: TFT - SD | I3: SD + | J3: SD - | K3: Source | P3: SD | Q3: ='TFT +- SD'!$E$26 -> 0.004789666667
B4: Crocodilian | C4: 13 | D4: 3.198 | E4: 246 | F4: 0.003891604167 | G4: 351.1046356 | H4: 189.3248248 | I4: 105.1046356 | J4: -56.67517517 | K4: Erickson 1996b | M4: Taxon | N4: Sample size, n | O4: Mean crown volume, ml | P4: Increment size range, micro m | Q4: Mean increment width, micro m | R4: Mean tooth formation rate, days | S4: Tooth replacement rate, days | U4: Central axis height (back calculated from mean VEIW and TFT) | V4: SD based on Alligator | W4: TFT + SD | X4: TFT - SD | Y4: SD + | Z4: SD - | AA4: SD + [%] | AB4: SD - [%]
B5: Leidyosuchus | C5: 19 | D5: 5.377 | E5: 283 | F5: 0.005687729167 | G5: 403.9130564 | H5: 217.8005099 | I5: 120.9130564 | J5: -65.19949013 | M5: Crocodilian† | N5: 1 | O5: 0.9 | P5: 8–19 | Q5: 13 | R5: 246 | S5: NA | U5: =R5*(Q5/1000) -> 3.198 | V5: =(Q5/1000)/($Q$2/$Q$3) -> 0.003891604167 | W5: =U5/((Q5/1000)-V5) -> 351.1046356 | X5: =U5/((Q5/1000)+V5) -> 189.3248248 | Y5: =W5-$R5 -> 105.1046356 | Z5: =X5-$R5 -> -56.67517517 | AA5: =((W5/$R5)*100)-100 -> 42.72546163 | AB5: =((X5/$R5)*100)-100 -> -23.03868909
B6: Adult Edmontonia | C6: 13.5 | D6: 3.7665 | E6: 279 | F6: 0.00404128125 | G6: 398.2040379 | H6: 214.7220574 | I6: 119.2040379 | J6: -64.27794257 | M6: Leidyosuchus† | N6: 1 | O6: 1.2 | P6: 13–22 | Q6: 19 | R6: 283 | S6: NA | U6: 5.377 | V6: =(Q6/1000)/($Q$2/$Q$3) -> 0.005687729167 | W6: 403.9130564 | X6: 217.8005099 | Y6: =W6-$R6 -> 120.9130564 | Z6: =X6-$R6 -> -65.19949013 | AA6: =((W6/$R6)*100)-100 -> 42.72546163 | AB6: =((X6/$R6)*100)-100 -> -23.03868909
B7: Adult Triceratops | C7: 15.8 | D7: 6.0198 | E7: 381 | F7: 0.004729795833 | G7: 543.7840088 | H7: 293.2225946 | I7: 162.7840088 | J7: -87.77740544 | M7: Adult Edmontonia‡ | N7: 1 | O7: 0.2 | P7: 9–17 | Q7: 13.5 | R7: 279 | S7: NA | U7: 3.7665 | V7: 0.00404128125 | W7: 398.2040379 | X7: 214.7220574 | Y7: 119.2040379 | Z7: -64.27794257 | AA7: 42.72546163 | AB7: -23.03868909
B8: Infant Lambeosaurinae | C8: 11 | D8: 1.617 | E8: 147 | F8: 0.003292895833 | G8: 209.8064286 | H8: 113.133127 | I8: 62.80642859 | J8: -33.86687297 | M8: Adult Triceratops§ | N8: 2 | O8: 2.65 | P8: 13–26 | Q8: 15.8 | R8: 381 | S8: 83 | U8: 6.0198 | V8: 0.004729795833 | W8: 543.7840088 | X8: 293.2225946 | Y8: 162.7840088 | Z8: -87.77740544 | AA8: 42.72546163 | AB8: -23.03868909
B9: Adult Prosaurolophus | C9: 16 | D9: 5.168 | E9: 323 | F9: 0.004789666667 | G9: 461.0032411 | H9: 248.5850342 | I9: 138.0032411 | J9: -74.41496577 | M9: Infant Lambeosaurinae¶ | N9: 5 | O9: 0.12 | P9: 11 | Q9: 11 | R9: 147 | S9: 60 | U9: 1.617 | V9: 0.003292895833 | W9: 209.8064286 | X9: 113.133127 | Y9: 62.80642859 | Z9: -33.86687297 | AA9: 42.72546163 | AB9: -23.03868909
B10: Infant Maiasaura | C10: 12 | D10: 1.584 | E10: 132 | F10: 0.00359225 | G10: 188.3976093 | H10: 101.5889304 | I10: 56.39760935 | J10: -30.4110696 | M10: Adult Prosaurolophus¶ | N10: 3 | O10: 2 | P10: 15–28 | Q10: 16 | R10: 323 | S10: 81 | U10: 5.168 | V10: 0.004789666667 | W10: 461.0032411 | X10: 248.5850342 | Y10: 138.0032411 | Z10: -74.41496577 | AA10: 42.72546163 | AB10: -23.03868909
B11: Adult Maiasaura | C11: 13 | D11: 3.653 | E11: 281 | F11: 0.003891604167 | G11: 401.0585472 | H11: 216.2612837 | I11: 120.0585472 | J11: -64.73871635 | M11: Infant Maiasaura¶ | N11: 1 | O11: 0.1 | P11: 11–19 | Q11: 12 | R11: 132 | S11: 46 | U11: 1.584 | V11: 0.00359225 | W11: 188.3976093 | X11: 101.5889304 | Y11: 56.39760935 | Z11: -30.4110696 | AA11: 42.72546163 | AB11: -23.03868909
B12: Juvenile Edmontosaurus | C12: 14 | D12: 3.15 | E12: 225 | F12: 0.004190958333 | G12: 321.1322887 | H12: 173.1629495 | I12: 96.13228866 | J12: -51.83705046 | M12: Adult Maiasaura¶ | N12: 1 | O12: 1.9 | P12: 13 | Q12: 13 | R12: 281 | S12: 58 | U12: 3.653 | V12: 0.003891604167 | W12: 401.0585472 | X12: 216.2612837 | Y12: 120.0585472 | Z12: -64.73871635 | AA12: 42.72546163 | AB12: -23.03868909
B13: Adult Edmontosaurus | C13: 19.8 | D13: 6.7122 | E13: 339 | F13: 0.0059272125 | G13: 483.8393149 | H13: 260.898844 | I13: 144.8393149 | J13: -78.10115602 | M13: Juvenile Edmontosaurus¶ | N13: 3 | O13: 0.43 | P13: 12–21 | Q13: 14 | R13: 225 | S13: NA | U13: 3.15 | V13: 0.004190958333 | W13: 321.1322887 | X13: 173.1629495 | Y13: 96.13228866 | Z13: -51.83705046 | AA13: 42.72546163 | AB13: -23.03868909
B14: Adult Deinonychus | C14: 10.1 | D14: 4.1713 | E14: 413 | F14: 0.003023477083 | G14: 589.4561565 | H14: 317.850214 | I14: 176.4561565 | J14: -95.14978595 | M14: Adult Edmontosaurus¶ | N14: 2 | O14: 2 | P14: 11–25 | Q14: 19.8 | R14: 339 | S14: 50 | U14: 6.7122 | V14: 0.0059272125 | W14: 483.8393149 | X14: 260.898844 | Y14: 144.8393149 | Z14: -78.10115602 | AA14: 42.72546163 | AB14: -23.03868909
B15: Adult Troodon | C15: 11 | D15: 3.993 | E15: 363 | F15: 0.003292895833 | G15: 518.0934257 | H15: 279.3695586 | I15: 155.0934257 | J15: -83.63044141 | M15: Adult Deinonychus** | N15: 1 | O15: 0.2 | P15: 6–12 | Q15: 10.1 | R15: 413 | S15: 290 | T15: * | U15: 4.1713 | V15: 0.003023477083 | W15: 589.4561565 | X15: 317.850214 | Y15: 176.4561565 | Z15: -95.14978595 | AA15: 42.72546163 | AB15: -23.03868909
B16: Juvenile Albertosaur | C16: 14.5 | D16: 4.9155 | E16: 339 | F16: 0.004340635417 | G16: 483.8393149 | H16: 260.898844 | I16: 144.8393149 | J16: -78.10115602 | M16: Adult Troodon†† | N16: 2 | O16: 0.04 | P16: 7–15 | Q16: 11 | R16: 363 | S16: NA | U16: 3.993 | V16: 0.003292895833 | W16: 518.0934257 | X16: 279.3695586 | Y16: 155.0934257 | Z16: -83.63044141 | AA16: 42.72546163 | AB16: -23.03868909
B17: Adult Albertosaur | C17: 14 | D17: 7.266 | E17: 519 | F17: 0.004190958333 | G17: 740.7451458 | H17: 399.4292036 | I17: 221.7451458 | J17: -119.5707964 | M17: Juvenile Albertosaur‡‡ | N17: 1 | O17: 1.8 | P17: 12–17 | Q17: 14.5 | R17: 339 | S17: 296 | T17: * | U17: 4.9155 | V17: 0.004340635417 | W17: 483.8393149 | X17: 260.898844 | Y17: 144.8393149 | Z17: -78.10115602 | AA17: 42.72546163 | AB17: -23.03868909
B18: Juvenile Tyrannosaurus | C18: 14 | D18: 3.696 | E18: 264 | F18: 0.004190958333 | G18: 376.7952187 | H18: 203.1778608 | I18: 112.7952187 | J18: -60.8221392 | M18: Adult Albertosaur‡‡ | N18: 1 | O18: 18 | P18: 12–24 | Q18: 14 | R18: 519 | S18: 454 | T18: * | U18: 7.266 | V18: 0.004190958333 | W18: 740.7451458 | X18: 399.4292036 | Y18: 221.7451458 | Z18: -119.5707964 | AA18: 42.72546163 | AB18: -23.03868909
B19: Sub. Ad. Tyrannosaurus | C19: 14 | D19: 4.396 | E19: 314 | F19: 0.004190958333 | G19: 448.1579495 | H19: 241.6585163 | I19: 134.1579495 | J19: -72.34148375 | M19: Juvenile Tyrannosaurus‡‡ | N19: 1 | O19: 1.8 | P19: 12–17 | Q19: 14 | R19: 264 | S19: NA | T19: NA | U19: 3.696 | V19: 0.004190958333 | W19: 376.7952187 | X19: 203.1778608 | Y19: 112.7952187 | Z19: -60.8221392 | AA19: 42.72546163 | AB19: -23.03868909
B20: Adult Tyrannosaurus | C20: 17 | D20: 15.861 | E20: 933 | F20: 0.005089020833 | G20: 1331.628557 | H20: 718.0490308 | I20: 398.628557 | J20: -214.9509692 | M20: Sub. Ad. Tyrannosaurus‡‡ | N20: 1 | O20: 15.5 | P20: 8–17 | Q20: 14 | R20: 314 | U20: 4.396 | V20: 0.004190958333 | W20: 448.1579495 | X20: 241.6585163 | Y20: 134.1579495 | Z20: -72.34148375 | AA20: 42.72546163 | AB20: -23.03868909
B21: MPCA-Ph 4, 5, 9, 13, 19 | C21: 18.2 | D21: 1.1648 | E21: 64 | F21: 0.005448245833 | G21: 91.34429544 | H21: 49.25523898 | I21: 27.34429544 | J21: -14.74476102 | K21: Garcia & Zurriaguz 2016 | M21: Adult Tyrannosaurus‡‡ | N21: 1 | O21: 138 | P21: 7–22 | Q21: 17 | R21: 933 | S21: 777 | T21: * | U21: 15.861 | V21: 0.005089020833 | W21: 1331.628557 | X21: 718.0490308 | Y21: 398.628557 | Z21: -214.9509692 | AA21: 42.72546163 | AB21: -23.03868909
C22: 20.8 | D22: 1.1232 | E22: 54 | F22: 0.006226566667 | G22: 77.07174928 | H22: 41.55910789 | I22: 23.07174928 | J22: -12.44089211 | M22: NA, not applicable.
B23: Majungasaurus | K23: D'Emic et al. 2019b | M23: *Replacement rate estimated via computed tomography (see Materials and Methods).
B24: Pmx FMNH PR 2100 Right 3 | C24: 17.551 | D24: =E24*(C24/1000) -> 5.124892 | E24: 292 | F24: =(C24/1000)/($Q$2/$Q$3) -> 0.005253964979 | G24: =D24/((C24/1000)-F24) -> 416.758348 | H24: =D24/((C24/1000)+F24) -> 224.7270279 | I24: =G24-$E24 -> 124.758348 | J24: =H24-$E24 -> -67.27297215 | K24: =((G24/$E24)*100)-100 -> 42.72546163 | L24: =((H24/$E24)*100)-100 -> -23.03868909 | M24: †Neosuchia (13).
B25: Mx UA 9944 Left 1 | C25: 17.551 | D25: =E25*(C25/1000) -> 4.633464 | E25: 264 | F25: =(C25/1000)/($Q$2/$Q$3) -> 0.005253964979 | G25: =D25/((C25/1000)-F25) -> 376.7952187 | H25: =D25/((C25/1000)+F25) -> 203.1778608 | I25: =G25-$E25 -> 112.7952187 | J25: =H25-$E25 -> -60.8221392 | K25: =((G25/$E25)*100)-100 -> 42.72546163 | L25: =((H25/$E25)*100)-100 -> -23.03868909 | M25: ‡Nodosauridae (14).
B26: Dent FMNH PR 2100 Right 2 | C26: 17.551 | D26: =E26*(C26/1000) -> 4.38775 | E26: 250 | F26: =(C26/1000)/($Q$2/$Q$3) -> 0.005253964979 | G26: =D26/((C26/1000)-F26) -> 356.8136541 | H26: =D26/((C26/1000)+F26) -> 192.4032773 | I26: 106.8136541 | J26: -57.59672273 | K26: 42.72546163 | L26: -23.03868909 | M26: §Ceratopsidae (15).
B27: Ceratosaurus | M27: ¶Hadrosauridae (16).
B28: Mx BYU 12893 Right 6 | C28: 14.465 | D28: =E28*(C28/1000) -> 4.831145062 | E28: 334 | F28: =(C28/1000)/($Q$2/$Q$3) -> 0.00433 | G28: =D28/((C28/1000)-F28) -> 476.7030 | H28: =D28/((C28/1000)+F28) -> 257.0507784 | I28: 142.7030418 | J28: -76.94922157 | K28: 42.72546163 | L28: -23.03868909 | M28: **Dromomaeosauridae (Theropoda) (17).
B29: Allosaurus | M29: ††Troodontidae (Theropoda) (17).
B30: Pmx BYU 8901 Right 2 | C30: 23 | D30: =E30*(C30/1000) -> 8.05 | E30: 350 | F30: =(C30/1000)/($Q$2/$Q$3) -> 0.006885145833 | G30: =D30/((C30/1000)-F30) -> 499.5391157 | H30: =D30/((C30/1000)+F30) -> 269.3645882 | I30: 149.5391157 | J30: -80.63541182 | K30: 42.72546163 | L30: -23.03868909 | M30: ‡‡Tyrannosauridae (Theropoda) (17).
B31: Mx BYU 8901 Right 6 | C31: 23 | D31: =E31*(C31/1000) -> 7.36 | E31: 320 | F31: =(C31/1000)/($Q$2/$Q$3) -> 0.006885145833 | G31: =D31/((C31/1000)-F31) -> 456.7214772 | H31: =D31/((C31/1000)+F31) -> 246.2761949 | I31: 136.7214772 | J31: -73.7238051 | K31: 42.72546163 | L31: -23.03868909
B32: Dent BYU 2028 Left 5 | C32: 23 | D32: =E32*(C32/1000) -> 8.165 | E32: 355 | F32: =(C32/1000)/($Q$2/$Q$3) -> 0.006885145833 | G32: =D32/((C32/1000)-F32) -> 506.6753888 | H32: =D32/((C32/1000)+F32) -> 273.2126537 | I32: 151.6753888 | J32: -81.78734628 | K32: 42.72546163 | L32: -23.03868909 | M32: Ricart et al. 2019 | N32: values are not reliable because the age was calculated based on mid-crown width, not crown height
O33: Mean crown volume, ml | P33: Increment size range, micro m | Q33: Mean increment width, micro m | R33: Mean tooth formation rate, days | S33: tooth diameter (alternative) | U33: Crown height (back calculated from mean VEIW and TFT) | V33: SD based on Alligator | W33: TFT + SD | X33: TFT - SD | Y33: SD + | Z33: SD - | AA33: SD + [%] | AB33: SD - [%]
M34: Sphagesaurid FUP-Pv 000100 | O34: 0.918 | Q34: 24 | R34: 181 | S34: 4.35 | U34: =R34*(Q34/1000) -> 4.344 | V34: =(Q34/1000)/($Q$2/$Q$3) -> 0.0071845 | W34: =U34/((Q34/1000)-V34) -> 258.3330855 | X34: =U34/((Q34/1000)+V34) -> 139.2999727 | Y34: =W34-$R34 -> 77.33308555 | Z34: =X34-$R34 -> -41.70002726 | AA34: =((W34/$R34)*100)-100 -> 42.72546163 | AB34: =((X34/$R34)*100)-100 -> -23.03868909
M35: Mariliasuchus FUP-Pv 000109 | O35: 0.031 | Q35: 25 | R35: 50 | S35: 1.26 | U35: =R35*(Q35/1000) -> 1.25 | V35: =(Q35/1000)/($Q$2/$Q$3) -> 0.007483854167 | W35: =U35/((Q35/1000)-V35) -> 71.36273081 | X35: =U35/((Q35/1000)+V35) -> 38.48065545 | Y35: =W35-$R35 -> 21.36273081 | Z35: =X35-$R35 -> -11.51934455 | AA35: =((W35/$R35)*100)-100 -> 42.72546163 | AB35: =((X35/$R35)*100)-100 -> -23.03868909
M36: Mariliasuchus FUP-Pv 000110 | O36: 0.039+ | S36: 2.7
